Workbook

Sheet Sheet45 (hidden)
A1: S.No. | B1: Districts | C1: As per Appraisal Report Proposal | F1: As per Post PAB Proposal vide mail dated 2-4-2016 | I1: As per Post PAB recommendation
C2: Boundary Wall | F2: Boundary Wall | I2: Boundary Wall | N2: Total Outlay | O2: Achievement | P2: Outlay-2015-16 | Q2: Savings
C3: Unit Cost | D3: Phy. | E3: Fin. | F3: Unit Cost | G3: Phy. | H3: Fin. | I3: Unit Cost | J3: Phy. | K3: Fin.
A4: 1 | B4: Anantnag | C4: 0.05825 | D4: 7131 | E4: =D4*C4 -> 415.38075 | F4: 0.05825 | G4: 0 | H4: =G4*F4 -> 0 | I4: 0.05825 | J4: 0 | K4: =J4*I4 -> 0 | M4: Anantnag | N4: =Anantnag!AB512 -> 17154.66067 | O4: 12867.79628 | P4: 18667.62067 | Q4: 5799.824387 | R4: =P4-O4 -> 5799.824387 | S4: =R4-Q4 -> 0
A5: 2 | B5: Bandipora | C5: 0.05825 | D5: 2394 | E5: =D5*C5 -> 139.4505 | F5: 0.05825 | G5: 0 | H5: =G5*F5 -> 0 | I5: 0.05825 | J5: 0 | K5: =J5*I5 -> 0 | M5: Bandipora | N5: =Bandipora!AB512 -> 11234.68068 | O5: 5194.0114 | P5: 8556.375946 | Q5: 3362.364546 | R5: =P5-O5 -> 3362.364546 | S5: =R5-Q5 -> 0
A6: 3 | B6: Baramulla | C6: 0.05825 | D6: 0 | E6: 0 | F6: 0.05825 | G6: 152909 | H6: 8906.94925 | I6: 0.05825 | J6: 14200 | K6: 827.15 | M6: Baramulla | N6: =Baramulla!AB512 -> 19442.3089 | O6: 17580.7664 | P6: 23364.52801 | Q6: 5783.761614 | R6: 5783.761614 | S6: 0
A7: 4 | B7: Budgam | C7: 0.05825 | D7: 8580 | E7: 499.785 | F7: 0.05825 | G7: 0 | H7: 0 | I7: 0.05825 | J7: 0 | K7: 0 | M7: Budgam | N7: =Budgam!AB512 -> 12047.03789 | O7: 8706.7257 | P7: 10934.08656 | Q7: 2227.36086 | R7: 2227.36086 | S7: 0
A8: 5 | B8: Doda | C8: 0.05825 | D8: 0 | E8: 0 | F8: 0.05825 | G8: 0 | H8: 0 | I8: 0.05825 | J8: 0 | K8: 0 | M8: Doda | N8: =Doda!AB512 -> 13838.35536 | O8: 9822.98065 | P8: 13580.85489 | Q8: 3757.874236 | R8: 3757.874236 | S8: 0
A9: 6 | B9: Ganderbal | C9: 0.05825 | D9: 0 | E9: 0 | F9: 0.05825 | G9: 0 | H9: 0 | I9: 0.05825 | J9: 0 | K9: 0 | M9: Ganderbal | N9: =Ganderbal!AB512 -> 5099.440571 | O9: 3159.86044 | P9: 4135.583814 | Q9: 975.7233742 | R9: 975.7233742 | S9: 0
A10: 7 | B10: Jammu | C10: 0.05825 | D10: 0 | E10: 0 | F10: 0.05825 | G10: 0 | H10: 0 | I10: 0.05825 | J10: 0 | K10: 0 | M10: Jammu | N10: =Jammu!AB512 -> 10019.98781 | O10: 7821.0989 | P10: 10421.14165 | Q10: 2600.042755 | R10: 2600.042755 | S10: 0
A11: 8 | B11: Kargil | C11: 0.05825 | D11: 8664 | E11: 504.678 | F11: 0.05825 | G11: 0 | H11: 0 | I11: 0.05825 | J11: 0 | K11: 0 | M11: Kargil | N11: =Kargil!AB512 -> 6686.655899 | O11: 5540.765 | P11: 7261.571766 | Q11: 1720.806766 | R11: 1720.806766 | S11: 0
A12: 9 | B12: Kathua | C12: 0.05825 | D12: 3112 | E12: 181.274 | F12: 0.05825 | G12: 46199 | H12: 2691.09175 | I12: 0.05825 | J12: 13926 | K12: 811.1895 | M12: Kathua | N12: =Kathua!AB512 -> 8210.360668 | O12: 7884.72815 | P12: 8903.770959 | Q12: 1019.042809 | R12: 1019.042809 | S12: 0
A13: 10 | B13: Kishtwar | C13: 0.05825 | D13: 3580 | E13: 208.535 | F13: 0.05825 | G13: 0 | H13: 0 | I13: 0.05825 | J13: 0 | K13: 0 | M13: Kishtwar | N13: =Kishtwar!AB512 -> 10184.93014 | O13: 6017.9046 | P13: 9703.494165 | Q13: 3685.589565 | R13: 3685.589565 | S13: 0
A14: 11 | B14: Kulgam | C14: 0.05825 | D14: 0 | E14: 0 | F14: 0.05825 | G14: 0 | H14: 0 | I14: 0.05825 | J14: 0 | K14: 0 | M14: Kulgam | N14: =Kulgam!AB512 -> 9281.330688 | O14: 7534.1043 | P14: 9233.685148 | Q14: 1699.580848 | R14: 1699.580848 | S14: 0
A15: 12 | B15: Kupwara | C15: 0.05825 | D15: 27637 | E15: 1609.85525 | F15: 0.05825 | G15: 24319 | H15: 1416.58175 | I15: 0.05825 | J15: 3093 | K15: 180.16725 | M15: Kupwara | N15: =Kupwara!AB512 -> 22193.84164 | O15: 16346.5665 | P15: 24362.13129 | Q15: 8015.564792 | R15: 8015.564792 | S15: 0
A16: 13 | B16: Leh | C16: 0.05825 | D16: 0 | E16: 0 | F16: 0.05825 | G16: 0 | H16: 0 | I16: 0.05825 | J16: 0 | K16: 0 | M16: Leh | N16: =Leh!AB512 -> 3806.951757 | O16: 1844.7771 | P16: 4094.40469 | Q16: 2249.62759 | R16: 2249.62759 | S16: 0
A17: 14 | B17: Poonch | C17: 0.05825 | D17: 5940 | E17: 346.005 | F17: 0.05825 | G17: 0 | H17: 0 | I17: 0.05825 | J17: 0 | K17: 0 | M17: Poonch | N17: =Poonch!AB512 -> 11909.41889 | O17: 11869.1062 | P17: 12819.88988 | Q17: 950.7836787 | R17: 950.7836787 | S17: 0
A18: 15 | B18: Pulwama | C18: 0.05825 | D18: 4732 | E18: 275.639 | F18: 0.05825 | G18: 0 | H18: 0 | I18: 0.05825 | J18: 0 | K18: 0 | M18: Pulwama | N18: =Pulwama!AB512 -> 8602.580357 | O18: 5702.6716 | P18: 9431.414941 | Q18: 3728.743341 | R18: 3728.743341 | S18: 0
A19: 16 | B19: Rajouri | C19: 0.05825 | D19: 0 | E19: 0 | F19: 0.05825 | G19: 0 | H19: 0 | I19: 0.05825 | J19: 0 | K19: 0 | M19: Rajouri | N19: =Rajouri!AB512 -> 16479.84146 | O19: 12321.1124 | P19: 13806.06591 | Q19: 1484.953512 | R19: 1484.953512 | S19: 0
A20: 17 | B20: Ramban | C20: 0.05825 | D20: 3916 | E20: 228.107 | F20: 0.05825 | G20: 0 | H20: 0 | I20: 0.05825 | J20: 0 | K20: 0 | M20: Ramban | N20: =Ramban!AB512 -> 9146.453856 | O20: 5416.4687 | P20: 8151.247759 | Q20: 2734.779059 | R20: 2734.779059 | S20: 0
A21: 18 | B21: Reasi | C21: 0.05825 | D21: 13669 | E21: 796.21925 | F21: 0.05825 | G21: 0 | H21: 0 | I21: 0.05825 | J21: 0 | K21: 0 | M21: Reasi | N21: =Reasi!AB512 -> 12387.03692 | O21: 8963.09915 | P21: 12265.43006 | Q21: 3302.330915 | R21: 3302.330915 | S21: 0
A22: 19 | B22: Samba | C22: 0.05825 | D22: 1280 | E22: 74.56 | F22: 0.05825 | G22: 17289 | H22: 1007.08425 | I22: 0.05825 | J22: 4015 | K22: 233.87375 | M22: Samba | N22: =Samba!AB512 -> 3158.860418 | O22: 2701.831 | P22: 3261.786228 | Q22: 559.9552276 | R22: 559.9552276 | S22: 0
A23: 20 | B23: Shopian | C23: 0.05825 | D23: 4300 | E23: 250.475 | F23: 0.05825 | G23: 0 | H23: 0 | I23: 0.05825 | J23: 0 | K23: 0 | M23: Shopian | N23: =Shopian!AB512 -> 4322.352136 | O23: 4367.6636 | P23: 4682.529648 | Q23: 314.8660483 | R23: 314.8660483 | S23: 0
A24: 21 | B24: Srinagar | C24: 0.05825 | D24: 1277 | E24: 74.38525 | F24: 0.05825 | G24: 0 | H24: 0 | I24: 0.05825 | J24: 0 | K24: 0 | M24: Srinagar | N24: =Srinagar!AB512 -> 4501.180745 | O24: 3623.3772 | P24: 4324.126145 | Q24: 700.7489453 | R24: 700.7489453 | S24: 0
A25: 22 | B25: Udhampur | C25: 0.05825 | D25: 3788 | E25: 220.651 | F25: 0.05825 | G25: 0 | H25: 0 | I25: 0.05825 | J25: 0 | K25: 0 | M25: Udhampur | N25: =Udhampur!AB512 -> 14303.43203 | O25: 12123.1438 | P25: 14774.73045 | Q25: 2651.586646 | R25: 2651.586646 | S25: 0
B26: Total | D26: =SUM(D4:D25) -> 100000 | E26: =SUM(E4:E25) -> 5825 | G26: =SUM(G4:G25) -> 240716 | H26: =SUM(H4:H25) -> 14021.707 | J26: =SUM(J4:J25) -> 35234 | K26: =SUM(K4:K25) -> 2052.3805 | N26: =State!AB398 -> 2189.86 | O26: =State!F398 -> 0 | P26: =State!D398 -> 1899.15
N27: =SUM(N4:N26) -> 236201.5595 | O27: 177410.5591 | P27: 238635.6206 | Q27: 59325.91152 | R27: 59325.91152 | S27: 0
N28: =State!AB512 -> 236201.5595 | O28: =State!F512 -> 112888.3039 | P28: =State!D512 -> 206255.3734
N29: =N28-N27 -> 0 | O29: =O28-O27 -> -64522.25519

Sheet pro-rec
A2: S. No. | B2: Head | C2: Outlay Proposed | G2: Approved Outlay
C3: Spill Over | D3: Deffered liability | E3: Fresh | F3: Total | G3: Spill Over | H3: Deffered liability | I3: Fresh | J3: Total
A4: 1 | B4: SSA | C4: =State!L399 -> 53721.71988 | D4: =State!N399 -> 0 | E4: =State!Q399 -> 272714.5447 | F4: =C4+D4+E4 -> 326436.2645 | G4: =State!U399 -> 20000.003 | H4: =State!W399 -> 0 | I4: =State!Z399 -> 209336.4631 | J4: =SUM(G4:I4) -> 229336.4661
A5: 2 | B5: KGBV | C5: =State!L511 -> 3123.48334 | D5: =State!N511 -> 0 | E5: =State!Q511 -> 4102.91 | F5: =C5+D5+E5 -> 7226.39334 | G5: =State!U511 -> 3123.48334 | H5: =State!W511 -> 0 | I5: =State!Z511 -> 3741.61 | J5: =SUM(G5:I5) -> 6865.09334
B6: Total | C6: =C4+C5 -> 56845.20322 | D6: 0 | E6: 276817.4547 | F6: 333662.6579 | G6: 23123.48634 | H6: 0 | I6: 213078.0731 | J6: 236201.5595

Sheet Provision
A2: Outlay approved | B2: Capital Head (all civil works under SSA & KGBV) | C2: General Head | D2: GOI Share (90% )
D3: Capital Head | E3: General Head | F3: Total
A4: =State!AB512 -> 236201.5595 | B4: =State!AB380+State!U403+State!U404+State!U405+State!U406 -> 5578.94334 | C4: =A4-B4 -> 230622.6161 | D4: =B4*90/100 -> 5021.049006 | E4: =C4*90/100 -> 207560.3545 | F4: =+E4+D4 -> 212581.4035
B6: =State!AB380+State!U403+State!U404+State!U405+State!U406 -> 5578.94334

Sheet Annexure-VI-SFD
A2: State/UT Name: Jammu & Kashmir | AC2: (Rs. in lakh)
A3: Sl.No | B3: Name of the districts | C3: SOCIAL CATEGORY GROUP | J3: Physical items Approved | AC3: Total financial outlay of SSA | AD3: KGBV Outlay | AE3: Total Outlay
C4: SCHEDULED TRIBES (25% and above) | D4: SCHEDULED CASTES (25% and above) | E4: 121 PMO's Minority Districts | F4: Muslim Concentration (20% and above) | H4: LWE Districts | J4: Civil Works (Fresh) | V4: Teachers | AB4: No. of KGBV
G5: Naxalite Affected Districts | I5: LWE worst affected Districts | J5: New PS Buildings | K5: New UPS Buildings | L5: ACR | M5: ACR in lieu of upgraded Primary School | N5: ACR in lieu of upgraded Upper Primary School | O5: All Toilets (including girls toilets) | P5: Girls Toilets | Q5: PS | R5: Upgradation of PS to UPS | S5: Residential schools | T5: Residential hostel | U5: Integration of Class VIII with UPS | V5: New teachers for new schools | W5: Additional teach. Against excess enrolment | X5: Part Time Instructors | Y5: Teachers Training | Z5: Uniforms | AA5: Text books
A6: 1 | B6: Anantnag | F6: 1 | J6: =Anantnag!$Y$352+Anantnag!$Y$353+Anantnag!$Y$355 -> 0 | L6: =Anantnag!$Y$356+Anantnag!$Y$357+Anantnag!$Y$358 -> 10 | N6: =Anantnag!$Y$356 -> 0 | O6: =Anantnag!$Y$359+Anantnag!$Y$360+Anantnag!$Y$361 -> 0 | P6: =Anantnag!$Y$360 -> 0 | Q6: =Anantnag!$Y$7 -> 0 | R6: =Anantnag!$Y$8 -> 0 | S6: =Anantnag!$Y$10 -> 0 | T6: =Anantnag!$Y$11 -> 0 | U6: =Anantnag!$Y$13 -> 0 | V6: =Anantnag!$Y$238 -> 0 | X6: =Anantnag!$Y$257+Anantnag!$Y$258+Anantnag!$Y$259 -> 0 | Y6: =Anantnag!$Y$285 -> 7563 | Z6: =Anantnag!$Y$212 -> 60154 | AA6: =Anantnag!$Y$206 -> 43671 | AB6: =Anantnag!$Y$511 -> 8 | AC6: =Anantnag!$AB$399 -> 16550.37667 | AD6: =Anantnag!$AB$511 -> 604.284 | AE6: =AC6+AD6 -> 17154.66067
A7: 2 | B7: Baramullah | F7: 1 | J7: =Baramulla!$Y$352+Baramulla!$Y$353+Baramulla!$Y$355 -> 0 | L7: =Baramulla!$Y$356+Baramulla!$Y$357+Baramulla!$Y$358 -> 6 | N7: =Baramulla!$Y$356 -> 0 | O7: =Baramulla!$Y$359+Baramulla!$Y$360+Baramulla!$Y$361 -> 0 | P7: =Baramulla!$Y$360 -> 0 | Q7: =Baramulla!$Y$7 -> 0 | R7: =Baramulla!$Y$8 -> 0 | S7: =Baramulla!$Y$10 -> 0 | T7: =Baramulla!$Y$11 -> 0 | U7: =Baramulla!$Y$13 -> 0 | V7: =Baramulla!$Y$238 -> 0 | X7: =Baramulla!$Y$257+Baramulla!$Y$258+Baramulla!$Y$259 -> 0 | Y7: =Baramulla!$Y$285 -> 3522 | Z7: =Baramulla!$Y$212 -> 69075 | AA7: =Baramulla!$Y$206 -> 50414 | AB7: =Baramulla!$Y$511 -> 10 | AC7: =Baramulla!$AB$399 -> 18537.3489 | AD7: =Baramulla!$AB$511 -> 904.96 | AE7: =AC7+AD7 -> 19442.3089
A8: 3 | B8: Budgam | F8: 1 | J8: =Budgam!$Y$352+Budgam!$Y$353+Budgam!$Y$355 -> 1 | L8: =Budgam!$Y$356+Budgam!$Y$357+Budgam!$Y$358 -> 3 | N8: =Budgam!$Y$356 -> 0 | O8: =Budgam!$Y$359+Budgam!$Y$360+Budgam!$Y$361 -> 0 | P8: =Budgam!$Y$360 -> 0 | Q8: =Budgam!$Y$7 -> 0 | R8: =Budgam!$Y$8 -> 0 | S8: =Budgam!$Y$10 -> 0 | T8: =Budgam!$Y$11 -> 0 | U8: =Budgam!$Y$13 -> 0 | V8: =Budgam!$Y$238 -> 0 | X8: =Budgam!$Y$257+Budgam!$Y$258+Budgam!$Y$259 -> 0 | Y8: =Budgam!$Y$285 -> 8853 | Z8: =Budgam!$Y$212 -> 48440 | AA8: =Budgam!$Y$206 -> 35546 | AB8: =Budgam!$Y$511 -> 8 | AC8: =Budgam!$AB$399 -> 11538.40236 | AD8: =Budgam!$AB$511 -> 508.63553 | AE8: 12047.03789
A9: 4 | B9: Doda | F9: 1 | J9: =Doda!$Y$352+Doda!$Y$353+Doda!$Y$355 -> 0 | L9: =Doda!$Y$356+Doda!$Y$357+Doda!$Y$358 -> 17 | N9: =Doda!$Y$356 -> 2 | O9: =Doda!$Y$359+Doda!$Y$360+Doda!$Y$361 -> 0 | P9: =Doda!$Y$360 -> 0 | Q9: =Doda!$Y$7 -> 0 | R9: =Doda!$Y$8 -> 2 | S9: =Doda!$Y$10 -> 0 | T9: =Doda!$Y$11 -> 0 | U9: =Doda!$Y$13 -> 0 | V9: =Doda!$Y$238 -> 0 | X9: =Doda!$Y$257+Doda!$Y$258+Doda!$Y$259 -> 0 | Y9: =Doda!$Y$285 -> 5861 | Z9: =Doda!$Y$212 -> 54715 | AA9: =Doda!$Y$206 -> 39154 | AB9: =Doda!$Y$511 -> 5 | AC9: =Doda!$AB$399 -> 13387.89336 | AD9: =Doda!$AB$511 -> 450.462 | AE9: 13838.35536
A10: 5 | B10: Jammu | J10: =Jammu!$Y$352+Jammu!$Y$353+Jammu!$Y$355 -> 0 | L10: =Jammu!$Y$356+Jammu!$Y$357+Jammu!$Y$358 -> 14 | N10: =Jammu!$Y$356 -> 0 | O10: =Jammu!$Y$359+Jammu!$Y$360+Jammu!$Y$361 -> 0 | P10: =Jammu!$Y$360 -> 0 | Q10: =Jammu!$Y$7 -> 0 | R10: =Jammu!$Y$8 -> 0 | S10: =Jammu!$Y$10 -> 0 | T10: =Jammu!$Y$11 -> 0 | U10: =Jammu!$Y$13 -> 0 | V10: =Jammu!$Y$238 -> 0 | X10: =Jammu!$Y$257+Jammu!$Y$258+Jammu!$Y$259 -> 0 | Y10: =Jammu!$Y$285 -> 6944 | Z10: =Jammu!$Y$212 -> 43379 | AA10: =Jammu!$Y$206 -> 39341 | AB10: =Jammu!$Y$511 -> 0 | AC10: =Jammu!$AB$399 -> 10019.98781 | AD10: =Jammu!$AB$511 -> 0 | AE10: 10019.98781
A11: 6 | B11: Kargil | C11: 1 | F11: 1 | J11: =Kargil!$Y$352+Kargil!$Y$353+Kargil!$Y$355 -> 0 | L11: =Kargil!$Y$356+Kargil!$Y$357+Kargil!$Y$358 -> 0 | N11: =Kargil!$Y$356 -> 0 | O11: =Kargil!$Y$359+Kargil!$Y$360+Kargil!$Y$361 -> 0 | P11: =Kargil!$Y$360 -> 0 | Q11: =Kargil!$Y$7 -> 0 | R11: =Kargil!$Y$8 -> 0 | S11: =Kargil!$Y$10 -> 0 | T11: =Kargil!$Y$11 -> 0 | U11: =Kargil!$Y$13 -> 0 | V11: =Kargil!$Y$238 -> 0 | X11: =Kargil!$Y$257+Kargil!$Y$258+Kargil!$Y$259 -> 0 | Y11: =Kargil!$Y$285 -> 3022 | Z11: =Kargil!$Y$212 -> 10314 | AA11: =Kargil!$Y$206 -> 7109 | AB11: =Kargil!$Y$511 -> 6 | AC11: =Kargil!$AB$399 -> 6276.695899 | AD11: =Kargil!$AB$511 -> 409.96 | AE11: 6686.655899
A12: 7 | B12: Kathua | J12: =Kathua!$Y$352+Kathua!$Y$353+Kathua!$Y$355 -> 0 | L12: =Kathua!$Y$356+Kathua!$Y$357+Kathua!$Y$358 -> 10 | N12: =Kathua!$Y$356 -> 0 | O12: =Kathua!$Y$359+Kathua!$Y$360+Kathua!$Y$361 -> 1 | P12: =Kathua!$Y$360 -> 1 | Q12: =Kathua!$Y$7 -> 0 | R12: =Kathua!$Y$8 -> 0 | S12: =Kathua!$Y$10 -> 0 | T12: =Kathua!$Y$11 -> 0 | U12: =Kathua!$Y$13 -> 0 | V12: =Kathua!$Y$238 -> 0 | X12: =Kathua!$Y$257+Kathua!$Y$258+Kathua!$Y$259 -> 0 | Y12: =Kathua!$Y$285 -> 5704 | Z12: =Kathua!$Y$212 -> 52115 | AA12: =Kathua!$Y$206 -> 38853 | AB12: =Kathua!$Y$511 -> 4 | AC12: =Kathua!$AB$399 -> 7933.859858 | AD12: =Kathua!$AB$511 -> 276.50081 | AE12: 8210.360668
A13: 8 | B13: Kupwara | F13: 1 | J13: =Kupwara!$Y$352+Kupwara!$Y$353+Kupwara!$Y$355 -> 0 | L13: =Kupwara!$Y$356+Kupwara!$Y$357+Kupwara!$Y$358 -> 13 | N13: =Kupwara!$Y$356 -> 0 | O13: =Kupwara!$Y$359+Kupwara!$Y$360+Kupwara!$Y$361 -> 35 | P13: =Kupwara!$Y$360 -> 6 | Q13: =Kupwara!$Y$7 -> 0 | R13: =Kupwara!$Y$8 -> 0 | S13: =Kupwara!$Y$10 -> 0 | T13: =Kupwara!$Y$11 -> 0 | U13: =Kupwara!$Y$13 -> 0 | V13: =Kupwara!$Y$238 -> 0 | X13: =Kupwara!$Y$257+Kupwara!$Y$258+Kupwara!$Y$259 -> 0 | Y13: =Kupwara!$Y$285 -> 7927 | Z13: =Kupwara!$Y$212 -> 79898 | AA13: =Kupwara!$Y$206 -> 56105 | AB13: =Kupwara!$Y$511 -> 10 | AC13: =Kupwara!$AB$399 -> 21490.19664 | AD13: =Kupwara!$AB$511 -> 703.645 | AE13: 22193.84164
A14: 9 | B14: Leh (Laddakh) | C14: 1 | E14: 1 | J14: =Leh!$Y$352+Leh!$Y$353+Leh!$Y$355 -> 0 | L14: =Leh!$Y$356+Leh!$Y$357+Leh!$Y$358 -> 0 | N14: =Leh!$Y$356 -> 0 | O14: =Leh!$Y$359+Leh!$Y$360+Leh!$Y$361 -> 0 | P14: =Leh!$Y$360 -> 0 | Q14: =Leh!$Y$7 -> 0 | R14: =Leh!$Y$8 -> 0 | S14: =Leh!$Y$10 -> 0 | T14: =Leh!$Y$11 -> 0 | U14: =Leh!$Y$13 -> 0 | V14: =Leh!$Y$238 -> 0 | X14: =Leh!$Y$257+Leh!$Y$258+Leh!$Y$259 -> 0 | Y14: =Leh!$Y$285 -> 2282 | Z14: =Leh!$Y$212 -> 3762 | AA14: =Leh!$Y$206 -> 2745 | AB14: =Leh!$Y$511 -> 4 | AC14: =Leh!$AB$399 -> 3500.971757 | AD14: =Leh!$AB$511 -> 305.98 | AE14: 3806.951757
A15: 10 | B15: Palwama | F15: 1 | J15: =Pulwama!$Y$352+Pulwama!$Y$353+Pulwama!$Y$355 -> 0 | L15: =Pulwama!$Y$356+Pulwama!$Y$357+Pulwama!$Y$358 -> 1 | N15: =Pulwama!$Y$356 -> 0 | O15: =Pulwama!$Y$359+Pulwama!$Y$360+Pulwama!$Y$361 -> 0 | P15: =Pulwama!$Y$360 -> 0 | Q15: =Pulwama!$Y$7 -> 0 | R15: =Pulwama!$Y$8 -> 0 | S15: =Pulwama!$Y$10 -> 0 | T15: =Pulwama!$Y$11 -> 0 | U15: =Pulwama!$Y$13 -> 0 | V15: =Pulwama!$Y$238 -> 0 | X15: =Pulwama!$Y$257+Pulwama!$Y$258+Pulwama!$Y$259 -> 0 | Y15: =Pulwama!$Y$285 -> 6624 | Z15: =Pulwama!$Y$212 -> 24883 | AA15: =Pulwama!$Y$206 -> 18047 | AB15: =Pulwama!$Y$511 -> 5 | AC15: =Pulwama!$AB$399 -> 8336.475357 | AD15: =Pulwama!$AB$511 -> 266.105 | AE15: 8602.580357
A16: 11 | B16: Poonch | C16: 1 | F16: 1 | J16: =Poonch!$Y$352+Poonch!$Y$353+Poonch!$Y$355 -> 0 | L16: =Poonch!$Y$356+Poonch!$Y$357+Poonch!$Y$358 -> 46 | N16: =Poonch!$Y$356 -> 10 | O16: =Poonch!$Y$359+Poonch!$Y$360+Poonch!$Y$361 -> 0 | P16: =Poonch!$Y$360 -> 0 | Q16: =Poonch!$Y$7 -> 0 | R16: =Poonch!$Y$8 -> 10 | S16: =Poonch!$Y$10 -> 0 | T16: =Poonch!$Y$11 -> 0 | U16: =Poonch!$Y$13 -> 0 | V16: =Poonch!$Y$238 -> 0 | X16: =Poonch!$Y$257+Poonch!$Y$258+Poonch!$Y$259 -> 0 | Y16: =Poonch!$Y$285 -> 4217 | Z16: =Poonch!$Y$212 -> 67550 | AA16: =Poonch!$Y$206 -> 47250 | AB16: =Poonch!$Y$511 -> 5 | AC16: =Poonch!$AB$399 -> 11614.32889 | AD16: =Poonch!$AB$511 -> 295.09 | AE16: 11909.41889
A17: 12 | B17: Rajouri | C17: 1 | F17: 1 | J17: =Rajouri!$Y$352+Rajouri!$Y$353+Rajouri!$Y$355 -> 0 | L17: =Rajouri!$Y$356+Rajouri!$Y$357+Rajouri!$Y$358 -> 56 | N17: =Rajouri!$Y$356 -> 0 | O17: =Rajouri!$Y$359+Rajouri!$Y$360+Rajouri!$Y$361 -> 4 | P17: =Rajouri!$Y$360 -> 0 | Q17: =Rajouri!$Y$7 -> 0 | R17: =Rajouri!$Y$8 -> 0 | S17: =Rajouri!$Y$10 -> 0 | T17: =Rajouri!$Y$11 -> 0 | U17: =Rajouri!$Y$13 -> 0 | V17: =Rajouri!$Y$238 -> 0 | X17: =Rajouri!$Y$257+Rajouri!$Y$258+Rajouri!$Y$259 -> 0 | Y17: =Rajouri!$Y$285 -> 6971 | Z17: =Rajouri!$Y$212 -> 71797 | AA17: =Rajouri!$Y$206 -> 53640 | AB17: =Rajouri!$Y$511 -> 5 | AC17: =Rajouri!$AB$399 -> 16190.13646 | AD17: =Rajouri!$AB$511 -> 289.705 | AE17: 16479.84146
A18: 13 | B18: Samba | J18: =Samba!$Y$352+Samba!$Y$353+Samba!$Y$355 -> 0 | L18: =Samba!$Y$356+Samba!$Y$357+Samba!$Y$358 -> 0 | N18: =Samba!$Y$356 -> 0 | O18: =Samba!$Y$359+Samba!$Y$360+Samba!$Y$361 -> 0 | P18: =Samba!$Y$360 -> 0 | Q18: =Samba!$Y$7 -> 0 | R18: =Samba!$Y$8 -> 0 | S18: =Samba!$Y$10 -> 0 | T18: =Samba!$Y$11 -> 0 | U18: =Samba!$Y$13 -> 0 | V18: =Samba!$Y$238 -> 0 | X18: =Samba!$Y$257+Samba!$Y$258+Samba!$Y$259 -> 0 | Y18: =Samba!$Y$285 -> 2328 | Z18: =Samba!$Y$212 -> 14481 | AA18: =Samba!$Y$206 -> 10587 | AB18: =Samba!$Y$511 -> 0 | AC18: =Samba!$AB$399 -> 3158.860418 | AD18: =Samba!$AB$511 -> 0 | AE18: 3158.860418
A19: 14 | B19: Srinagar | F19: 1 | J19: =Srinagar!$Y$352+Srinagar!$Y$353+Srinagar!$Y$355 -> 0 | L19: =Srinagar!$Y$356+Srinagar!$Y$357+Srinagar!$Y$358 -> 0 | N19: =Srinagar!$Y$356 -> 0 | O19: =Srinagar!$Y$359+Srinagar!$Y$360+Srinagar!$Y$361 -> 0 | P19: =Srinagar!$Y$360 -> 0 | Q19: =Srinagar!$Y$7 -> 0 | R19: =Srinagar!$Y$8 -> 0 | S19: =Srinagar!$Y$10 -> 0 | T19: =Srinagar!$Y$11 -> 0 | U19: =Srinagar!$Y$13 -> 0 | V19: =Srinagar!$Y$238 -> 0 | X19: =Srinagar!$Y$257+Srinagar!$Y$258+Srinagar!$Y$259 -> 0 | Y19: =Srinagar!$Y$285 -> 2958 | Z19: =Srinagar!$Y$212 -> 15229 | AA19: =Srinagar!$Y$206 -> 12278 | AB19: =Srinagar!$Y$511 -> 2 | AC19: =Srinagar!$AB$399 -> 4296.715745 | AD19: =Srinagar!$AB$511 -> 204.465 | AE19: 4501.180745
A20: 15 | B20: Udhampur | F20: 1 | J20: =Udhampur!$Y$352+Udhampur!$Y$353+Udhampur!$Y$355 -> 0 | L20: =Udhampur!$Y$356+Udhampur!$Y$357+Udhampur!$Y$358 -> 17 | N20: =Udhampur!$Y$356 -> 9 | O20: =Udhampur!$Y$359+Udhampur!$Y$360+Udhampur!$Y$361 -> 0 | P20: =Udhampur!$Y$360 -> 0 | Q20: =Udhampur!$Y$7 -> 0 | R20: =Udhampur!$Y$8 -> 9 | S20: =Udhampur!$Y$10 -> 0 | T20: =Udhampur!$Y$11 -> 0 | U20: =Udhampur!$Y$13 -> 0 | V20: =Udhampur!$Y$238 -> 0 | X20: =Udhampur!$Y$257+Udhampur!$Y$258+Udhampur!$Y$259 -> 0 | Y20: =Udhampur!$Y$285 -> 6150.8 | Z20: =Udhampur!$Y$212 -> 62924 | AA20: =Udhampur!$Y$206 -> 47577 | AB20: =Udhampur!$Y$511 -> 5 | AC20: =Udhampur!$AB$399 -> 13992.99103 | AD20: =Udhampur!$AB$511 -> 310.441 | AE20: 14303.43203
B21: Total No.of Categorywise SFDs | C21: =SUM(C6:C20) -> 4 | D21: 0 | E21: 1 | F21: 11 | G21: 0 | H21: 0 | I21: 0 | J21: =SUM(J15:J20) -> 0 | K21: 0 | L21: 120 | M21: 0 | N21: 19 | O21: 4 | P21: 0 | Q21: 0 | R21: 19 | S21: 0 | T21: 0 | U21: 0 | V21: 0 | W21: 0 | X21: 0 | Y21: 29248.8 | Z21: 256864 | AA21: 189379 | AB21: 22 | AC21: 57589.5079 | AD21: 1365.806 | AE21: 58955.3139
A22: State total | J22: =State!$Y$352+State!$Y$353+State!$Y$355 -> 1 | L22: =State!$Y$356+State!$Y$357+State!$Y$358 -> 280 | N22: =State!$Y$356 -> 24 | O22: =State!$Y$359+State!$Y$360+State!$Y$361 -> 57 | P22: =State!$Y$360 -> 22 | Q22: =State!$Y$7 -> 0 | R22: =State!$Y$8 -> 24 | S22: =State!$Y$10 -> 0 | T22: =State!$Y$11 -> 0 | U22: =State!$Y$13 -> 0 | V22: =State!$Y$238 -> 0 | X22: =State!$Y$257+State!$Y$258+State!$Y$259 -> 0 | Y22: =State!$Y$285 -> 108481.8 | Z22: =State!$Y$212 -> 912376 | AA22: =State!$Y$206 -> 667616 | AB22: =State!$Y$511 -> 99 | AC22: =State!$AB$399 -> 229336.4661 | AD22: =State!$AB$511 -> 6865.09334 | AE22: 236201.5595 | AF22: =State!AB512 -> 236201.5595
A23: % w.r.t Approvals for the whole state | J23: =IF(J22>0, J21/J$22," ") -> 0 | K23: =IF(K22>0, K21/K$22," ") ->  | L23: 0.4285714286 | R23: 0.7916666667 | AB23: 0.2222222222 | AC23: 0.2511136099 | AD23: 0.1989493707 | AE23: 0.2495974795
F24: Categorywise Total and % against State Allocation | H24: ST (25% and above) | J24: =SUMIF($C$6:$C$20, "1", J$6:J$20) -> 0 | K24: 0 | L24: 102 | M24: 0 | N24: 10 | O24: 4 | P24: 0 | Q24: 0 | R24: 10 | S24: 0 | T24: 0 | U24: 0 | V24: 0 | W24: 0 | X24: 0 | Y24: 16492 | Z24: 153423 | AA24: 110744 | AB24: 20 | AC24: 37582.133 | AD24: 1300.735 | AE24: 38882.868
H25: % ST Allocation | J25: =IF(J24>0, J24/J$21," ") ->  | L25: 0.85 | N25: 0.5263157895 | O25: 1 | R25: 0.5263157895 | Y25: 0.5638521922 | Z25: 0.5972927308 | AA25: 0.584774447 | AB25: 0.9090909091 | AC25: 0.6525864584 | AD25: 0.9523570697 | AE25: 0.6595311844
H26: SC (25% and above) | J26: =SUMIF($D$6:$D$20, "1", J6:J20) -> 0 | K26: 0 | L26: 0 | M26: 0 | N26: 0 | O26: 0 | P26: 0 | Q26: 0 | R26: 0 | S26: 0 | T26: 0 | U26: 0 | V26: 0 | W26: 0 | X26: 0 | Y26: 0 | Z26: 0 | AA26: 0 | AB26: 0 | AC26: 0 | AD26: 0 | AE26: 0
H27: % SC Allocation | J27: =IF(J26>0, J26/J$21," ") -> 
H28: PMO's 121 Minority Districts | J28: =SUMIF($E$6:$E$20, "1", J$6:J$20) -> 0 | K28: 0 | L28: 0 | M28: 0 | N28: 0 | O28: 0 | P28: 0 | Q28: 0 | R28: 0 | S28: 0 | T28: 0 | U28: 0 | V28: 0 | W28: 0 | X28: 0 | Y28: 2282 | Z28: 3762 | AA28: 2745 | AB28: 4 | AC28: 3500.971757 | AD28: 305.98 | AE28: 3806.951757
H29: % PMO's 121 Minority Allocation | J29: =IF(J28>0, J28/J$21," ") ->  | K29: =IF(K28>0, K28/K$21," ") ->  | Y29: 0.07802029485 | Z29: 0.01464588265 | AA29: 0.01449474335 | AB29: 0.1818181818 | AC29: 0.06079183317 | AD29: 0.2240288884 | AE29: 0.06457351348
H30: Muslim Concentration (20% and above) | J30: =SUMIF($F$6:$F$20, "1", J6:J20) -> 1 | K30: 0 | L30: 169 | M30: 0 | N30: 21 | O30: 39 | P30: 6 | Q30: 0 | R30: 21 | S30: 0 | T30: 0 | U30: 0 | V30: 0 | W30: 0 | X30: 0 | Y30: 63668.8 | Z30: 564979 | AA30: 410791 | AB30: 69 | AC30: 142211.5613 | AD30: 4947.75253 | AE30: 147159.3138
H31: % Muslim Allocation | J31: =IF(J30>0, J30/J$21," ") ->  | K31: =IF(K30>0, K30/K$21," ") ->  | L31: 1.408333333 | N31: 1.105263158 | O31: 9.75 | R31: 1.105263158 | Y31: 2.176800416 | Z31: 2.199525819 | AA31: 2.169147582 | AB31: 3.136363636 | AC31: 2.46940053 | AD31: 3.622588076 | AE31: 2.496116195
H32: Naxalite Affected Districts | J32: =SUMIF($G$6:$G$20, "1", J6:J20) -> 0 | K32: 0 | L32: 0 | M32: 0 | N32: 0 | O32: 0 | P32: 0 | Q32: 0 | R32: 0 | S32: 0 | T32: 0 | U32: 0 | V32: 0 | W32: 0 | X32: 0 | Y32: 0 | Z32: 0 | AA32: 0 | AB32: 0 | AC32: 0 | AD32: 0 | AE32: 0
H33: % Naxalite Affected Districts | J33: =IF(J32>0, J32/J$21," ") ->  | K33: =IF(K32>0, K32/K$21," ") -> 
H34: LWE Affected Districts (20% and above) | J34: =SUMIF($H$6:$H$20, "1", J6:J20) -> 0 | K34: =SUMIF($H$15:$H$20, "1", K15:K20) -> 0 | L34: 0 | M34: 0 | N34: 0 | O34: 0 | P34: 0 | Q34: 0 | R34: 0 | S34: 0 | T34: 0 | U34: 0 | V34: 0 | W34: 0 | X34: 0 | Y34: 0 | Z34: 0 | AA34: 0 | AB34: 0 | AC34: 0 | AD34: 0 | AE34: 0
H35: % LWE Affected Districts Allocation | J35: =IF(J34>0, J34/J$21," ") ->  | K35: =IF(K34>0, K34/K$21," ") -> 
D298: Academic Support through Block Resource Centre/ BRC
W410: =SUM(W405:W409) -> 0
W411: =SUM(W404,W410) -> 0
W412: =SUM(W203,W227,W330,W349,W364,W397,W411) -> 0

Sheet Tentative
A1: AWP&B 2017-18 Intervention wise Tentetive Recommendation
A2: (Rs. in lakhs)
A3: State : Jammu & Kashmir | C3: Proposed by State for FY 2017-18 | I3: Recommendation for FY 2017-18
A4: S.No. | B4: Intervention | C4: Spill over | D4: Deferred Liability | E4: Fresh Proposal | G4: Total | I4: Spill over | J4: Fresh Proposal | L4: Total | N4: Remarks
C5: Fin. | E5: Phy. | F5: Fin | G5: Phy. | H5: Fin | I5: Fin. | J5: PhAC. | K5: Fin | L5: Phy. | M5: Fin
A6: Category-1
A7: 1 | B7: Reimbursement under Section 12(1)(c) | G7: =E7 -> 0 | H7: =C7+D7+F7 -> 0 | J7: =[22]StateTotal!Y147 -> 0 | K7: =[22]StateTotal!Z147 -> 0 | L7: =J7 -> 0 | M7: =I7+K7 -> 0
A8: 2 | B8: Free Text Books | G8: =E8 -> 0 | H8: =C8+D8+F8 -> 0 | L8: =J8 -> 0 | M8: =I8+K8 -> 0
B9: a. Primary | E9: =State!P200 -> 347046 | F9: =State!Q200 -> 520.569 | G9: 347046 | H9: 520.569 | J9: =State!Y200 -> 347046 | K9: =State!Z200 -> 520.569 | L9: 347046 | M9: 520.569
B10: b. Upper Primary | E10: =State!P203 -> 317576 | F10: =State!Q203 -> 793.94 | G10: 317576 | H10: 793.94 | J10: =State!Y203 -> 317576 | K10: =State!Z203 -> 793.94 | L10: 317576 | M10: 793.94
B11: c. Large Print Book | E11: =State!P199+State!P202+State!P205 -> 2669 | F11: =State!Q199+State!Q202+State!Q205 -> 5.0695 | G11: 2669 | H11: 5.0695 | J11: =State!Y199+State!Y202+State!Y205 -> 2669 | K11: =State!Z199+State!Z202+State!Z205 -> 5.0695 | L11: 2669 | M11: 5.0695
B12: d. Braille Book | E12: =State!P198+State!P201+State!P204 -> 325 | F12: =State!Q198+State!Q201+State!Q204 -> 0.5855 | G12: 325 | H12: 0.5855 | J12: =State!Y198+State!Y201+State!Y204 -> 325 | K12: =State!Z198+State!Z201+State!Z204 -> 0.5855 | L12: 325 | M12: 0.5855
A13: 3 | B13: Free Uniform | E13: =State!P212 -> 912376 | F13: =State!Q212 -> 3649.504 | G13: 912376 | H13: 3649.504 | J13: =State!Y212 -> 912376 | K13: =State!Z212 -> 3649.504 | L13: 912376 | M13: 3649.504
A14: 4 | B14: Residential School/ Hostel | G14: 0 | H14: 0 | L14: 0 | M14: 0
A15: 5 | B15: KGBV | C15: =State!L412 -> 3123.48334 | E15: =State!P511 -> 196 | F15: =State!Q511 -> 4102.91 | G15: 196 | H15: 7226.39334 | I15: =State!U412 -> 3123.48334 | J15: =State!Y511 -> 99 | K15: =State!Z511 -> 3741.61 | L15: 99 | M15: 6865.09334
A16: 6 | B16: IE | E16: =State!P339 -> 23341 | F16: =State!Q339 -> 910.299 | G16: 23341 | H16: 910.299 | J16: =State!Y339 -> 13321 | K16: =State!Z339 -> 399.63 | L16: 13321 | M16: 399.63
A17: 7 | B17: School Grant | E17: =State!P328 -> 32750 | F17: =State!Q328 -> 1839.32 | G17: 32750 | H17: 1839.32 | J17: =State!Y328 -> 32750 | K17: =State!Z328 -> 1839.32 | L17: 32750 | M17: 1839.32
A18: 8 | B18: Maintenance Grant | E18: =State!P335 -> 17916 | F18: =State!Q335 -> 1249.95 | G18: 17916 | H18: 1249.95 | J18: =State!Y335 -> 17916 | K18: =State!Z335 -> 1249.95 | L18: 17916 | M18: 1249.95
A19: 9 | B19: Major repair (P+UP) | E19: =State!P372 -> 850 | F19: =State!Q372 -> 1736.34 | G19: 850 | H19: 1736.34 | J19: =State!Y372 -> 134 | K19: =State!Z372 -> 212.75 | L19: 134 | M19: 212.75
A20: 10 | B20: a. Project Management | E20: =State!P387 -> 14 | F20: =State!Q387+State!Q396 -> 9369.51 | G20: 14 | H20: 9369.51 | J20: =State!Y387 -> 0 | K20: =State!Z387+State!Z396 -> 7782.67 | L20: 0 | M20: 7782.67
B21: b. Finance | C21: Covered Under Project Management and Overall allocation
A22: Sub Total | C22: =SUM(C7:C20) -> 3123.48334 | E22: 1655059 | F22: =SUM(F7:F20) -> 24177.997 | G22: 1655059 | H22: =SUM(H7:H20) -> 27301.48034 | I22: 3123.48334 | J22: 1644212 | K22: =SUM(K7:K20) -> 20195.598 | L22: 1644212 | M22: =SUM(M7:M20) -> 23319.08134 | N22: =M22/M92 -> 0.1078580641 | O22: =M22*90/100 -> 20987.17321
A23: Category-2
A24: 11 | B24: Transport / Escort facility | G24: =E24 -> 0 | H24: =C24+D24+F24 -> 0 | J24: =[22]StateTotal!Y145 -> 0 | K24: =[22]StateTotal!Z145 -> 0 | L24: =J24 -> 0 | M24: =I24+K24 -> 0
A25: 12 | B25: Special Training for Age appropriate addmission of OoSC | G25: =E25 -> 0 | H25: 0 | L25: 0 | M25: 0
B26: Residential (Fresh) | G26: =E26 -> 0 | H26: 0 | L26: 0 | M26: 0
B27: (a) 12 months | G27: 0 | H27: 0 | L27: 0 | M27: 0
B28: (b) 9 months | G28: 0 | H28: 0 | L28: 0 | M28: 0
B29: (c) 6 months | G29: 0 | H29: 0 | L29: 0 | M29: 0
B30: (d) 3 months | G30: 0 | H30: 0 | L30: 0 | M30: 0
B31: Residential continuing from previous year | G31: 0 | H31: 0 | L31: 0 | M31: 0
B32: (a) 9 months | G32: 0 | H32: 0 | L32: 0 | M32: 0
B33: (b) 6 months | G33: 0 | H33: 0 | L33: 0 | M33: 0
B34: Non Residential (Fresh) | G34: 0 | H34: 0 | L34: 0 | M34: 0
B35: (a) 12 months | E35: =State!P164 -> 5998 | F35: =State!Q164 -> 389.87 | G35: 5998 | H35: 389.87 | J35: =State!Y164 -> 5998 | K35: =State!Z164 -> 359.88 | L35: 5998 | M35: 359.88
B36: (b) 9 months | E36: =State!P165 -> 4729 | F36: =State!Q165 -> 236.45 | G36: 4729 | H36: 236.45 | J36: =State!Y165 -> 4729 | K36: =State!Z165 -> 212.805 | L36: 4729 | M36: 212.805
B37: (c) 6 months | E37: =State!P166 -> 11360 | F37: =State!Q166 -> 397.6 | G37: 11360 | H37: 397.6 | J37: =State!Y166 -> 11360 | K37: =State!Z166 -> 340.8 | L37: 11360 | M37: 340.8
B38: (d) 3 months | G38: 0 | H38: 0 | L38: 0 | M38: 0
B39: NonResidential continuing from previous year | G39: 0 | H39: 0 | L39: 0 | M39: 0
B40: (a) 12 months | G40: 0 | H40: 0 | L40: 0 | M40: 0
B41: (b) 9 months | G41: 0 | H41: 0 | L41: 0 | M41: 0
B42: (c) 6 months | G42: 0 | H42: 0 | L42: 0 | M42: 0
B43: (d) 3 months | G43: 0 | H43: 0 | L43: 0 | M43: 0
B44: Madarasa/Maktab | G44: 0 | H44: 0 | L44: 0 | M44: 0
B45: 12 months | G45: 0 | H45: 0 | L45: 0 | M45: 0
B46: 12 months (veda path sala) | G46: 0 | H46: 0 | L46: 0 | M46: 0
B47: Seasonal Hostel (Residential) | G47: 0 | H47: 0 | L47: 0 | M47: 0
B48: (c) 9 month | G48: 0 | H48: 0 | L48: 0 | M48: 0
B49: (d) 6 months | G49: 0 | H49: 0 | L49: 0 | M49: 0
B50: Seasonal Hostel (Non Residential) | G50: 0 | H50: 0 | L50: 0 | M50: 0
B51: (a) 12 months / Tablet | E51: =State!P188 -> 1395 | F51: =State!Q188 -> 111.6 | G51: 1395 | H51: 111.6 | J51: =State!Y188 -> 0 | K51: =State!Z188 -> 0 | L51: 0 | M51: 0 | O51: =K35+K36+K37+K38+K41+K43+K45+K46+K49+K51 -> 913.485
B52: (b) 9 months / Solary Battery cum charger | E52: =State!P189 -> 1395 | F52: =State!Q189 -> 27.9 | G52: =E52 -> 1395 | H52: =C52+D52+F52 -> 27.9 | J52: =State!Y189 -> 0 | K52: =State!Z189 -> 0
B53: (c) 6 months | E53: =State!P190 -> 32123 | F53: =State!Q190 -> 963.69 | G53: =E53 -> 32123 | H53: =C53+D53+F53 -> 963.69 | J53: =State!Y190 -> 32123 | K53: =State!Z190 -> 963.69 | L53: =J53 -> 32123 | M53: =I53+K53 -> 963.69
A54: 13 | B54: Teacher Training | E54: =State!P285 -> 109871.8 | F54: =State!Q285 -> 2313.822 | G54: 109871.8 | H54: 2313.822 | J54: =State!Y285 -> 108481.8 | K54: =State!Z285 -> 2299.922 | L54: 108481.8 | M54: 2299.922
A55: 14 | B55: Academic Support through BRC/CRC | G55: 0 | H55: 0 | L55: 0 | M55: 0
B56: a) BRC | C56: =State!L299 -> 18.1 | D56: =State!N299 -> 0 | E56: =State!P299 -> 1652 | F56: =State!Q299 -> 2968.297902 | G56: 1652 | H56: 2986.397902 | J56: =State!Y299 -> 879 | K56: =State!Z299 -> 2164.72 | L56: 879 | M56: 2164.72
B57: b) CRC | C57: =State!L308 -> 192.97 | D57: =State!N308 -> 0 | E57: =State!P308 -> 1600 | F57: =State!Q308 -> 7535.272572 | G57: 1600 | H57: 7728.242572 | J57: =State!Y308 -> 1600 | K57: =State!Z308 -> 5344 | L57: 1600 | M57: 5344
A58: 15 | B58: Learning Enhancement Programme (LEP) | E58: =State!P389+State!P390+State!P391 -> 0 | F58: =State!Q389+State!Q390+State!Q391 -> 4196.350025 | G58: 0 | H58: =C58+D58+F58 -> 4196.350025 | J58: =State!Y389+State!Y390+State!Y391 -> 0 | K58: =State!Z389+State!Z390+State!Z391 -> 3390.93 | M58: 3390.93
A59: 16 | B59: a. Innovation fund for CAL | E59: =State!P313 -> 0 | F59: =State!Q313 -> 1100 | G59: =E59 -> 0 | H59: =C59+D59+F59 -> 1100 | J59: =State!Y313 -> 0 | K59: =State!Z313 -> 1100 | L59: 0 | M59: 1100
B60: b. Rashtriya Avishkar Abhiyan (RAA) | C60: This acitvity is support under CAL
A61: 17 | B61: Library | E61: =State!P317 -> 1005 | F61: =State!Q317 -> 100.5 | G61: =E61 -> 1005 | H61: =C61+D61+F61 -> 100.5 | J61: =State!Y317 -> 0 | K61: =State!Z317 -> 0 | L61: =J61 -> 0 | M61: =I61+K61 -> 0
A62: 18 | B62: Teacher Grant | E62: =State!P324 -> 88471 | F62: =State!Q324 -> 442.355 | G62: 88471 | H62: =C62+D62+F62 -> 442.355 | J62: =State!Y324 -> 88471 | K62: =State!Z324 -> 442.355 | L62: 88471 | M62: 442.355
A63: =A62+1 -> 19 | B63: TLE for New Schools | E63: =State!P216 -> 333 | F63: =State!Q216 -> 118.8 | G63: 333 | H63: 118.8 | J63: =State!Y216 -> 0 | K63: =State!Z216 -> 0 | L63: 0 | M63: 0
A64: 20 | B64: REMS | E64: =State!P332 -> 17692 | F64: =State!Q332+State!Q397 -> 829.54 | G64: 17692 | H64: 829.54 | J64: =State!Y332 -> 0 | K64: =State!Z332+State!Z397 -> 490.87 | L64: 0 | M64: 490.87
A65: =A64+1 -> 21 | B65: a. Innovation | E65: =State!P345 -> 0 | F65: =State!Q345 -> 1100 | G65: 0 | H65: 1100 | J65: =State!Y345 -> 0 | K65: =State!Z345 -> 1100 | L65: 0 | M65: 1100
B66: b. Pade Bharat Bade Bharat (PBBB) | G66: 0 | H66: 0 | L66: 0 | M66: 0
A67: =A65+1 -> 22 | B67: Community Mobilization (0.5%) | E67: =State!P392 -> 0 | F67: =State!Q392 -> 1090.713061 | G67: 0 | H67: 1090.713061 | J67: =State!Y392 -> 0 | K67: =State!Z392 -> 893.4480938 | L67: 0 | M67: 893.4480938
A68: 23 | B68: SMC Training | E68: =State!P349 -> 222720 | F68: =State!Q349 -> 456.684 | G68: 222720 | H68: 456.684 | J68: =State!Y349 -> 139638 | K68: =State!Z349 -> 418.914 | L68: 139638 | M68: 418.914
A69: Total | C69: =SUM(C24:C68) -> 211.07 | D69: 0 | E69: 500344.8 | F69: =SUM(F24:F68) -> 24379.44456 | G69: 500344.8 | H69: =SUM(H24:H68) -> 24590.51456 | I69: 0 | J69: 393279.8 | K69: =SUM(K24:K68) -> 19522.33409 | L69: 393279.8 | M69: 19522.33409 | N69: =M69/M92 -> 0.09029691743 | O69: =M69*90/100 -> 17570.10068
A70: Category-3 | O70: =240.89+204.14 -> 445.03
A71: 24 | B71: Teacher Salary | C71: =State!L262 -> 53510.64988 | D71: =State!N262 -> 0 | E71: =State!P262 -> 43047 | F71: =State!Q262 -> 177824.8558 | G71: =E71 -> 43047 | H71: =C71+D71+F71 -> 231335.5057 | J71: =State!Y262 -> 41343 | K71: =State!Z262 -> 171092.031 | L71: =J71 -> 41343 | M71: =I71+K71 -> 171092.031 | O71: 204.14
A72: 25 | B72: New Schools (Building) | E72: =State!P352+State!P353+State!P354+State!P355 -> 918 | F72: =State!Q352+State!Q353+State!Q354+State!Q355 -> 22488.09 | G72: =E72 -> 918 | H72: 22488.09 | J72: =State!Y352+State!Y353+State!Y354+State!Y355 -> 1 | K72: =State!Z352+State!Z353+State!Z354+State!Z355 -> 23.56 | L72: 1 | M72: 23.56 | O72: =11.08+9.39 -> 20.47
A73: =A72+1 -> 26 | B73: Additional Classrooms (ACR) | E73: =State!P356+State!P357 -> 571 | F73: =State!Q356+State!Q357 -> 5276.73 | G73: =E73 -> 571 | H73: 5276.73 | J73: =State!Y356+State!Y357 -> 280 | K73: =State!Z356+State!Z357 -> 1979.18 | L73: 280 | M73: 1979.18 | O73: =445.03*90/100 -> 400.527
A74: 27 | B74: Block Resource Centers | G74: =E74 -> 0 | H74: 0 | L74: 0 | M74: 0 | O74: =216.8+183.73 -> 400.53
A75: 28 | B75: Cluster Resource Centers | G75: 0 | H75: 0 | L75: 0 | M75: 0
A76: 29 | B76: Residential Schools (Building) | G76: 0 | H76: 0 | L76: 0 | M76: 0
A77: 30 | B77: Toilets & Drinking Water | E77: =State!P359+State!P360+State!P361 -> 434 | F77: =State!Q359+State!Q360+State!Q361 -> 540.68 | G77: 434 | H77: 540.68 | J77: =State!Y359+State!Y360+State!Y361 -> 57 | K77: =State!Z359+State!Z360+State!Z361 -> 72.45 | L77: 57 | M77: 72.45
A78: 31 | B78: Furniture | G78: 0 | H78: 0 | L78: 0 | M78: 0
A79: 32 | B79: Civil Works | G79: 0 | H79: 0 | L79: 0 | M79: 0
B80: a. Boundary Walls | E80: =State!P363 -> 244099 | F80: =State!Q363 -> 14218.76675 | G80: 244099 | H80: 14218.76675 | J80: =State!Y363 -> 0 | K80: =State!Z363 -> 0 | L80: 0 | M80: 0
B81: b. Ramps | E81: =State!P368+State!P369 -> 0 | F81: =State!Q368+State!Q369 -> 0 | G81: 0 | H81: 0 | J81: =State!Y368+State!Y369 -> 0 | K81: =State!Z368+State!Z369 -> 0 | L81: 0 | M81: 0
B82: c. Other | E82: =State!P364+State!P365+State!P370+State!P371+State!P373+State!P374 -> 615479 | F82: =State!Q364+State!Q365+State!Q370+State!Q371+State!Q373+State!Q374 -> 7910.8905 | G82: 615479 | H82: =C82+D82+F82 -> 7910.8905 | J82: =State!Y364+State!Y365+State!Y370+State!Y371+State!Y373+State!Y374 -> 14 | K82: =State!Z364+State!Z365+State!Z370+State!Z371+State!Z373+State!Z374 -> 192.92 | M82: 192.92
A83: =A79+1 -> 33 | B83: Repairs to School Buildings | G83: 0 | H83: 0 | L83: 0 | M83: 0
A84: =A83+1 -> 34 | B84: Swacchh Vidyalaya | C84: Covered under School Maintenance grant | I84: Covered Ynder School Maintenance grant
A85: =A84+1 -> 35 | B85: School and Social Mapping: | G85: =E85 -> 0 | H85: =C85+F85 -> 0 | L85: =J85 -> 0 | M85: =I85+K85 -> 0
A86: 36 | B86: Opening new Primary Schools: | G86: =E86 -> 0 | H86: =C86+F86 -> 0 | L86: =J86 -> 0 | M86: =I86+K86 -> 0
A87: 37 | B87: Opening Upper Primary Schools/Sections: | G87: =E87 -> 0 | H87: =C87+F87 -> 0 | L87: =J87 -> 0 | M87: =I87+K87 -> 0
A88: 38 | B88: Conversion of EGS Centres into schools: | C88: All EGS already converted in Schools
A89: 39 | B89: SIEMAT | C89: One time grant
A90: 40 | B90: NPGEL | C90: Activity Closed
B91: Total | C91: =SUM(C71:C90) -> 53510.64988 | D91: 0 | E91: 904548 | F91: 228260.0131 | G91: 904548 | H91: 281770.663 | I91: 0 | J91: 41695 | K91: 173360.141 | L91: 41681 | M91: 173360.141
B92: Grand Total | C92: =C22+C69+C91 -> 56845.20322 | D92: 0 | E92: 3059951.8 | F92: =F22+F69+F91 -> 276817.4547 | G92: 3059951.8 | H92: =H22+H69+H91 -> 333662.6579 | I92: 3123.48334 | J92: 2079186.8 | K92: 213078.0731 | L92: 2079172.8 | M92: 216201.5565

Sheet State
A1: S.No. | B1: Activity | C1: Year 2016-17 | K1: Outlay Proposed for 2017-18 | T1: Outlay Recommended for 2017-18
C2: Outlay approved by PAB (including spillover) | E2: Achievement | G2: % | I2: Savings | K2: Spill Over | M2: Deferred laibility of 2014-15 | O2: Fresh | R2: Total | T2: Spill Over | V2: Deferred laibility of 2014-15 | X2: Fresh | AA2: Total
C3: Phy. | D3: Fin | E3: Phy. | F3: Fin. | G3: Phy. (%) | H3: Fin. (%) | I3: Phy. | J3: Fin. | K3: Phy. | L3: Fin. | M3: Phy. | N3: Fin. | O3: Unit Cost | P3: Phy. | Q3: Fin. | R3: Phy. | S3: Fin. | T3: Phy. | U3: Fin. | V3: Phy. | W3: Fin. | X3: Unit Cost | Y3: Phy. | Z3: Fin. | AA3: Phy. | AB3: Fin.
A4: I | B4: ACCESS
B5: SSA | C5: =Anantnag!C4+Bandipora!C4+Baramulla!C4 -> 0 | D5: =Anantnag!D5+Bandipora!D5+Baramulla!D5+Budgam!D5+Ganderbal!D5+Doda!D5+Jammu!D5+Kargil!D5+Kathua!D5+Kishtwar!D5+Kulgam!D5+Kupwara!D5+Leh!D5+Poonch!D5+Pulwama!D5+Rajouri!D5+Ramban!D5+Reasi!D5+Samba!D5+Shopian!D5+Srinagar!D5+Udhampur!D5 -> 0 | E5: =Anantnag!E5+Bandipora!E5+Baramulla!E5+Budgam!E5+Ganderbal!E5+Doda!E5+Jammu!E5+Kargil!E5+Kathua!E5+Kishtwar!E5+Kulgam!E5+Kupwara!E5+Leh!E5+Poonch!E5+Pulwama!E5+Rajouri!E5+Ramban!E5+Reasi!E5+Samba!E5+Shopian!E5+Srinagar!E5+Udhampur!E5 -> 0 | F5: =Anantnag!F5+Bandipora!F5+Baramulla!F5+Budgam!F5+Ganderbal!F5+Doda!F5+Jammu!F5+Kargil!F5+Kathua!F5+Kishtwar!F5+Kulgam!F5+Kupwara!F5+Leh!F5+Poonch!F5+Pulwama!F5+Rajouri!F5+Ramban!F5+Reasi!F5+Samba!F5+Shopian!F5+Srinagar!F5+Udhampur!F5 -> 0 | G5: =Anantnag!G5+Bandipora!G5+Baramulla!G5+Budgam!G5+Ganderbal!G5+Doda!G5+Jammu!G5+Kargil!G5+Kathua!G5+Kishtwar!G5+Kulgam!G5+Kupwara!G5+Leh!G5+Poonch!G5+Pulwama!G5+Rajouri!G5+Ramban!G5+Reasi!G5+Samba!G5+Shopian!G5+Srinagar!G5+Udhampur!G5 -> 0 | H5: =Anantnag!H5+Bandipora!H5+Baramulla!H5+Budgam!H5+Ganderbal!H5+Doda!H5+Jammu!H5+Kargil!H5+Kathua!H5+Kishtwar!H5+Kulgam!H5+Kupwara!H5+Leh!H5+Poonch!H5+Pulwama!H5+Rajouri!H5+Ramban!H5+Reasi!H5+Samba!H5+Shopian!H5+Srinagar!H5+Udhampur!H5 -> 0 | I5: =Anantnag!I5+Bandipora!I5+Baramulla!I5+Budgam!I5+Ganderbal!I5+Doda!I5+Jammu!I5+Kargil!I5+Kathua!I5+Kishtwar!I5+Kulgam!I5+Kupwara!I5+Leh!I5+Poonch!I5+Pulwama!I5+Rajouri!I5+Ramban!I5+Reasi!I5+Samba!I5+Shopian!I5+Srinagar!I5+Udhampur!I5 -> 0 | J5: =Anantnag!J5+Bandipora!J5+Baramulla!J5+Budgam!J5+Ganderbal!J5+Doda!J5+Jammu!J5+Kargil!J5+Kathua!J5+Kishtwar!J5+Kulgam!J5+Kupwara!J5+Leh!J5+Poonch!J5+Pulwama!J5+Rajouri!J5+Ramban!J5+Reasi!J5+Samba!J5+Shopian!J5+Srinagar!J5+Udhampur!J5 -> 0 | K5: =Anantnag!K5+Bandipora!K5+Baramulla!K5+Budgam!K5+Ganderbal!K5+Doda!K5+Jammu!K5+Kargil!K5+Kathua!K5+Kishtwar!K5+Kulgam!K5+Kupwara!K5+Leh!K5+Poonch!K5+Pulwama!K5+Rajouri!K5+Ramban!K5+Reasi!K5+Samba!K5+Shopian!K5+Srinagar!K5+Udhampur!K5 -> 0 | L5: =Anantnag!L5+Bandipora!L5+Baramulla!L5+Budgam!L5+Ganderbal!L5+Doda!L5+Jammu!L5+Kargil!L5+Kathua!L5+Kishtwar!L5+Kulgam!L5+Kupwara!L5+Leh!L5+Poonch!L5+Pulwama!L5+Rajouri!L5+Ramban!L5+Reasi!L5+Samba!L5+Shopian!L5+Srinagar!L5+Udhampur!L5 -> 0 | M5: =Anantnag!M5+Bandipora!M5+Baramulla!M5+Budgam!M5+Ganderbal!M5+Doda!M5+Jammu!M5+Kargil!M5+Kathua!M5+Kishtwar!M5+Kulgam!M5+Kupwara!M5+Leh!M5+Poonch!M5+Pulwama!M5+Rajouri!M5+Ramban!M5+Reasi!M5+Samba!M5+Shopian!M5+Srinagar!M5+Udhampur!M5 -> 0 | N5: =Anantnag!N5+Bandipora!N5+Baramulla!N5+Budgam!N5+Ganderbal!N5+Doda!N5+Jammu!N5+Kargil!N5+Kathua!N5+Kishtwar!N5+Kulgam!N5+Kupwara!N5+Leh!N5+Poonch!N5+Pulwama!N5+Rajouri!N5+Ramban!N5+Reasi!N5+Samba!N5+Shopian!N5+Srinagar!N5+Udhampur!N5 -> 0 | O5: =Anantnag!O5+Bandipora!O5+Baramulla!O5+Budgam!O5+Ganderbal!O5+Doda!O5+Jammu!O5+Kargil!O5+Kathua!O5+Kishtwar!O5+Kulgam!O5+Kupwara!O5+Leh!O5+Poonch!O5+Pulwama!O5+Rajouri!O5+Ramban!O5+Reasi!O5+Samba!O5+Shopian!O5+Srinagar!O5+Udhampur!O5 -> 0 | P5: =Anantnag!P5+Bandipora!P5+Baramulla!P5+Budgam!P5+Ganderbal!P5+Doda!P5+Jammu!P5+Kargil!P5+Kathua!P5+Kishtwar!P5+Kulgam!P5+Kupwara!P5+Leh!P5+Poonch!P5+Pulwama!P5+Rajouri!P5+Ramban!P5+Reasi!P5+Samba!P5+Shopian!P5+Srinagar!P5+Udhampur!P5 -> 0 | Q5: =Anantnag!Q5+Bandipora!Q5+Baramulla!Q5+Budgam!Q5+Ganderbal!Q5+Doda!Q5+Jammu!Q5+Kargil!Q5+Kathua!Q5+Kishtwar!Q5+Kulgam!Q5+Kupwara!Q5+Leh!Q5+Poonch!Q5+Pulwama!Q5+Rajouri!Q5+Ramban!Q5+Reasi!Q5+Samba!Q5+Shopian!Q5+Srinagar!Q5+Udhampur!Q5 -> 0 | R5: =Anantnag!R5+Bandipora!R5+Baramulla!R5+Budgam!R5+Ganderbal!R5+Doda!R5+Jammu!R5+Kargil!R5+Kathua!R5+Kishtwar!R5+Kulgam!R5+Kupwara!R5+Leh!R5+Poonch!R5+Pulwama!R5+Rajouri!R5+Ramban!R5+Reasi!R5+Samba!R5+Shopian!R5+Srinagar!R5+Udhampur!R5 -> 0 | S5: =Anantnag!S5+Bandipora!S5+Baramulla!S5+Budgam!S5+Ganderbal!S5+Doda!S5+Jammu!S5+Kargil!S5+Kathua!S5+Kishtwar!S5+Kulgam!S5+Kupwara!S5+Leh!S5+Poonch!S5+Pulwama!S5+Rajouri!S5+Ramban!S5+Reasi!S5+Samba!S5+Shopian!S5+Srinagar!S5+Udhampur!S5 -> 0 | T5: =Anantnag!T5+Bandipora!T5+Baramulla!T5+Budgam!T5+Ganderbal!T5+Doda!T5+Jammu!T5+Kargil!T5+Kathua!T5+Kishtwar!T5+Kulgam!T5+Kupwara!T5+Leh!T5+Poonch!T5+Pulwama!T5+Rajouri!T5+Ramban!T5+Reasi!T5+Samba!T5+Shopian!T5+Srinagar!T5+Udhampur!T5 -> 0 | U5: =Anantnag!U5+Bandipora!U5+Baramulla!U5+Budgam!U5+Ganderbal!U5+Doda!U5+Jammu!U5+Kargil!U5+Kathua!U5+Kishtwar!U5+Kulgam!U5+Kupwara!U5+Leh!U5+Poonch!U5+Pulwama!U5+Rajouri!U5+Ramban!U5+Reasi!U5+Samba!U5+Shopian!U5+Srinagar!U5+Udhampur!U5 -> 0 | V5: =Anantnag!V5+Bandipora!V5+Baramulla!V5+Budgam!V5+Ganderbal!V5+Doda!V5+Jammu!V5+Kargil!V5+Kathua!V5+Kishtwar!V5+Kulgam!V5+Kupwara!V5+Leh!V5+Poonch!V5+Pulwama!V5+Rajouri!V5+Ramban!V5+Reasi!V5+Samba!V5+Shopian!V5+Srinagar!V5+Udhampur!V5 -> 0 | W5: =Anantnag!W5+Bandipora!W5+Baramulla!W5+Budgam!W5+Ganderbal!W5+Doda!W5+Jammu!W5+Kargil!W5+Kathua!W5+Kishtwar!W5+Kulgam!W5+Kupwara!W5+Leh!W5+Poonch!W5+Pulwama!W5+Rajouri!W5+Ramban!W5+Reasi!W5+Samba!W5+Shopian!W5+Srinagar!W5+Udhampur!W5 -> 0 | X5: =Anantnag!X5+Bandipora!X5+Baramulla!X5+Budgam!X5+Ganderbal!X5+Doda!X5+Jammu!X5+Kargil!X5+Kathua!X5+Kishtwar!X5+Kulgam!X5+Kupwara!X5+Leh!X5+Poonch!X5+Pulwama!X5+Rajouri!X5+Ramban!X5+Reasi!X5+Samba!X5+Shopian!X5+Srinagar!X5+Udhampur!X5 -> 0 | Y5: =Anantnag!Y5+Bandipora!Y5+Baramulla!Y5+Budgam!Y5+Ganderbal!Y5+Doda!Y5+Jammu!Y5+Kargil!Y5+Kathua!Y5+Kishtwar!Y5+Kulgam!Y5+Kupwara!Y5+Leh!Y5+Poonch!Y5+Pulwama!Y5+Rajouri!Y5+Ramban!Y5+Reasi!Y5+Samba!Y5+Shopian!Y5+Srinagar!Y5+Udhampur!Y5 -> 0 | Z5: =Anantnag!Z5+Bandipora!Z5+Baramulla!Z5+Budgam!Z5+Ganderbal!Z5+Doda!Z5+Jammu!Z5+Kargil!Z5+Kathua!Z5+Kishtwar!Z5+Kulgam!Z5+Kupwara!Z5+Leh!Z5+Poonch!Z5+Pulwama!Z5+Rajouri!Z5+Ramban!Z5+Reasi!Z5+Samba!Z5+Shopian!Z5+Srinagar!Z5+Udhampur!Z5 -> 0 | AA5: =Anantnag!AA5+Bandipora!AA5+Baramulla!AA5+Budgam!AA5+Ganderbal!AA5+Doda!AA5+Jammu!AA5+Kargil!AA5+Kathua!AA5+Kishtwar!AA5+Kulgam!AA5+Kupwara!AA5+Leh!AA5+Poonch!AA5+Pulwama!AA5+Rajouri!AA5+Ramban!AA5+Reasi!AA5+Samba!AA5+Shopian!AA5+Srinagar!AA5+Udhampur!AA5 -> 0 | AB5: =Anantnag!AB5+Bandipora!AB5+Baramulla!AB5+Budgam!AB5+Ganderbal!AB5+Doda!AB5+Jammu!AB5+Kargil!AB5+Kathua!AB5+Kishtwar!AB5+Kulgam!AB5+Kupwara!AB5+Leh!AB5+Poonch!AB5+Pulwama!AB5+Rajouri!AB5+Ramban!AB5+Reasi!AB5+Samba!AB5+Shopian!AB5+Srinagar!AB5+Udhampur!AB5 -> 0
A6: 1 | B6: Opening of New Schools | C6: =Anantnag!C6+Bandipora!C6+Baramulla!C6+Budgam!C6+Ganderbal!C6+Doda!C6+Jammu!C6+Kargil!C6+Kathua!C6+Kishtwar!C6+Kulgam!C6+Kupwara!C6+Leh!C6+Poonch!C6+Pulwama!C6+Rajouri!C6+Ramban!C6+Reasi!C6+Samba!C6+Shopian!C6+Srinagar!C6+Udhampur!C6 -> 0 | D6: =Anantnag!D6+Bandipora!D6+Baramulla!D6+Budgam!D6+Ganderbal!D6+Doda!D6+Jammu!D6+Kargil!D6+Kathua!D6+Kishtwar!D6+Kulgam!D6+Kupwara!D6+Leh!D6+Poonch!D6+Pulwama!D6+Rajouri!D6+Ramban!D6+Reasi!D6+Samba!D6+Shopian!D6+Srinagar!D6+Udhampur!D6 -> 0 | E6: =Anantnag!E6+Bandipora!E6+Baramulla!E6+Budgam!E6+Ganderbal!E6+Doda!E6+Jammu!E6+Kargil!E6+Kathua!E6+Kishtwar!E6+Kulgam!E6+Kupwara!E6+Leh!E6+Poonch!E6+Pulwama!E6+Rajouri!E6+Ramban!E6+Reasi!E6+Samba!E6+Shopian!E6+Srinagar!E6+Udhampur!E6 -> 0 | F6: =Anantnag!F6+Bandipora!F6+Baramulla!F6+Budgam!F6+Ganderbal!F6+Doda!F6+Jammu!F6+Kargil!F6+Kathua!F6+Kishtwar!F6+Kulgam!F6+Kupwara!F6+Leh!F6+Poonch!F6+Pulwama!F6+Rajouri!F6+Ramban!F6+Reasi!F6+Samba!F6+Shopian!F6+Srinagar!F6+Udhampur!F6 -> 0 | G6: =Anantnag!G6+Bandipora!G6+Baramulla!G6+Budgam!G6+Ganderbal!G6+Doda!G6+Jammu!G6+Kargil!G6+Kathua!G6+Kishtwar!G6+Kulgam!G6+Kupwara!G6+Leh!G6+Poonch!G6+Pulwama!G6+Rajouri!G6+Ramban!G6+Reasi!G6+Samba!G6+Shopian!G6+Srinagar!G6+Udhampur!G6 -> 0 | H6: =Anantnag!H6+Bandipora!H6+Baramulla!H6+Budgam!H6+Ganderbal!H6+Doda!H6+Jammu!H6+Kargil!H6+Kathua!H6+Kishtwar!H6+Kulgam!H6+Kupwara!H6+Leh!H6+Poonch!H6+Pulwama!H6+Rajouri!H6+Ramban!H6+Reasi!H6+Samba!H6+Shopian!H6+Srinagar!H6+Udhampur!H6 -> 0 | I6: =Anantnag!I6+Bandipora!I6+Baramulla!I6+Budgam!I6+Ganderbal!I6+Doda!I6+Jammu!I6+Kargil!I6+Kathua!I6+Kishtwar!I6+Kulgam!I6+Kupwara!I6+Leh!I6+Poonch!I6+Pulwama!I6+Rajouri!I6+Ramban!I6+Reasi!I6+Samba!I6+Shopian!I6+Srinagar!I6+Udhampur!I6 -> 0 | J6: =Anantnag!J6+Bandipora!J6+Baramulla!J6+Budgam!J6+Ganderbal!J6+Doda!J6+Jammu!J6+Kargil!J6+Kathua!J6+Kishtwar!J6+Kulgam!J6+Kupwara!J6+Leh!J6+Poonch!J6+Pulwama!J6+Rajouri!J6+Ramban!J6+Reasi!J6+Samba!J6+Shopian!J6+Srinagar!J6+Udhampur!J6 -> 0 | K6: =Anantnag!K6+Bandipora!K6+Baramulla!K6+Budgam!K6+Ganderbal!K6+Doda!K6+Jammu!K6+Kargil!K6+Kathua!K6+Kishtwar!K6+Kulgam!K6+Kupwara!K6+Leh!K6+Poonch!K6+Pulwama!K6+Rajouri!K6+Ramban!K6+Reasi!K6+Samba!K6+Shopian!K6+Srinagar!K6+Udhampur!K6 -> 0 | L6: =Anantnag!L6+Bandipora!L6+Baramulla!L6+Budgam!L6+Ganderbal!L6+Doda!L6+Jammu!L6+Kargil!L6+Kathua!L6+Kishtwar!L6+Kulgam!L6+Kupwara!L6+Leh!L6+Poonch!L6+Pulwama!L6+Rajouri!L6+Ramban!L6+Reasi!L6+Samba!L6+Shopian!L6+Srinagar!L6+Udhampur!L6 -> 0 | M6: =Anantnag!M6+Bandipora!M6+Baramulla!M6+Budgam!M6+Ganderbal!M6+Doda!M6+Jammu!M6+Kargil!M6+Kathua!M6+Kishtwar!M6+Kulgam!M6+Kupwara!M6+Leh!M6+Poonch!M6+Pulwama!M6+Rajouri!M6+Ramban!M6+Reasi!M6+Samba!M6+Shopian!M6+Srinagar!M6+Udhampur!M6 -> 0 | N6: =Anantnag!N6+Bandipora!N6+Baramulla!N6+Budgam!N6+Ganderbal!N6+Doda!N6+Jammu!N6+Kargil!N6+Kathua!N6+Kishtwar!N6+Kulgam!N6+Kupwara!N6+Leh!N6+Poonch!N6+Pulwama!N6+Rajouri!N6+Ramban!N6+Reasi!N6+Samba!N6+Shopian!N6+Srinagar!N6+Udhampur!N6 -> 0 | O6: =Anantnag!O6+Bandipora!O6+Baramulla!O6+Budgam!O6+Ganderbal!O6+Doda!O6+Jammu!O6+Kargil!O6+Kathua!O6+Kishtwar!O6+Kulgam!O6+Kupwara!O6+Leh!O6+Poonch!O6+Pulwama!O6+Rajouri!O6+Ramban!O6+Reasi!O6+Samba!O6+Shopian!O6+Srinagar!O6+Udhampur!O6 -> 0 | P6: =Anantnag!P6+Bandipora!P6+Baramulla!P6+Budgam!P6+Ganderbal!P6+Doda!P6+Jammu!P6+Kargil!P6+Kathua!P6+Kishtwar!P6+Kulgam!P6+Kupwara!P6+Leh!P6+Poonch!P6+Pulwama!P6+Rajouri!P6+Ramban!P6+Reasi!P6+Samba!P6+Shopian!P6+Srinagar!P6+Udhampur!P6 -> 0 | Q6: =Anantnag!Q6+Bandipora!Q6+Baramulla!Q6+Budgam!Q6+Ganderbal!Q6+Doda!Q6+Jammu!Q6+Kargil!Q6+Kathua!Q6+Kishtwar!Q6+Kulgam!Q6+Kupwara!Q6+Leh!Q6+Poonch!Q6+Pulwama!Q6+Rajouri!Q6+Ramban!Q6+Reasi!Q6+Samba!Q6+Shopian!Q6+Srinagar!Q6+Udhampur!Q6 -> 0 | R6: =Anantnag!R6+Bandipora!R6+Baramulla!R6+Budgam!R6+Ganderbal!R6+Doda!R6+Jammu!R6+Kargil!R6+Kathua!R6+Kishtwar!R6+Kulgam!R6+Kupwara!R6+Leh!R6+Poonch!R6+Pulwama!R6+Rajouri!R6+Ramban!R6+Reasi!R6+Samba!R6+Shopian!R6+Srinagar!R6+Udhampur!R6 -> 0 | S6: =Anantnag!S6+Bandipora!S6+Baramulla!S6+Budgam!S6+Ganderbal!S6+Doda!S6+Jammu!S6+Kargil!S6+Kathua!S6+Kishtwar!S6+Kulgam!S6+Kupwara!S6+Leh!S6+Poonch!S6+Pulwama!S6+Rajouri!S6+Ramban!S6+Reasi!S6+Samba!S6+Shopian!S6+Srinagar!S6+Udhampur!S6 -> 0 | T6: =Anantnag!T6+Bandipora!T6+Baramulla!T6+Budgam!T6+Ganderbal!T6+Doda!T6+Jammu!T6+Kargil!T6+Kathua!T6+Kishtwar!T6+Kulgam!T6+Kupwara!T6+Leh!T6+Poonch!T6+Pulwama!T6+Rajouri!T6+Ramban!T6+Reasi!T6+Samba!T6+Shopian!T6+Srinagar!T6+Udhampur!T6 -> 0 | U6: =Anantnag!U6+Bandipora!U6+Baramulla!U6+Budgam!U6+Ganderbal!U6+Doda!U6+Jammu!U6+Kargil!U6+Kathua!U6+Kishtwar!U6+Kulgam!U6+Kupwara!U6+Leh!U6+Poonch!U6+Pulwama!U6+Rajouri!U6+Ramban!U6+Reasi!U6+Samba!U6+Shopian!U6+Srinagar!U6+Udhampur!U6 -> 0 | V6: =Anantnag!V6+Bandipora!V6+Baramulla!V6+Budgam!V6+Ganderbal!V6+Doda!V6+Jammu!V6+Kargil!V6+Kathua!V6+Kishtwar!V6+Kulgam!V6+Kupwara!V6+Leh!V6+Poonch!V6+Pulwama!V6+Rajouri!V6+Ramban!V6+Reasi!V6+Samba!V6+Shopian!V6+Srinagar!V6+Udhampur!V6 -> 0 | W6: =Anantnag!W6+Bandipora!W6+Baramulla!W6+Budgam!W6+Ganderbal!W6+Doda!W6+Jammu!W6+Kargil!W6+Kathua!W6+Kishtwar!W6+Kulgam!W6+Kupwara!W6+Leh!W6+Poonch!W6+Pulwama!W6+Rajouri!W6+Ramban!W6+Reasi!W6+Samba!W6+Shopian!W6+Srinagar!W6+Udhampur!W6 -> 0 | X6: =Anantnag!X6+Bandipora!X6+Baramulla!X6+Budgam!X6+Ganderbal!X6+Doda!X6+Jammu!X6+Kargil!X6+Kathua!X6+Kishtwar!X6+Kulgam!X6+Kupwara!X6+Leh!X6+Poonch!X6+Pulwama!X6+Rajouri!X6+Ramban!X6+Reasi!X6+Samba!X6+Shopian!X6+Srinagar!X6+Udhampur!X6 -> 0 | Y6: =Anantnag!Y6+Bandipora!Y6+Baramulla!Y6+Budgam!Y6+Ganderbal!Y6+Doda!Y6+Jammu!Y6+Kargil!Y6+Kathua!Y6+Kishtwar!Y6+Kulgam!Y6+Kupwara!Y6+Leh!Y6+Poonch!Y6+Pulwama!Y6+Rajouri!Y6+Ramban!Y6+Reasi!Y6+Samba!Y6+Shopian!Y6+Srinagar!Y6+Udhampur!Y6 -> 0 | Z6: =Anantnag!Z6+Bandipora!Z6+Baramulla!Z6+Budgam!Z6+Ganderbal!Z6+Doda!Z6+Jammu!Z6+Kargil!Z6+Kathua!Z6+Kishtwar!Z6+Kulgam!Z6+Kupwara!Z6+Leh!Z6+Poonch!Z6+Pulwama!Z6+Rajouri!Z6+Ramban!Z6+Reasi!Z6+Samba!Z6+Shopian!Z6+Srinagar!Z6+Udhampur!Z6 -> 0 | AA6: =Anantnag!AA6+Bandipora!AA6+Baramulla!AA6+Budgam!AA6+Ganderbal!AA6+Doda!AA6+Jammu!AA6+Kargil!AA6+Kathua!AA6+Kishtwar!AA6+Kulgam!AA6+Kupwara!AA6+Leh!AA6+Poonch!AA6+Pulwama!AA6+Rajouri!AA6+Ramban!AA6+Reasi!AA6+Samba!AA6+Shopian!AA6+Srinagar!AA6+Udhampur!AA6 -> 0 | AB6: =Anantnag!AB6+Bandipora!AB6+Baramulla!AB6+Budgam!AB6+Ganderbal!AB6+Doda!AB6+Jammu!AB6+Kargil!AB6+Kathua!AB6+Kishtwar!AB6+Kulgam!AB6+Kupwara!AB6+Leh!AB6+Poonch!AB6+Pulwama!AB6+Rajouri!AB6+Ramban!AB6+Reasi!AB6+Samba!AB6+Shopian!AB6+Srinagar!AB6+Udhampur!AB6 -> 0 | AF6: SO-U | AG6: Fresh-Z | AH6: Total-AB
A7: 1.01 | B7: New Primary School | C7: =SUM(Anantnag:Udhampur!C7) -> 0 | D7: =SUM(Anantnag:Udhampur!D7) -> 0 | E7: =SUM(Anantnag:Udhampur!E7) -> 0 | F7: =SUM(Anantnag:Udhampur!F7) -> 0 | G7: =SUM(Anantnag:Udhampur!G7) -> 0 | H7: =SUM(Anantnag:Udhampur!H7) -> 0 | I7: =SUM(Anantnag:Udhampur!I7) -> 0 | J7: =SUM(Anantnag:Udhampur!J7) -> 0 | K7: =SUM(Anantnag:Udhampur!K7) -> 0 | L7: =SUM(Anantnag:Udhampur!L7) -> 0 | M7: =SUM(Anantnag:Udhampur!M7) -> 0 | N7: =SUM(Anantnag:Udhampur!N7) -> 0 | P7: =SUM(Anantnag:Udhampur!P7) -> 113 | Q7: =SUM(Anantnag:Udhampur!Q7) -> 0 | R7: =SUM(Anantnag:Udhampur!R7) -> 25 | S7: =SUM(Anantnag:Udhampur!S7) -> 0 | T7: =SUM(Anantnag:Udhampur!T7) -> 0 | U7: =SUM(Anantnag:Udhampur!U7) -> 0 | V7: =SUM(Anantnag:Udhampur!V7) -> 0 | W7: =SUM(Anantnag:Udhampur!W7) -> 0 | X7: =Anantnag!X7+Bandipora!X7+Baramulla!X7+Budgam!X7+Ganderbal!X7+Doda!X7+Jammu!X7+Kargil!X7+Kathua!X7+Kishtwar!X7+Kulgam!X7+Kupwara!X7+Leh!X7+Poonch!X7+Pulwama!X7+Rajouri!X7+Ramban!X7+Reasi!X7+Samba!X7+Shopian!X7+Srinagar!X7+Udhampur!X7 -> 0 | Y7: =SUM(Anantnag:Udhampur!Y7) -> 0 | Z7: =SUM(Anantnag:Udhampur!Z7) -> 0 | AA7: =SUM(Anantnag:Udhampur!AA7) -> 0 | AB7: =SUM(Anantnag:Udhampur!AB7) -> 0 | AC7: Not recommended | AF7: =SUM(Anantnag:Udhampur!U7) -> 0 | AG7: =SUM(Anantnag:Udhampur!Z7) -> 0 | AH7: =SUM(Anantnag:Udhampur!AB7) -> 0
A8: 1.02 | B8: Upgradation of PS to UPS | C8: =SUM(Anantnag:Udhampur!C8) -> 0 | D8: =SUM(Anantnag:Udhampur!D8) -> 0 | E8: =SUM(Anantnag:Udhampur!E8) -> 0 | F8: =SUM(Anantnag:Udhampur!F8) -> 0 | G8: =SUM(Anantnag:Udhampur!G8) -> 0 | H8: =SUM(Anantnag:Udhampur!H8) -> 0 | I8: =SUM(Anantnag:Udhampur!I8) -> 0 | J8: =SUM(Anantnag:Udhampur!J8) -> 0 | K8: =SUM(Anantnag:Udhampur!K8) -> 0 | L8: =SUM(Anantnag:Udhampur!L8) -> 0 | M8: =SUM(Anantnag:Udhampur!M8) -> 0 | N8: =SUM(Anantnag:Udhampur!N8) -> 0 | P8: =SUM(Anantnag:Udhampur!P8) -> 214 | Q8: =SUM(Anantnag:Udhampur!Q8) -> 0 | R8: =SUM(Anantnag:Udhampur!R8) -> 205 | S8: =SUM(Anantnag:Udhampur!S8) -> 0 | T8: =SUM(Anantnag:Udhampur!T8) -> 0 | U8: =SUM(Anantnag:Udhampur!U8) -> 0 | V8: =SUM(Anantnag:Udhampur!V8) -> 0 | W8: =SUM(Anantnag:Udhampur!W8) -> 0 | X8: =Anantnag!X8+Bandipora!X8+Baramulla!X8+Budgam!X8+Ganderbal!X8+Doda!X8+Jammu!X8+Kargil!X8+Kathua!X8+Kishtwar!X8+Kulgam!X8+Kupwara!X8+Leh!X8+Poonch!X8+Pulwama!X8+Rajouri!X8+Ramban!X8+Reasi!X8+Samba!X8+Shopian!X8+Srinagar!X8+Udhampur!X8 -> 0 | Y8: =SUM(Anantnag:Udhampur!Y8) -> 24 | Z8: =SUM(Anantnag:Udhampur!Z8) -> 0 | AA8: =SUM(Anantnag:Udhampur!AA8) -> 24 | AB8: =SUM(Anantnag:Udhampur!AB8) -> 0 | AC8: Recommended as appraised | AF8: =SUM(Anantnag:Udhampur!U8) -> 0 | AG8: =SUM(Anantnag:Udhampur!Z8) -> 0 | AH8: =SUM(Anantnag:Udhampur!AB8) -> 0
A9: 1.03 | B9: Composite Schools | C9: =SUM(Anantnag:Udhampur!C9) -> 0 | D9: =SUM(Anantnag:Udhampur!D9) -> 0 | E9: =SUM(Anantnag:Udhampur!E9) -> 0 | F9: =SUM(Anantnag:Udhampur!F9) -> 0 | G9: =SUM(Anantnag:Udhampur!G9) -> 0 | H9: =SUM(Anantnag:Udhampur!H9) -> 0 | I9: =SUM(Anantnag:Udhampur!I9) -> 0 | J9: =SUM(Anantnag:Udhampur!J9) -> 0 | K9: =SUM(Anantnag:Udhampur!K9) -> 0 | L9: =SUM(Anantnag:Udhampur!L9) -> 0 | M9: =SUM(Anantnag:Udhampur!M9) -> 0 | N9: =SUM(Anantnag:Udhampur!N9) -> 0 | P9: =SUM(Anantnag:Udhampur!P9) -> 22 | Q9: =SUM(Anantnag:Udhampur!Q9) -> 0 | R9: =SUM(Anantnag:Udhampur!R9) -> 22 | S9: =SUM(Anantnag:Udhampur!S9) -> 0 | T9: =SUM(Anantnag:Udhampur!T9) -> 0 | U9: =SUM(Anantnag:Udhampur!U9) -> 0 | V9: =SUM(Anantnag:Udhampur!V9) -> 0 | W9: =SUM(Anantnag:Udhampur!W9) -> 0 | X9: =Anantnag!X9+Bandipora!X9+Baramulla!X9+Budgam!X9+Ganderbal!X9+Doda!X9+Jammu!X9+Kargil!X9+Kathua!X9+Kishtwar!X9+Kulgam!X9+Kupwara!X9+Leh!X9+Poonch!X9+Pulwama!X9+Rajouri!X9+Ramban!X9+Reasi!X9+Samba!X9+Shopian!X9+Srinagar!X9+Udhampur!X9 -> 0 | Y9: =SUM(Anantnag:Udhampur!Y9) -> 0 | Z9: =SUM(Anantnag:Udhampur!Z9) -> 0 | AA9: =SUM(Anantnag:Udhampur!AA9) -> 0 | AB9: =SUM(Anantnag:Udhampur!AB9) -> 0 | AC9: Not recommended | AF9: =SUM(Anantnag:Udhampur!U9) -> 0 | AG9: =SUM(Anantnag:Udhampur!Z9) -> 0 | AH9: =SUM(Anantnag:Udhampur!AB9) -> 0
A10: 1.04 | B10: Residential schools for specific category of children | C10: =SUM(Anantnag:Udhampur!C10) -> 0 | D10: =SUM(Anantnag:Udhampur!D10) -> 0 | E10: =SUM(Anantnag:Udhampur!E10) -> 0 | F10: =SUM(Anantnag:Udhampur!F10) -> 0 | G10: =SUM(Anantnag:Udhampur!G10) -> 0 | H10: =SUM(Anantnag:Udhampur!H10) -> 0 | I10: =SUM(Anantnag:Udhampur!I10) -> 0 | J10: =SUM(Anantnag:Udhampur!J10) -> 0 | K10: =SUM(Anantnag:Udhampur!K10) -> 0 | L10: =SUM(Anantnag:Udhampur!L10) -> 0 | M10: =SUM(Anantnag:Udhampur!M10) -> 0 | N10: =SUM(Anantnag:Udhampur!N10) -> 0 | P10: =SUM(Anantnag:Udhampur!P10) -> 0 | Q10: =SUM(Anantnag:Udhampur!Q10) -> 0 | R10: =SUM(Anantnag:Udhampur!R10) -> 0 | S10: =SUM(Anantnag:Udhampur!S10) -> 0 | T10: =SUM(Anantnag:Udhampur!T10) -> 0 | U10: =SUM(Anantnag:Udhampur!U10) -> 0 | V10: =SUM(Anantnag:Udhampur!V10) -> 0 | W10: =SUM(Anantnag:Udhampur!W10) -> 0 | X10: =Anantnag!X10+Bandipora!X10+Baramulla!X10+Budgam!X10+Ganderbal!X10+Doda!X10+Jammu!X10+Kargil!X10+Kathua!X10+Kishtwar!X10+Kulgam!X10+Kupwara!X10+Leh!X10+Poonch!X10+Pulwama!X10+Rajouri!X10+Ramban!X10+Reasi!X10+Samba!X10+Shopian!X10+Srinagar!X10+Udhampur!X10 -> 0 | Y10: =SUM(Anantnag:Udhampur!Y10) -> 0 | Z10: =SUM(Anantnag:Udhampur!Z10) -> 0 | AA10: =SUM(Anantnag:Udhampur!AA10) -> 0 | AB10: =SUM(Anantnag:Udhampur!AB10) -> 0 | AF10: =SUM(Anantnag:Udhampur!U10) -> 0 | AG10: =SUM(Anantnag:Udhampur!Z10) -> 0 | AH10: =SUM(Anantnag:Udhampur!AB10) -> 0
A11: 1.05 | B11: Residential Hostel | C11: =SUM(Anantnag:Udhampur!C11) -> 0 | D11: =SUM(Anantnag:Udhampur!D11) -> 0 | E11: =SUM(Anantnag:Udhampur!E11) -> 0 | F11: =SUM(Anantnag:Udhampur!F11) -> 0 | G11: =SUM(Anantnag:Udhampur!G11) -> 0 | H11: =SUM(Anantnag:Udhampur!H11) -> 0 | I11: =SUM(Anantnag:Udhampur!I11) -> 0 | J11: =SUM(Anantnag:Udhampur!J11) -> 0 | K11: =SUM(Anantnag:Udhampur!K11) -> 0 | L11: =SUM(Anantnag:Udhampur!L11) -> 0 | M11: =SUM(Anantnag:Udhampur!M11) -> 0 | N11: =SUM(Anantnag:Udhampur!N11) -> 0 | P11: =SUM(Anantnag:Udhampur!P11) -> 0 | Q11: =SUM(Anantnag:Udhampur!Q11) -> 0 | R11: =SUM(Anantnag:Udhampur!R11) -> 0 | S11: =SUM(Anantnag:Udhampur!S11) -> 0 | T11: =SUM(Anantnag:Udhampur!T11) -> 0 | U11: =SUM(Anantnag:Udhampur!U11) -> 0 | V11: =SUM(Anantnag:Udhampur!V11) -> 0 | W11: =SUM(Anantnag:Udhampur!W11) -> 0 | X11: =Anantnag!X11+Bandipora!X11+Baramulla!X11+Budgam!X11+Ganderbal!X11+Doda!X11+Jammu!X11+Kargil!X11+Kathua!X11+Kishtwar!X11+Kulgam!X11+Kupwara!X11+Leh!X11+Poonch!X11+Pulwama!X11+Rajouri!X11+Ramban!X11+Reasi!X11+Samba!X11+Shopian!X11+Srinagar!X11+Udhampur!X11 -> 0 | Y11: =SUM(Anantnag:Udhampur!Y11) -> 0 | Z11: =SUM(Anantnag:Udhampur!Z11) -> 0 | AA11: =SUM(Anantnag:Udhampur!AA11) -> 0 | AB11: =SUM(Anantnag:Udhampur!AB11) -> 0 | AF11: =SUM(Anantnag:Udhampur!U11) -> 0 | AG11: =SUM(Anantnag:Udhampur!Z11) -> 0 | AH11: =SUM(Anantnag:Udhampur!AB11) -> 0
A12: 1.06 | B12: Integration of Class V with primary schools | C12: =SUM(Anantnag:Udhampur!C12) -> 0 | D12: =SUM(Anantnag:Udhampur!D12) -> 0 | E12: =SUM(Anantnag:Udhampur!E12) -> 0 | F12: =SUM(Anantnag:Udhampur!F12) -> 0 | G12: =SUM(Anantnag:Udhampur!G12) -> 0 | H12: =SUM(Anantnag:Udhampur!H12) -> 0 | I12: =SUM(Anantnag:Udhampur!I12) -> 0 | J12: =SUM(Anantnag:Udhampur!J12) -> 0 | K12: =SUM(Anantnag:Udhampur!K12) -> 0 | L12: =SUM(Anantnag:Udhampur!L12) -> 0 | M12: =SUM(Anantnag:Udhampur!M12) -> 0 | N12: =SUM(Anantnag:Udhampur!N12) -> 0 | P12: =SUM(Anantnag:Udhampur!P12) -> 0 | Q12: =SUM(Anantnag:Udhampur!Q12) -> 0 | R12: =SUM(Anantnag:Udhampur!R12) -> 0 | S12: =SUM(Anantnag:Udhampur!S12) -> 0 | T12: =SUM(Anantnag:Udhampur!T12) -> 0 | U12: =SUM(Anantnag:Udhampur!U12) -> 0 | V12: =SUM(Anantnag:Udhampur!V12) -> 0 | W12: =SUM(Anantnag:Udhampur!W12) -> 0 | X12: =Anantnag!X12+Bandipora!X12+Baramulla!X12+Budgam!X12+Ganderbal!X12+Doda!X12+Jammu!X12+Kargil!X12+Kathua!X12+Kishtwar!X12+Kulgam!X12+Kupwara!X12+Leh!X12+Poonch!X12+Pulwama!X12+Rajouri!X12+Ramban!X12+Reasi!X12+Samba!X12+Shopian!X12+Srinagar!X12+Udhampur!X12 -> 0 | Y12: =SUM(Anantnag:Udhampur!Y12) -> 0 | Z12: =SUM(Anantnag:Udhampur!Z12) -> 0 | AA12: =SUM(Anantnag:Udhampur!AA12) -> 0 | AB12: =SUM(Anantnag:Udhampur!AB12) -> 0 | AF12: =SUM(Anantnag:Udhampur!U12) -> 0 | AG12: =SUM(Anantnag:Udhampur!Z12) -> 0 | AH12: =SUM(Anantnag:Udhampur!AB12) -> 0
A13: 1.07 | B13: Integration of Class VIII with upper primary schools | C13: =SUM(Anantnag:Udhampur!C13) -> 0 | D13: =SUM(Anantnag:Udhampur!D13) -> 0 | E13: =SUM(Anantnag:Udhampur!E13) -> 0 | F13: =SUM(Anantnag:Udhampur!F13) -> 0 | G13: =SUM(Anantnag:Udhampur!G13) -> 0 | H13: =SUM(Anantnag:Udhampur!H13) -> 0 | I13: =SUM(Anantnag:Udhampur!I13) -> 0 | J13: =SUM(Anantnag:Udhampur!J13) -> 0 | K13: =SUM(Anantnag:Udhampur!K13) -> 0 | L13: =SUM(Anantnag:Udhampur!L13) -> 0 | M13: =SUM(Anantnag:Udhampur!M13) -> 0 | N13: =SUM(Anantnag:Udhampur!N13) -> 0 | P13: =SUM(Anantnag:Udhampur!P13) -> 0 | Q13: =SUM(Anantnag:Udhampur!Q13) -> 0 | R13: =SUM(Anantnag:Udhampur!R13) -> 0 | S13: =SUM(Anantnag:Udhampur!S13) -> 0 | T13: =SUM(Anantnag:Udhampur!T13) -> 0 | U13: =SUM(Anantnag:Udhampur!U13) -> 0 | V13: =SUM(Anantnag:Udhampur!V13) -> 0 | W13: =SUM(Anantnag:Udhampur!W13) -> 0 | X13: =Anantnag!X13+Bandipora!X13+Baramulla!X13+Budgam!X13+Ganderbal!X13+Doda!X13+Jammu!X13+Kargil!X13+Kathua!X13+Kishtwar!X13+Kulgam!X13+Kupwara!X13+Leh!X13+Poonch!X13+Pulwama!X13+Rajouri!X13+Ramban!X13+Reasi!X13+Samba!X13+Shopian!X13+Srinagar!X13+Udhampur!X13 -> 0 | Y13: =SUM(Anantnag:Udhampur!Y13) -> 0 | Z13: =SUM(Anantnag:Udhampur!Z13) -> 0 | AA13: =SUM(Anantnag:Udhampur!AA13) -> 0 | AB13: =SUM(Anantnag:Udhampur!AB13) -> 0 | AF13: =SUM(Anantnag:Udhampur!U13) -> 0 | AG13: =SUM(Anantnag:Udhampur!Z13) -> 0 | AH13: =SUM(Anantnag:Udhampur!AB13) -> 0
A14: 2 | B14: Residential Schools for specific category of children | C14: =SUM(Anantnag:Udhampur!C14) -> 0 | D14: =SUM(Anantnag:Udhampur!D14) -> 0 | E14: =SUM(Anantnag:Udhampur!E14) -> 0 | F14: =SUM(Anantnag:Udhampur!F14) -> 0 | G14: =SUM(Anantnag:Udhampur!G14) -> 0 | H14: =SUM(Anantnag:Udhampur!H14) -> 0 | I14: =SUM(Anantnag:Udhampur!I14) -> 0 | J14: =SUM(Anantnag:Udhampur!J14) -> 0 | K14: =SUM(Anantnag:Udhampur!K14) -> 0 | L14: =SUM(Anantnag:Udhampur!L14) -> 0 | M14: =SUM(Anantnag:Udhampur!M14) -> 0 | N14: =SUM(Anantnag:Udhampur!N14) -> 0 | P14: =SUM(Anantnag:Udhampur!P14) -> 0 | Q14: =SUM(Anantnag:Udhampur!Q14) -> 0 | R14: =SUM(Anantnag:Udhampur!R14) -> 0 | S14: =SUM(Anantnag:Udhampur!S14) -> 0 | T14: =SUM(Anantnag:Udhampur!T14) -> 0 | U14: =SUM(Anantnag:Udhampur!U14) -> 0 | V14: =SUM(Anantnag:Udhampur!V14) -> 0 | W14: =SUM(Anantnag:Udhampur!W14) -> 0 | X14: =Anantnag!X14+Bandipora!X14+Baramulla!X14+Budgam!X14+Ganderbal!X14+Doda!X14+Jammu!X14+Kargil!X14+Kathua!X14+Kishtwar!X14+Kulgam!X14+Kupwara!X14+Leh!X14+Poonch!X14+Pulwama!X14+Rajouri!X14+Ramban!X14+Reasi!X14+Samba!X14+Shopian!X14+Srinagar!X14+Udhampur!X14 -> 0 | Y14: =SUM(Anantnag:Udhampur!Y14) -> 0 | Z14: =SUM(Anantnag:Udhampur!Z14) -> 0 | AA14: =SUM(Anantnag:Udhampur!AA14) -> 0 | AB14: =SUM(Anantnag:Udhampur!AB14) -> 0 | AF14: =SUM(Anantnag:Udhampur!U14) -> 0 | AG14: =SUM(Anantnag:Udhampur!Z14) -> 0 | AH14: =SUM(Anantnag:Udhampur!AB14) -> 0
B15: 50 children | C15: =SUM(Anantnag:Udhampur!C15) -> 0 | D15: =SUM(Anantnag:Udhampur!D15) -> 0 | E15: =SUM(Anantnag:Udhampur!E15) -> 0 | F15: =SUM(Anantnag:Udhampur!F15) -> 0 | G15: =SUM(Anantnag:Udhampur!G15) -> 0 | H15: =SUM(Anantnag:Udhampur!H15) -> 0 | I15: =SUM(Anantnag:Udhampur!I15) -> 0 | J15: =SUM(Anantnag:Udhampur!J15) -> 0 | K15: =SUM(Anantnag:Udhampur!K15) -> 0 | L15: =SUM(Anantnag:Udhampur!L15) -> 0 | M15: =SUM(Anantnag:Udhampur!M15) -> 0 | N15: =SUM(Anantnag:Udhampur!N15) -> 0 | P15: =SUM(Anantnag:Udhampur!P15) -> 0 | Q15: =SUM(Anantnag:Udhampur!Q15) -> 0 | R15: =SUM(Anantnag:Udhampur!R15) -> 0 | S15: =SUM(Anantnag:Udhampur!S15) -> 0 | T15: =SUM(Anantnag:Udhampur!T15) -> 0 | U15: =SUM(Anantnag:Udhampur!U15) -> 0 | V15: =SUM(Anantnag:Udhampur!V15) -> 0 | W15: =SUM(Anantnag:Udhampur!W15) -> 0 | X15: =Anantnag!X15+Bandipora!X15+Baramulla!X15+Budgam!X15+Ganderbal!X15+Doda!X15+Jammu!X15+Kargil!X15+Kathua!X15+Kishtwar!X15+Kulgam!X15+Kupwara!X15+Leh!X15+Poonch!X15+Pulwama!X15+Rajouri!X15+Ramban!X15+Reasi!X15+Samba!X15+Shopian!X15+Srinagar!X15+Udhampur!X15 -> 0 | Y15: =SUM(Anantnag:Udhampur!Y15) -> 0 | Z15: =SUM(Anantnag:Udhampur!Z15) -> 0 | AA15: =SUM(Anantnag:Udhampur!AA15) -> 0 | AB15: =SUM(Anantnag:Udhampur!AB15) -> 0 | AF15: =SUM(Anantnag:Udhampur!U15) -> 0 | AG15: =SUM(Anantnag:Udhampur!Z15) -> 0 | AH15: =SUM(Anantnag:Udhampur!AB15) -> 0
B16: Non-recurring (one time grant) | C16: =SUM(Anantnag:Udhampur!C16) -> 0 | D16: =SUM(Anantnag:Udhampur!D16) -> 0 | E16: =SUM(Anantnag:Udhampur!E16) -> 0 | F16: =SUM(Anantnag:Udhampur!F16) -> 0 | G16: =SUM(Anantnag:Udhampur!G16) -> 0 | H16: =SUM(Anantnag:Udhampur!H16) -> 0 | I16: =SUM(Anantnag:Udhampur!I16) -> 0 | J16: =SUM(Anantnag:Udhampur!J16) -> 0 | K16: =SUM(Anantnag:Udhampur!K16) -> 0 | L16: =SUM(Anantnag:Udhampur!L16) -> 0 | M16: =SUM(Anantnag:Udhampur!M16) -> 0 | N16: =SUM(Anantnag:Udhampur!N16) -> 0 | P16: =SUM(Anantnag:Udhampur!P16) -> 0 | Q16: =SUM(Anantnag:Udhampur!Q16) -> 0 | R16: =SUM(Anantnag:Udhampur!R16) -> 0 | S16: =SUM(Anantnag:Udhampur!S16) -> 0 | T16: =SUM(Anantnag:Udhampur!T16) -> 0 | U16: =SUM(Anantnag:Udhampur!U16) -> 0 | V16: =SUM(Anantnag:Udhampur!V16) -> 0 | W16: =SUM(Anantnag:Udhampur!W16) -> 0 | X16: =Anantnag!X16+Bandipora!X16+Baramulla!X16+Budgam!X16+Ganderbal!X16+Doda!X16+Jammu!X16+Kargil!X16+Kathua!X16+Kishtwar!X16+Kulgam!X16+Kupwara!X16+Leh!X16+Poonch!X16+Pulwama!X16+Rajouri!X16+Ramban!X16+Reasi!X16+Samba!X16+Shopian!X16+Srinagar!X16+Udhampur!X16 -> 0 | Y16: =SUM(Anantnag:Udhampur!Y16) -> 0 | Z16: =SUM(Anantnag:Udhampur!Z16) -> 0 | AA16: =SUM(Anantnag:Udhampur!AA16) -> 0 | AB16: =SUM(Anantnag:Udhampur!AB16) -> 0 | AF16: =SUM(Anantnag:Udhampur!U16) -> 0 | AG16: =SUM(Anantnag:Udhampur!Z16) -> 0 | AH16: =SUM(Anantnag:Udhampur!AB16) -> 0
A17: 2.01 | B17: Furniture/ Equipment (including kitchen) | C17: =SUM(Anantnag:Udhampur!C17) -> 0 | D17: =SUM(Anantnag:Udhampur!D17) -> 0 | E17: =SUM(Anantnag:Udhampur!E17) -> 0 | F17: =SUM(Anantnag:Udhampur!F17) -> 0 | G17: =SUM(Anantnag:Udhampur!G17) -> 0 | H17: =SUM(Anantnag:Udhampur!H17) -> 0 | I17: =SUM(Anantnag:Udhampur!I17) -> 0 | J17: =SUM(Anantnag:Udhampur!J17) -> 0 | K17: =SUM(Anantnag:Udhampur!K17) -> 0 | L17: =SUM(Anantnag:Udhampur!L17) -> 0 | M17: =SUM(Anantnag:Udhampur!M17) -> 0 | N17: =SUM(Anantnag:Udhampur!N17) -> 0 | P17: =SUM(Anantnag:Udhampur!P17) -> 0 | Q17: =SUM(Anantnag:Udhampur!Q17) -> 0 | R17: =SUM(Anantnag:Udhampur!R17) -> 0 | S17: =SUM(Anantnag:Udhampur!S17) -> 0 | T17: =SUM(Anantnag:Udhampur!T17) -> 0 | U17: =SUM(Anantnag:Udhampur!U17) -> 0 | V17: =SUM(Anantnag:Udhampur!V17) -> 0 | W17: =SUM(Anantnag:Udhampur!W17) -> 0 | Y17: =SUM(Anantnag:Udhampur!Y17) -> 0 | Z17: =SUM(Anantnag:Udhampur!Z17) -> 0 | AA17: =SUM(Anantnag:Udhampur!AA17) -> 0 | AB17: =SUM(Anantnag:Udhampur!AB17) -> 0 | AF17: =SUM(Anantnag:Udhampur!U17) -> 0 | AG17: =SUM(Anantnag:Udhampur!Z17) -> 0 | AH17: =SUM(Anantnag:Udhampur!AB17) -> 0
A18: 2.02 | B18: TLM and equipment including library books | C18: =SUM(Anantnag:Udhampur!C18) -> 0 | D18: =SUM(Anantnag:Udhampur!D18) -> 0 | E18: =SUM(Anantnag:Udhampur!E18) -> 0 | F18: =SUM(Anantnag:Udhampur!F18) -> 0 | G18: =SUM(Anantnag:Udhampur!G18) -> 0 | H18: =SUM(Anantnag:Udhampur!H18) -> 0 | I18: =SUM(Anantnag:Udhampur!I18) -> 0 | J18: =SUM(Anantnag:Udhampur!J18) -> 0 | K18: =SUM(Anantnag:Udhampur!K18) -> 0 | L18: =SUM(Anantnag:Udhampur!L18) -> 0 | M18: =SUM(Anantnag:Udhampur!M18) -> 0 | N18: =SUM(Anantnag:Udhampur!N18) -> 0 | P18: =SUM(Anantnag:Udhampur!P18) -> 0 | Q18: =SUM(Anantnag:Udhampur!Q18) -> 0 | R18: =SUM(Anantnag:Udhampur!R18) -> 0 | S18: =SUM(Anantnag:Udhampur!S18) -> 0 | T18: =SUM(Anantnag:Udhampur!T18) -> 0 | U18: =SUM(Anantnag:Udhampur!U18) -> 0 | V18: =SUM(Anantnag:Udhampur!V18) -> 0 | W18: =SUM(Anantnag:Udhampur!W18) -> 0 | Y18: =SUM(Anantnag:Udhampur!Y18) -> 0 | Z18: =SUM(Anantnag:Udhampur!Z18) -> 0 | AA18: =SUM(Anantnag:Udhampur!AA18) -> 0 | AB18: =SUM(Anantnag:Udhampur!AB18) -> 0 | AF18: =SUM(Anantnag:Udhampur!U18) -> 0 | AG18: =SUM(Anantnag:Udhampur!Z18) -> 0 | AH18: =SUM(Anantnag:Udhampur!AB18) -> 0
A19: 2.03 | B19: Bedding (new) | C19: =SUM(Anantnag:Udhampur!C19) -> 0 | D19: =SUM(Anantnag:Udhampur!D19) -> 0 | E19: =SUM(Anantnag:Udhampur!E19) -> 0 | F19: =SUM(Anantnag:Udhampur!F19) -> 0 | G19: =SUM(Anantnag:Udhampur!G19) -> 0 | H19: =SUM(Anantnag:Udhampur!H19) -> 0 | I19: =SUM(Anantnag:Udhampur!I19) -> 0 | J19: =SUM(Anantnag:Udhampur!J19) -> 0 | K19: =SUM(Anantnag:Udhampur!K19) -> 0 | L19: =SUM(Anantnag:Udhampur!L19) -> 0 | M19: =SUM(Anantnag:Udhampur!M19) -> 0 | N19: =SUM(Anantnag:Udhampur!N19) -> 0 | P19: =SUM(Anantnag:Udhampur!P19) -> 0 | Q19: =SUM(Anantnag:Udhampur!Q19) -> 0 | R19: =SUM(Anantnag:Udhampur!R19) -> 0 | S19: =SUM(Anantnag:Udhampur!S19) -> 0 | T19: =SUM(Anantnag:Udhampur!T19) -> 0 | U19: =SUM(Anantnag:Udhampur!U19) -> 0 | V19: =SUM(Anantnag:Udhampur!V19) -> 0 | W19: =SUM(Anantnag:Udhampur!W19) -> 0 | Y19: =SUM(Anantnag:Udhampur!Y19) -> 0 | Z19: =SUM(Anantnag:Udhampur!Z19) -> 0 | AA19: =SUM(Anantnag:Udhampur!AA19) -> 0 | AB19: =SUM(Anantnag:Udhampur!AB19) -> 0 | AF19: =SUM(Anantnag:Udhampur!U19) -> 0 | AG19: =SUM(Anantnag:Udhampur!Z19) -> 0 | AH19: =SUM(Anantnag:Udhampur!AB19) -> 0
A20: 2.04 | B20: Replacement of bedding (once in 3 years) | C20: =SUM(Anantnag:Udhampur!C20) -> 0 | D20: =SUM(Anantnag:Udhampur!D20) -> 0 | E20: =SUM(Anantnag:Udhampur!E20) -> 0 | F20: =SUM(Anantnag:Udhampur!F20) -> 0 | G20: =SUM(Anantnag:Udhampur!G20) -> 0 | H20: =SUM(Anantnag:Udhampur!H20) -> 0 | I20: =SUM(Anantnag:Udhampur!I20) -> 0 | J20: =SUM(Anantnag:Udhampur!J20) -> 0 | K20: =SUM(Anantnag:Udhampur!K20) -> 0 | L20: =SUM(Anantnag:Udhampur!L20) -> 0 | M20: =SUM(Anantnag:Udhampur!M20) -> 0 | N20: =SUM(Anantnag:Udhampur!N20) -> 0 | P20: =SUM(Anantnag:Udhampur!P20) -> 0 | Q20: =SUM(Anantnag:Udhampur!Q20) -> 0 | R20: =SUM(Anantnag:Udhampur!R20) -> 0 | S20: =SUM(Anantnag:Udhampur!S20) -> 0 | T20: =SUM(Anantnag:Udhampur!T20) -> 0 | U20: =SUM(Anantnag:Udhampur!U20) -> 0 | V20: =SUM(Anantnag:Udhampur!V20) -> 0 | W20: =SUM(Anantnag:Udhampur!W20) -> 0 | Y20: =SUM(Anantnag:Udhampur!Y20) -> 0 | Z20: =SUM(Anantnag:Udhampur!Z20) -> 0 | AA20: =SUM(Anantnag:Udhampur!AA20) -> 0 | AB20: =SUM(Anantnag:Udhampur!AB20) -> 0 | AF20: =SUM(Anantnag:Udhampur!U20) -> 0 | AG20: =SUM(Anantnag:Udhampur!Z20) -> 0 | AH20: =SUM(Anantnag:Udhampur!AB20) -> 0
B21: Sub Total (Non Recurring) | C21: =SUM(Anantnag:Udhampur!C21) -> 0 | D21: =SUM(Anantnag:Udhampur!D21) -> 0 | E21: =SUM(Anantnag:Udhampur!E21) -> 0 | F21: =SUM(Anantnag:Udhampur!F21) -> 0 | G21: =SUM(Anantnag:Udhampur!G21) -> 0 | H21: =SUM(Anantnag:Udhampur!H21) -> 0 | I21: =SUM(Anantnag:Udhampur!I21) -> 0 | J21: =SUM(Anantnag:Udhampur!J21) -> 0 | K21: =SUM(Anantnag:Udhampur!K21) -> 0 | L21: =SUM(Anantnag:Udhampur!L21) -> 0 | M21: =SUM(Anantnag:Udhampur!M21) -> 0 | N21: =SUM(Anantnag:Udhampur!N21) -> 0 | O21: =SUM(O7:O20) -> 0 | P21: =SUM(Anantnag:Udhampur!P21) -> 0 | Q21: =SUM(Anantnag:Udhampur!Q21) -> 0 | R21: =SUM(Anantnag:Udhampur!R21) -> 0 | S21: =SUM(Anantnag:Udhampur!S21) -> 0 | T21: =SUM(Anantnag:Udhampur!T21) -> 0 | U21: =SUM(Anantnag:Udhampur!U21) -> 0 | V21: =SUM(Anantnag:Udhampur!V21) -> 0 | W21: =SUM(Anantnag:Udhampur!W21) -> 0 | Y21: =SUM(Anantnag:Udhampur!Y21) -> 0 | Z21: =SUM(Anantnag:Udhampur!Z21) -> 0 | AA21: =SUM(Anantnag:Udhampur!AA21) -> 0 | AB21: =SUM(Anantnag:Udhampur!AB21) -> 0 | AF21: =SUM(Anantnag:Udhampur!U21) -> 0 | AG21: =SUM(Anantnag:Udhampur!Z21) -> 0 | AH21: =SUM(Anantnag:Udhampur!AB21) -> 0
B22: Recurring (50 children) | C22: =SUM(Anantnag:Udhampur!C22) -> 0 | D22: =SUM(Anantnag:Udhampur!D22) -> 0 | E22: =SUM(Anantnag:Udhampur!E22) -> 0 | F22: =SUM(Anantnag:Udhampur!F22) -> 0 | G22: =SUM(Anantnag:Udhampur!G22) -> 0 | H22: =SUM(Anantnag:Udhampur!H22) -> 0 | I22: =SUM(Anantnag:Udhampur!I22) -> 0 | J22: =SUM(Anantnag:Udhampur!J22) -> 0 | K22: =SUM(Anantnag:Udhampur!K22) -> 0 | L22: =SUM(Anantnag:Udhampur!L22) -> 0 | M22: =SUM(Anantnag:Udhampur!M22) -> 0 | N22: =SUM(Anantnag:Udhampur!N22) -> 0 | P22: =SUM(Anantnag:Udhampur!P22) -> 0 | Q22: =SUM(Anantnag:Udhampur!Q22) -> 0 | R22: =SUM(Anantnag:Udhampur!R22) -> 0 | S22: =SUM(Anantnag:Udhampur!S22) -> 0 | T22: =SUM(Anantnag:Udhampur!T22) -> 0 | U22: =SUM(Anantnag:Udhampur!U22) -> 0 | V22: =SUM(Anantnag:Udhampur!V22) -> 0 | W22: =SUM(Anantnag:Udhampur!W22) -> 0 | Y22: =SUM(Anantnag:Udhampur!Y22) -> 0 | Z22: =SUM(Anantnag:Udhampur!Z22) -> 0 | AA22: =SUM(Anantnag:Udhampur!AA22) -> 0 | AB22: =SUM(Anantnag:Udhampur!AB22) -> 0 | AF22: =SUM(Anantnag:Udhampur!U22) -> 0 | AG22: =SUM(Anantnag:Udhampur!Z22) -> 0 | AH22: =SUM(Anantnag:Udhampur!AB22) -> 0
A23: 2.05 | B23: Maintenance @ Rs.1,500/- per child Per month | C23: =SUM(Anantnag:Udhampur!C23) -> 0 | D23: =SUM(Anantnag:Udhampur!D23) -> 0 | E23: =SUM(Anantnag:Udhampur!E23) -> 0 | F23: =SUM(Anantnag:Udhampur!F23) -> 0 | G23: =SUM(Anantnag:Udhampur!G23) -> 0 | H23: =SUM(Anantnag:Udhampur!H23) -> 0 | I23: =SUM(Anantnag:Udhampur!I23) -> 0 | J23: =SUM(Anantnag:Udhampur!J23) -> 0 | K23: =SUM(Anantnag:Udhampur!K23) -> 0 | L23: =SUM(Anantnag:Udhampur!L23) -> 0 | M23: =SUM(Anantnag:Udhampur!M23) -> 0 | N23: =SUM(Anantnag:Udhampur!N23) -> 0 | P23: =SUM(Anantnag:Udhampur!P23) -> 0 | Q23: =SUM(Anantnag:Udhampur!Q23) -> 0 | R23: =SUM(Anantnag:Udhampur!R23) -> 0 | S23: =SUM(Anantnag:Udhampur!S23) -> 0 | T23: =SUM(Anantnag:Udhampur!T23) -> 0 | U23: =SUM(Anantnag:Udhampur!U23) -> 0 | V23: =SUM(Anantnag:Udhampur!V23) -> 0 | W23: =SUM(Anantnag:Udhampur!W23) -> 0 | Y23: =SUM(Anantnag:Udhampur!Y23) -> 0 | Z23: =SUM(Anantnag:Udhampur!Z23) -> 0 | AA23: =SUM(Anantnag:Udhampur!AA23) -> 0 | AB23: =SUM(Anantnag:Udhampur!AB23) -> 0 | AF23: =SUM(Anantnag:Udhampur!U23) -> 0 | AG23: =SUM(Anantnag:Udhampur!Z23) -> 0 | AH23: =SUM(Anantnag:Udhampur!AB23) -> 0
A24: 2.06 | B24: Stipend @ Rs.100/- per child per month | C24: =SUM(Anantnag:Udhampur!C24) -> 0 | D24: =SUM(Anantnag:Udhampur!D24) -> 0 | E24: =SUM(Anantnag:Udhampur!E24) -> 0 | F24: =SUM(Anantnag:Udhampur!F24) -> 0 | G24: =SUM(Anantnag:Udhampur!G24) -> 0 | H24: =SUM(Anantnag:Udhampur!H24) -> 0 | I24: =SUM(Anantnag:Udhampur!I24) -> 0 | J24: =SUM(Anantnag:Udhampur!J24) -> 0 | K24: =SUM(Anantnag:Udhampur!K24) -> 0 | L24: =SUM(Anantnag:Udhampur!L24) -> 0 | M24: =SUM(Anantnag:Udhampur!M24) -> 0 | N24: =SUM(Anantnag:Udhampur!N24) -> 0 | P24: =SUM(Anantnag:Udhampur!P24) -> 0 | Q24: =SUM(Anantnag:Udhampur!Q24) -> 0 | R24: =SUM(Anantnag:Udhampur!R24) -> 0 | S24: =SUM(Anantnag:Udhampur!S24) -> 0 | T24: =SUM(Anantnag:Udhampur!T24) -> 0 | U24: =SUM(Anantnag:Udhampur!U24) -> 0 | V24: =SUM(Anantnag:Udhampur!V24) -> 0 | W24: =SUM(Anantnag:Udhampur!W24) -> 0 | Y24: =SUM(Anantnag:Udhampur!Y24) -> 0 | Z24: =SUM(Anantnag:Udhampur!Z24) -> 0 | AA24: =SUM(Anantnag:Udhampur!AA24) -> 0 | AB24: =SUM(Anantnag:Udhampur!AB24) -> 0 | AF24: =SUM(Anantnag:Udhampur!U24) -> 0 | AG24: =SUM(Anantnag:Udhampur!Z24) -> 0 | AH24: =SUM(Anantnag:Udhampur!AB24) -> 0
A25: 2.07 | B25: Supplementary TLM, Stationery and other educational material @Rs.1,000/- per child per annum | C25: =SUM(Anantnag:Udhampur!C25) -> 0 | D25: =SUM(Anantnag:Udhampur!D25) -> 0 | E25: =SUM(Anantnag:Udhampur!E25) -> 0 | F25: =SUM(Anantnag:Udhampur!F25) -> 0 | G25: =SUM(Anantnag:Udhampur!G25) -> 0 | H25: =SUM(Anantnag:Udhampur!H25) -> 0 | I25: =SUM(Anantnag:Udhampur!I25) -> 0 | J25: =SUM(Anantnag:Udhampur!J25) -> 0 | K25: =SUM(Anantnag:Udhampur!K25) -> 0 | L25: =SUM(Anantnag:Udhampur!L25) -> 0 | M25: =SUM(Anantnag:Udhampur!M25) -> 0 | N25: =SUM(Anantnag:Udhampur!N25) -> 0 | P25: =SUM(Anantnag:Udhampur!P25) -> 0 | Q25: =SUM(Anantnag:Udhampur!Q25) -> 0 | R25: =SUM(Anantnag:Udhampur!R25) -> 0 | S25: =SUM(Anantnag:Udhampur!S25) -> 0 | T25: =SUM(Anantnag:Udhampur!T25) -> 0 | U25: =SUM(Anantnag:Udhampur!U25) -> 0 | V25: =SUM(Anantnag:Udhampur!V25) -> 0 | W25: =SUM(Anantnag:Udhampur!W25) -> 0 | Y25: =SUM(Anantnag:Udhampur!Y25) -> 0 | Z25: =SUM(Anantnag:Udhampur!Z25) -> 0 | AA25: =SUM(Anantnag:Udhampur!AA25) -> 0 | AB25: =SUM(Anantnag:Udhampur!AB25) -> 0 | AF25: =SUM(Anantnag:Udhampur!U25) -> 0 | AG25: =SUM(Anantnag:Udhampur!Z25) -> 0 | AH25: =SUM(Anantnag:Udhampur!AB25) -> 0
A26: 2.08 | B26: Salaries | C26: =SUM(Anantnag:Udhampur!C26) -> 0 | D26: =SUM(Anantnag:Udhampur!D26) -> 0 | E26: =SUM(Anantnag:Udhampur!E26) -> 0 | F26: =SUM(Anantnag:Udhampur!F26) -> 0 | G26: =SUM(Anantnag:Udhampur!G26) -> 0 | H26: =SUM(Anantnag:Udhampur!H26) -> 0 | I26: =SUM(Anantnag:Udhampur!I26) -> 0 | J26: =SUM(Anantnag:Udhampur!J26) -> 0 | K26: =SUM(Anantnag:Udhampur!K26) -> 0 | L26: =SUM(Anantnag:Udhampur!L26) -> 0 | M26: =SUM(Anantnag:Udhampur!M26) -> 0 | N26: =SUM(Anantnag:Udhampur!N26) -> 0 | P26: =SUM(Anantnag:Udhampur!P26) -> 0 | Q26: =SUM(Anantnag:Udhampur!Q26) -> 0 | R26: =SUM(Anantnag:Udhampur!R26) -> 0 | S26: =SUM(Anantnag:Udhampur!S26) -> 0 | T26: =SUM(Anantnag:Udhampur!T26) -> 0 | U26: =SUM(Anantnag:Udhampur!U26) -> 0 | V26: =SUM(Anantnag:Udhampur!V26) -> 0 | W26: =SUM(Anantnag:Udhampur!W26) -> 0 | Y26: =SUM(Anantnag:Udhampur!Y26) -> 0 | Z26: =SUM(Anantnag:Udhampur!Z26) -> 0 | AA26: =SUM(Anantnag:Udhampur!AA26) -> 0 | AB26: =SUM(Anantnag:Udhampur!AB26) -> 0 | AF26: =SUM(Anantnag:Udhampur!U26) -> 0 | AG26: =SUM(Anantnag:Udhampur!Z26) -> 0 | AH26: =SUM(Anantnag:Udhampur!AB26) -> 0
A27: (a) | B27: 1 Warden @ Rs.25,000/- per month | C27: =SUM(Anantnag:Udhampur!C27) -> 0 | D27: =SUM(Anantnag:Udhampur!D27) -> 0 | E27: =SUM(Anantnag:Udhampur!E27) -> 0 | F27: =SUM(Anantnag:Udhampur!F27) -> 0 | G27: =SUM(Anantnag:Udhampur!G27) -> 0 | H27: =SUM(Anantnag:Udhampur!H27) -> 0 | I27: =SUM(Anantnag:Udhampur!I27) -> 0 | J27: =SUM(Anantnag:Udhampur!J27) -> 0 | K27: =SUM(Anantnag:Udhampur!K27) -> 0 | L27: =SUM(Anantnag:Udhampur!L27) -> 0 | M27: =SUM(Anantnag:Udhampur!M27) -> 0 | N27: =SUM(Anantnag:Udhampur!N27) -> 0 | P27: =SUM(Anantnag:Udhampur!P27) -> 0 | Q27: =SUM(Anantnag:Udhampur!Q27) -> 0 | R27: =SUM(Anantnag:Udhampur!R27) -> 0 | S27: =SUM(Anantnag:Udhampur!S27) -> 0 | T27: =SUM(Anantnag:Udhampur!T27) -> 0 | U27: =SUM(Anantnag:Udhampur!U27) -> 0 | V27: =SUM(Anantnag:Udhampur!V27) -> 0 | W27: =SUM(Anantnag:Udhampur!W27) -> 0 | Y27: =SUM(Anantnag:Udhampur!Y27) -> 0 | Z27: =SUM(Anantnag:Udhampur!Z27) -> 0 | AA27: =SUM(Anantnag:Udhampur!AA27) -> 0 | AB27: =SUM(Anantnag:Udhampur!AB27) -> 0 | AF27: =SUM(Anantnag:Udhampur!U27) -> 0 | AG27: =SUM(Anantnag:Udhampur!Z27) -> 0 | AH27: =SUM(Anantnag:Udhampur!AB27) -> 0
A28: (b) | B28: 4 Fulltime teachers as per RTE Norms @ Rs. 20,000/- per month per teacher | C28: =SUM(Anantnag:Udhampur!C28) -> 0 | D28: =SUM(Anantnag:Udhampur!D28) -> 0 | E28: =SUM(Anantnag:Udhampur!E28) -> 0 | F28: =SUM(Anantnag:Udhampur!F28) -> 0 | G28: =SUM(Anantnag:Udhampur!G28) -> 0 | H28: =SUM(Anantnag:Udhampur!H28) -> 0 | I28: =SUM(Anantnag:Udhampur!I28) -> 0 | J28: =SUM(Anantnag:Udhampur!J28) -> 0 | K28: =SUM(Anantnag:Udhampur!K28) -> 0 | L28: =SUM(Anantnag:Udhampur!L28) -> 0 | M28: =SUM(Anantnag:Udhampur!M28) -> 0 | N28: =SUM(Anantnag:Udhampur!N28) -> 0 | P28: =SUM(Anantnag:Udhampur!P28) -> 0 | Q28: =SUM(Anantnag:Udhampur!Q28) -> 0 | R28: =SUM(Anantnag:Udhampur!R28) -> 0 | S28: =SUM(Anantnag:Udhampur!S28) -> 0 | T28: =SUM(Anantnag:Udhampur!T28) -> 0 | U28: =SUM(Anantnag:Udhampur!U28) -> 0 | V28: =SUM(Anantnag:Udhampur!V28) -> 0 | W28: =SUM(Anantnag:Udhampur!W28) -> 0 | Y28: =SUM(Anantnag:Udhampur!Y28) -> 0 | Z28: =SUM(Anantnag:Udhampur!Z28) -> 0 | AA28: =SUM(Anantnag:Udhampur!AA28) -> 0 | AB28: =SUM(Anantnag:Udhampur!AB28) -> 0 | AF28: =SUM(Anantnag:Udhampur!U28) -> 0 | AG28: =SUM(Anantnag:Udhampur!Z28) -> 0 | AH28: =SUM(Anantnag:Udhampur!AB28) -> 0
A29: (c) | B29: 2 Urdu Teachers (only for Blocks with muslim population above 20% and select urban areas) if required @ Rs.12,000/- per month per teacher. | C29: =SUM(Anantnag:Udhampur!C29) -> 0 | D29: =SUM(Anantnag:Udhampur!D29) -> 0 | E29: =SUM(Anantnag:Udhampur!E29) -> 0 | F29: =SUM(Anantnag:Udhampur!F29) -> 0 | G29: =SUM(Anantnag:Udhampur!G29) -> 0 | H29: =SUM(Anantnag:Udhampur!H29) -> 0 | I29: =SUM(Anantnag:Udhampur!I29) -> 0 | J29: =SUM(Anantnag:Udhampur!J29) -> 0 | K29: =SUM(Anantnag:Udhampur!K29) -> 0 | L29: =SUM(Anantnag:Udhampur!L29) -> 0 | M29: =SUM(Anantnag:Udhampur!M29) -> 0 | N29: =SUM(Anantnag:Udhampur!N29) -> 0 | P29: =SUM(Anantnag:Udhampur!P29) -> 0 | Q29: =SUM(Anantnag:Udhampur!Q29) -> 0 | R29: =SUM(Anantnag:Udhampur!R29) -> 0 | S29: =SUM(Anantnag:Udhampur!S29) -> 0 | T29: =SUM(Anantnag:Udhampur!T29) -> 0 | U29: =SUM(Anantnag:Udhampur!U29) -> 0 | V29: =SUM(Anantnag:Udhampur!V29) -> 0 | W29: =SUM(Anantnag:Udhampur!W29) -> 0 | Y29: =SUM(Anantnag:Udhampur!Y29) -> 0 | Z29: =SUM(Anantnag:Udhampur!Z29) -> 0 | AA29: =SUM(Anantnag:Udhampur!AA29) -> 0 | AB29: =SUM(Anantnag:Udhampur!AB29) -> 0 | AF29: =SUM(Anantnag:Udhampur!U29) -> 0 | AG29: =SUM(Anantnag:Udhampur!Z29) -> 0 | AH29: =SUM(Anantnag:Udhampur!AB29) -> 0
A30: (d) | B30: 3 Part time teachers @ Rs.5,000/- per month per teacher | C30: =SUM(Anantnag:Udhampur!C30) -> 0 | D30: =SUM(Anantnag:Udhampur!D30) -> 0 | E30: =SUM(Anantnag:Udhampur!E30) -> 0 | F30: =SUM(Anantnag:Udhampur!F30) -> 0 | G30: =SUM(Anantnag:Udhampur!G30) -> 0 | H30: =SUM(Anantnag:Udhampur!H30) -> 0 | I30: =SUM(Anantnag:Udhampur!I30) -> 0 | J30: =SUM(Anantnag:Udhampur!J30) -> 0 | K30: =SUM(Anantnag:Udhampur!K30) -> 0 | L30: =SUM(Anantnag:Udhampur!L30) -> 0 | M30: =SUM(Anantnag:Udhampur!M30) -> 0 | N30: =SUM(Anantnag:Udhampur!N30) -> 0 | P30: =SUM(Anantnag:Udhampur!P30) -> 0 | Q30: =SUM(Anantnag:Udhampur!Q30) -> 0 | R30: =SUM(Anantnag:Udhampur!R30) -> 0 | S30: =SUM(Anantnag:Udhampur!S30) -> 0 | T30: =SUM(Anantnag:Udhampur!T30) -> 0 | U30: =SUM(Anantnag:Udhampur!U30) -> 0 | V30: =SUM(Anantnag:Udhampur!V30) -> 0 | W30: =SUM(Anantnag:Udhampur!W30) -> 0 | Y30: =SUM(Anantnag:Udhampur!Y30) -> 0 | Z30: =SUM(Anantnag:Udhampur!Z30) -> 0 | AA30: =SUM(Anantnag:Udhampur!AA30) -> 0 | AB30: =SUM(Anantnag:Udhampur!AB30) -> 0 | AF30: =SUM(Anantnag:Udhampur!U30) -> 0 | AG30: =SUM(Anantnag:Udhampur!Z30) -> 0 | AH30: =SUM(Anantnag:Udhampur!AB30) -> 0
A31: (e) | B31: 1 Full time Accountant @ Rs. 10,000/- per month | C31: =SUM(Anantnag:Udhampur!C31) -> 0 | D31: =SUM(Anantnag:Udhampur!D31) -> 0 | E31: =SUM(Anantnag:Udhampur!E31) -> 0 | F31: =SUM(Anantnag:Udhampur!F31) -> 0 | G31: =SUM(Anantnag:Udhampur!G31) -> 0 | H31: =SUM(Anantnag:Udhampur!H31) -> 0 | I31: =SUM(Anantnag:Udhampur!I31) -> 0 | J31: =SUM(Anantnag:Udhampur!J31) -> 0 | K31: =SUM(Anantnag:Udhampur!K31) -> 0 | L31: =SUM(Anantnag:Udhampur!L31) -> 0 | M31: =SUM(Anantnag:Udhampur!M31) -> 0 | N31: =SUM(Anantnag:Udhampur!N31) -> 0 | P31: =SUM(Anantnag:Udhampur!P31) -> 0 | Q31: =SUM(Anantnag:Udhampur!Q31) -> 0 | R31: =SUM(Anantnag:Udhampur!R31) -> 0 | S31: =SUM(Anantnag:Udhampur!S31) -> 0 | T31: =SUM(Anantnag:Udhampur!T31) -> 0 | U31: =SUM(Anantnag:Udhampur!U31) -> 0 | V31: =SUM(Anantnag:Udhampur!V31) -> 0 | W31: =SUM(Anantnag:Udhampur!W31) -> 0 | Y31: =SUM(Anantnag:Udhampur!Y31) -> 0 | Z31: =SUM(Anantnag:Udhampur!Z31) -> 0 | AA31: =SUM(Anantnag:Udhampur!AA31) -> 0 | AB31: =SUM(Anantnag:Udhampur!AB31) -> 0 | AF31: =SUM(Anantnag:Udhampur!U31) -> 0 | AG31: =SUM(Anantnag:Udhampur!Z31) -> 0 | AH31: =SUM(Anantnag:Udhampur!AB31) -> 0
A32: (f) | B32: 2 Support staff - (Accountant/Assistant, Peon, Chowkidar) @ Rs. 5,000/- per month per staff | C32: =SUM(Anantnag:Udhampur!C32) -> 0 | D32: =SUM(Anantnag:Udhampur!D32) -> 0 | E32: =SUM(Anantnag:Udhampur!E32) -> 0 | F32: =SUM(Anantnag:Udhampur!F32) -> 0 | G32: =SUM(Anantnag:Udhampur!G32) -> 0 | H32: =SUM(Anantnag:Udhampur!H32) -> 0 | I32: =SUM(Anantnag:Udhampur!I32) -> 0 | J32: =SUM(Anantnag:Udhampur!J32) -> 0 | K32: =SUM(Anantnag:Udhampur!K32) -> 0 | L32: =SUM(Anantnag:Udhampur!L32) -> 0 | M32: =SUM(Anantnag:Udhampur!M32) -> 0 | N32: =SUM(Anantnag:Udhampur!N32) -> 0 | P32: =SUM(Anantnag:Udhampur!P32) -> 0 | Q32: =SUM(Anantnag:Udhampur!Q32) -> 0 | R32: =SUM(Anantnag:Udhampur!R32) -> 0 | S32: =SUM(Anantnag:Udhampur!S32) -> 0 | T32: =SUM(Anantnag:Udhampur!T32) -> 0 | U32: =SUM(Anantnag:Udhampur!U32) -> 0 | V32: =SUM(Anantnag:Udhampur!V32) -> 0 | W32: =SUM(Anantnag:Udhampur!W32) -> 0 | Y32: =SUM(Anantnag:Udhampur!Y32) -> 0 | Z32: =SUM(Anantnag:Udhampur!Z32) -> 0 | AA32: =SUM(Anantnag:Udhampur!AA32) -> 0 | AB32: =SUM(Anantnag:Udhampur!AB32) -> 0 | AF32: =SUM(Anantnag:Udhampur!U32) -> 0 | AG32: =SUM(Anantnag:Udhampur!Z32) -> 0 | AH32: =SUM(Anantnag:Udhampur!AB32) -> 0
A33: (g) | B33: 1 Head Cook @ Rs. 6,000/- per month and upto 2 Asstt. Cooks @ Rs. 4,500/- per month per cook | C33: =SUM(Anantnag:Udhampur!C33) -> 0 | D33: =SUM(Anantnag:Udhampur!D33) -> 0 | E33: =SUM(Anantnag:Udhampur!E33) -> 0 | F33: =SUM(Anantnag:Udhampur!F33) -> 0 | G33: =SUM(Anantnag:Udhampur!G33) -> 0 | H33: =SUM(Anantnag:Udhampur!H33) -> 0 | I33: =SUM(Anantnag:Udhampur!I33) -> 0 | J33: =SUM(Anantnag:Udhampur!J33) -> 0 | K33: =SUM(Anantnag:Udhampur!K33) -> 0 | L33: =SUM(Anantnag:Udhampur!L33) -> 0 | M33: =SUM(Anantnag:Udhampur!M33) -> 0 | N33: =SUM(Anantnag:Udhampur!N33) -> 0 | P33: =SUM(Anantnag:Udhampur!P33) -> 0 | Q33: =SUM(Anantnag:Udhampur!Q33) -> 0 | R33: =SUM(Anantnag:Udhampur!R33) -> 0 | S33: =SUM(Anantnag:Udhampur!S33) -> 0 | T33: =SUM(Anantnag:Udhampur!T33) -> 0 | U33: =SUM(Anantnag:Udhampur!U33) -> 0 | V33: =SUM(Anantnag:Udhampur!V33) -> 0 | W33: =SUM(Anantnag:Udhampur!W33) -> 0 | Y33: =SUM(Anantnag:Udhampur!Y33) -> 0 | Z33: =SUM(Anantnag:Udhampur!Z33) -> 0 | AA33: =SUM(Anantnag:Udhampur!AA33) -> 0 | AB33: =SUM(Anantnag:Udhampur!AB33) -> 0 | AF33: =SUM(Anantnag:Udhampur!U33) -> 0 | AG33: =SUM(Anantnag:Udhampur!Z33) -> 0 | AH33: =SUM(Anantnag:Udhampur!AB33) -> 0
A34: 2.09 | B34: Specific Skill training @ Rs.1,000/- per child per annum | C34: =SUM(Anantnag:Udhampur!C34) -> 0 | D34: =SUM(Anantnag:Udhampur!D34) -> 0 | E34: =SUM(Anantnag:Udhampur!E34) -> 0 | F34: =SUM(Anantnag:Udhampur!F34) -> 0 | G34: =SUM(Anantnag:Udhampur!G34) -> 0 | H34: =SUM(Anantnag:Udhampur!H34) -> 0 | I34: =SUM(Anantnag:Udhampur!I34) -> 0 | J34: =SUM(Anantnag:Udhampur!J34) -> 0 | K34: =SUM(Anantnag:Udhampur!K34) -> 0 | L34: =SUM(Anantnag:Udhampur!L34) -> 0 | M34: =SUM(Anantnag:Udhampur!M34) -> 0 | N34: =SUM(Anantnag:Udhampur!N34) -> 0 | P34: =SUM(Anantnag:Udhampur!P34) -> 0 | Q34: =SUM(Anantnag:Udhampur!Q34) -> 0 | R34: =SUM(Anantnag:Udhampur!R34) -> 0 | S34: =SUM(Anantnag:Udhampur!S34) -> 0 | T34: =SUM(Anantnag:Udhampur!T34) -> 0 | U34: =SUM(Anantnag:Udhampur!U34) -> 0 | V34: =SUM(Anantnag:Udhampur!V34) -> 0 | W34: =SUM(Anantnag:Udhampur!W34) -> 0 | Y34: =SUM(Anantnag:Udhampur!Y34) -> 0 | Z34: =SUM(Anantnag:Udhampur!Z34) -> 0 | AA34: =SUM(Anantnag:Udhampur!AA34) -> 0 | AB34: =SUM(Anantnag:Udhampur!AB34) -> 0 | AF34: =SUM(Anantnag:Udhampur!U34) -> 0 | AG34: =SUM(Anantnag:Udhampur!Z34) -> 0 | AH34: =SUM(Anantnag:Udhampur!AB34) -> 0
A35: 2.1 | B35: Electricity / water charges @ Rs. 1,000/- per child per annum | C35: =SUM(Anantnag:Udhampur!C35) -> 0 | D35: =SUM(Anantnag:Udhampur!D35) -> 0 | E35: =SUM(Anantnag:Udhampur!E35) -> 0 | F35: =SUM(Anantnag:Udhampur!F35) -> 0 | G35: =SUM(Anantnag:Udhampur!G35) -> 0 | H35: =SUM(Anantnag:Udhampur!H35) -> 0 | I35: =SUM(Anantnag:Udhampur!I35) -> 0 | J35: =SUM(Anantnag:Udhampur!J35) -> 0 | K35: =SUM(Anantnag:Udhampur!K35) -> 0 | L35: =SUM(Anantnag:Udhampur!L35) -> 0 | M35: =SUM(Anantnag:Udhampur!M35) -> 0 | N35: =SUM(Anantnag:Udhampur!N35) -> 0 | P35: =SUM(Anantnag:Udhampur!P35) -> 0 | Q35: =SUM(Anantnag:Udhampur!Q35) -> 0 | R35: =SUM(Anantnag:Udhampur!R35) -> 0 | S35: =SUM(Anantnag:Udhampur!S35) -> 0 | T35: =SUM(Anantnag:Udhampur!T35) -> 0 | U35: =SUM(Anantnag:Udhampur!U35) -> 0 | V35: =SUM(Anantnag:Udhampur!V35) -> 0 | W35: =SUM(Anantnag:Udhampur!W35) -> 0 | Y35: =SUM(Anantnag:Udhampur!Y35) -> 0 | Z35: =SUM(Anantnag:Udhampur!Z35) -> 0 | AA35: =SUM(Anantnag:Udhampur!AA35) -> 0 | AB35: =SUM(Anantnag:Udhampur!AB35) -> 0 | AF35: =SUM(Anantnag:Udhampur!U35) -> 0 | AG35: =SUM(Anantnag:Udhampur!Z35) -> 0 | AH35: =SUM(Anantnag:Udhampur!AB35) -> 0
A36: =+A35+0.01 -> 2.11 | B36: Medical care/contingencies @ Rs.1,250/- per child per annum | C36: =SUM(Anantnag:Udhampur!C36) -> 0 | D36: =SUM(Anantnag:Udhampur!D36) -> 0 | E36: =SUM(Anantnag:Udhampur!E36) -> 0 | F36: =SUM(Anantnag:Udhampur!F36) -> 0 | G36: =SUM(Anantnag:Udhampur!G36) -> 0 | H36: =SUM(Anantnag:Udhampur!H36) -> 0 | I36: =SUM(Anantnag:Udhampur!I36) -> 0 | J36: =SUM(Anantnag:Udhampur!J36) -> 0 | K36: =SUM(Anantnag:Udhampur!K36) -> 0 | L36: =SUM(Anantnag:Udhampur!L36) -> 0 | M36: =SUM(Anantnag:Udhampur!M36) -> 0 | N36: =SUM(Anantnag:Udhampur!N36) -> 0 | P36: =SUM(Anantnag:Udhampur!P36) -> 0 | Q36: =SUM(Anantnag:Udhampur!Q36) -> 0 | R36: =SUM(Anantnag:Udhampur!R36) -> 0 | S36: =SUM(Anantnag:Udhampur!S36) -> 0 | T36: =SUM(Anantnag:Udhampur!T36) -> 0 | U36: =SUM(Anantnag:Udhampur!U36) -> 0 | V36: =SUM(Anantnag:Udhampur!V36) -> 0 | W36: =SUM(Anantnag:Udhampur!W36) -> 0 | Y36: =SUM(Anantnag:Udhampur!Y36) -> 0 | Z36: =SUM(Anantnag:Udhampur!Z36) -> 0 | AA36: =SUM(Anantnag:Udhampur!AA36) -> 0 | AB36: =SUM(Anantnag:Udhampur!AB36) -> 0 | AF36: =SUM(Anantnag:Udhampur!U36) -> 0 | AG36: =SUM(Anantnag:Udhampur!Z36) -> 0 | AH36: =SUM(Anantnag:Udhampur!AB36) -> 0
A37: =+A36+0.01 -> 2.12 | B37: Maintenance @ Rs. 750/- per child per annum | C37: =SUM(Anantnag:Udhampur!C37) -> 0 | D37: =SUM(Anantnag:Udhampur!D37) -> 0 | E37: =SUM(Anantnag:Udhampur!E37) -> 0 | F37: =SUM(Anantnag:Udhampur!F37) -> 0 | G37: =SUM(Anantnag:Udhampur!G37) -> 0 | H37: =SUM(Anantnag:Udhampur!H37) -> 0 | I37: =SUM(Anantnag:Udhampur!I37) -> 0 | J37: =SUM(Anantnag:Udhampur!J37) -> 0 | K37: =SUM(Anantnag:Udhampur!K37) -> 0 | L37: =SUM(Anantnag:Udhampur!L37) -> 0 | M37: =SUM(Anantnag:Udhampur!M37) -> 0 | N37: =SUM(Anantnag:Udhampur!N37) -> 0 | P37: =SUM(Anantnag:Udhampur!P37) -> 0 | Q37: =SUM(Anantnag:Udhampur!Q37) -> 0 | R37: =SUM(Anantnag:Udhampur!R37) -> 0 | S37: =SUM(Anantnag:Udhampur!S37) -> 0 | T37: =SUM(Anantnag:Udhampur!T37) -> 0 | U37: =SUM(Anantnag:Udhampur!U37) -> 0 | V37: =SUM(Anantnag:Udhampur!V37) -> 0 | W37: =SUM(Anantnag:Udhampur!W37) -> 0 | Y37: =SUM(Anantnag:Udhampur!Y37) -> 0 | Z37: =SUM(Anantnag:Udhampur!Z37) -> 0 | AA37: =SUM(Anantnag:Udhampur!AA37) -> 0 | AB37: =SUM(Anantnag:Udhampur!AB37) -> 0 | AF37: =SUM(Anantnag:Udhampur!U37) -> 0 | AG37: =SUM(Anantnag:Udhampur!Z37) -> 0 | AH37: =SUM(Anantnag:Udhampur!AB37) -> 0
A38: 2.13 | B38: Miscellaneous @ Rs. 750/- per child per annum | C38: =SUM(Anantnag:Udhampur!C38) -> 0 | D38: =SUM(Anantnag:Udhampur!D38) -> 0 | E38: =SUM(Anantnag:Udhampur!E38) -> 0 | F38: =SUM(Anantnag:Udhampur!F38) -> 0 | G38: =SUM(Anantnag:Udhampur!G38) -> 0 | H38: =SUM(Anantnag:Udhampur!H38) -> 0 | I38: =SUM(Anantnag:Udhampur!I38) -> 0 | J38: =SUM(Anantnag:Udhampur!J38) -> 0 | K38: =SUM(Anantnag:Udhampur!K38) -> 0 | L38: =SUM(Anantnag:Udhampur!L38) -> 0 | M38: =SUM(Anantnag:Udhampur!M38) -> 0 | N38: =SUM(Anantnag:Udhampur!N38) -> 0 | P38: =SUM(Anantnag:Udhampur!P38) -> 0 | Q38: =SUM(Anantnag:Udhampur!Q38) -> 0 | R38: =SUM(Anantnag:Udhampur!R38) -> 0 | S38: =SUM(Anantnag:Udhampur!S38) -> 0 | T38: =SUM(Anantnag:Udhampur!T38) -> 0 | U38: =SUM(Anantnag:Udhampur!U38) -> 0 | V38: =SUM(Anantnag:Udhampur!V38) -> 0 | W38: =SUM(Anantnag:Udhampur!W38) -> 0 | Y38: =SUM(Anantnag:Udhampur!Y38) -> 0 | Z38: =SUM(Anantnag:Udhampur!Z38) -> 0 | AA38: =SUM(Anantnag:Udhampur!AA38) -> 0 | AB38: =SUM(Anantnag:Udhampur!AB38) -> 0 | AF38: =SUM(Anantnag:Udhampur!U38) -> 0 | AG38: =SUM(Anantnag:Udhampur!Z38) -> 0 | AH38: =SUM(Anantnag:Udhampur!AB38) -> 0
A39: 2.14 | B39: Preparatory camps @ Rs. 300/- per child per annum | C39: =SUM(Anantnag:Udhampur!C39) -> 0 | D39: =SUM(Anantnag:Udhampur!D39) -> 0 | E39: =SUM(Anantnag:Udhampur!E39) -> 0 | F39: =SUM(Anantnag:Udhampur!F39) -> 0 | G39: =SUM(Anantnag:Udhampur!G39) -> 0 | H39: =SUM(Anantnag:Udhampur!H39) -> 0 | I39: =SUM(Anantnag:Udhampur!I39) -> 0 | J39: =SUM(Anantnag:Udhampur!J39) -> 0 | K39: =SUM(Anantnag:Udhampur!K39) -> 0 | L39: =SUM(Anantnag:Udhampur!L39) -> 0 | M39: =SUM(Anantnag:Udhampur!M39) -> 0 | N39: =SUM(Anantnag:Udhampur!N39) -> 0 | P39: =SUM(Anantnag:Udhampur!P39) -> 0 | Q39: =SUM(Anantnag:Udhampur!Q39) -> 0 | R39: =SUM(Anantnag:Udhampur!R39) -> 0 | S39: =SUM(Anantnag:Udhampur!S39) -> 0 | T39: =SUM(Anantnag:Udhampur!T39) -> 0 | U39: =SUM(Anantnag:Udhampur!U39) -> 0 | V39: =SUM(Anantnag:Udhampur!V39) -> 0 | W39: =SUM(Anantnag:Udhampur!W39) -> 0 | Y39: =SUM(Anantnag:Udhampur!Y39) -> 0 | Z39: =SUM(Anantnag:Udhampur!Z39) -> 0 | AA39: =SUM(Anantnag:Udhampur!AA39) -> 0 | AB39: =SUM(Anantnag:Udhampur!AB39) -> 0 | AF39: =SUM(Anantnag:Udhampur!U39) -> 0 | AG39: =SUM(Anantnag:Udhampur!Z39) -> 0 | AH39: =SUM(Anantnag:Udhampur!AB39) -> 0
A40: 2.15 | B40: P.T.A / school functions @ Rs. 300/- per child per annum | C40: =SUM(Anantnag:Udhampur!C40) -> 0 | D40: =SUM(Anantnag:Udhampur!D40) -> 0 | E40: =SUM(Anantnag:Udhampur!E40) -> 0 | F40: =SUM(Anantnag:Udhampur!F40) -> 0 | G40: =SUM(Anantnag:Udhampur!G40) -> 0 | H40: =SUM(Anantnag:Udhampur!H40) -> 0 | I40: =SUM(Anantnag:Udhampur!I40) -> 0 | J40: =SUM(Anantnag:Udhampur!J40) -> 0 | K40: =SUM(Anantnag:Udhampur!K40) -> 0 | L40: =SUM(Anantnag:Udhampur!L40) -> 0 | M40: =SUM(Anantnag:Udhampur!M40) -> 0 | N40: =SUM(Anantnag:Udhampur!N40) -> 0 | P40: =SUM(Anantnag:Udhampur!P40) -> 0 | Q40: =SUM(Anantnag:Udhampur!Q40) -> 0 | R40: =SUM(Anantnag:Udhampur!R40) -> 0 | S40: =SUM(Anantnag:Udhampur!S40) -> 0 | T40: =SUM(Anantnag:Udhampur!T40) -> 0 | U40: =SUM(Anantnag:Udhampur!U40) -> 0 | V40: =SUM(Anantnag:Udhampur!V40) -> 0 | W40: =SUM(Anantnag:Udhampur!W40) -> 0 | Y40: =SUM(Anantnag:Udhampur!Y40) -> 0 | Z40: =SUM(Anantnag:Udhampur!Z40) -> 0 | AA40: =SUM(Anantnag:Udhampur!AA40) -> 0 | AB40: =SUM(Anantnag:Udhampur!AB40) -> 0 | AF40: =SUM(Anantnag:Udhampur!U40) -> 0 | AG40: =SUM(Anantnag:Udhampur!Z40) -> 0 | AH40: =SUM(Anantnag:Udhampur!AB40) -> 0
A41: 2.16 | B41: Provision of Rent @ Rs. 10,000/- per child per annum | C41: =SUM(Anantnag:Udhampur!C41) -> 0 | D41: =SUM(Anantnag:Udhampur!D41) -> 0 | E41: =SUM(Anantnag:Udhampur!E41) -> 0 | F41: =SUM(Anantnag:Udhampur!F41) -> 0 | G41: =SUM(Anantnag:Udhampur!G41) -> 0 | H41: =SUM(Anantnag:Udhampur!H41) -> 0 | I41: =SUM(Anantnag:Udhampur!I41) -> 0 | J41: =SUM(Anantnag:Udhampur!J41) -> 0 | K41: =SUM(Anantnag:Udhampur!K41) -> 0 | L41: =SUM(Anantnag:Udhampur!L41) -> 0 | M41: =SUM(Anantnag:Udhampur!M41) -> 0 | N41: =SUM(Anantnag:Udhampur!N41) -> 0 | P41: =SUM(Anantnag:Udhampur!P41) -> 0 | Q41: =SUM(Anantnag:Udhampur!Q41) -> 0 | R41: =SUM(Anantnag:Udhampur!R41) -> 0 | S41: =SUM(Anantnag:Udhampur!S41) -> 0 | T41: =SUM(Anantnag:Udhampur!T41) -> 0 | U41: =SUM(Anantnag:Udhampur!U41) -> 0 | V41: =SUM(Anantnag:Udhampur!V41) -> 0 | W41: =SUM(Anantnag:Udhampur!W41) -> 0 | Y41: =SUM(Anantnag:Udhampur!Y41) -> 0 | Z41: =SUM(Anantnag:Udhampur!Z41) -> 0 | AA41: =SUM(Anantnag:Udhampur!AA41) -> 0 | AB41: =SUM(Anantnag:Udhampur!AB41) -> 0 | AF41: =SUM(Anantnag:Udhampur!U41) -> 0 | AG41: =SUM(Anantnag:Udhampur!Z41) -> 0 | AH41: =SUM(Anantnag:Udhampur!AB41) -> 0
A42: 2.17 | B42: Capacity Building @ Rs. 500/- per child per annum | C42: =SUM(Anantnag:Udhampur!C42) -> 0 | D42: =SUM(Anantnag:Udhampur!D42) -> 0 | E42: =SUM(Anantnag:Udhampur!E42) -> 0 | F42: =SUM(Anantnag:Udhampur!F42) -> 0 | G42: =SUM(Anantnag:Udhampur!G42) -> 0 | H42: =SUM(Anantnag:Udhampur!H42) -> 0 | I42: =SUM(Anantnag:Udhampur!I42) -> 0 | J42: =SUM(Anantnag:Udhampur!J42) -> 0 | K42: =SUM(Anantnag:Udhampur!K42) -> 0 | L42: =SUM(Anantnag:Udhampur!L42) -> 0 | M42: =SUM(Anantnag:Udhampur!M42) -> 0 | N42: =SUM(Anantnag:Udhampur!N42) -> 0 | P42: =SUM(Anantnag:Udhampur!P42) -> 0 | Q42: =SUM(Anantnag:Udhampur!Q42) -> 0 | R42: =SUM(Anantnag:Udhampur!R42) -> 0 | S42: =SUM(Anantnag:Udhampur!S42) -> 0 | T42: =SUM(Anantnag:Udhampur!T42) -> 0 | U42: =SUM(Anantnag:Udhampur!U42) -> 0 | V42: =SUM(Anantnag:Udhampur!V42) -> 0 | W42: =SUM(Anantnag:Udhampur!W42) -> 0 | Y42: =SUM(Anantnag:Udhampur!Y42) -> 0 | Z42: =SUM(Anantnag:Udhampur!Z42) -> 0 | AA42: =SUM(Anantnag:Udhampur!AA42) -> 0 | AB42: =SUM(Anantnag:Udhampur!AB42) -> 0 | AF42: =SUM(Anantnag:Udhampur!U42) -> 0 | AG42: =SUM(Anantnag:Udhampur!Z42) -> 0 | AH42: =SUM(Anantnag:Udhampur!AB42) -> 0
A43: 2.18 | B43: Physical / Self Defence Training @ Rs.200/- per child per annum | C43: =SUM(Anantnag:Udhampur!C43) -> 0 | D43: =SUM(Anantnag:Udhampur!D43) -> 0 | E43: =SUM(Anantnag:Udhampur!E43) -> 0 | F43: =SUM(Anantnag:Udhampur!F43) -> 0 | G43: =SUM(Anantnag:Udhampur!G43) -> 0 | H43: =SUM(Anantnag:Udhampur!H43) -> 0 | I43: =SUM(Anantnag:Udhampur!I43) -> 0 | J43: =SUM(Anantnag:Udhampur!J43) -> 0 | K43: =SUM(Anantnag:Udhampur!K43) -> 0 | L43: =SUM(Anantnag:Udhampur!L43) -> 0 | M43: =SUM(Anantnag:Udhampur!M43) -> 0 | N43: =SUM(Anantnag:Udhampur!N43) -> 0 | P43: =SUM(Anantnag:Udhampur!P43) -> 0 | Q43: =SUM(Anantnag:Udhampur!Q43) -> 0 | R43: =SUM(Anantnag:Udhampur!R43) -> 0 | S43: =SUM(Anantnag:Udhampur!S43) -> 0 | T43: =SUM(Anantnag:Udhampur!T43) -> 0 | U43: =SUM(Anantnag:Udhampur!U43) -> 0 | V43: =SUM(Anantnag:Udhampur!V43) -> 0 | W43: =SUM(Anantnag:Udhampur!W43) -> 0 | Y43: =SUM(Anantnag:Udhampur!Y43) -> 0 | Z43: =SUM(Anantnag:Udhampur!Z43) -> 0 | AA43: =SUM(Anantnag:Udhampur!AA43) -> 0 | AB43: =SUM(Anantnag:Udhampur!AB43) -> 0 | AF43: =SUM(Anantnag:Udhampur!U43) -> 0 | AG43: =SUM(Anantnag:Udhampur!Z43) -> 0 | AH43: =SUM(Anantnag:Udhampur!AB43) -> 0
B44: Sub Total (Recurring) | C44: =SUM(Anantnag:Udhampur!C44) -> 0 | D44: =SUM(Anantnag:Udhampur!D44) -> 0 | E44: =SUM(Anantnag:Udhampur!E44) -> 0 | F44: =SUM(Anantnag:Udhampur!F44) -> 0 | G44: =SUM(Anantnag:Udhampur!G44) -> 0 | H44: =SUM(Anantnag:Udhampur!H44) -> 0 | I44: =SUM(Anantnag:Udhampur!I44) -> 0 | J44: =SUM(Anantnag:Udhampur!J44) -> 0 | K44: =SUM(Anantnag:Udhampur!K44) -> 0 | L44: =SUM(Anantnag:Udhampur!L44) -> 0 | M44: =SUM(Anantnag:Udhampur!M44) -> 0 | N44: =SUM(Anantnag:Udhampur!N44) -> 0 | O44: =SUM(O23:O43) -> 0 | P44: =SUM(Anantnag:Udhampur!P44) -> 0 | Q44: =SUM(Anantnag:Udhampur!Q44) -> 0 | R44: =SUM(Anantnag:Udhampur!R44) -> 0 | S44: =SUM(Anantnag:Udhampur!S44) -> 0 | T44: =SUM(Anantnag:Udhampur!T44) -> 0 | U44: =SUM(Anantnag:Udhampur!U44) -> 0 | V44: =SUM(Anantnag:Udhampur!V44) -> 0 | W44: =SUM(Anantnag:Udhampur!W44) -> 0 | Y44: =SUM(Anantnag:Udhampur!Y44) -> 0 | Z44: =SUM(Anantnag:Udhampur!Z44) -> 0 | AA44: =SUM(Anantnag:Udhampur!AA44) -> 0 | AB44: =SUM(Anantnag:Udhampur!AB44) -> 0 | AF44: =SUM(Anantnag:Udhampur!U44) -> 0 | AG44: =SUM(Anantnag:Udhampur!Z44) -> 0 | AH44: =SUM(Anantnag:Udhampur!AB44) -> 0
B45: Total (Non Recurring + Recurring) | C45: =SUM(Anantnag:Udhampur!C45) -> 0 | D45: =SUM(Anantnag:Udhampur!D45) -> 0 | E45: =SUM(Anantnag:Udhampur!E45) -> 0 | F45: =SUM(Anantnag:Udhampur!F45) -> 0 | G45: =SUM(Anantnag:Udhampur!G45) -> 0 | H45: =SUM(Anantnag:Udhampur!H45) -> 0 | I45: =SUM(Anantnag:Udhampur!I45) -> 0 | J45: =SUM(Anantnag:Udhampur!J45) -> 0 | K45: =SUM(Anantnag:Udhampur!K45) -> 0 | L45: =SUM(Anantnag:Udhampur!L45) -> 0 | M45: =SUM(Anantnag:Udhampur!M45) -> 0 | N45: =SUM(Anantnag:Udhampur!N45) -> 0 | O45: =O21+O44 -> 0 | P45: =SUM(Anantnag:Udhampur!P45) -> 0 | Q45: =SUM(Anantnag:Udhampur!Q45) -> 0 | R45: =SUM(Anantnag:Udhampur!R45) -> 0 | S45: =SUM(Anantnag:Udhampur!S45) -> 0 | T45: =SUM(Anantnag:Udhampur!T45) -> 0 | U45: =SUM(Anantnag:Udhampur!U45) -> 0 | V45: =SUM(Anantnag:Udhampur!V45) -> 0 | W45: =SUM(Anantnag:Udhampur!W45) -> 0 | Y45: =SUM(Anantnag:Udhampur!Y45) -> 0 | Z45: =SUM(Anantnag:Udhampur!Z45) -> 0 | AA45: =SUM(Anantnag:Udhampur!AA45) -> 0 | AB45: =SUM(Anantnag:Udhampur!AB45) -> 0 | AF45: =SUM(Anantnag:Udhampur!U45) -> 0 | AG45: =SUM(Anantnag:Udhampur!Z45) -> 0 | AH45: =SUM(Anantnag:Udhampur!AB45) -> 0
B46: 100 children | C46: =SUM(Anantnag:Udhampur!C46) -> 0 | D46: =SUM(Anantnag:Udhampur!D46) -> 0 | E46: =SUM(Anantnag:Udhampur!E46) -> 0 | F46: =SUM(Anantnag:Udhampur!F46) -> 0 | G46: =SUM(Anantnag:Udhampur!G46) -> 0 | H46: =SUM(Anantnag:Udhampur!H46) -> 0 | I46: =SUM(Anantnag:Udhampur!I46) -> 0 | J46: =SUM(Anantnag:Udhampur!J46) -> 0 | K46: =SUM(Anantnag:Udhampur!K46) -> 0 | L46: =SUM(Anantnag:Udhampur!L46) -> 0 | M46: =SUM(Anantnag:Udhampur!M46) -> 0 | N46: =SUM(Anantnag:Udhampur!N46) -> 0 | P46: =SUM(Anantnag:Udhampur!P46) -> 0 | Q46: =SUM(Anantnag:Udhampur!Q46) -> 0 | R46: =SUM(Anantnag:Udhampur!R46) -> 0 | S46: =SUM(Anantnag:Udhampur!S46) -> 0 | T46: =SUM(Anantnag:Udhampur!T46) -> 0 | U46: =SUM(Anantnag:Udhampur!U46) -> 0 | V46: =SUM(Anantnag:Udhampur!V46) -> 0 | W46: =SUM(Anantnag:Udhampur!W46) -> 0 | Y46: =SUM(Anantnag:Udhampur!Y46) -> 0 | Z46: =SUM(Anantnag:Udhampur!Z46) -> 0 | AA46: =SUM(Anantnag:Udhampur!AA46) -> 0 | AB46: =SUM(Anantnag:Udhampur!AB46) -> 0 | AF46: =SUM(Anantnag:Udhampur!U46) -> 0 | AG46: =SUM(Anantnag:Udhampur!Z46) -> 0 | AH46: =SUM(Anantnag:Udhampur!AB46) -> 0
B47: Non-recurring (one time grant) | C47: =SUM(Anantnag:Udhampur!C47) -> 0 | D47: =SUM(Anantnag:Udhampur!D47) -> 0 | E47: =SUM(Anantnag:Udhampur!E47) -> 0 | F47: =SUM(Anantnag:Udhampur!F47) -> 0 | G47: =SUM(Anantnag:Udhampur!G47) -> 0 | H47: =SUM(Anantnag:Udhampur!H47) -> 0 | I47: =SUM(Anantnag:Udhampur!I47) -> 0 | J47: =SUM(Anantnag:Udhampur!J47) -> 0 | K47: =SUM(Anantnag:Udhampur!K47) -> 0 | L47: =SUM(Anantnag:Udhampur!L47) -> 0 | M47: =SUM(Anantnag:Udhampur!M47) -> 0 | N47: =SUM(Anantnag:Udhampur!N47) -> 0 | P47: =SUM(Anantnag:Udhampur!P47) -> 0 | Q47: =SUM(Anantnag:Udhampur!Q47) -> 0 | R47: =SUM(Anantnag:Udhampur!R47) -> 0 | S47: =SUM(Anantnag:Udhampur!S47) -> 0 | T47: =SUM(Anantnag:Udhampur!T47) -> 0 | U47: =SUM(Anantnag:Udhampur!U47) -> 0 | V47: =SUM(Anantnag:Udhampur!V47) -> 0 | W47: =SUM(Anantnag:Udhampur!W47) -> 0 | Y47: =SUM(Anantnag:Udhampur!Y47) -> 0 | Z47: =SUM(Anantnag:Udhampur!Z47) -> 0 | AA47: =SUM(Anantnag:Udhampur!AA47) -> 0 | AB47: =SUM(Anantnag:Udhampur!AB47) -> 0 | AF47: =SUM(Anantnag:Udhampur!U47) -> 0 | AG47: =SUM(Anantnag:Udhampur!Z47) -> 0 | AH47: =SUM(Anantnag:Udhampur!AB47) -> 0
A48: 2.19 | B48: Furniture / Equipment (including kitchen equipment) | C48: =SUM(Anantnag:Udhampur!C48) -> 0 | D48: =SUM(Anantnag:Udhampur!D48) -> 0 | E48: =SUM(Anantnag:Udhampur!E48) -> 0 | F48: =SUM(Anantnag:Udhampur!F48) -> 0 | G48: =SUM(Anantnag:Udhampur!G48) -> 0 | H48: =SUM(Anantnag:Udhampur!H48) -> 0 | I48: =SUM(Anantnag:Udhampur!I48) -> 0 | J48: =SUM(Anantnag:Udhampur!J48) -> 0 | K48: =SUM(Anantnag:Udhampur!K48) -> 0 | L48: =SUM(Anantnag:Udhampur!L48) -> 0 | M48: =SUM(Anantnag:Udhampur!M48) -> 0 | N48: =SUM(Anantnag:Udhampur!N48) -> 0 | P48: =SUM(Anantnag:Udhampur!P48) -> 0 | Q48: =SUM(Anantnag:Udhampur!Q48) -> 0 | R48: =SUM(Anantnag:Udhampur!R48) -> 0 | S48: =SUM(Anantnag:Udhampur!S48) -> 0 | T48: =SUM(Anantnag:Udhampur!T48) -> 0 | U48: =SUM(Anantnag:Udhampur!U48) -> 0 | V48: =SUM(Anantnag:Udhampur!V48) -> 0 | W48: =SUM(Anantnag:Udhampur!W48) -> 0 | Y48: =SUM(Anantnag:Udhampur!Y48) -> 0 | Z48: =SUM(Anantnag:Udhampur!Z48) -> 0 | AA48: =SUM(Anantnag:Udhampur!AA48) -> 0 | AB48: =SUM(Anantnag:Udhampur!AB48) -> 0 | AF48: =SUM(Anantnag:Udhampur!U48) -> 0 | AG48: =SUM(Anantnag:Udhampur!Z48) -> 0 | AH48: =SUM(Anantnag:Udhampur!AB48) -> 0
A49: =+A48+0.01 -> 2.2 | B49: TLM and equipment including library books (New) | C49: =SUM(Anantnag:Udhampur!C49) -> 0 | D49: =SUM(Anantnag:Udhampur!D49) -> 0 | E49: =SUM(Anantnag:Udhampur!E49) -> 0 | F49: =SUM(Anantnag:Udhampur!F49) -> 0 | G49: =SUM(Anantnag:Udhampur!G49) -> 0 | H49: =SUM(Anantnag:Udhampur!H49) -> 0 | I49: =SUM(Anantnag:Udhampur!I49) -> 0 | J49: =SUM(Anantnag:Udhampur!J49) -> 0 | K49: =SUM(Anantnag:Udhampur!K49) -> 0 | L49: =SUM(Anantnag:Udhampur!L49) -> 0 | M49: =SUM(Anantnag:Udhampur!M49) -> 0 | N49: =SUM(Anantnag:Udhampur!N49) -> 0 | P49: =SUM(Anantnag:Udhampur!P49) -> 0 | Q49: =SUM(Anantnag:Udhampur!Q49) -> 0 | R49: =SUM(Anantnag:Udhampur!R49) -> 0 | S49: =SUM(Anantnag:Udhampur!S49) -> 0 | T49: =SUM(Anantnag:Udhampur!T49) -> 0 | U49: =SUM(Anantnag:Udhampur!U49) -> 0 | V49: =SUM(Anantnag:Udhampur!V49) -> 0 | W49: =SUM(Anantnag:Udhampur!W49) -> 0 | Y49: =SUM(Anantnag:Udhampur!Y49) -> 0 | Z49: =SUM(Anantnag:Udhampur!Z49) -> 0 | AA49: =SUM(Anantnag:Udhampur!AA49) -> 0 | AB49: =SUM(Anantnag:Udhampur!AB49) -> 0 | AF49: =SUM(Anantnag:Udhampur!U49) -> 0 | AG49: =SUM(Anantnag:Udhampur!Z49) -> 0 | AH49: =SUM(Anantnag:Udhampur!AB49) -> 0
A50: =+A49+0.01 -> 2.21 | B50: Bedding (New) | C50: =SUM(Anantnag:Udhampur!C50) -> 0 | D50: =SUM(Anantnag:Udhampur!D50) -> 0 | E50: =SUM(Anantnag:Udhampur!E50) -> 0 | F50: =SUM(Anantnag:Udhampur!F50) -> 0 | G50: =SUM(Anantnag:Udhampur!G50) -> 0 | H50: =SUM(Anantnag:Udhampur!H50) -> 0 | I50: =SUM(Anantnag:Udhampur!I50) -> 0 | J50: =SUM(Anantnag:Udhampur!J50) -> 0 | K50: =SUM(Anantnag:Udhampur!K50) -> 0 | L50: =SUM(Anantnag:Udhampur!L50) -> 0 | M50: =SUM(Anantnag:Udhampur!M50) -> 0 | N50: =SUM(Anantnag:Udhampur!N50) -> 0 | P50: =SUM(Anantnag:Udhampur!P50) -> 0 | Q50: =SUM(Anantnag:Udhampur!Q50) -> 0 | R50: =SUM(Anantnag:Udhampur!R50) -> 0 | S50: =SUM(Anantnag:Udhampur!S50) -> 0 | T50: =SUM(Anantnag:Udhampur!T50) -> 0 | U50: =SUM(Anantnag:Udhampur!U50) -> 0 | V50: =SUM(Anantnag:Udhampur!V50) -> 0 | W50: =SUM(Anantnag:Udhampur!W50) -> 0 | Y50: =SUM(Anantnag:Udhampur!Y50) -> 0 | Z50: =SUM(Anantnag:Udhampur!Z50) -> 0 | AA50: =SUM(Anantnag:Udhampur!AA50) -> 0 | AB50: =SUM(Anantnag:Udhampur!AB50) -> 0 | AF50: =SUM(Anantnag:Udhampur!U50) -> 0 | AG50: =SUM(Anantnag:Udhampur!Z50) -> 0 | AH50: =SUM(Anantnag:Udhampur!AB50) -> 0
A51: =+A50+0.01 -> 2.22 | B51: Replacement of bedding (once in 3 years) | C51: =SUM(Anantnag:Udhampur!C51) -> 0 | D51: =SUM(Anantnag:Udhampur!D51) -> 0 | E51: =SUM(Anantnag:Udhampur!E51) -> 0 | F51: =SUM(Anantnag:Udhampur!F51) -> 0 | G51: =SUM(Anantnag:Udhampur!G51) -> 0 | H51: =SUM(Anantnag:Udhampur!H51) -> 0 | I51: =SUM(Anantnag:Udhampur!I51) -> 0 | J51: =SUM(Anantnag:Udhampur!J51) -> 0 | K51: =SUM(Anantnag:Udhampur!K51) -> 0 | L51: =SUM(Anantnag:Udhampur!L51) -> 0 | M51: =SUM(Anantnag:Udhampur!M51) -> 0 | N51: =SUM(Anantnag:Udhampur!N51) -> 0 | P51: =SUM(Anantnag:Udhampur!P51) -> 0 | Q51: =SUM(Anantnag:Udhampur!Q51) -> 0 | R51: =SUM(Anantnag:Udhampur!R51) -> 0 | S51: =SUM(Anantnag:Udhampur!S51) -> 0 | T51: =SUM(Anantnag:Udhampur!T51) -> 0 | U51: =SUM(Anantnag:Udhampur!U51) -> 0 | V51: =SUM(Anantnag:Udhampur!V51) -> 0 | W51: =SUM(Anantnag:Udhampur!W51) -> 0 | Y51: =SUM(Anantnag:Udhampur!Y51) -> 0 | Z51: =SUM(Anantnag:Udhampur!Z51) -> 0 | AA51: =SUM(Anantnag:Udhampur!AA51) -> 0 | AB51: =SUM(Anantnag:Udhampur!AB51) -> 0 | AF51: =SUM(Anantnag:Udhampur!U51) -> 0 | AG51: =SUM(Anantnag:Udhampur!Z51) -> 0 | AH51: =SUM(Anantnag:Udhampur!AB51) -> 0
B52: Sub Total Non-recurring | C52: =SUM(Anantnag:Udhampur!C52) -> 0 | D52: =SUM(Anantnag:Udhampur!D52) -> 0 | E52: =SUM(Anantnag:Udhampur!E52) -> 0 | F52: =SUM(Anantnag:Udhampur!F52) -> 0 | G52: =SUM(Anantnag:Udhampur!G52) -> 0 | H52: =SUM(Anantnag:Udhampur!H52) -> 0 | I52: =SUM(Anantnag:Udhampur!I52) -> 0 | J52: =SUM(Anantnag:Udhampur!J52) -> 0 | K52: =SUM(Anantnag:Udhampur!K52) -> 0 | L52: =SUM(Anantnag:Udhampur!L52) -> 0 | M52: =SUM(Anantnag:Udhampur!M52) -> 0 | N52: =SUM(Anantnag:Udhampur!N52) -> 0 | O52: =SUM(O48:O51) -> 0 | P52: =SUM(Anantnag:Udhampur!P52) -> 0 | Q52: =SUM(Anantnag:Udhampur!Q52) -> 0 | R52: =SUM(Anantnag:Udhampur!R52) -> 0 | S52: =SUM(Anantnag:Udhampur!S52) -> 0 | T52: =SUM(Anantnag:Udhampur!T52) -> 0 | U52: =SUM(Anantnag:Udhampur!U52) -> 0 | V52: =SUM(Anantnag:Udhampur!V52) -> 0 | W52: =SUM(Anantnag:Udhampur!W52) -> 0 | Y52: =SUM(Anantnag:Udhampur!Y52) -> 0 | Z52: =SUM(Anantnag:Udhampur!Z52) -> 0 | AA52: =SUM(Anantnag:Udhampur!AA52) -> 0 | AB52: =SUM(Anantnag:Udhampur!AB52) -> 0 | AF52: =SUM(Anantnag:Udhampur!U52) -> 0 | AG52: =SUM(Anantnag:Udhampur!Z52) -> 0 | AH52: =SUM(Anantnag:Udhampur!AB52) -> 0
B53: Recurring | C53: =SUM(Anantnag:Udhampur!C53) -> 0 | D53: =SUM(Anantnag:Udhampur!D53) -> 0 | E53: =SUM(Anantnag:Udhampur!E53) -> 0 | F53: =SUM(Anantnag:Udhampur!F53) -> 0 | G53: =SUM(Anantnag:Udhampur!G53) -> 0 | H53: =SUM(Anantnag:Udhampur!H53) -> 0 | I53: =SUM(Anantnag:Udhampur!I53) -> 0 | J53: =SUM(Anantnag:Udhampur!J53) -> 0 | K53: =SUM(Anantnag:Udhampur!K53) -> 0 | L53: =SUM(Anantnag:Udhampur!L53) -> 0 | M53: =SUM(Anantnag:Udhampur!M53) -> 0 | N53: =SUM(Anantnag:Udhampur!N53) -> 0 | P53: =SUM(Anantnag:Udhampur!P53) -> 0 | Q53: =SUM(Anantnag:Udhampur!Q53) -> 0 | R53: =SUM(Anantnag:Udhampur!R53) -> 0 | S53: =SUM(Anantnag:Udhampur!S53) -> 0 | T53: =SUM(Anantnag:Udhampur!T53) -> 0 | U53: =SUM(Anantnag:Udhampur!U53) -> 0 | V53: =SUM(Anantnag:Udhampur!V53) -> 0 | W53: =SUM(Anantnag:Udhampur!W53) -> 0 | Y53: =SUM(Anantnag:Udhampur!Y53) -> 0 | Z53: =SUM(Anantnag:Udhampur!Z53) -> 0 | AA53: =SUM(Anantnag:Udhampur!AA53) -> 0 | AB53: =SUM(Anantnag:Udhampur!AB53) -> 0 | AF53: =SUM(Anantnag:Udhampur!U53) -> 0 | AG53: =SUM(Anantnag:Udhampur!Z53) -> 0 | AH53: =SUM(Anantnag:Udhampur!AB53) -> 0
A54: 2.23 | B54: Maintenance @ Rs. 1,500/- per child per month | C54: =SUM(Anantnag:Udhampur!C54) -> 0 | D54: =SUM(Anantnag:Udhampur!D54) -> 0 | E54: =SUM(Anantnag:Udhampur!E54) -> 0 | F54: =SUM(Anantnag:Udhampur!F54) -> 0 | G54: =SUM(Anantnag:Udhampur!G54) -> 0 | H54: =SUM(Anantnag:Udhampur!H54) -> 0 | I54: =SUM(Anantnag:Udhampur!I54) -> 0 | J54: =SUM(Anantnag:Udhampur!J54) -> 0 | K54: =SUM(Anantnag:Udhampur!K54) -> 0 | L54: =SUM(Anantnag:Udhampur!L54) -> 0 | M54: =SUM(Anantnag:Udhampur!M54) -> 0 | N54: =SUM(Anantnag:Udhampur!N54) -> 0 | P54: =SUM(Anantnag:Udhampur!P54) -> 0 | Q54: =SUM(Anantnag:Udhampur!Q54) -> 0 | R54: =SUM(Anantnag:Udhampur!R54) -> 0 | S54: =SUM(Anantnag:Udhampur!S54) -> 0 | T54: =SUM(Anantnag:Udhampur!T54) -> 0 | U54: =SUM(Anantnag:Udhampur!U54) -> 0 | V54: =SUM(Anantnag:Udhampur!V54) -> 0 | W54: =SUM(Anantnag:Udhampur!W54) -> 0 | Y54: =SUM(Anantnag:Udhampur!Y54) -> 0 | Z54: =SUM(Anantnag:Udhampur!Z54) -> 0 | AA54: =SUM(Anantnag:Udhampur!AA54) -> 0 | AB54: =SUM(Anantnag:Udhampur!AB54) -> 0 | AF54: =SUM(Anantnag:Udhampur!U54) -> 0 | AG54: =SUM(Anantnag:Udhampur!Z54) -> 0 | AH54: =SUM(Anantnag:Udhampur!AB54) -> 0
A55: =+A54+0.01 -> 2.24 | B55: Stipend @ Rs.100/- per child per month | C55: =SUM(Anantnag:Udhampur!C55) -> 0 | D55: =SUM(Anantnag:Udhampur!D55) -> 0 | E55: =SUM(Anantnag:Udhampur!E55) -> 0 | F55: =SUM(Anantnag:Udhampur!F55) -> 0 | G55: =SUM(Anantnag:Udhampur!G55) -> 0 | H55: =SUM(Anantnag:Udhampur!H55) -> 0 | I55: =SUM(Anantnag:Udhampur!I55) -> 0 | J55: =SUM(Anantnag:Udhampur!J55) -> 0 | K55: =SUM(Anantnag:Udhampur!K55) -> 0 | L55: =SUM(Anantnag:Udhampur!L55) -> 0 | M55: =SUM(Anantnag:Udhampur!M55) -> 0 | N55: =SUM(Anantnag:Udhampur!N55) -> 0 | P55: =SUM(Anantnag:Udhampur!P55) -> 0 | Q55: =SUM(Anantnag:Udhampur!Q55) -> 0 | R55: =SUM(Anantnag:Udhampur!R55) -> 0 | S55: =SUM(Anantnag:Udhampur!S55) -> 0 | T55: =SUM(Anantnag:Udhampur!T55) -> 0 | U55: =SUM(Anantnag:Udhampur!U55) -> 0 | V55: =SUM(Anantnag:Udhampur!V55) -> 0 | W55: =SUM(Anantnag:Udhampur!W55) -> 0 | Y55: =SUM(Anantnag:Udhampur!Y55) -> 0 | Z55: =SUM(Anantnag:Udhampur!Z55) -> 0 | AA55: =SUM(Anantnag:Udhampur!AA55) -> 0 | AB55: =SUM(Anantnag:Udhampur!AB55) -> 0 | AF55: =SUM(Anantnag:Udhampur!U55) -> 0 | AG55: =SUM(Anantnag:Udhampur!Z55) -> 0 | AH55: =SUM(Anantnag:Udhampur!AB55) -> 0
A56: 2.25 | B56: Supplementary TLM, Stationery and other educational material @1,000/- per child per annum | C56: =SUM(Anantnag:Udhampur!C56) -> 0 | D56: =SUM(Anantnag:Udhampur!D56) -> 0 | E56: =SUM(Anantnag:Udhampur!E56) -> 0 | F56: =SUM(Anantnag:Udhampur!F56) -> 0 | G56: =SUM(Anantnag:Udhampur!G56) -> 0 | H56: =SUM(Anantnag:Udhampur!H56) -> 0 | I56: =SUM(Anantnag:Udhampur!I56) -> 0 | J56: =SUM(Anantnag:Udhampur!J56) -> 0 | K56: =SUM(Anantnag:Udhampur!K56) -> 0 | L56: =SUM(Anantnag:Udhampur!L56) -> 0 | M56: =SUM(Anantnag:Udhampur!M56) -> 0 | N56: =SUM(Anantnag:Udhampur!N56) -> 0 | P56: =SUM(Anantnag:Udhampur!P56) -> 0 | Q56: =SUM(Anantnag:Udhampur!Q56) -> 0 | R56: =SUM(Anantnag:Udhampur!R56) -> 0 | S56: =SUM(Anantnag:Udhampur!S56) -> 0 | T56: =SUM(Anantnag:Udhampur!T56) -> 0 | U56: =SUM(Anantnag:Udhampur!U56) -> 0 | V56: =SUM(Anantnag:Udhampur!V56) -> 0 | W56: =SUM(Anantnag:Udhampur!W56) -> 0 | Y56: =SUM(Anantnag:Udhampur!Y56) -> 0 | Z56: =SUM(Anantnag:Udhampur!Z56) -> 0 | AA56: =SUM(Anantnag:Udhampur!AA56) -> 0 | AB56: =SUM(Anantnag:Udhampur!AB56) -> 0 | AF56: =SUM(Anantnag:Udhampur!U56) -> 0 | AG56: =SUM(Anantnag:Udhampur!Z56) -> 0 | AH56: =SUM(Anantnag:Udhampur!AB56) -> 0
A57: 2.26 | B57: Salaries | C57: =SUM(Anantnag:Udhampur!C57) -> 0 | D57: =SUM(Anantnag:Udhampur!D57) -> 0 | E57: =SUM(Anantnag:Udhampur!E57) -> 0 | F57: =SUM(Anantnag:Udhampur!F57) -> 0 | G57: =SUM(Anantnag:Udhampur!G57) -> 0 | H57: =SUM(Anantnag:Udhampur!H57) -> 0 | I57: =SUM(Anantnag:Udhampur!I57) -> 0 | J57: =SUM(Anantnag:Udhampur!J57) -> 0 | K57: =SUM(Anantnag:Udhampur!K57) -> 0 | L57: =SUM(Anantnag:Udhampur!L57) -> 0 | M57: =SUM(Anantnag:Udhampur!M57) -> 0 | N57: =SUM(Anantnag:Udhampur!N57) -> 0 | P57: =SUM(Anantnag:Udhampur!P57) -> 0 | Q57: =SUM(Anantnag:Udhampur!Q57) -> 0 | R57: =SUM(Anantnag:Udhampur!R57) -> 0 | S57: =SUM(Anantnag:Udhampur!S57) -> 0 | T57: =SUM(Anantnag:Udhampur!T57) -> 0 | U57: =SUM(Anantnag:Udhampur!U57) -> 0 | V57: =SUM(Anantnag:Udhampur!V57) -> 0 | W57: =SUM(Anantnag:Udhampur!W57) -> 0 | Y57: =SUM(Anantnag:Udhampur!Y57) -> 0 | Z57: =SUM(Anantnag:Udhampur!Z57) -> 0 | AA57: =SUM(Anantnag:Udhampur!AA57) -> 0 | AB57: =SUM(Anantnag:Udhampur!AB57) -> 0 | AF57: =SUM(Anantnag:Udhampur!U57) -> 0 | AG57: =SUM(Anantnag:Udhampur!Z57) -> 0 | AH57: =SUM(Anantnag:Udhampur!AB57) -> 0
A58: (a) | B58: 1 Warden @ Rs. 25,000/- per month | C58: =SUM(Anantnag:Udhampur!C58) -> 0 | D58: =SUM(Anantnag:Udhampur!D58) -> 0 | E58: =SUM(Anantnag:Udhampur!E58) -> 0 | F58: =SUM(Anantnag:Udhampur!F58) -> 0 | G58: =SUM(Anantnag:Udhampur!G58) -> 0 | H58: =SUM(Anantnag:Udhampur!H58) -> 0 | I58: =SUM(Anantnag:Udhampur!I58) -> 0 | J58: =SUM(Anantnag:Udhampur!J58) -> 0 | K58: =SUM(Anantnag:Udhampur!K58) -> 0 | L58: =SUM(Anantnag:Udhampur!L58) -> 0 | M58: =SUM(Anantnag:Udhampur!M58) -> 0 | N58: =SUM(Anantnag:Udhampur!N58) -> 0 | P58: =SUM(Anantnag:Udhampur!P58) -> 0 | Q58: =SUM(Anantnag:Udhampur!Q58) -> 0 | R58: =SUM(Anantnag:Udhampur!R58) -> 0 | S58: =SUM(Anantnag:Udhampur!S58) -> 0 | T58: =SUM(Anantnag:Udhampur!T58) -> 0 | U58: =SUM(Anantnag:Udhampur!U58) -> 0 | V58: =SUM(Anantnag:Udhampur!V58) -> 0 | W58: =SUM(Anantnag:Udhampur!W58) -> 0 | Y58: =SUM(Anantnag:Udhampur!Y58) -> 0 | Z58: =SUM(Anantnag:Udhampur!Z58) -> 0 | AA58: =SUM(Anantnag:Udhampur!AA58) -> 0 | AB58: =SUM(Anantnag:Udhampur!AB58) -> 0 | AF58: =SUM(Anantnag:Udhampur!U58) -> 0 | AG58: =SUM(Anantnag:Udhampur!Z58) -> 0 | AH58: =SUM(Anantnag:Udhampur!AB58) -> 0
A59: (b) | B59: 1 head teacher @ Rs. 25,000/- per month in case the enrollment exceeds 100 | C59: =SUM(Anantnag:Udhampur!C59) -> 0 | D59: =SUM(Anantnag:Udhampur!D59) -> 0 | E59: =SUM(Anantnag:Udhampur!E59) -> 0 | F59: =SUM(Anantnag:Udhampur!F59) -> 0 | G59: =SUM(Anantnag:Udhampur!G59) -> 0 | H59: =SUM(Anantnag:Udhampur!H59) -> 0 | I59: =SUM(Anantnag:Udhampur!I59) -> 0 | J59: =SUM(Anantnag:Udhampur!J59) -> 0 | K59: =SUM(Anantnag:Udhampur!K59) -> 0 | L59: =SUM(Anantnag:Udhampur!L59) -> 0 | M59: =SUM(Anantnag:Udhampur!M59) -> 0 | N59: =SUM(Anantnag:Udhampur!N59) -> 0 | P59: =SUM(Anantnag:Udhampur!P59) -> 0 | Q59: =SUM(Anantnag:Udhampur!Q59) -> 0 | R59: =SUM(Anantnag:Udhampur!R59) -> 0 | S59: =SUM(Anantnag:Udhampur!S59) -> 0 | T59: =SUM(Anantnag:Udhampur!T59) -> 0 | U59: =SUM(Anantnag:Udhampur!U59) -> 0 | V59: =SUM(Anantnag:Udhampur!V59) -> 0 | W59: =SUM(Anantnag:Udhampur!W59) -> 0 | Y59: =SUM(Anantnag:Udhampur!Y59) -> 0 | Z59: =SUM(Anantnag:Udhampur!Z59) -> 0 | AA59: =SUM(Anantnag:Udhampur!AA59) -> 0 | AB59: =SUM(Anantnag:Udhampur!AB59) -> 0 | AF59: =SUM(Anantnag:Udhampur!U59) -> 0 | AG59: =SUM(Anantnag:Udhampur!Z59) -> 0 | AH59: =SUM(Anantnag:Udhampur!AB59) -> 0
A60: (c) | B60: 4 - 5 Full time teachers as per RTE norms @ Rs. 20,000/- per month per teacher | C60: =SUM(Anantnag:Udhampur!C60) -> 0 | D60: =SUM(Anantnag:Udhampur!D60) -> 0 | E60: =SUM(Anantnag:Udhampur!E60) -> 0 | F60: =SUM(Anantnag:Udhampur!F60) -> 0 | G60: =SUM(Anantnag:Udhampur!G60) -> 0 | H60: =SUM(Anantnag:Udhampur!H60) -> 0 | I60: =SUM(Anantnag:Udhampur!I60) -> 0 | J60: =SUM(Anantnag:Udhampur!J60) -> 0 | K60: =SUM(Anantnag:Udhampur!K60) -> 0 | L60: =SUM(Anantnag:Udhampur!L60) -> 0 | M60: =SUM(Anantnag:Udhampur!M60) -> 0 | N60: =SUM(Anantnag:Udhampur!N60) -> 0 | P60: =SUM(Anantnag:Udhampur!P60) -> 0 | Q60: =SUM(Anantnag:Udhampur!Q60) -> 0 | R60: =SUM(Anantnag:Udhampur!R60) -> 0 | S60: =SUM(Anantnag:Udhampur!S60) -> 0 | T60: =SUM(Anantnag:Udhampur!T60) -> 0 | U60: =SUM(Anantnag:Udhampur!U60) -> 0 | V60: =SUM(Anantnag:Udhampur!V60) -> 0 | W60: =SUM(Anantnag:Udhampur!W60) -> 0 | Y60: =SUM(Anantnag:Udhampur!Y60) -> 0 | Z60: =SUM(Anantnag:Udhampur!Z60) -> 0 | AA60: =SUM(Anantnag:Udhampur!AA60) -> 0 | AB60: =SUM(Anantnag:Udhampur!AB60) -> 0 | AF60: =SUM(Anantnag:Udhampur!U60) -> 0 | AG60: =SUM(Anantnag:Udhampur!Z60) -> 0 | AH60: =SUM(Anantnag:Udhampur!AB60) -> 0
A61: (d) | B61: 2 Urdu Teachers (only for blocks with muslim population above 20% and select urban areas), if required @ Rs. 12,000/- per month per teacher | C61: =SUM(Anantnag:Udhampur!C61) -> 0 | D61: =SUM(Anantnag:Udhampur!D61) -> 0 | E61: =SUM(Anantnag:Udhampur!E61) -> 0 | F61: =SUM(Anantnag:Udhampur!F61) -> 0 | G61: =SUM(Anantnag:Udhampur!G61) -> 0 | H61: =SUM(Anantnag:Udhampur!H61) -> 0 | I61: =SUM(Anantnag:Udhampur!I61) -> 0 | J61: =SUM(Anantnag:Udhampur!J61) -> 0 | K61: =SUM(Anantnag:Udhampur!K61) -> 0 | L61: =SUM(Anantnag:Udhampur!L61) -> 0 | M61: =SUM(Anantnag:Udhampur!M61) -> 0 | N61: =SUM(Anantnag:Udhampur!N61) -> 0 | P61: =SUM(Anantnag:Udhampur!P61) -> 0 | Q61: =SUM(Anantnag:Udhampur!Q61) -> 0 | R61: =SUM(Anantnag:Udhampur!R61) -> 0 | S61: =SUM(Anantnag:Udhampur!S61) -> 0 | T61: =SUM(Anantnag:Udhampur!T61) -> 0 | U61: =SUM(Anantnag:Udhampur!U61) -> 0 | V61: =SUM(Anantnag:Udhampur!V61) -> 0 | W61: =SUM(Anantnag:Udhampur!W61) -> 0 | Y61: =SUM(Anantnag:Udhampur!Y61) -> 0 | Z61: =SUM(Anantnag:Udhampur!Z61) -> 0 | AA61: =SUM(Anantnag:Udhampur!AA61) -> 0 | AB61: =SUM(Anantnag:Udhampur!AB61) -> 0 | AF61: =SUM(Anantnag:Udhampur!U61) -> 0 | AG61: =SUM(Anantnag:Udhampur!Z61) -> 0 | AH61: =SUM(Anantnag:Udhampur!AB61) -> 0
A62: (e) | B62: 3 part time teachers @ Rs. 5,000/- per month per teacher | C62: =SUM(Anantnag:Udhampur!C62) -> 0 | D62: =SUM(Anantnag:Udhampur!D62) -> 0 | E62: =SUM(Anantnag:Udhampur!E62) -> 0 | F62: =SUM(Anantnag:Udhampur!F62) -> 0 | G62: =SUM(Anantnag:Udhampur!G62) -> 0 | H62: =SUM(Anantnag:Udhampur!H62) -> 0 | I62: =SUM(Anantnag:Udhampur!I62) -> 0 | J62: =SUM(Anantnag:Udhampur!J62) -> 0 | K62: =SUM(Anantnag:Udhampur!K62) -> 0 | L62: =SUM(Anantnag:Udhampur!L62) -> 0 | M62: =SUM(Anantnag:Udhampur!M62) -> 0 | N62: =SUM(Anantnag:Udhampur!N62) -> 0 | P62: =SUM(Anantnag:Udhampur!P62) -> 0 | Q62: =SUM(Anantnag:Udhampur!Q62) -> 0 | R62: =SUM(Anantnag:Udhampur!R62) -> 0 | S62: =SUM(Anantnag:Udhampur!S62) -> 0 | T62: =SUM(Anantnag:Udhampur!T62) -> 0 | U62: =SUM(Anantnag:Udhampur!U62) -> 0 | V62: =SUM(Anantnag:Udhampur!V62) -> 0 | W62: =SUM(Anantnag:Udhampur!W62) -> 0 | Y62: =SUM(Anantnag:Udhampur!Y62) -> 0 | Z62: =SUM(Anantnag:Udhampur!Z62) -> 0 | AA62: =SUM(Anantnag:Udhampur!AA62) -> 0 | AB62: =SUM(Anantnag:Udhampur!AB62) -> 0 | AF62: =SUM(Anantnag:Udhampur!U62) -> 0 | AG62: =SUM(Anantnag:Udhampur!Z62) -> 0 | AH62: =SUM(Anantnag:Udhampur!AB62) -> 0
A63: (f) | B63: 1 Full time Accountant @ Rs. 10,000/- per month | C63: =SUM(Anantnag:Udhampur!C63) -> 0 | D63: =SUM(Anantnag:Udhampur!D63) -> 0 | E63: =SUM(Anantnag:Udhampur!E63) -> 0 | F63: =SUM(Anantnag:Udhampur!F63) -> 0 | G63: =SUM(Anantnag:Udhampur!G63) -> 0 | H63: =SUM(Anantnag:Udhampur!H63) -> 0 | I63: =SUM(Anantnag:Udhampur!I63) -> 0 | J63: =SUM(Anantnag:Udhampur!J63) -> 0 | K63: =SUM(Anantnag:Udhampur!K63) -> 0 | L63: =SUM(Anantnag:Udhampur!L63) -> 0 | M63: =SUM(Anantnag:Udhampur!M63) -> 0 | N63: =SUM(Anantnag:Udhampur!N63) -> 0 | P63: =SUM(Anantnag:Udhampur!P63) -> 0 | Q63: =SUM(Anantnag:Udhampur!Q63) -> 0 | R63: =SUM(Anantnag:Udhampur!R63) -> 0 | S63: =SUM(Anantnag:Udhampur!S63) -> 0 | T63: =SUM(Anantnag:Udhampur!T63) -> 0 | U63: =SUM(Anantnag:Udhampur!U63) -> 0 | V63: =SUM(Anantnag:Udhampur!V63) -> 0 | W63: =SUM(Anantnag:Udhampur!W63) -> 0 | Y63: =SUM(Anantnag:Udhampur!Y63) -> 0 | Z63: =SUM(Anantnag:Udhampur!Z63) -> 0 | AA63: =SUM(Anantnag:Udhampur!AA63) -> 0 | AB63: =SUM(Anantnag:Udhampur!AB63) -> 0 | AF63: =SUM(Anantnag:Udhampur!U63) -> 0 | AG63: =SUM(Anantnag:Udhampur!Z63) -> 0 | AH63: =SUM(Anantnag:Udhampur!AB63) -> 0
A64: (g) | B64: 2 Support Staff – (Accountant/ Assistant, Peon, Chowkidar) @ Rs. 5,000/- per month per staff | C64: =SUM(Anantnag:Udhampur!C64) -> 0 | D64: =SUM(Anantnag:Udhampur!D64) -> 0 | E64: =SUM(Anantnag:Udhampur!E64) -> 0 | F64: =SUM(Anantnag:Udhampur!F64) -> 0 | G64: =SUM(Anantnag:Udhampur!G64) -> 0 | H64: =SUM(Anantnag:Udhampur!H64) -> 0 | I64: =SUM(Anantnag:Udhampur!I64) -> 0 | J64: =SUM(Anantnag:Udhampur!J64) -> 0 | K64: =SUM(Anantnag:Udhampur!K64) -> 0 | L64: =SUM(Anantnag:Udhampur!L64) -> 0 | M64: =SUM(Anantnag:Udhampur!M64) -> 0 | N64: =SUM(Anantnag:Udhampur!N64) -> 0 | P64: =SUM(Anantnag:Udhampur!P64) -> 0 | Q64: =SUM(Anantnag:Udhampur!Q64) -> 0 | R64: =SUM(Anantnag:Udhampur!R64) -> 0 | S64: =SUM(Anantnag:Udhampur!S64) -> 0 | T64: =SUM(Anantnag:Udhampur!T64) -> 0 | U64: =SUM(Anantnag:Udhampur!U64) -> 0 | V64: =SUM(Anantnag:Udhampur!V64) -> 0 | W64: =SUM(Anantnag:Udhampur!W64) -> 0 | Y64: =SUM(Anantnag:Udhampur!Y64) -> 0 | Z64: =SUM(Anantnag:Udhampur!Z64) -> 0 | AA64: =SUM(Anantnag:Udhampur!AA64) -> 0 | AB64: =SUM(Anantnag:Udhampur!AB64) -> 0 | AF64: =SUM(Anantnag:Udhampur!U64) -> 0 | AG64: =SUM(Anantnag:Udhampur!Z64) -> 0 | AH64: =SUM(Anantnag:Udhampur!AB64) -> 0
A65: (h) | B65: 1 Head cook @ Rs. 6,000/- per month and upto 2 Asstt. Cooks @ Rs. 4,500/- per month per cook | C65: =SUM(Anantnag:Udhampur!C65) -> 0 | D65: =SUM(Anantnag:Udhampur!D65) -> 0 | E65: =SUM(Anantnag:Udhampur!E65) -> 0 | F65: =SUM(Anantnag:Udhampur!F65) -> 0 | G65: =SUM(Anantnag:Udhampur!G65) -> 0 | H65: =SUM(Anantnag:Udhampur!H65) -> 0 | I65: =SUM(Anantnag:Udhampur!I65) -> 0 | J65: =SUM(Anantnag:Udhampur!J65) -> 0 | K65: =SUM(Anantnag:Udhampur!K65) -> 0 | L65: =SUM(Anantnag:Udhampur!L65) -> 0 | M65: =SUM(Anantnag:Udhampur!M65) -> 0 | N65: =SUM(Anantnag:Udhampur!N65) -> 0 | P65: =SUM(Anantnag:Udhampur!P65) -> 0 | Q65: =SUM(Anantnag:Udhampur!Q65) -> 0 | R65: =SUM(Anantnag:Udhampur!R65) -> 0 | S65: =SUM(Anantnag:Udhampur!S65) -> 0 | T65: =SUM(Anantnag:Udhampur!T65) -> 0 | U65: =SUM(Anantnag:Udhampur!U65) -> 0 | V65: =SUM(Anantnag:Udhampur!V65) -> 0 | W65: =SUM(Anantnag:Udhampur!W65) -> 0 | Y65: =SUM(Anantnag:Udhampur!Y65) -> 0 | Z65: =SUM(Anantnag:Udhampur!Z65) -> 0 | AA65: =SUM(Anantnag:Udhampur!AA65) -> 0 | AB65: =SUM(Anantnag:Udhampur!AB65) -> 0 | AF65: =SUM(Anantnag:Udhampur!U65) -> 0 | AG65: =SUM(Anantnag:Udhampur!Z65) -> 0 | AH65: =SUM(Anantnag:Udhampur!AB65) -> 0
A66: 2.27 | B66: Specific skill training @ Rs. 1,000/- per child per annum | C66: =SUM(Anantnag:Udhampur!C66) -> 0 | D66: =SUM(Anantnag:Udhampur!D66) -> 0 | E66: =SUM(Anantnag:Udhampur!E66) -> 0 | F66: =SUM(Anantnag:Udhampur!F66) -> 0 | G66: =SUM(Anantnag:Udhampur!G66) -> 0 | H66: =SUM(Anantnag:Udhampur!H66) -> 0 | I66: =SUM(Anantnag:Udhampur!I66) -> 0 | J66: =SUM(Anantnag:Udhampur!J66) -> 0 | K66: =SUM(Anantnag:Udhampur!K66) -> 0 | L66: =SUM(Anantnag:Udhampur!L66) -> 0 | M66: =SUM(Anantnag:Udhampur!M66) -> 0 | N66: =SUM(Anantnag:Udhampur!N66) -> 0 | P66: =SUM(Anantnag:Udhampur!P66) -> 0 | Q66: =SUM(Anantnag:Udhampur!Q66) -> 0 | R66: =SUM(Anantnag:Udhampur!R66) -> 0 | S66: =SUM(Anantnag:Udhampur!S66) -> 0 | T66: =SUM(Anantnag:Udhampur!T66) -> 0 | U66: =SUM(Anantnag:Udhampur!U66) -> 0 | V66: =SUM(Anantnag:Udhampur!V66) -> 0 | W66: =SUM(Anantnag:Udhampur!W66) -> 0 | Y66: =SUM(Anantnag:Udhampur!Y66) -> 0 | Z66: =SUM(Anantnag:Udhampur!Z66) -> 0 | AA66: =SUM(Anantnag:Udhampur!AA66) -> 0 | AB66: =SUM(Anantnag:Udhampur!AB66) -> 0 | AF66: =SUM(Anantnag:Udhampur!U66) -> 0 | AG66: =SUM(Anantnag:Udhampur!Z66) -> 0 | AH66: =SUM(Anantnag:Udhampur!AB66) -> 0
A67: 2.28 | B67: Electricity / water charges @Rs. 1,000/- per child per annum | C67: =SUM(Anantnag:Udhampur!C67) -> 0 | D67: =SUM(Anantnag:Udhampur!D67) -> 0 | E67: =SUM(Anantnag:Udhampur!E67) -> 0 | F67: =SUM(Anantnag:Udhampur!F67) -> 0 | G67: =SUM(Anantnag:Udhampur!G67) -> 0 | H67: =SUM(Anantnag:Udhampur!H67) -> 0 | I67: =SUM(Anantnag:Udhampur!I67) -> 0 | J67: =SUM(Anantnag:Udhampur!J67) -> 0 | K67: =SUM(Anantnag:Udhampur!K67) -> 0 | L67: =SUM(Anantnag:Udhampur!L67) -> 0 | M67: =SUM(Anantnag:Udhampur!M67) -> 0 | N67: =SUM(Anantnag:Udhampur!N67) -> 0 | P67: =SUM(Anantnag:Udhampur!P67) -> 0 | Q67: =SUM(Anantnag:Udhampur!Q67) -> 0 | R67: =SUM(Anantnag:Udhampur!R67) -> 0 | S67: =SUM(Anantnag:Udhampur!S67) -> 0 | T67: =SUM(Anantnag:Udhampur!T67) -> 0 | U67: =SUM(Anantnag:Udhampur!U67) -> 0 | V67: =SUM(Anantnag:Udhampur!V67) -> 0 | W67: =SUM(Anantnag:Udhampur!W67) -> 0 | Y67: =SUM(Anantnag:Udhampur!Y67) -> 0 | Z67: =SUM(Anantnag:Udhampur!Z67) -> 0 | AA67: =SUM(Anantnag:Udhampur!AA67) -> 0 | AB67: =SUM(Anantnag:Udhampur!AB67) -> 0 | AF67: =SUM(Anantnag:Udhampur!U67) -> 0 | AG67: =SUM(Anantnag:Udhampur!Z67) -> 0 | AH67: =SUM(Anantnag:Udhampur!AB67) -> 0
A68: 2.29 | B68: Medical care/contingencies @ Rs. 1,250/- per child per annum | C68: =SUM(Anantnag:Udhampur!C68) -> 0 | D68: =SUM(Anantnag:Udhampur!D68) -> 0 | E68: =SUM(Anantnag:Udhampur!E68) -> 0 | F68: =SUM(Anantnag:Udhampur!F68) -> 0 | G68: =SUM(Anantnag:Udhampur!G68) -> 0 | H68: =SUM(Anantnag:Udhampur!H68) -> 0 | I68: =SUM(Anantnag:Udhampur!I68) -> 0 | J68: =SUM(Anantnag:Udhampur!J68) -> 0 | K68: =SUM(Anantnag:Udhampur!K68) -> 0 | L68: =SUM(Anantnag:Udhampur!L68) -> 0 | M68: =SUM(Anantnag:Udhampur!M68) -> 0 | N68: =SUM(Anantnag:Udhampur!N68) -> 0 | P68: =SUM(Anantnag:Udhampur!P68) -> 0 | Q68: =SUM(Anantnag:Udhampur!Q68) -> 0 | R68: =SUM(Anantnag:Udhampur!R68) -> 0 | S68: =SUM(Anantnag:Udhampur!S68) -> 0 | T68: =SUM(Anantnag:Udhampur!T68) -> 0 | U68: =SUM(Anantnag:Udhampur!U68) -> 0 | V68: =SUM(Anantnag:Udhampur!V68) -> 0 | W68: =SUM(Anantnag:Udhampur!W68) -> 0 | Y68: =SUM(Anantnag:Udhampur!Y68) -> 0 | Z68: =SUM(Anantnag:Udhampur!Z68) -> 0 | AA68: =SUM(Anantnag:Udhampur!AA68) -> 0 | AB68: =SUM(Anantnag:Udhampur!AB68) -> 0 | AF68: =SUM(Anantnag:Udhampur!U68) -> 0 | AG68: =SUM(Anantnag:Udhampur!Z68) -> 0 | AH68: =SUM(Anantnag:Udhampur!AB68) -> 0
A69: 2.3 | B69: Maintenance @ Rs. 750/- per child per annum | C69: =SUM(Anantnag:Udhampur!C69) -> 0 | D69: =SUM(Anantnag:Udhampur!D69) -> 0 | E69: =SUM(Anantnag:Udhampur!E69) -> 0 | F69: =SUM(Anantnag:Udhampur!F69) -> 0 | G69: =SUM(Anantnag:Udhampur!G69) -> 0 | H69: =SUM(Anantnag:Udhampur!H69) -> 0 | I69: =SUM(Anantnag:Udhampur!I69) -> 0 | J69: =SUM(Anantnag:Udhampur!J69) -> 0 | K69: =SUM(Anantnag:Udhampur!K69) -> 0 | L69: =SUM(Anantnag:Udhampur!L69) -> 0 | M69: =SUM(Anantnag:Udhampur!M69) -> 0 | N69: =SUM(Anantnag:Udhampur!N69) -> 0 | P69: =SUM(Anantnag:Udhampur!P69) -> 0 | Q69: =SUM(Anantnag:Udhampur!Q69) -> 0 | R69: =SUM(Anantnag:Udhampur!R69) -> 0 | S69: =SUM(Anantnag:Udhampur!S69) -> 0 | T69: =SUM(Anantnag:Udhampur!T69) -> 0 | U69: =SUM(Anantnag:Udhampur!U69) -> 0 | V69: =SUM(Anantnag:Udhampur!V69) -> 0 | W69: =SUM(Anantnag:Udhampur!W69) -> 0 | Y69: =SUM(Anantnag:Udhampur!Y69) -> 0 | Z69: =SUM(Anantnag:Udhampur!Z69) -> 0 | AA69: =SUM(Anantnag:Udhampur!AA69) -> 0 | AB69: =SUM(Anantnag:Udhampur!AB69) -> 0 | AF69: =SUM(Anantnag:Udhampur!U69) -> 0 | AG69: =SUM(Anantnag:Udhampur!Z69) -> 0 | AH69: =SUM(Anantnag:Udhampur!AB69) -> 0
A70: 2.31 | B70: Miscellaneous @ Rs. 750/- per child per annum | C70: =SUM(Anantnag:Udhampur!C70) -> 0 | D70: =SUM(Anantnag:Udhampur!D70) -> 0 | E70: =SUM(Anantnag:Udhampur!E70) -> 0 | F70: =SUM(Anantnag:Udhampur!F70) -> 0 | G70: =SUM(Anantnag:Udhampur!G70) -> 0 | H70: =SUM(Anantnag:Udhampur!H70) -> 0 | I70: =SUM(Anantnag:Udhampur!I70) -> 0 | J70: =SUM(Anantnag:Udhampur!J70) -> 0 | K70: =SUM(Anantnag:Udhampur!K70) -> 0 | L70: =SUM(Anantnag:Udhampur!L70) -> 0 | M70: =SUM(Anantnag:Udhampur!M70) -> 0 | N70: =SUM(Anantnag:Udhampur!N70) -> 0 | P70: =SUM(Anantnag:Udhampur!P70) -> 0 | Q70: =SUM(Anantnag:Udhampur!Q70) -> 0 | R70: =SUM(Anantnag:Udhampur!R70) -> 0 | S70: =SUM(Anantnag:Udhampur!S70) -> 0 | T70: =SUM(Anantnag:Udhampur!T70) -> 0 | U70: =SUM(Anantnag:Udhampur!U70) -> 0 | V70: =SUM(Anantnag:Udhampur!V70) -> 0 | W70: =SUM(Anantnag:Udhampur!W70) -> 0 | Y70: =SUM(Anantnag:Udhampur!Y70) -> 0 | Z70: =SUM(Anantnag:Udhampur!Z70) -> 0 | AA70: =SUM(Anantnag:Udhampur!AA70) -> 0 | AB70: =SUM(Anantnag:Udhampur!AB70) -> 0 | AF70: =SUM(Anantnag:Udhampur!U70) -> 0 | AG70: =SUM(Anantnag:Udhampur!Z70) -> 0 | AH70: =SUM(Anantnag:Udhampur!AB70) -> 0
A71: 2.32 | B71: Preparatory camps @ Rs.200/- per child per annum | C71: =SUM(Anantnag:Udhampur!C71) -> 0 | D71: =SUM(Anantnag:Udhampur!D71) -> 0 | E71: =SUM(Anantnag:Udhampur!E71) -> 0 | F71: =SUM(Anantnag:Udhampur!F71) -> 0 | G71: =SUM(Anantnag:Udhampur!G71) -> 0 | H71: =SUM(Anantnag:Udhampur!H71) -> 0 | I71: =SUM(Anantnag:Udhampur!I71) -> 0 | J71: =SUM(Anantnag:Udhampur!J71) -> 0 | K71: =SUM(Anantnag:Udhampur!K71) -> 0 | L71: =SUM(Anantnag:Udhampur!L71) -> 0 | M71: =SUM(Anantnag:Udhampur!M71) -> 0 | N71: =SUM(Anantnag:Udhampur!N71) -> 0 | P71: =SUM(Anantnag:Udhampur!P71) -> 0 | Q71: =SUM(Anantnag:Udhampur!Q71) -> 0 | R71: =SUM(Anantnag:Udhampur!R71) -> 0 | S71: =SUM(Anantnag:Udhampur!S71) -> 0 | T71: =SUM(Anantnag:Udhampur!T71) -> 0 | U71: =SUM(Anantnag:Udhampur!U71) -> 0 | V71: =SUM(Anantnag:Udhampur!V71) -> 0 | W71: =SUM(Anantnag:Udhampur!W71) -> 0 | Y71: =SUM(Anantnag:Udhampur!Y71) -> 0 | Z71: =SUM(Anantnag:Udhampur!Z71) -> 0 | AA71: =SUM(Anantnag:Udhampur!AA71) -> 0 | AB71: =SUM(Anantnag:Udhampur!AB71) -> 0 | AF71: =SUM(Anantnag:Udhampur!U71) -> 0 | AG71: =SUM(Anantnag:Udhampur!Z71) -> 0 | AH71: =SUM(Anantnag:Udhampur!AB71) -> 0
A72: 2.33 | B72: P.T.A / school functions @ Rs.200/- per child per annum | C72: =SUM(Anantnag:Udhampur!C72) -> 0 | D72: =SUM(Anantnag:Udhampur!D72) -> 0 | E72: =SUM(Anantnag:Udhampur!E72) -> 0 | F72: =SUM(Anantnag:Udhampur!F72) -> 0 | G72: =SUM(Anantnag:Udhampur!G72) -> 0 | H72: =SUM(Anantnag:Udhampur!H72) -> 0 | I72: =SUM(Anantnag:Udhampur!I72) -> 0 | J72: =SUM(Anantnag:Udhampur!J72) -> 0 | K72: =SUM(Anantnag:Udhampur!K72) -> 0 | L72: =SUM(Anantnag:Udhampur!L72) -> 0 | M72: =SUM(Anantnag:Udhampur!M72) -> 0 | N72: =SUM(Anantnag:Udhampur!N72) -> 0 | P72: =SUM(Anantnag:Udhampur!P72) -> 0 | Q72: =SUM(Anantnag:Udhampur!Q72) -> 0 | R72: =SUM(Anantnag:Udhampur!R72) -> 0 | S72: =SUM(Anantnag:Udhampur!S72) -> 0 | T72: =SUM(Anantnag:Udhampur!T72) -> 0 | U72: =SUM(Anantnag:Udhampur!U72) -> 0 | V72: =SUM(Anantnag:Udhampur!V72) -> 0 | W72: =SUM(Anantnag:Udhampur!W72) -> 0 | Y72: =SUM(Anantnag:Udhampur!Y72) -> 0 | Z72: =SUM(Anantnag:Udhampur!Z72) -> 0 | AA72: =SUM(Anantnag:Udhampur!AA72) -> 0 | AB72: =SUM(Anantnag:Udhampur!AB72) -> 0 | AF72: =SUM(Anantnag:Udhampur!U72) -> 0 | AG72: =SUM(Anantnag:Udhampur!Z72) -> 0 | AH72: =SUM(Anantnag:Udhampur!AB72) -> 0
A73: 2.34 | B73: Provision of Rent @ Rs. 6,000/- per child per annum | C73: =SUM(Anantnag:Udhampur!C73) -> 0 | D73: =SUM(Anantnag:Udhampur!D73) -> 0 | E73: =SUM(Anantnag:Udhampur!E73) -> 0 | F73: =SUM(Anantnag:Udhampur!F73) -> 0 | G73: =SUM(Anantnag:Udhampur!G73) -> 0 | H73: =SUM(Anantnag:Udhampur!H73) -> 0 | I73: =SUM(Anantnag:Udhampur!I73) -> 0 | J73: =SUM(Anantnag:Udhampur!J73) -> 0 | K73: =SUM(Anantnag:Udhampur!K73) -> 0 | L73: =SUM(Anantnag:Udhampur!L73) -> 0 | M73: =SUM(Anantnag:Udhampur!M73) -> 0 | N73: =SUM(Anantnag:Udhampur!N73) -> 0 | P73: =SUM(Anantnag:Udhampur!P73) -> 0 | Q73: =SUM(Anantnag:Udhampur!Q73) -> 0 | R73: =SUM(Anantnag:Udhampur!R73) -> 0 | S73: =SUM(Anantnag:Udhampur!S73) -> 0 | T73: =SUM(Anantnag:Udhampur!T73) -> 0 | U73: =SUM(Anantnag:Udhampur!U73) -> 0 | V73: =SUM(Anantnag:Udhampur!V73) -> 0 | W73: =SUM(Anantnag:Udhampur!W73) -> 0 | Y73: =SUM(Anantnag:Udhampur!Y73) -> 0 | Z73: =SUM(Anantnag:Udhampur!Z73) -> 0 | AA73: =SUM(Anantnag:Udhampur!AA73) -> 0 | AB73: =SUM(Anantnag:Udhampur!AB73) -> 0 | AF73: =SUM(Anantnag:Udhampur!U73) -> 0 | AG73: =SUM(Anantnag:Udhampur!Z73) -> 0 | AH73: =SUM(Anantnag:Udhampur!AB73) -> 0
A74: 2.35 | B74: Capacity Building @ Rs. 500/- per child per annum | C74: =SUM(Anantnag:Udhampur!C74) -> 0 | D74: =SUM(Anantnag:Udhampur!D74) -> 0 | E74: =SUM(Anantnag:Udhampur!E74) -> 0 | F74: =SUM(Anantnag:Udhampur!F74) -> 0 | G74: =SUM(Anantnag:Udhampur!G74) -> 0 | H74: =SUM(Anantnag:Udhampur!H74) -> 0 | I74: =SUM(Anantnag:Udhampur!I74) -> 0 | J74: =SUM(Anantnag:Udhampur!J74) -> 0 | K74: =SUM(Anantnag:Udhampur!K74) -> 0 | L74: =SUM(Anantnag:Udhampur!L74) -> 0 | M74: =SUM(Anantnag:Udhampur!M74) -> 0 | N74: =SUM(Anantnag:Udhampur!N74) -> 0 | P74: =SUM(Anantnag:Udhampur!P74) -> 0 | Q74: =SUM(Anantnag:Udhampur!Q74) -> 0 | R74: =SUM(Anantnag:Udhampur!R74) -> 0 | S74: =SUM(Anantnag:Udhampur!S74) -> 0 | T74: =SUM(Anantnag:Udhampur!T74) -> 0 | U74: =SUM(Anantnag:Udhampur!U74) -> 0 | V74: =SUM(Anantnag:Udhampur!V74) -> 0 | W74: =SUM(Anantnag:Udhampur!W74) -> 0 | Y74: =SUM(Anantnag:Udhampur!Y74) -> 0 | Z74: =SUM(Anantnag:Udhampur!Z74) -> 0 | AA74: =SUM(Anantnag:Udhampur!AA74) -> 0 | AB74: =SUM(Anantnag:Udhampur!AB74) -> 0 | AF74: =SUM(Anantnag:Udhampur!U74) -> 0 | AG74: =SUM(Anantnag:Udhampur!Z74) -> 0 | AH74: =SUM(Anantnag:Udhampur!AB74) -> 0
A75: 2.36 | B75: Physical / Self Defence training @ Rs. 200/- per child per annum. | C75: =SUM(Anantnag:Udhampur!C75) -> 0 | D75: =SUM(Anantnag:Udhampur!D75) -> 0 | E75: =SUM(Anantnag:Udhampur!E75) -> 0 | F75: =SUM(Anantnag:Udhampur!F75) -> 0 | G75: =SUM(Anantnag:Udhampur!G75) -> 0 | H75: =SUM(Anantnag:Udhampur!H75) -> 0 | I75: =SUM(Anantnag:Udhampur!I75) -> 0 | J75: =SUM(Anantnag:Udhampur!J75) -> 0 | K75: =SUM(Anantnag:Udhampur!K75) -> 0 | L75: =SUM(Anantnag:Udhampur!L75) -> 0 | M75: =SUM(Anantnag:Udhampur!M75) -> 0 | N75: =SUM(Anantnag:Udhampur!N75) -> 0 | P75: =SUM(Anantnag:Udhampur!P75) -> 0 | Q75: =SUM(Anantnag:Udhampur!Q75) -> 0 | R75: =SUM(Anantnag:Udhampur!R75) -> 0 | S75: =SUM(Anantnag:Udhampur!S75) -> 0 | T75: =SUM(Anantnag:Udhampur!T75) -> 0 | U75: =SUM(Anantnag:Udhampur!U75) -> 0 | V75: =SUM(Anantnag:Udhampur!V75) -> 0 | W75: =SUM(Anantnag:Udhampur!W75) -> 0 | Y75: =SUM(Anantnag:Udhampur!Y75) -> 0 | Z75: =SUM(Anantnag:Udhampur!Z75) -> 0 | AA75: =SUM(Anantnag:Udhampur!AA75) -> 0 | AB75: =SUM(Anantnag:Udhampur!AB75) -> 0 | AF75: =SUM(Anantnag:Udhampur!U75) -> 0 | AG75: =SUM(Anantnag:Udhampur!Z75) -> 0 | AH75: =SUM(Anantnag:Udhampur!AB75) -> 0
B76: Sub Total (Recurring) | C76: =SUM(Anantnag:Udhampur!C76) -> 0 | D76: =SUM(Anantnag:Udhampur!D76) -> 0 | E76: =SUM(Anantnag:Udhampur!E76) -> 0 | F76: =SUM(Anantnag:Udhampur!F76) -> 0 | G76: =SUM(Anantnag:Udhampur!G76) -> 0 | H76: =SUM(Anantnag:Udhampur!H76) -> 0 | I76: =SUM(Anantnag:Udhampur!I76) -> 0 | J76: =SUM(Anantnag:Udhampur!J76) -> 0 | K76: =SUM(Anantnag:Udhampur!K76) -> 0 | L76: =SUM(Anantnag:Udhampur!L76) -> 0 | M76: =SUM(Anantnag:Udhampur!M76) -> 0 | N76: =SUM(Anantnag:Udhampur!N76) -> 0 | O76: =SUM(O54:O75) -> 0 | P76: =SUM(Anantnag:Udhampur!P76) -> 0 | Q76: =SUM(Anantnag:Udhampur!Q76) -> 0 | R76: =SUM(Anantnag:Udhampur!R76) -> 0 | S76: =SUM(Anantnag:Udhampur!S76) -> 0 | T76: =SUM(Anantnag:Udhampur!T76) -> 0 | U76: =SUM(Anantnag:Udhampur!U76) -> 0 | V76: =SUM(Anantnag:Udhampur!V76) -> 0 | W76: =SUM(Anantnag:Udhampur!W76) -> 0 | Y76: =SUM(Anantnag:Udhampur!Y76) -> 0 | Z76: =SUM(Anantnag:Udhampur!Z76) -> 0 | AA76: =SUM(Anantnag:Udhampur!AA76) -> 0 | AB76: =SUM(Anantnag:Udhampur!AB76) -> 0 | AF76: =SUM(Anantnag:Udhampur!U76) -> 0 | AG76: =SUM(Anantnag:Udhampur!Z76) -> 0 | AH76: =SUM(Anantnag:Udhampur!AB76) -> 0
B77: Total (Recurring + Non Recurring) | C77: =SUM(Anantnag:Udhampur!C77) -> 0 | D77: =SUM(Anantnag:Udhampur!D77) -> 0 | E77: =SUM(Anantnag:Udhampur!E77) -> 0 | F77: =SUM(Anantnag:Udhampur!F77) -> 0 | G77: =SUM(Anantnag:Udhampur!G77) -> 0 | H77: =SUM(Anantnag:Udhampur!H77) -> 0 | I77: =SUM(Anantnag:Udhampur!I77) -> 0 | J77: =SUM(Anantnag:Udhampur!J77) -> 0 | K77: =SUM(Anantnag:Udhampur!K77) -> 0 | L77: =SUM(Anantnag:Udhampur!L77) -> 0 | M77: =SUM(Anantnag:Udhampur!M77) -> 0 | N77: =SUM(Anantnag:Udhampur!N77) -> 0 | O77: =O52+O76 -> 0 | P77: =SUM(Anantnag:Udhampur!P77) -> 0 | Q77: =SUM(Anantnag:Udhampur!Q77) -> 0 | R77: =SUM(Anantnag:Udhampur!R77) -> 0 | S77: =SUM(Anantnag:Udhampur!S77) -> 0 | T77: =SUM(Anantnag:Udhampur!T77) -> 0 | U77: =SUM(Anantnag:Udhampur!U77) -> 0 | V77: =SUM(Anantnag:Udhampur!V77) -> 0 | W77: =SUM(Anantnag:Udhampur!W77) -> 0 | Y77: =SUM(Anantnag:Udhampur!Y77) -> 0 | Z77: =SUM(Anantnag:Udhampur!Z77) -> 0 | AA77: =SUM(Anantnag:Udhampur!AA77) -> 0 | AB77: =SUM(Anantnag:Udhampur!AB77) -> 0 | AF77: =SUM(Anantnag:Udhampur!U77) -> 0 | AG77: =SUM(Anantnag:Udhampur!Z77) -> 0 | AH77: =SUM(Anantnag:Udhampur!AB77) -> 0
B78: Total (50 + 100 children) | C78: =SUM(Anantnag:Udhampur!C78) -> 0 | D78: =SUM(Anantnag:Udhampur!D78) -> 0 | E78: =SUM(Anantnag:Udhampur!E78) -> 0 | F78: =SUM(Anantnag:Udhampur!F78) -> 0 | G78: =SUM(Anantnag:Udhampur!G78) -> 0 | H78: =SUM(Anantnag:Udhampur!H78) -> 0 | I78: =SUM(Anantnag:Udhampur!I78) -> 0 | J78: =SUM(Anantnag:Udhampur!J78) -> 0 | K78: =SUM(Anantnag:Udhampur!K78) -> 0 | L78: =SUM(Anantnag:Udhampur!L78) -> 0 | M78: =SUM(Anantnag:Udhampur!M78) -> 0 | N78: =SUM(Anantnag:Udhampur!N78) -> 0 | P78: =SUM(Anantnag:Udhampur!P78) -> 0 | Q78: =SUM(Anantnag:Udhampur!Q78) -> 0 | R78: =SUM(Anantnag:Udhampur!R78) -> 0 | S78: =SUM(Anantnag:Udhampur!S78) -> 0 | T78: =SUM(Anantnag:Udhampur!T78) -> 0 | U78: =SUM(Anantnag:Udhampur!U78) -> 0 | V78: =SUM(Anantnag:Udhampur!V78) -> 0 | W78: =SUM(Anantnag:Udhampur!W78) -> 0 | Y78: =SUM(Anantnag:Udhampur!Y78) -> 0 | Z78: =SUM(Anantnag:Udhampur!Z78) -> 0 | AA78: =SUM(Anantnag:Udhampur!AA78) -> 0 | AB78: =SUM(Anantnag:Udhampur!AB78) -> 0 | AF78: =SUM(Anantnag:Udhampur!U78) -> 0 | AG78: =SUM(Anantnag:Udhampur!Z78) -> 0 | AH78: =SUM(Anantnag:Udhampur!AB78) -> 0
A79: 3 | B79: Residential Hostel for specific category of children | C79: =SUM(Anantnag:Udhampur!C79) -> 0 | D79: =SUM(Anantnag:Udhampur!D79) -> 0 | E79: =SUM(Anantnag:Udhampur!E79) -> 0 | F79: =SUM(Anantnag:Udhampur!F79) -> 0 | G79: =SUM(Anantnag:Udhampur!G79) -> 0 | H79: =SUM(Anantnag:Udhampur!H79) -> 0 | I79: =SUM(Anantnag:Udhampur!I79) -> 0 | J79: =SUM(Anantnag:Udhampur!J79) -> 0 | K79: =SUM(Anantnag:Udhampur!K79) -> 0 | L79: =SUM(Anantnag:Udhampur!L79) -> 0 | M79: =SUM(Anantnag:Udhampur!M79) -> 0 | N79: =SUM(Anantnag:Udhampur!N79) -> 0 | P79: =SUM(Anantnag:Udhampur!P79) -> 0 | Q79: =SUM(Anantnag:Udhampur!Q79) -> 0 | R79: =SUM(Anantnag:Udhampur!R79) -> 0 | S79: =SUM(Anantnag:Udhampur!S79) -> 0 | T79: =SUM(Anantnag:Udhampur!T79) -> 0 | U79: =SUM(Anantnag:Udhampur!U79) -> 0 | V79: =SUM(Anantnag:Udhampur!V79) -> 0 | W79: =SUM(Anantnag:Udhampur!W79) -> 0 | Y79: =SUM(Anantnag:Udhampur!Y79) -> 0 | Z79: =SUM(Anantnag:Udhampur!Z79) -> 0 | AA79: =SUM(Anantnag:Udhampur!AA79) -> 0 | AB79: =SUM(Anantnag:Udhampur!AB79) -> 0 | AF79: =SUM(Anantnag:Udhampur!U79) -> 0 | AG79: =SUM(Anantnag:Udhampur!Z79) -> 0 | AH79: =SUM(Anantnag:Udhampur!AB79) -> 0
A80: (A) | B80: 50 children | C80: =SUM(Anantnag:Udhampur!C80) -> 0 | D80: =SUM(Anantnag:Udhampur!D80) -> 0 | E80: =SUM(Anantnag:Udhampur!E80) -> 0 | F80: =SUM(Anantnag:Udhampur!F80) -> 0 | G80: =SUM(Anantnag:Udhampur!G80) -> 0 | H80: =SUM(Anantnag:Udhampur!H80) -> 0 | I80: =SUM(Anantnag:Udhampur!I80) -> 0 | J80: =SUM(Anantnag:Udhampur!J80) -> 0 | K80: =SUM(Anantnag:Udhampur!K80) -> 0 | L80: =SUM(Anantnag:Udhampur!L80) -> 0 | M80: =SUM(Anantnag:Udhampur!M80) -> 0 | N80: =SUM(Anantnag:Udhampur!N80) -> 0 | P80: =SUM(Anantnag:Udhampur!P80) -> 0 | Q80: =SUM(Anantnag:Udhampur!Q80) -> 0 | R80: =SUM(Anantnag:Udhampur!R80) -> 0 | S80: =SUM(Anantnag:Udhampur!S80) -> 0 | T80: =SUM(Anantnag:Udhampur!T80) -> 0 | U80: =SUM(Anantnag:Udhampur!U80) -> 0 | V80: =SUM(Anantnag:Udhampur!V80) -> 0 | W80: =SUM(Anantnag:Udhampur!W80) -> 0 | Y80: =SUM(Anantnag:Udhampur!Y80) -> 0 | Z80: =SUM(Anantnag:Udhampur!Z80) -> 0 | AA80: =SUM(Anantnag:Udhampur!AA80) -> 0 | AB80: =SUM(Anantnag:Udhampur!AB80) -> 0 | AF80: =SUM(Anantnag:Udhampur!U80) -> 0 | AG80: =SUM(Anantnag:Udhampur!Z80) -> 0 | AH80: =SUM(Anantnag:Udhampur!AB80) -> 0
B81: Non-recurring (one time grant) | C81: =SUM(Anantnag:Udhampur!C81) -> 0 | D81: =SUM(Anantnag:Udhampur!D81) -> 0 | E81: =SUM(Anantnag:Udhampur!E81) -> 0 | F81: =SUM(Anantnag:Udhampur!F81) -> 0 | G81: =SUM(Anantnag:Udhampur!G81) -> 0 | H81: =SUM(Anantnag:Udhampur!H81) -> 0 | I81: =SUM(Anantnag:Udhampur!I81) -> 0 | J81: =SUM(Anantnag:Udhampur!J81) -> 0 | K81: =SUM(Anantnag:Udhampur!K81) -> 0 | L81: =SUM(Anantnag:Udhampur!L81) -> 0 | M81: =SUM(Anantnag:Udhampur!M81) -> 0 | N81: =SUM(Anantnag:Udhampur!N81) -> 0 | P81: =SUM(Anantnag:Udhampur!P81) -> 0 | Q81: =SUM(Anantnag:Udhampur!Q81) -> 0 | R81: =SUM(Anantnag:Udhampur!R81) -> 0 | S81: =SUM(Anantnag:Udhampur!S81) -> 0 | T81: =SUM(Anantnag:Udhampur!T81) -> 0 | U81: =SUM(Anantnag:Udhampur!U81) -> 0 | V81: =SUM(Anantnag:Udhampur!V81) -> 0 | W81: =SUM(Anantnag:Udhampur!W81) -> 0 | Y81: =SUM(Anantnag:Udhampur!Y81) -> 0 | Z81: =SUM(Anantnag:Udhampur!Z81) -> 0 | AA81: =SUM(Anantnag:Udhampur!AA81) -> 0 | AB81: =SUM(Anantnag:Udhampur!AB81) -> 0 | AF81: =SUM(Anantnag:Udhampur!U81) -> 0 | AG81: =SUM(Anantnag:Udhampur!Z81) -> 0 | AH81: =SUM(Anantnag:Udhampur!AB81) -> 0
A82: 3.01 | B82: Furniture/ Equipment (including kitchen) | C82: =SUM(Anantnag:Udhampur!C82) -> 0 | D82: =SUM(Anantnag:Udhampur!D82) -> 0 | E82: =SUM(Anantnag:Udhampur!E82) -> 0 | F82: =SUM(Anantnag:Udhampur!F82) -> 0 | G82: =SUM(Anantnag:Udhampur!G82) -> 0 | H82: =SUM(Anantnag:Udhampur!H82) -> 0 | I82: =SUM(Anantnag:Udhampur!I82) -> 0 | J82: =SUM(Anantnag:Udhampur!J82) -> 0 | K82: =SUM(Anantnag:Udhampur!K82) -> 0 | L82: =SUM(Anantnag:Udhampur!L82) -> 0 | M82: =SUM(Anantnag:Udhampur!M82) -> 0 | N82: =SUM(Anantnag:Udhampur!N82) -> 0 | P82: =SUM(Anantnag:Udhampur!P82) -> 0 | Q82: =SUM(Anantnag:Udhampur!Q82) -> 0 | R82: =SUM(Anantnag:Udhampur!R82) -> 0 | S82: =SUM(Anantnag:Udhampur!S82) -> 0 | T82: =SUM(Anantnag:Udhampur!T82) -> 0 | U82: =SUM(Anantnag:Udhampur!U82) -> 0 | V82: =SUM(Anantnag:Udhampur!V82) -> 0 | W82: =SUM(Anantnag:Udhampur!W82) -> 0 | Y82: =SUM(Anantnag:Udhampur!Y82) -> 0 | Z82: =SUM(Anantnag:Udhampur!Z82) -> 0 | AA82: =SUM(Anantnag:Udhampur!AA82) -> 0 | AB82: =SUM(Anantnag:Udhampur!AB82) -> 0 | AF82: =SUM(Anantnag:Udhampur!U82) -> 0 | AG82: =SUM(Anantnag:Udhampur!Z82) -> 0 | AH82: =SUM(Anantnag:Udhampur!AB82) -> 0
A83: =+A82+0.01 -> 3.02 | B83: TLM and equipment including library books | C83: =SUM(Anantnag:Udhampur!C83) -> 0 | D83: =SUM(Anantnag:Udhampur!D83) -> 0 | E83: =SUM(Anantnag:Udhampur!E83) -> 0 | F83: =SUM(Anantnag:Udhampur!F83) -> 0 | G83: =SUM(Anantnag:Udhampur!G83) -> 0 | H83: =SUM(Anantnag:Udhampur!H83) -> 0 | I83: =SUM(Anantnag:Udhampur!I83) -> 0 | J83: =SUM(Anantnag:Udhampur!J83) -> 0 | K83: =SUM(Anantnag:Udhampur!K83) -> 0 | L83: =SUM(Anantnag:Udhampur!L83) -> 0 | M83: =SUM(Anantnag:Udhampur!M83) -> 0 | N83: =SUM(Anantnag:Udhampur!N83) -> 0 | P83: =SUM(Anantnag:Udhampur!P83) -> 0 | Q83: =SUM(Anantnag:Udhampur!Q83) -> 0 | R83: =SUM(Anantnag:Udhampur!R83) -> 0 | S83: =SUM(Anantnag:Udhampur!S83) -> 0 | T83: =SUM(Anantnag:Udhampur!T83) -> 0 | U83: =SUM(Anantnag:Udhampur!U83) -> 0 | V83: =SUM(Anantnag:Udhampur!V83) -> 0 | W83: =SUM(Anantnag:Udhampur!W83) -> 0 | Y83: =SUM(Anantnag:Udhampur!Y83) -> 0 | Z83: =SUM(Anantnag:Udhampur!Z83) -> 0 | AA83: =SUM(Anantnag:Udhampur!AA83) -> 0 | AB83: =SUM(Anantnag:Udhampur!AB83) -> 0 | AF83: =SUM(Anantnag:Udhampur!U83) -> 0 | AG83: =SUM(Anantnag:Udhampur!Z83) -> 0 | AH83: =SUM(Anantnag:Udhampur!AB83) -> 0
A84: =+A83+0.01 -> 3.03 | B84: Bedding (new) | C84: =SUM(Anantnag:Udhampur!C84) -> 0 | D84: =SUM(Anantnag:Udhampur!D84) -> 0 | E84: =SUM(Anantnag:Udhampur!E84) -> 0 | F84: =SUM(Anantnag:Udhampur!F84) -> 0 | G84: =SUM(Anantnag:Udhampur!G84) -> 0 | H84: =SUM(Anantnag:Udhampur!H84) -> 0 | I84: =SUM(Anantnag:Udhampur!I84) -> 0 | J84: =SUM(Anantnag:Udhampur!J84) -> 0 | K84: =SUM(Anantnag:Udhampur!K84) -> 0 | L84: =SUM(Anantnag:Udhampur!L84) -> 0 | M84: =SUM(Anantnag:Udhampur!M84) -> 0 | N84: =SUM(Anantnag:Udhampur!N84) -> 0 | P84: =SUM(Anantnag:Udhampur!P84) -> 0 | Q84: =SUM(Anantnag:Udhampur!Q84) -> 0 | R84: =SUM(Anantnag:Udhampur!R84) -> 0 | S84: =SUM(Anantnag:Udhampur!S84) -> 0 | T84: =SUM(Anantnag:Udhampur!T84) -> 0 | U84: =SUM(Anantnag:Udhampur!U84) -> 0 | V84: =SUM(Anantnag:Udhampur!V84) -> 0 | W84: =SUM(Anantnag:Udhampur!W84) -> 0 | Y84: =SUM(Anantnag:Udhampur!Y84) -> 0 | Z84: =SUM(Anantnag:Udhampur!Z84) -> 0 | AA84: =SUM(Anantnag:Udhampur!AA84) -> 0 | AB84: =SUM(Anantnag:Udhampur!AB84) -> 0 | AF84: =SUM(Anantnag:Udhampur!U84) -> 0 | AG84: =SUM(Anantnag:Udhampur!Z84) -> 0 | AH84: =SUM(Anantnag:Udhampur!AB84) -> 0
A85: =+A84+0.01 -> 3.04 | B85: Replacement of bedding (once in 3 years) | C85: =SUM(Anantnag:Udhampur!C85) -> 0 | D85: =SUM(Anantnag:Udhampur!D85) -> 0 | E85: =SUM(Anantnag:Udhampur!E85) -> 0 | F85: =SUM(Anantnag:Udhampur!F85) -> 0 | G85: =SUM(Anantnag:Udhampur!G85) -> 0 | H85: =SUM(Anantnag:Udhampur!H85) -> 0 | I85: =SUM(Anantnag:Udhampur!I85) -> 0 | J85: =SUM(Anantnag:Udhampur!J85) -> 0 | K85: =SUM(Anantnag:Udhampur!K85) -> 0 | L85: =SUM(Anantnag:Udhampur!L85) -> 0 | M85: =SUM(Anantnag:Udhampur!M85) -> 0 | N85: =SUM(Anantnag:Udhampur!N85) -> 0 | P85: =SUM(Anantnag:Udhampur!P85) -> 0 | Q85: =SUM(Anantnag:Udhampur!Q85) -> 0 | R85: =SUM(Anantnag:Udhampur!R85) -> 0 | S85: =SUM(Anantnag:Udhampur!S85) -> 0 | T85: =SUM(Anantnag:Udhampur!T85) -> 0 | U85: =SUM(Anantnag:Udhampur!U85) -> 0 | V85: =SUM(Anantnag:Udhampur!V85) -> 0 | W85: =SUM(Anantnag:Udhampur!W85) -> 0 | Y85: =SUM(Anantnag:Udhampur!Y85) -> 0 | Z85: =SUM(Anantnag:Udhampur!Z85) -> 0 | AA85: =SUM(Anantnag:Udhampur!AA85) -> 0 | AB85: =SUM(Anantnag:Udhampur!AB85) -> 0 | AF85: =SUM(Anantnag:Udhampur!U85) -> 0 | AG85: =SUM(Anantnag:Udhampur!Z85) -> 0 | AH85: =SUM(Anantnag:Udhampur!AB85) -> 0
B86: Sub Total (Non Recurring) | C86: =SUM(Anantnag:Udhampur!C86) -> 0 | D86: =SUM(Anantnag:Udhampur!D86) -> 0 | E86: =SUM(Anantnag:Udhampur!E86) -> 0 | F86: =SUM(Anantnag:Udhampur!F86) -> 0 | G86: =SUM(Anantnag:Udhampur!G86) -> 0 | H86: =SUM(Anantnag:Udhampur!H86) -> 0 | I86: =SUM(Anantnag:Udhampur!I86) -> 0 | J86: =SUM(Anantnag:Udhampur!J86) -> 0 | K86: =SUM(Anantnag:Udhampur!K86) -> 0 | L86: =SUM(Anantnag:Udhampur!L86) -> 0 | M86: =SUM(Anantnag:Udhampur!M86) -> 0 | N86: =SUM(Anantnag:Udhampur!N86) -> 0 | O86: =SUM(O82:O85) -> 0 | P86: =SUM(Anantnag:Udhampur!P86) -> 0 | Q86: =SUM(Anantnag:Udhampur!Q86) -> 0 | R86: =SUM(Anantnag:Udhampur!R86) -> 0 | S86: =SUM(Anantnag:Udhampur!S86) -> 0 | T86: =SUM(Anantnag:Udhampur!T86) -> 0 | U86: =SUM(Anantnag:Udhampur!U86) -> 0 | V86: =SUM(Anantnag:Udhampur!V86) -> 0 | W86: =SUM(Anantnag:Udhampur!W86) -> 0 | Y86: =SUM(Anantnag:Udhampur!Y86) -> 0 | Z86: =SUM(Anantnag:Udhampur!Z86) -> 0 | AA86: =SUM(Anantnag:Udhampur!AA86) -> 0 | AB86: =SUM(Anantnag:Udhampur!AB86) -> 0 | AF86: =SUM(Anantnag:Udhampur!U86) -> 0 | AG86: =SUM(Anantnag:Udhampur!Z86) -> 0 | AH86: =SUM(Anantnag:Udhampur!AB86) -> 0
B87: Recurring (50 children) | C87: =SUM(Anantnag:Udhampur!C87) -> 0 | D87: =SUM(Anantnag:Udhampur!D87) -> 0 | E87: =SUM(Anantnag:Udhampur!E87) -> 0 | F87: =SUM(Anantnag:Udhampur!F87) -> 0 | G87: =SUM(Anantnag:Udhampur!G87) -> 0 | H87: =SUM(Anantnag:Udhampur!H87) -> 0 | I87: =SUM(Anantnag:Udhampur!I87) -> 0 | J87: =SUM(Anantnag:Udhampur!J87) -> 0 | K87: =SUM(Anantnag:Udhampur!K87) -> 0 | L87: =SUM(Anantnag:Udhampur!L87) -> 0 | M87: =SUM(Anantnag:Udhampur!M87) -> 0 | N87: =SUM(Anantnag:Udhampur!N87) -> 0 | P87: =SUM(Anantnag:Udhampur!P87) -> 0 | Q87: =SUM(Anantnag:Udhampur!Q87) -> 0 | R87: =SUM(Anantnag:Udhampur!R87) -> 0 | S87: =SUM(Anantnag:Udhampur!S87) -> 0 | T87: =SUM(Anantnag:Udhampur!T87) -> 0 | U87: =SUM(Anantnag:Udhampur!U87) -> 0 | V87: =SUM(Anantnag:Udhampur!V87) -> 0 | W87: =SUM(Anantnag:Udhampur!W87) -> 0 | Y87: =SUM(Anantnag:Udhampur!Y87) -> 0 | Z87: =SUM(Anantnag:Udhampur!Z87) -> 0 | AA87: =SUM(Anantnag:Udhampur!AA87) -> 0 | AB87: =SUM(Anantnag:Udhampur!AB87) -> 0 | AF87: =SUM(Anantnag:Udhampur!U87) -> 0 | AG87: =SUM(Anantnag:Udhampur!Z87) -> 0 | AH87: =SUM(Anantnag:Udhampur!AB87) -> 0
A88: 3.05 | B88: Maintenance @ Rs.1,500/- per child per month | C88: =SUM(Anantnag:Udhampur!C88) -> 0 | D88: =SUM(Anantnag:Udhampur!D88) -> 0 | E88: =SUM(Anantnag:Udhampur!E88) -> 0 | F88: =SUM(Anantnag:Udhampur!F88) -> 0 | G88: =SUM(Anantnag:Udhampur!G88) -> 0 | H88: =SUM(Anantnag:Udhampur!H88) -> 0 | I88: =SUM(Anantnag:Udhampur!I88) -> 0 | J88: =SUM(Anantnag:Udhampur!J88) -> 0 | K88: =SUM(Anantnag:Udhampur!K88) -> 0 | L88: =SUM(Anantnag:Udhampur!L88) -> 0 | M88: =SUM(Anantnag:Udhampur!M88) -> 0 | N88: =SUM(Anantnag:Udhampur!N88) -> 0 | P88: =SUM(Anantnag:Udhampur!P88) -> 0 | Q88: =SUM(Anantnag:Udhampur!Q88) -> 0 | R88: =SUM(Anantnag:Udhampur!R88) -> 0 | S88: =SUM(Anantnag:Udhampur!S88) -> 0 | T88: =SUM(Anantnag:Udhampur!T88) -> 0 | U88: =SUM(Anantnag:Udhampur!U88) -> 0 | V88: =SUM(Anantnag:Udhampur!V88) -> 0 | W88: =SUM(Anantnag:Udhampur!W88) -> 0 | Y88: =SUM(Anantnag:Udhampur!Y88) -> 0 | Z88: =SUM(Anantnag:Udhampur!Z88) -> 0 | AA88: =SUM(Anantnag:Udhampur!AA88) -> 0 | AB88: =SUM(Anantnag:Udhampur!AB88) -> 0 | AF88: =SUM(Anantnag:Udhampur!U88) -> 0 | AG88: =SUM(Anantnag:Udhampur!Z88) -> 0 | AH88: =SUM(Anantnag:Udhampur!AB88) -> 0
A89: =+A88+0.01 -> 3.06 | B89: Stipend @ Rs.100/- per child per month | C89: =SUM(Anantnag:Udhampur!C89) -> 0 | D89: =SUM(Anantnag:Udhampur!D89) -> 0 | E89: =SUM(Anantnag:Udhampur!E89) -> 0 | F89: =SUM(Anantnag:Udhampur!F89) -> 0 | G89: =SUM(Anantnag:Udhampur!G89) -> 0 | H89: =SUM(Anantnag:Udhampur!H89) -> 0 | I89: =SUM(Anantnag:Udhampur!I89) -> 0 | J89: =SUM(Anantnag:Udhampur!J89) -> 0 | K89: =SUM(Anantnag:Udhampur!K89) -> 0 | L89: =SUM(Anantnag:Udhampur!L89) -> 0 | M89: =SUM(Anantnag:Udhampur!M89) -> 0 | N89: =SUM(Anantnag:Udhampur!N89) -> 0 | P89: =SUM(Anantnag:Udhampur!P89) -> 0 | Q89: =SUM(Anantnag:Udhampur!Q89) -> 0 | R89: =SUM(Anantnag:Udhampur!R89) -> 0 | S89: =SUM(Anantnag:Udhampur!S89) -> 0 | T89: =SUM(Anantnag:Udhampur!T89) -> 0 | U89: =SUM(Anantnag:Udhampur!U89) -> 0 | V89: =SUM(Anantnag:Udhampur!V89) -> 0 | W89: =SUM(Anantnag:Udhampur!W89) -> 0 | Y89: =SUM(Anantnag:Udhampur!Y89) -> 0 | Z89: =SUM(Anantnag:Udhampur!Z89) -> 0 | AA89: =SUM(Anantnag:Udhampur!AA89) -> 0 | AB89: =SUM(Anantnag:Udhampur!AB89) -> 0 | AF89: =SUM(Anantnag:Udhampur!U89) -> 0 | AG89: =SUM(Anantnag:Udhampur!Z89) -> 0 | AH89: =SUM(Anantnag:Udhampur!AB89) -> 0
A90: =+A89+0.01 -> 3.07 | B90: Supplementary TLM, Stationery and other educational material @Rs.1,000/- per child per annum | C90: =SUM(Anantnag:Udhampur!C90) -> 0 | D90: =SUM(Anantnag:Udhampur!D90) -> 0 | E90: =SUM(Anantnag:Udhampur!E90) -> 0 | F90: =SUM(Anantnag:Udhampur!F90) -> 0 | G90: =SUM(Anantnag:Udhampur!G90) -> 0 | H90: =SUM(Anantnag:Udhampur!H90) -> 0 | I90: =SUM(Anantnag:Udhampur!I90) -> 0 | J90: =SUM(Anantnag:Udhampur!J90) -> 0 | K90: =SUM(Anantnag:Udhampur!K90) -> 0 | L90: =SUM(Anantnag:Udhampur!L90) -> 0 | M90: =SUM(Anantnag:Udhampur!M90) -> 0 | N90: =SUM(Anantnag:Udhampur!N90) -> 0 | P90: =SUM(Anantnag:Udhampur!P90) -> 0 | Q90: =SUM(Anantnag:Udhampur!Q90) -> 0 | R90: =SUM(Anantnag:Udhampur!R90) -> 0 | S90: =SUM(Anantnag:Udhampur!S90) -> 0 | T90: =SUM(Anantnag:Udhampur!T90) -> 0 | U90: =SUM(Anantnag:Udhampur!U90) -> 0 | V90: =SUM(Anantnag:Udhampur!V90) -> 0 | W90: =SUM(Anantnag:Udhampur!W90) -> 0 | Y90: =SUM(Anantnag:Udhampur!Y90) -> 0 | Z90: =SUM(Anantnag:Udhampur!Z90) -> 0 | AA90: =SUM(Anantnag:Udhampur!AA90) -> 0 | AB90: =SUM(Anantnag:Udhampur!AB90) -> 0 | AF90: =SUM(Anantnag:Udhampur!U90) -> 0 | AG90: =SUM(Anantnag:Udhampur!Z90) -> 0 | AH90: =SUM(Anantnag:Udhampur!AB90) -> 0
A91: 3.08 | B91: Salaries | C91: =SUM(Anantnag:Udhampur!C91) -> 0 | D91: =SUM(Anantnag:Udhampur!D91) -> 0 | E91: =SUM(Anantnag:Udhampur!E91) -> 0 | F91: =SUM(Anantnag:Udhampur!F91) -> 0 | G91: =SUM(Anantnag:Udhampur!G91) -> 0 | H91: =SUM(Anantnag:Udhampur!H91) -> 0 | I91: =SUM(Anantnag:Udhampur!I91) -> 0 | J91: =SUM(Anantnag:Udhampur!J91) -> 0 | K91: =SUM(Anantnag:Udhampur!K91) -> 0 | L91: =SUM(Anantnag:Udhampur!L91) -> 0 | M91: =SUM(Anantnag:Udhampur!M91) -> 0 | N91: =SUM(Anantnag:Udhampur!N91) -> 0 | P91: =SUM(Anantnag:Udhampur!P91) -> 0 | Q91: =SUM(Anantnag:Udhampur!Q91) -> 0 | R91: =SUM(Anantnag:Udhampur!R91) -> 0 | S91: =SUM(Anantnag:Udhampur!S91) -> 0 | T91: =SUM(Anantnag:Udhampur!T91) -> 0 | U91: =SUM(Anantnag:Udhampur!U91) -> 0 | V91: =SUM(Anantnag:Udhampur!V91) -> 0 | W91: =SUM(Anantnag:Udhampur!W91) -> 0 | Y91: =SUM(Anantnag:Udhampur!Y91) -> 0 | Z91: =SUM(Anantnag:Udhampur!Z91) -> 0 | AA91: =SUM(Anantnag:Udhampur!AA91) -> 0 | AB91: =SUM(Anantnag:Udhampur!AB91) -> 0 | AF91: =SUM(Anantnag:Udhampur!U91) -> 0 | AG91: =SUM(Anantnag:Udhampur!Z91) -> 0 | AH91: =SUM(Anantnag:Udhampur!AB91) -> 0
A92: (a) | B92: 1 Warden @ Rs. 25,000/- per month | C92: =SUM(Anantnag:Udhampur!C92) -> 0 | D92: =SUM(Anantnag:Udhampur!D92) -> 0 | E92: =SUM(Anantnag:Udhampur!E92) -> 0 | F92: =SUM(Anantnag:Udhampur!F92) -> 0 | G92: =SUM(Anantnag:Udhampur!G92) -> 0 | H92: =SUM(Anantnag:Udhampur!H92) -> 0 | I92: =SUM(Anantnag:Udhampur!I92) -> 0 | J92: =SUM(Anantnag:Udhampur!J92) -> 0 | K92: =SUM(Anantnag:Udhampur!K92) -> 0 | L92: =SUM(Anantnag:Udhampur!L92) -> 0 | M92: =SUM(Anantnag:Udhampur!M92) -> 0 | N92: =SUM(Anantnag:Udhampur!N92) -> 0 | P92: =SUM(Anantnag:Udhampur!P92) -> 0 | Q92: =SUM(Anantnag:Udhampur!Q92) -> 0 | R92: =SUM(Anantnag:Udhampur!R92) -> 0 | S92: =SUM(Anantnag:Udhampur!S92) -> 0 | T92: =SUM(Anantnag:Udhampur!T92) -> 0 | U92: =SUM(Anantnag:Udhampur!U92) -> 0 | V92: =SUM(Anantnag:Udhampur!V92) -> 0 | W92: =SUM(Anantnag:Udhampur!W92) -> 0 | Y92: =SUM(Anantnag:Udhampur!Y92) -> 0 | Z92: =SUM(Anantnag:Udhampur!Z92) -> 0 | AA92: =SUM(Anantnag:Udhampur!AA92) -> 0 | AB92: =SUM(Anantnag:Udhampur!AB92) -> 0 | AF92: =SUM(Anantnag:Udhampur!U92) -> 0 | AG92: =SUM(Anantnag:Udhampur!Z92) -> 0 | AH92: =SUM(Anantnag:Udhampur!AB92) -> 0
A93: (b) | B93: 4 Fulltime teachers as per RTE Norms @ Rs. 20,000/- per month per teacher | C93: =SUM(Anantnag:Udhampur!C93) -> 0 | D93: =SUM(Anantnag:Udhampur!D93) -> 0 | E93: =SUM(Anantnag:Udhampur!E93) -> 0 | F93: =SUM(Anantnag:Udhampur!F93) -> 0 | G93: =SUM(Anantnag:Udhampur!G93) -> 0 | H93: =SUM(Anantnag:Udhampur!H93) -> 0 | I93: =SUM(Anantnag:Udhampur!I93) -> 0 | J93: =SUM(Anantnag:Udhampur!J93) -> 0 | K93: =SUM(Anantnag:Udhampur!K93) -> 0 | L93: =SUM(Anantnag:Udhampur!L93) -> 0 | M93: =SUM(Anantnag:Udhampur!M93) -> 0 | N93: =SUM(Anantnag:Udhampur!N93) -> 0 | P93: =SUM(Anantnag:Udhampur!P93) -> 0 | Q93: =SUM(Anantnag:Udhampur!Q93) -> 0 | R93: =SUM(Anantnag:Udhampur!R93) -> 0 | S93: =SUM(Anantnag:Udhampur!S93) -> 0 | T93: =SUM(Anantnag:Udhampur!T93) -> 0 | U93: =SUM(Anantnag:Udhampur!U93) -> 0 | V93: =SUM(Anantnag:Udhampur!V93) -> 0 | W93: =SUM(Anantnag:Udhampur!W93) -> 0 | Y93: =SUM(Anantnag:Udhampur!Y93) -> 0 | Z93: =SUM(Anantnag:Udhampur!Z93) -> 0 | AA93: =SUM(Anantnag:Udhampur!AA93) -> 0 | AB93: =SUM(Anantnag:Udhampur!AB93) -> 0 | AF93: =SUM(Anantnag:Udhampur!U93) -> 0 | AG93: =SUM(Anantnag:Udhampur!Z93) -> 0 | AH93: =SUM(Anantnag:Udhampur!AB93) -> 0
A94: (c) | B94: 2 Urdu Teachers (only for Blocks with muslim population above 20% and select urban areas) if required @ Rs.12,000/- per month per teacher. | C94: =SUM(Anantnag:Udhampur!C94) -> 0 | D94: =SUM(Anantnag:Udhampur!D94) -> 0 | E94: =SUM(Anantnag:Udhampur!E94) -> 0 | F94: =SUM(Anantnag:Udhampur!F94) -> 0 | G94: =SUM(Anantnag:Udhampur!G94) -> 0 | H94: =SUM(Anantnag:Udhampur!H94) -> 0 | I94: =SUM(Anantnag:Udhampur!I94) -> 0 | J94: =SUM(Anantnag:Udhampur!J94) -> 0 | K94: =SUM(Anantnag:Udhampur!K94) -> 0 | L94: =SUM(Anantnag:Udhampur!L94) -> 0 | M94: =SUM(Anantnag:Udhampur!M94) -> 0 | N94: =SUM(Anantnag:Udhampur!N94) -> 0 | P94: =SUM(Anantnag:Udhampur!P94) -> 0 | Q94: =SUM(Anantnag:Udhampur!Q94) -> 0 | R94: =SUM(Anantnag:Udhampur!R94) -> 0 | S94: =SUM(Anantnag:Udhampur!S94) -> 0 | T94: =SUM(Anantnag:Udhampur!T94) -> 0 | U94: =SUM(Anantnag:Udhampur!U94) -> 0 | V94: =SUM(Anantnag:Udhampur!V94) -> 0 | W94: =SUM(Anantnag:Udhampur!W94) -> 0 | Y94: =SUM(Anantnag:Udhampur!Y94) -> 0 | Z94: =SUM(Anantnag:Udhampur!Z94) -> 0 | AA94: =SUM(Anantnag:Udhampur!AA94) -> 0 | AB94: =SUM(Anantnag:Udhampur!AB94) -> 0 | AF94: =SUM(Anantnag:Udhampur!U94) -> 0 | AG94: =SUM(Anantnag:Udhampur!Z94) -> 0 | AH94: =SUM(Anantnag:Udhampur!AB94) -> 0
A95: (d) | B95: 3 Part time teachers @ Rs.5,000/- per month per teacher | C95: =SUM(Anantnag:Udhampur!C95) -> 0 | D95: =SUM(Anantnag:Udhampur!D95) -> 0 | E95: =SUM(Anantnag:Udhampur!E95) -> 0 | F95: =SUM(Anantnag:Udhampur!F95) -> 0 | G95: =SUM(Anantnag:Udhampur!G95) -> 0 | H95: =SUM(Anantnag:Udhampur!H95) -> 0 | I95: =SUM(Anantnag:Udhampur!I95) -> 0 | J95: =SUM(Anantnag:Udhampur!J95) -> 0 | K95: =SUM(Anantnag:Udhampur!K95) -> 0 | L95: =SUM(Anantnag:Udhampur!L95) -> 0 | M95: =SUM(Anantnag:Udhampur!M95) -> 0 | N95: =SUM(Anantnag:Udhampur!N95) -> 0 | P95: =SUM(Anantnag:Udhampur!P95) -> 0 | Q95: =SUM(Anantnag:Udhampur!Q95) -> 0 | R95: =SUM(Anantnag:Udhampur!R95) -> 0 | S95: =SUM(Anantnag:Udhampur!S95) -> 0 | T95: =SUM(Anantnag:Udhampur!T95) -> 0 | U95: =SUM(Anantnag:Udhampur!U95) -> 0 | V95: =SUM(Anantnag:Udhampur!V95) -> 0 | W95: =SUM(Anantnag:Udhampur!W95) -> 0 | Y95: =SUM(Anantnag:Udhampur!Y95) -> 0 | Z95: =SUM(Anantnag:Udhampur!Z95) -> 0 | AA95: =SUM(Anantnag:Udhampur!AA95) -> 0 | AB95: =SUM(Anantnag:Udhampur!AB95) -> 0 | AF95: =SUM(Anantnag:Udhampur!U95) -> 0 | AG95: =SUM(Anantnag:Udhampur!Z95) -> 0 | AH95: =SUM(Anantnag:Udhampur!AB95) -> 0
A96: (e) | B96: 1 Full time Accountant @ Rs. 10,000/- per month | C96: =SUM(Anantnag:Udhampur!C96) -> 0 | D96: =SUM(Anantnag:Udhampur!D96) -> 0 | E96: =SUM(Anantnag:Udhampur!E96) -> 0 | F96: =SUM(Anantnag:Udhampur!F96) -> 0 | G96: =SUM(Anantnag:Udhampur!G96) -> 0 | H96: =SUM(Anantnag:Udhampur!H96) -> 0 | I96: =SUM(Anantnag:Udhampur!I96) -> 0 | J96: =SUM(Anantnag:Udhampur!J96) -> 0 | K96: =SUM(Anantnag:Udhampur!K96) -> 0 | L96: =SUM(Anantnag:Udhampur!L96) -> 0 | M96: =SUM(Anantnag:Udhampur!M96) -> 0 | N96: =SUM(Anantnag:Udhampur!N96) -> 0 | P96: =SUM(Anantnag:Udhampur!P96) -> 0 | Q96: =SUM(Anantnag:Udhampur!Q96) -> 0 | R96: =SUM(Anantnag:Udhampur!R96) -> 0 | S96: =SUM(Anantnag:Udhampur!S96) -> 0 | T96: =SUM(Anantnag:Udhampur!T96) -> 0 | U96: =SUM(Anantnag:Udhampur!U96) -> 0 | V96: =SUM(Anantnag:Udhampur!V96) -> 0 | W96: =SUM(Anantnag:Udhampur!W96) -> 0 | Y96: =SUM(Anantnag:Udhampur!Y96) -> 0 | Z96: =SUM(Anantnag:Udhampur!Z96) -> 0 | AA96: =SUM(Anantnag:Udhampur!AA96) -> 0 | AB96: =SUM(Anantnag:Udhampur!AB96) -> 0 | AF96: =SUM(Anantnag:Udhampur!U96) -> 0 | AG96: =SUM(Anantnag:Udhampur!Z96) -> 0 | AH96: =SUM(Anantnag:Udhampur!AB96) -> 0
A97: (f) | B97: 2 Support staff - (Accountant/Assistant, Peon, Chowkidar) @ Rs. 5,000/- per month per staff | C97: =SUM(Anantnag:Udhampur!C97) -> 0 | D97: =SUM(Anantnag:Udhampur!D97) -> 0 | E97: =SUM(Anantnag:Udhampur!E97) -> 0 | F97: =SUM(Anantnag:Udhampur!F97) -> 0 | G97: =SUM(Anantnag:Udhampur!G97) -> 0 | H97: =SUM(Anantnag:Udhampur!H97) -> 0 | I97: =SUM(Anantnag:Udhampur!I97) -> 0 | J97: =SUM(Anantnag:Udhampur!J97) -> 0 | K97: =SUM(Anantnag:Udhampur!K97) -> 0 | L97: =SUM(Anantnag:Udhampur!L97) -> 0 | M97: =SUM(Anantnag:Udhampur!M97) -> 0 | N97: =SUM(Anantnag:Udhampur!N97) -> 0 | P97: =SUM(Anantnag:Udhampur!P97) -> 0 | Q97: =SUM(Anantnag:Udhampur!Q97) -> 0 | R97: =SUM(Anantnag:Udhampur!R97) -> 0 | S97: =SUM(Anantnag:Udhampur!S97) -> 0 | T97: =SUM(Anantnag:Udhampur!T97) -> 0 | U97: =SUM(Anantnag:Udhampur!U97) -> 0 | V97: =SUM(Anantnag:Udhampur!V97) -> 0 | W97: =SUM(Anantnag:Udhampur!W97) -> 0 | Y97: =SUM(Anantnag:Udhampur!Y97) -> 0 | Z97: =SUM(Anantnag:Udhampur!Z97) -> 0 | AA97: =SUM(Anantnag:Udhampur!AA97) -> 0 | AB97: =SUM(Anantnag:Udhampur!AB97) -> 0 | AF97: =SUM(Anantnag:Udhampur!U97) -> 0 | AG97: =SUM(Anantnag:Udhampur!Z97) -> 0 | AH97: =SUM(Anantnag:Udhampur!AB97) -> 0
A98: (g) | B98: 1 Head Cook @ Rs. 6,000/- per month and upto 2 Asstt. Cooks @ Rs. 4,500/- per month per cook | C98: =SUM(Anantnag:Udhampur!C98) -> 0 | D98: =SUM(Anantnag:Udhampur!D98) -> 0 | E98: =SUM(Anantnag:Udhampur!E98) -> 0 | F98: =SUM(Anantnag:Udhampur!F98) -> 0 | G98: =SUM(Anantnag:Udhampur!G98) -> 0 | H98: =SUM(Anantnag:Udhampur!H98) -> 0 | I98: =SUM(Anantnag:Udhampur!I98) -> 0 | J98: =SUM(Anantnag:Udhampur!J98) -> 0 | K98: =SUM(Anantnag:Udhampur!K98) -> 0 | L98: =SUM(Anantnag:Udhampur!L98) -> 0 | M98: =SUM(Anantnag:Udhampur!M98) -> 0 | N98: =SUM(Anantnag:Udhampur!N98) -> 0 | P98: =SUM(Anantnag:Udhampur!P98) -> 0 | Q98: =SUM(Anantnag:Udhampur!Q98) -> 0 | R98: =SUM(Anantnag:Udhampur!R98) -> 0 | S98: =SUM(Anantnag:Udhampur!S98) -> 0 | T98: =SUM(Anantnag:Udhampur!T98) -> 0 | U98: =SUM(Anantnag:Udhampur!U98) -> 0 | V98: =SUM(Anantnag:Udhampur!V98) -> 0 | W98: =SUM(Anantnag:Udhampur!W98) -> 0 | Y98: =SUM(Anantnag:Udhampur!Y98) -> 0 | Z98: =SUM(Anantnag:Udhampur!Z98) -> 0 | AA98: =SUM(Anantnag:Udhampur!AA98) -> 0 | AB98: =SUM(Anantnag:Udhampur!AB98) -> 0 | AF98: =SUM(Anantnag:Udhampur!U98) -> 0 | AG98: =SUM(Anantnag:Udhampur!Z98) -> 0 | AH98: =SUM(Anantnag:Udhampur!AB98) -> 0
A99: 3.09 | B99: Specific Skill training @ Rs.1000/- per child per annum | C99: =SUM(Anantnag:Udhampur!C99) -> 0 | D99: =SUM(Anantnag:Udhampur!D99) -> 0 | E99: =SUM(Anantnag:Udhampur!E99) -> 0 | F99: =SUM(Anantnag:Udhampur!F99) -> 0 | G99: =SUM(Anantnag:Udhampur!G99) -> 0 | H99: =SUM(Anantnag:Udhampur!H99) -> 0 | I99: =SUM(Anantnag:Udhampur!I99) -> 0 | J99: =SUM(Anantnag:Udhampur!J99) -> 0 | K99: =SUM(Anantnag:Udhampur!K99) -> 0 | L99: =SUM(Anantnag:Udhampur!L99) -> 0 | M99: =SUM(Anantnag:Udhampur!M99) -> 0 | N99: =SUM(Anantnag:Udhampur!N99) -> 0 | P99: =SUM(Anantnag:Udhampur!P99) -> 0 | Q99: =SUM(Anantnag:Udhampur!Q99) -> 0 | R99: =SUM(Anantnag:Udhampur!R99) -> 0 | S99: =SUM(Anantnag:Udhampur!S99) -> 0 | T99: =SUM(Anantnag:Udhampur!T99) -> 0 | U99: =SUM(Anantnag:Udhampur!U99) -> 0 | V99: =SUM(Anantnag:Udhampur!V99) -> 0 | W99: =SUM(Anantnag:Udhampur!W99) -> 0 | Y99: =SUM(Anantnag:Udhampur!Y99) -> 0 | Z99: =SUM(Anantnag:Udhampur!Z99) -> 0 | AA99: =SUM(Anantnag:Udhampur!AA99) -> 0 | AB99: =SUM(Anantnag:Udhampur!AB99) -> 0 | AF99: =SUM(Anantnag:Udhampur!U99) -> 0 | AG99: =SUM(Anantnag:Udhampur!Z99) -> 0 | AH99: =SUM(Anantnag:Udhampur!AB99) -> 0
A100: =+A99+0.01 -> 3.1 | B100: Electricity / water charges @ Rs. 1,000/- per child per annum | C100: =SUM(Anantnag:Udhampur!C100) -> 0 | D100: =SUM(Anantnag:Udhampur!D100) -> 0 | E100: =SUM(Anantnag:Udhampur!E100) -> 0 | F100: =SUM(Anantnag:Udhampur!F100) -> 0 | G100: =SUM(Anantnag:Udhampur!G100) -> 0 | H100: =SUM(Anantnag:Udhampur!H100) -> 0 | I100: =SUM(Anantnag:Udhampur!I100) -> 0 | J100: =SUM(Anantnag:Udhampur!J100) -> 0 | K100: =SUM(Anantnag:Udhampur!K100) -> 0 | L100: =SUM(Anantnag:Udhampur!L100) -> 0 | M100: =SUM(Anantnag:Udhampur!M100) -> 0 | N100: =SUM(Anantnag:Udhampur!N100) -> 0 | P100: =SUM(Anantnag:Udhampur!P100) -> 0 | Q100: =SUM(Anantnag:Udhampur!Q100) -> 0 | R100: =SUM(Anantnag:Udhampur!R100) -> 0 | S100: =SUM(Anantnag:Udhampur!S100) -> 0 | T100: =SUM(Anantnag:Udhampur!T100) -> 0 | U100: =SUM(Anantnag:Udhampur!U100) -> 0 | V100: =SUM(Anantnag:Udhampur!V100) -> 0 | W100: =SUM(Anantnag:Udhampur!W100) -> 0 | Y100: =SUM(Anantnag:Udhampur!Y100) -> 0 | Z100: =SUM(Anantnag:Udhampur!Z100) -> 0 | AA100: =SUM(Anantnag:Udhampur!AA100) -> 0 | AB100: =SUM(Anantnag:Udhampur!AB100) -> 0 | AF100: =SUM(Anantnag:Udhampur!U100) -> 0 | AG100: =SUM(Anantnag:Udhampur!Z100) -> 0 | AH100: =SUM(Anantnag:Udhampur!AB100) -> 0
A101: 3.11 | B101: Medical care/contingencies @ Rs.1,250/- per child per annum | C101: =SUM(Anantnag:Udhampur!C101) -> 0 | D101: =SUM(Anantnag:Udhampur!D101) -> 0 | E101: =SUM(Anantnag:Udhampur!E101) -> 0 | F101: =SUM(Anantnag:Udhampur!F101) -> 0 | G101: =SUM(Anantnag:Udhampur!G101) -> 0 | H101: =SUM(Anantnag:Udhampur!H101) -> 0 | I101: =SUM(Anantnag:Udhampur!I101) -> 0 | J101: =SUM(Anantnag:Udhampur!J101) -> 0 | K101: =SUM(Anantnag:Udhampur!K101) -> 0 | L101: =SUM(Anantnag:Udhampur!L101) -> 0 | M101: =SUM(Anantnag:Udhampur!M101) -> 0 | N101: =SUM(Anantnag:Udhampur!N101) -> 0 | P101: =SUM(Anantnag:Udhampur!P101) -> 0 | Q101: =SUM(Anantnag:Udhampur!Q101) -> 0 | R101: =SUM(Anantnag:Udhampur!R101) -> 0 | S101: =SUM(Anantnag:Udhampur!S101) -> 0 | T101: =SUM(Anantnag:Udhampur!T101) -> 0 | U101: =SUM(Anantnag:Udhampur!U101) -> 0 | V101: =SUM(Anantnag:Udhampur!V101) -> 0 | W101: =SUM(Anantnag:Udhampur!W101) -> 0 | Y101: =SUM(Anantnag:Udhampur!Y101) -> 0 | Z101: =SUM(Anantnag:Udhampur!Z101) -> 0 | AA101: =SUM(Anantnag:Udhampur!AA101) -> 0 | AB101: =SUM(Anantnag:Udhampur!AB101) -> 0 | AF101: =SUM(Anantnag:Udhampur!U101) -> 0 | AG101: =SUM(Anantnag:Udhampur!Z101) -> 0 | AH101: =SUM(Anantnag:Udhampur!AB101) -> 0
A102: 3.12 | B102: Maintenance @ Rs. 750/- per child per annum | C102: =SUM(Anantnag:Udhampur!C102) -> 0 | D102: =SUM(Anantnag:Udhampur!D102) -> 0 | E102: =SUM(Anantnag:Udhampur!E102) -> 0 | F102: =SUM(Anantnag:Udhampur!F102) -> 0 | G102: =SUM(Anantnag:Udhampur!G102) -> 0 | H102: =SUM(Anantnag:Udhampur!H102) -> 0 | I102: =SUM(Anantnag:Udhampur!I102) -> 0 | J102: =SUM(Anantnag:Udhampur!J102) -> 0 | K102: =SUM(Anantnag:Udhampur!K102) -> 0 | L102: =SUM(Anantnag:Udhampur!L102) -> 0 | M102: =SUM(Anantnag:Udhampur!M102) -> 0 | N102: =SUM(Anantnag:Udhampur!N102) -> 0 | P102: =SUM(Anantnag:Udhampur!P102) -> 0 | Q102: =SUM(Anantnag:Udhampur!Q102) -> 0 | R102: =SUM(Anantnag:Udhampur!R102) -> 0 | S102: =SUM(Anantnag:Udhampur!S102) -> 0 | T102: =SUM(Anantnag:Udhampur!T102) -> 0 | U102: =SUM(Anantnag:Udhampur!U102) -> 0 | V102: =SUM(Anantnag:Udhampur!V102) -> 0 | W102: =SUM(Anantnag:Udhampur!W102) -> 0 | Y102: =SUM(Anantnag:Udhampur!Y102) -> 0 | Z102: =SUM(Anantnag:Udhampur!Z102) -> 0 | AA102: =SUM(Anantnag:Udhampur!AA102) -> 0 | AB102: =SUM(Anantnag:Udhampur!AB102) -> 0 | AF102: =SUM(Anantnag:Udhampur!U102) -> 0 | AG102: =SUM(Anantnag:Udhampur!Z102) -> 0 | AH102: =SUM(Anantnag:Udhampur!AB102) -> 0
A103: 3.13 | B103: Miscellaneous @ Rs. 750/- per child per annum | C103: =SUM(Anantnag:Udhampur!C103) -> 0 | D103: =SUM(Anantnag:Udhampur!D103) -> 0 | E103: =SUM(Anantnag:Udhampur!E103) -> 0 | F103: =SUM(Anantnag:Udhampur!F103) -> 0 | G103: =SUM(Anantnag:Udhampur!G103) -> 0 | H103: =SUM(Anantnag:Udhampur!H103) -> 0 | I103: =SUM(Anantnag:Udhampur!I103) -> 0 | J103: =SUM(Anantnag:Udhampur!J103) -> 0 | K103: =SUM(Anantnag:Udhampur!K103) -> 0 | L103: =SUM(Anantnag:Udhampur!L103) -> 0 | M103: =SUM(Anantnag:Udhampur!M103) -> 0 | N103: =SUM(Anantnag:Udhampur!N103) -> 0 | P103: =SUM(Anantnag:Udhampur!P103) -> 0 | Q103: =SUM(Anantnag:Udhampur!Q103) -> 0 | R103: =SUM(Anantnag:Udhampur!R103) -> 0 | S103: =SUM(Anantnag:Udhampur!S103) -> 0 | T103: =SUM(Anantnag:Udhampur!T103) -> 0 | U103: =SUM(Anantnag:Udhampur!U103) -> 0 | V103: =SUM(Anantnag:Udhampur!V103) -> 0 | W103: =SUM(Anantnag:Udhampur!W103) -> 0 | Y103: =SUM(Anantnag:Udhampur!Y103) -> 0 | Z103: =SUM(Anantnag:Udhampur!Z103) -> 0 | AA103: =SUM(Anantnag:Udhampur!AA103) -> 0 | AB103: =SUM(Anantnag:Udhampur!AB103) -> 0 | AF103: =SUM(Anantnag:Udhampur!U103) -> 0 | AG103: =SUM(Anantnag:Udhampur!Z103) -> 0 | AH103: =SUM(Anantnag:Udhampur!AB103) -> 0
A104: 3.14 | B104: Preparatory camps @ Rs. 300/- per child per annum | C104: =SUM(Anantnag:Udhampur!C104) -> 0 | D104: =SUM(Anantnag:Udhampur!D104) -> 0 | E104: =SUM(Anantnag:Udhampur!E104) -> 0 | F104: =SUM(Anantnag:Udhampur!F104) -> 0 | G104: =SUM(Anantnag:Udhampur!G104) -> 0 | H104: =SUM(Anantnag:Udhampur!H104) -> 0 | I104: =SUM(Anantnag:Udhampur!I104) -> 0 | J104: =SUM(Anantnag:Udhampur!J104) -> 0 | K104: =SUM(Anantnag:Udhampur!K104) -> 0 | L104: =SUM(Anantnag:Udhampur!L104) -> 0 | M104: =SUM(Anantnag:Udhampur!M104) -> 0 | N104: =SUM(Anantnag:Udhampur!N104) -> 0 | P104: =SUM(Anantnag:Udhampur!P104) -> 0 | Q104: =SUM(Anantnag:Udhampur!Q104) -> 0 | R104: =SUM(Anantnag:Udhampur!R104) -> 0 | S104: =SUM(Anantnag:Udhampur!S104) -> 0 | T104: =SUM(Anantnag:Udhampur!T104) -> 0 | U104: =SUM(Anantnag:Udhampur!U104) -> 0 | V104: =SUM(Anantnag:Udhampur!V104) -> 0 | W104: =SUM(Anantnag:Udhampur!W104) -> 0 | Y104: =SUM(Anantnag:Udhampur!Y104) -> 0 | Z104: =SUM(Anantnag:Udhampur!Z104) -> 0 | AA104: =SUM(Anantnag:Udhampur!AA104) -> 0 | AB104: =SUM(Anantnag:Udhampur!AB104) -> 0 | AF104: =SUM(Anantnag:Udhampur!U104) -> 0 | AG104: =SUM(Anantnag:Udhampur!Z104) -> 0 | AH104: =SUM(Anantnag:Udhampur!AB104) -> 0
A105: 3.15 | B105: P.T.A / school functions @ Rs. 300/- per child per annum | C105: =SUM(Anantnag:Udhampur!C105) -> 0 | D105: =SUM(Anantnag:Udhampur!D105) -> 0 | E105: =SUM(Anantnag:Udhampur!E105) -> 0 | F105: =SUM(Anantnag:Udhampur!F105) -> 0 | G105: =SUM(Anantnag:Udhampur!G105) -> 0 | H105: =SUM(Anantnag:Udhampur!H105) -> 0 | I105: =SUM(Anantnag:Udhampur!I105) -> 0 | J105: =SUM(Anantnag:Udhampur!J105) -> 0 | K105: =SUM(Anantnag:Udhampur!K105) -> 0 | L105: =SUM(Anantnag:Udhampur!L105) -> 0 | M105: =SUM(Anantnag:Udhampur!M105) -> 0 | N105: =SUM(Anantnag:Udhampur!N105) -> 0 | P105: =SUM(Anantnag:Udhampur!P105) -> 0 | Q105: =SUM(Anantnag:Udhampur!Q105) -> 0 | R105: =SUM(Anantnag:Udhampur!R105) -> 0 | S105: =SUM(Anantnag:Udhampur!S105) -> 0 | T105: =SUM(Anantnag:Udhampur!T105) -> 0 | U105: =SUM(Anantnag:Udhampur!U105) -> 0 | V105: =SUM(Anantnag:Udhampur!V105) -> 0 | W105: =SUM(Anantnag:Udhampur!W105) -> 0 | Y105: =SUM(Anantnag:Udhampur!Y105) -> 0 | Z105: =SUM(Anantnag:Udhampur!Z105) -> 0 | AA105: =SUM(Anantnag:Udhampur!AA105) -> 0 | AB105: =SUM(Anantnag:Udhampur!AB105) -> 0 | AF105: =SUM(Anantnag:Udhampur!U105) -> 0 | AG105: =SUM(Anantnag:Udhampur!Z105) -> 0 | AH105: =SUM(Anantnag:Udhampur!AB105) -> 0
A106: 3.16 | B106: Provision of Rent @ Rs. 10,000/- per child per annum | C106: =SUM(Anantnag:Udhampur!C106) -> 0 | D106: =SUM(Anantnag:Udhampur!D106) -> 0 | E106: =SUM(Anantnag:Udhampur!E106) -> 0 | F106: =SUM(Anantnag:Udhampur!F106) -> 0 | G106: =SUM(Anantnag:Udhampur!G106) -> 0 | H106: =SUM(Anantnag:Udhampur!H106) -> 0 | I106: =SUM(Anantnag:Udhampur!I106) -> 0 | J106: =SUM(Anantnag:Udhampur!J106) -> 0 | K106: =SUM(Anantnag:Udhampur!K106) -> 0 | L106: =SUM(Anantnag:Udhampur!L106) -> 0 | M106: =SUM(Anantnag:Udhampur!M106) -> 0 | N106: =SUM(Anantnag:Udhampur!N106) -> 0 | P106: =SUM(Anantnag:Udhampur!P106) -> 0 | Q106: =SUM(Anantnag:Udhampur!Q106) -> 0 | R106: =SUM(Anantnag:Udhampur!R106) -> 0 | S106: =SUM(Anantnag:Udhampur!S106) -> 0 | T106: =SUM(Anantnag:Udhampur!T106) -> 0 | U106: =SUM(Anantnag:Udhampur!U106) -> 0 | V106: =SUM(Anantnag:Udhampur!V106) -> 0 | W106: =SUM(Anantnag:Udhampur!W106) -> 0 | Y106: =SUM(Anantnag:Udhampur!Y106) -> 0 | Z106: =SUM(Anantnag:Udhampur!Z106) -> 0 | AA106: =SUM(Anantnag:Udhampur!AA106) -> 0 | AB106: =SUM(Anantnag:Udhampur!AB106) -> 0 | AF106: =SUM(Anantnag:Udhampur!U106) -> 0 | AG106: =SUM(Anantnag:Udhampur!Z106) -> 0 | AH106: =SUM(Anantnag:Udhampur!AB106) -> 0
A107: 3.17 | B107: Capacity Building @ Rs. 500/- per child per annum | C107: =SUM(Anantnag:Udhampur!C107) -> 0 | D107: =SUM(Anantnag:Udhampur!D107) -> 0 | E107: =SUM(Anantnag:Udhampur!E107) -> 0 | F107: =SUM(Anantnag:Udhampur!F107) -> 0 | G107: =SUM(Anantnag:Udhampur!G107) -> 0 | H107: =SUM(Anantnag:Udhampur!H107) -> 0 | I107: =SUM(Anantnag:Udhampur!I107) -> 0 | J107: =SUM(Anantnag:Udhampur!J107) -> 0 | K107: =SUM(Anantnag:Udhampur!K107) -> 0 | L107: =SUM(Anantnag:Udhampur!L107) -> 0 | M107: =SUM(Anantnag:Udhampur!M107) -> 0 | N107: =SUM(Anantnag:Udhampur!N107) -> 0 | P107: =SUM(Anantnag:Udhampur!P107) -> 0 | Q107: =SUM(Anantnag:Udhampur!Q107) -> 0 | R107: =SUM(Anantnag:Udhampur!R107) -> 0 | S107: =SUM(Anantnag:Udhampur!S107) -> 0 | T107: =SUM(Anantnag:Udhampur!T107) -> 0 | U107: =SUM(Anantnag:Udhampur!U107) -> 0 | V107: =SUM(Anantnag:Udhampur!V107) -> 0 | W107: =SUM(Anantnag:Udhampur!W107) -> 0 | Y107: =SUM(Anantnag:Udhampur!Y107) -> 0 | Z107: =SUM(Anantnag:Udhampur!Z107) -> 0 | AA107: =SUM(Anantnag:Udhampur!AA107) -> 0 | AB107: =SUM(Anantnag:Udhampur!AB107) -> 0 | AF107: =SUM(Anantnag:Udhampur!U107) -> 0 | AG107: =SUM(Anantnag:Udhampur!Z107) -> 0 | AH107: =SUM(Anantnag:Udhampur!AB107) -> 0
A108: 3.18 | B108: Physical / Self Defence Training @ Rs.200/- per child per annum | C108: =SUM(Anantnag:Udhampur!C108) -> 0 | D108: =SUM(Anantnag:Udhampur!D108) -> 0 | E108: =SUM(Anantnag:Udhampur!E108) -> 0 | F108: =SUM(Anantnag:Udhampur!F108) -> 0 | G108: =SUM(Anantnag:Udhampur!G108) -> 0 | H108: =SUM(Anantnag:Udhampur!H108) -> 0 | I108: =SUM(Anantnag:Udhampur!I108) -> 0 | J108: =SUM(Anantnag:Udhampur!J108) -> 0 | K108: =SUM(Anantnag:Udhampur!K108) -> 0 | L108: =SUM(Anantnag:Udhampur!L108) -> 0 | M108: =SUM(Anantnag:Udhampur!M108) -> 0 | N108: =SUM(Anantnag:Udhampur!N108) -> 0 | P108: =SUM(Anantnag:Udhampur!P108) -> 0 | Q108: =SUM(Anantnag:Udhampur!Q108) -> 0 | R108: =SUM(Anantnag:Udhampur!R108) -> 0 | S108: =SUM(Anantnag:Udhampur!S108) -> 0 | T108: =SUM(Anantnag:Udhampur!T108) -> 0 | U108: =SUM(Anantnag:Udhampur!U108) -> 0 | V108: =SUM(Anantnag:Udhampur!V108) -> 0 | W108: =SUM(Anantnag:Udhampur!W108) -> 0 | Y108: =SUM(Anantnag:Udhampur!Y108) -> 0 | Z108: =SUM(Anantnag:Udhampur!Z108) -> 0 | AA108: =SUM(Anantnag:Udhampur!AA108) -> 0 | AB108: =SUM(Anantnag:Udhampur!AB108) -> 0 | AF108: =SUM(Anantnag:Udhampur!U108) -> 0 | AG108: =SUM(Anantnag:Udhampur!Z108) -> 0 | AH108: =SUM(Anantnag:Udhampur!AB108) -> 0
B109: Sub Total (Recurring) | C109: =SUM(Anantnag:Udhampur!C109) -> 0 | D109: =SUM(Anantnag:Udhampur!D109) -> 0 | E109: =SUM(Anantnag:Udhampur!E109) -> 0 | F109: =SUM(Anantnag:Udhampur!F109) -> 0 | G109: =SUM(Anantnag:Udhampur!G109) -> 0 | H109: =SUM(Anantnag:Udhampur!H109) -> 0 | I109: =SUM(Anantnag:Udhampur!I109) -> 0 | J109: =SUM(Anantnag:Udhampur!J109) -> 0 | K109: =SUM(Anantnag:Udhampur!K109) -> 0 | L109: =SUM(Anantnag:Udhampur!L109) -> 0 | M109: =SUM(Anantnag:Udhampur!M109) -> 0 | N109: =SUM(Anantnag:Udhampur!N109) -> 0 | O109: =SUM(O88:O108) -> 0 | P109: =SUM(Anantnag:Udhampur!P109) -> 0 | Q109: =SUM(Anantnag:Udhampur!Q109) -> 0 | R109: =SUM(Anantnag:Udhampur!R109) -> 0 | S109: =SUM(Anantnag:Udhampur!S109) -> 0 | T109: =SUM(Anantnag:Udhampur!T109) -> 0 | U109: =SUM(Anantnag:Udhampur!U109) -> 0 | V109: =SUM(Anantnag:Udhampur!V109) -> 0 | W109: =SUM(Anantnag:Udhampur!W109) -> 0 | Y109: =SUM(Anantnag:Udhampur!Y109) -> 0 | Z109: =SUM(Anantnag:Udhampur!Z109) -> 0 | AA109: =SUM(Anantnag:Udhampur!AA109) -> 0 | AB109: =SUM(Anantnag:Udhampur!AB109) -> 0 | AF109: =SUM(Anantnag:Udhampur!U109) -> 0 | AG109: =SUM(Anantnag:Udhampur!Z109) -> 0 | AH109: =SUM(Anantnag:Udhampur!AB109) -> 0
B110: Total (Non Recurring + Recurring) | C110: =SUM(Anantnag:Udhampur!C110) -> 0 | D110: =SUM(Anantnag:Udhampur!D110) -> 0 | E110: =SUM(Anantnag:Udhampur!E110) -> 0 | F110: =SUM(Anantnag:Udhampur!F110) -> 0 | G110: =SUM(Anantnag:Udhampur!G110) -> 0 | H110: =SUM(Anantnag:Udhampur!H110) -> 0 | I110: =SUM(Anantnag:Udhampur!I110) -> 0 | J110: =SUM(Anantnag:Udhampur!J110) -> 0 | K110: =SUM(Anantnag:Udhampur!K110) -> 0 | L110: =SUM(Anantnag:Udhampur!L110) -> 0 | M110: =SUM(Anantnag:Udhampur!M110) -> 0 | N110: =SUM(Anantnag:Udhampur!N110) -> 0 | O110: =O86+O109 -> 0 | P110: =SUM(Anantnag:Udhampur!P110) -> 0 | Q110: =SUM(Anantnag:Udhampur!Q110) -> 0 | R110: =SUM(Anantnag:Udhampur!R110) -> 0 | S110: =SUM(Anantnag:Udhampur!S110) -> 0 | T110: =SUM(Anantnag:Udhampur!T110) -> 0 | U110: =SUM(Anantnag:Udhampur!U110) -> 0 | V110: =SUM(Anantnag:Udhampur!V110) -> 0 | W110: =SUM(Anantnag:Udhampur!W110) -> 0 | Y110: =SUM(Anantnag:Udhampur!Y110) -> 0 | Z110: =SUM(Anantnag:Udhampur!Z110) -> 0 | AA110: =SUM(Anantnag:Udhampur!AA110) -> 0 | AB110: =SUM(Anantnag:Udhampur!AB110) -> 0 | AF110: =SUM(Anantnag:Udhampur!U110) -> 0 | AG110: =SUM(Anantnag:Udhampur!Z110) -> 0 | AH110: =SUM(Anantnag:Udhampur!AB110) -> 0
A111: (B) | B111: 100 Children | C111: =SUM(Anantnag:Udhampur!C111) -> 0 | D111: =SUM(Anantnag:Udhampur!D111) -> 0 | E111: =SUM(Anantnag:Udhampur!E111) -> 0 | F111: =SUM(Anantnag:Udhampur!F111) -> 0 | G111: =SUM(Anantnag:Udhampur!G111) -> 0 | H111: =SUM(Anantnag:Udhampur!H111) -> 0 | I111: =SUM(Anantnag:Udhampur!I111) -> 0 | J111: =SUM(Anantnag:Udhampur!J111) -> 0 | K111: =SUM(Anantnag:Udhampur!K111) -> 0 | L111: =SUM(Anantnag:Udhampur!L111) -> 0 | M111: =SUM(Anantnag:Udhampur!M111) -> 0 | N111: =SUM(Anantnag:Udhampur!N111) -> 0 | P111: =SUM(Anantnag:Udhampur!P111) -> 0 | Q111: =SUM(Anantnag:Udhampur!Q111) -> 0 | R111: =SUM(Anantnag:Udhampur!R111) -> 0 | S111: =SUM(Anantnag:Udhampur!S111) -> 0 | T111: =SUM(Anantnag:Udhampur!T111) -> 0 | U111: =SUM(Anantnag:Udhampur!U111) -> 0 | V111: =SUM(Anantnag:Udhampur!V111) -> 0 | W111: =SUM(Anantnag:Udhampur!W111) -> 0 | Y111: =SUM(Anantnag:Udhampur!Y111) -> 0 | Z111: =SUM(Anantnag:Udhampur!Z111) -> 0 | AA111: =SUM(Anantnag:Udhampur!AA111) -> 0 | AB111: =SUM(Anantnag:Udhampur!AB111) -> 0 | AF111: =SUM(Anantnag:Udhampur!U111) -> 0 | AG111: =SUM(Anantnag:Udhampur!Z111) -> 0 | AH111: =SUM(Anantnag:Udhampur!AB111) -> 0
B112: Non-recurring (one time grant) | C112: =SUM(Anantnag:Udhampur!C112) -> 0 | D112: =SUM(Anantnag:Udhampur!D112) -> 0 | E112: =SUM(Anantnag:Udhampur!E112) -> 0 | F112: =SUM(Anantnag:Udhampur!F112) -> 0 | G112: =SUM(Anantnag:Udhampur!G112) -> 0 | H112: =SUM(Anantnag:Udhampur!H112) -> 0 | I112: =SUM(Anantnag:Udhampur!I112) -> 0 | J112: =SUM(Anantnag:Udhampur!J112) -> 0 | K112: =SUM(Anantnag:Udhampur!K112) -> 0 | L112: =SUM(Anantnag:Udhampur!L112) -> 0 | M112: =SUM(Anantnag:Udhampur!M112) -> 0 | N112: =SUM(Anantnag:Udhampur!N112) -> 0 | P112: =SUM(Anantnag:Udhampur!P112) -> 0 | Q112: =SUM(Anantnag:Udhampur!Q112) -> 0 | R112: =SUM(Anantnag:Udhampur!R112) -> 0 | S112: =SUM(Anantnag:Udhampur!S112) -> 0 | T112: =SUM(Anantnag:Udhampur!T112) -> 0 | U112: =SUM(Anantnag:Udhampur!U112) -> 0 | V112: =SUM(Anantnag:Udhampur!V112) -> 0 | W112: =SUM(Anantnag:Udhampur!W112) -> 0 | Y112: =SUM(Anantnag:Udhampur!Y112) -> 0 | Z112: =SUM(Anantnag:Udhampur!Z112) -> 0 | AA112: =SUM(Anantnag:Udhampur!AA112) -> 0 | AB112: =SUM(Anantnag:Udhampur!AB112) -> 0 | AF112: =SUM(Anantnag:Udhampur!U112) -> 0 | AG112: =SUM(Anantnag:Udhampur!Z112) -> 0 | AH112: =SUM(Anantnag:Udhampur!AB112) -> 0
A113: 3.19 | B113: Furniture / Equipment (including kitchen equipment) | C113: =SUM(Anantnag:Udhampur!C113) -> 0 | D113: =SUM(Anantnag:Udhampur!D113) -> 0 | E113: =SUM(Anantnag:Udhampur!E113) -> 0 | F113: =SUM(Anantnag:Udhampur!F113) -> 0 | G113: =SUM(Anantnag:Udhampur!G113) -> 0 | H113: =SUM(Anantnag:Udhampur!H113) -> 0 | I113: =SUM(Anantnag:Udhampur!I113) -> 0 | J113: =SUM(Anantnag:Udhampur!J113) -> 0 | K113: =SUM(Anantnag:Udhampur!K113) -> 0 | L113: =SUM(Anantnag:Udhampur!L113) -> 0 | M113: =SUM(Anantnag:Udhampur!M113) -> 0 | N113: =SUM(Anantnag:Udhampur!N113) -> 0 | P113: =SUM(Anantnag:Udhampur!P113) -> 0 | Q113: =SUM(Anantnag:Udhampur!Q113) -> 0 | R113: =SUM(Anantnag:Udhampur!R113) -> 0 | S113: =SUM(Anantnag:Udhampur!S113) -> 0 | T113: =SUM(Anantnag:Udhampur!T113) -> 0 | U113: =SUM(Anantnag:Udhampur!U113) -> 0 | V113: =SUM(Anantnag:Udhampur!V113) -> 0 | W113: =SUM(Anantnag:Udhampur!W113) -> 0 | Y113: =SUM(Anantnag:Udhampur!Y113) -> 0 | Z113: =SUM(Anantnag:Udhampur!Z113) -> 0 | AA113: =SUM(Anantnag:Udhampur!AA113) -> 0 | AB113: =SUM(Anantnag:Udhampur!AB113) -> 0 | AF113: =SUM(Anantnag:Udhampur!U113) -> 0 | AG113: =SUM(Anantnag:Udhampur!Z113) -> 0 | AH113: =SUM(Anantnag:Udhampur!AB113) -> 0
A114: =+A113+0.01 -> 3.2 | B114: TLM and equipment including library books (New) | C114: =SUM(Anantnag:Udhampur!C114) -> 0 | D114: =SUM(Anantnag:Udhampur!D114) -> 0 | E114: =SUM(Anantnag:Udhampur!E114) -> 0 | F114: =SUM(Anantnag:Udhampur!F114) -> 0 | G114: =SUM(Anantnag:Udhampur!G114) -> 0 | H114: =SUM(Anantnag:Udhampur!H114) -> 0 | I114: =SUM(Anantnag:Udhampur!I114) -> 0 | J114: =SUM(Anantnag:Udhampur!J114) -> 0 | K114: =SUM(Anantnag:Udhampur!K114) -> 0 | L114: =SUM(Anantnag:Udhampur!L114) -> 0 | M114: =SUM(Anantnag:Udhampur!M114) -> 0 | N114: =SUM(Anantnag:Udhampur!N114) -> 0 | P114: =SUM(Anantnag:Udhampur!P114) -> 0 | Q114: =SUM(Anantnag:Udhampur!Q114) -> 0 | R114: =SUM(Anantnag:Udhampur!R114) -> 0 | S114: =SUM(Anantnag:Udhampur!S114) -> 0 | T114: =SUM(Anantnag:Udhampur!T114) -> 0 | U114: =SUM(Anantnag:Udhampur!U114) -> 0 | V114: =SUM(Anantnag:Udhampur!V114) -> 0 | W114: =SUM(Anantnag:Udhampur!W114) -> 0 | Y114: =SUM(Anantnag:Udhampur!Y114) -> 0 | Z114: =SUM(Anantnag:Udhampur!Z114) -> 0 | AA114: =SUM(Anantnag:Udhampur!AA114) -> 0 | AB114: =SUM(Anantnag:Udhampur!AB114) -> 0 | AF114: =SUM(Anantnag:Udhampur!U114) -> 0 | AG114: =SUM(Anantnag:Udhampur!Z114) -> 0 | AH114: =SUM(Anantnag:Udhampur!AB114) -> 0
A115: =+A114+0.01 -> 3.21 | B115: Bedding (New) | C115: =SUM(Anantnag:Udhampur!C115) -> 0 | D115: =SUM(Anantnag:Udhampur!D115) -> 0 | E115: =SUM(Anantnag:Udhampur!E115) -> 0 | F115: =SUM(Anantnag:Udhampur!F115) -> 0 | G115: =SUM(Anantnag:Udhampur!G115) -> 0 | H115: =SUM(Anantnag:Udhampur!H115) -> 0 | I115: =SUM(Anantnag:Udhampur!I115) -> 0 | J115: =SUM(Anantnag:Udhampur!J115) -> 0 | K115: =SUM(Anantnag:Udhampur!K115) -> 0 | L115: =SUM(Anantnag:Udhampur!L115) -> 0 | M115: =SUM(Anantnag:Udhampur!M115) -> 0 | N115: =SUM(Anantnag:Udhampur!N115) -> 0 | P115: =SUM(Anantnag:Udhampur!P115) -> 0 | Q115: =SUM(Anantnag:Udhampur!Q115) -> 0 | R115: =SUM(Anantnag:Udhampur!R115) -> 0 | S115: =SUM(Anantnag:Udhampur!S115) -> 0 | T115: =SUM(Anantnag:Udhampur!T115) -> 0 | U115: =SUM(Anantnag:Udhampur!U115) -> 0 | V115: =SUM(Anantnag:Udhampur!V115) -> 0 | W115: =SUM(Anantnag:Udhampur!W115) -> 0 | Y115: =SUM(Anantnag:Udhampur!Y115) -> 0 | Z115: =SUM(Anantnag:Udhampur!Z115) -> 0 | AA115: =SUM(Anantnag:Udhampur!AA115) -> 0 | AB115: =SUM(Anantnag:Udhampur!AB115) -> 0 | AF115: =SUM(Anantnag:Udhampur!U115) -> 0 | AG115: =SUM(Anantnag:Udhampur!Z115) -> 0 | AH115: =SUM(Anantnag:Udhampur!AB115) -> 0
A116: =+A115+0.01 -> 3.22 | B116: Replacement of bedding (once in 3 years) | C116: =SUM(Anantnag:Udhampur!C116) -> 0 | D116: =SUM(Anantnag:Udhampur!D116) -> 0 | E116: =SUM(Anantnag:Udhampur!E116) -> 0 | F116: =SUM(Anantnag:Udhampur!F116) -> 0 | G116: =SUM(Anantnag:Udhampur!G116) -> 0 | H116: =SUM(Anantnag:Udhampur!H116) -> 0 | I116: =SUM(Anantnag:Udhampur!I116) -> 0 | J116: =SUM(Anantnag:Udhampur!J116) -> 0 | K116: =SUM(Anantnag:Udhampur!K116) -> 0 | L116: =SUM(Anantnag:Udhampur!L116) -> 0 | M116: =SUM(Anantnag:Udhampur!M116) -> 0 | N116: =SUM(Anantnag:Udhampur!N116) -> 0 | P116: =SUM(Anantnag:Udhampur!P116) -> 0 | Q116: =SUM(Anantnag:Udhampur!Q116) -> 0 | R116: =SUM(Anantnag:Udhampur!R116) -> 0 | S116: =SUM(Anantnag:Udhampur!S116) -> 0 | T116: =SUM(Anantnag:Udhampur!T116) -> 0 | U116: =SUM(Anantnag:Udhampur!U116) -> 0 | V116: =SUM(Anantnag:Udhampur!V116) -> 0 | W116: =SUM(Anantnag:Udhampur!W116) -> 0 | Y116: =SUM(Anantnag:Udhampur!Y116) -> 0 | Z116: =SUM(Anantnag:Udhampur!Z116) -> 0 | AA116: =SUM(Anantnag:Udhampur!AA116) -> 0 | AB116: =SUM(Anantnag:Udhampur!AB116) -> 0 | AF116: =SUM(Anantnag:Udhampur!U116) -> 0 | AG116: =SUM(Anantnag:Udhampur!Z116) -> 0 | AH116: =SUM(Anantnag:Udhampur!AB116) -> 0
B117: Sub Total Non-recurring | C117: =SUM(Anantnag:Udhampur!C117) -> 0 | D117: =SUM(Anantnag:Udhampur!D117) -> 0 | E117: =SUM(Anantnag:Udhampur!E117) -> 0 | F117: =SUM(Anantnag:Udhampur!F117) -> 0 | G117: =SUM(Anantnag:Udhampur!G117) -> 0 | H117: =SUM(Anantnag:Udhampur!H117) -> 0 | I117: =SUM(Anantnag:Udhampur!I117) -> 0 | J117: =SUM(Anantnag:Udhampur!J117) -> 0 | K117: =SUM(Anantnag:Udhampur!K117) -> 0 | L117: =SUM(Anantnag:Udhampur!L117) -> 0 | M117: =SUM(Anantnag:Udhampur!M117) -> 0 | N117: =SUM(Anantnag:Udhampur!N117) -> 0 | O117: =SUM(O113:O116) -> 0 | P117: =SUM(Anantnag:Udhampur!P117) -> 0 | Q117: =SUM(Anantnag:Udhampur!Q117) -> 0 | R117: =SUM(Anantnag:Udhampur!R117) -> 0 | S117: =SUM(Anantnag:Udhampur!S117) -> 0 | T117: =SUM(Anantnag:Udhampur!T117) -> 0 | U117: =SUM(Anantnag:Udhampur!U117) -> 0 | V117: =SUM(Anantnag:Udhampur!V117) -> 0 | W117: =SUM(Anantnag:Udhampur!W117) -> 0 | Y117: =SUM(Anantnag:Udhampur!Y117) -> 0 | Z117: =SUM(Anantnag:Udhampur!Z117) -> 0 | AA117: =SUM(Anantnag:Udhampur!AA117) -> 0 | AB117: =SUM(Anantnag:Udhampur!AB117) -> 0 | AF117: =SUM(Anantnag:Udhampur!U117) -> 0 | AG117: =SUM(Anantnag:Udhampur!Z117) -> 0 | AH117: =SUM(Anantnag:Udhampur!AB117) -> 0
B118: Recurring | C118: =SUM(Anantnag:Udhampur!C118) -> 0 | D118: =SUM(Anantnag:Udhampur!D118) -> 0 | E118: =SUM(Anantnag:Udhampur!E118) -> 0 | F118: =SUM(Anantnag:Udhampur!F118) -> 0 | G118: =SUM(Anantnag:Udhampur!G118) -> 0 | H118: =SUM(Anantnag:Udhampur!H118) -> 0 | I118: =SUM(Anantnag:Udhampur!I118) -> 0 | J118: =SUM(Anantnag:Udhampur!J118) -> 0 | K118: =SUM(Anantnag:Udhampur!K118) -> 0 | L118: =SUM(Anantnag:Udhampur!L118) -> 0 | M118: =SUM(Anantnag:Udhampur!M118) -> 0 | N118: =SUM(Anantnag:Udhampur!N118) -> 0 | P118: =SUM(Anantnag:Udhampur!P118) -> 0 | Q118: =SUM(Anantnag:Udhampur!Q118) -> 0 | R118: =SUM(Anantnag:Udhampur!R118) -> 0 | S118: =SUM(Anantnag:Udhampur!S118) -> 0 | T118: =SUM(Anantnag:Udhampur!T118) -> 0 | U118: =SUM(Anantnag:Udhampur!U118) -> 0 | V118: =SUM(Anantnag:Udhampur!V118) -> 0 | W118: =SUM(Anantnag:Udhampur!W118) -> 0 | Y118: =SUM(Anantnag:Udhampur!Y118) -> 0 | Z118: =SUM(Anantnag:Udhampur!Z118) -> 0 | AA118: =SUM(Anantnag:Udhampur!AA118) -> 0 | AB118: =SUM(Anantnag:Udhampur!AB118) -> 0 | AF118: =SUM(Anantnag:Udhampur!U118) -> 0 | AG118: =SUM(Anantnag:Udhampur!Z118) -> 0 | AH118: =SUM(Anantnag:Udhampur!AB118) -> 0
A119: 3.23 | B119: Maintenance @ Rs. 1,500/- per child per month | C119: =SUM(Anantnag:Udhampur!C119) -> 0 | D119: =SUM(Anantnag:Udhampur!D119) -> 0 | E119: =SUM(Anantnag:Udhampur!E119) -> 0 | F119: =SUM(Anantnag:Udhampur!F119) -> 0 | G119: =SUM(Anantnag:Udhampur!G119) -> 0 | H119: =SUM(Anantnag:Udhampur!H119) -> 0 | I119: =SUM(Anantnag:Udhampur!I119) -> 0 | J119: =SUM(Anantnag:Udhampur!J119) -> 0 | K119: =SUM(Anantnag:Udhampur!K119) -> 0 | L119: =SUM(Anantnag:Udhampur!L119) -> 0 | M119: =SUM(Anantnag:Udhampur!M119) -> 0 | N119: =SUM(Anantnag:Udhampur!N119) -> 0 | P119: =SUM(Anantnag:Udhampur!P119) -> 0 | Q119: =SUM(Anantnag:Udhampur!Q119) -> 0 | R119: =SUM(Anantnag:Udhampur!R119) -> 0 | S119: =SUM(Anantnag:Udhampur!S119) -> 0 | T119: =SUM(Anantnag:Udhampur!T119) -> 0 | U119: =SUM(Anantnag:Udhampur!U119) -> 0 | V119: =SUM(Anantnag:Udhampur!V119) -> 0 | W119: =SUM(Anantnag:Udhampur!W119) -> 0 | Y119: =SUM(Anantnag:Udhampur!Y119) -> 0 | Z119: =SUM(Anantnag:Udhampur!Z119) -> 0 | AA119: =SUM(Anantnag:Udhampur!AA119) -> 0 | AB119: =SUM(Anantnag:Udhampur!AB119) -> 0 | AF119: =SUM(Anantnag:Udhampur!U119) -> 0 | AG119: =SUM(Anantnag:Udhampur!Z119) -> 0 | AH119: =SUM(Anantnag:Udhampur!AB119) -> 0
A120: =+A119+0.01 -> 3.24 | B120: Stipend @ Rs.100/- per child per month | C120: =SUM(Anantnag:Udhampur!C120) -> 0 | D120: =SUM(Anantnag:Udhampur!D120) -> 0 | E120: =SUM(Anantnag:Udhampur!E120) -> 0 | F120: =SUM(Anantnag:Udhampur!F120) -> 0 | G120: =SUM(Anantnag:Udhampur!G120) -> 0 | H120: =SUM(Anantnag:Udhampur!H120) -> 0 | I120: =SUM(Anantnag:Udhampur!I120) -> 0 | J120: =SUM(Anantnag:Udhampur!J120) -> 0 | K120: =SUM(Anantnag:Udhampur!K120) -> 0 | L120: =SUM(Anantnag:Udhampur!L120) -> 0 | M120: =SUM(Anantnag:Udhampur!M120) -> 0 | N120: =SUM(Anantnag:Udhampur!N120) -> 0 | P120: =SUM(Anantnag:Udhampur!P120) -> 0 | Q120: =SUM(Anantnag:Udhampur!Q120) -> 0 | R120: =SUM(Anantnag:Udhampur!R120) -> 0 | S120: =SUM(Anantnag:Udhampur!S120) -> 0 | T120: =SUM(Anantnag:Udhampur!T120) -> 0 | U120: =SUM(Anantnag:Udhampur!U120) -> 0 | V120: =SUM(Anantnag:Udhampur!V120) -> 0 | W120: =SUM(Anantnag:Udhampur!W120) -> 0 | Y120: =SUM(Anantnag:Udhampur!Y120) -> 0 | Z120: =SUM(Anantnag:Udhampur!Z120) -> 0 | AA120: =SUM(Anantnag:Udhampur!AA120) -> 0 | AB120: =SUM(Anantnag:Udhampur!AB120) -> 0 | AF120: =SUM(Anantnag:Udhampur!U120) -> 0 | AG120: =SUM(Anantnag:Udhampur!Z120) -> 0 | AH120: =SUM(Anantnag:Udhampur!AB120) -> 0
A121: =+A120+0.01 -> 3.25 | B121: Supplementary TLM, Stationery and other educational material @1,000/- per child per annum | C121: =SUM(Anantnag:Udhampur!C121) -> 0 | D121: =SUM(Anantnag:Udhampur!D121) -> 0 | E121: =SUM(Anantnag:Udhampur!E121) -> 0 | F121: =SUM(Anantnag:Udhampur!F121) -> 0 | G121: =SUM(Anantnag:Udhampur!G121) -> 0 | H121: =SUM(Anantnag:Udhampur!H121) -> 0 | I121: =SUM(Anantnag:Udhampur!I121) -> 0 | J121: =SUM(Anantnag:Udhampur!J121) -> 0 | K121: =SUM(Anantnag:Udhampur!K121) -> 0 | L121: =SUM(Anantnag:Udhampur!L121) -> 0 | M121: =SUM(Anantnag:Udhampur!M121) -> 0 | N121: =SUM(Anantnag:Udhampur!N121) -> 0 | P121: =SUM(Anantnag:Udhampur!P121) -> 0 | Q121: =SUM(Anantnag:Udhampur!Q121) -> 0 | R121: =SUM(Anantnag:Udhampur!R121) -> 0 | S121: =SUM(Anantnag:Udhampur!S121) -> 0 | T121: =SUM(Anantnag:Udhampur!T121) -> 0 | U121: =SUM(Anantnag:Udhampur!U121) -> 0 | V121: =SUM(Anantnag:Udhampur!V121) -> 0 | W121: =SUM(Anantnag:Udhampur!W121) -> 0 | Y121: =SUM(Anantnag:Udhampur!Y121) -> 0 | Z121: =SUM(Anantnag:Udhampur!Z121) -> 0 | AA121: =SUM(Anantnag:Udhampur!AA121) -> 0 | AB121: =SUM(Anantnag:Udhampur!AB121) -> 0 | AF121: =SUM(Anantnag:Udhampur!U121) -> 0 | AG121: =SUM(Anantnag:Udhampur!Z121) -> 0 | AH121: =SUM(Anantnag:Udhampur!AB121) -> 0
A122: 3.26 | B122: Salaries | C122: =SUM(Anantnag:Udhampur!C122) -> 0 | D122: =SUM(Anantnag:Udhampur!D122) -> 0 | E122: =SUM(Anantnag:Udhampur!E122) -> 0 | F122: =SUM(Anantnag:Udhampur!F122) -> 0 | G122: =SUM(Anantnag:Udhampur!G122) -> 0 | H122: =SUM(Anantnag:Udhampur!H122) -> 0 | I122: =SUM(Anantnag:Udhampur!I122) -> 0 | J122: =SUM(Anantnag:Udhampur!J122) -> 0 | K122: =SUM(Anantnag:Udhampur!K122) -> 0 | L122: =SUM(Anantnag:Udhampur!L122) -> 0 | M122: =SUM(Anantnag:Udhampur!M122) -> 0 | N122: =SUM(Anantnag:Udhampur!N122) -> 0 | P122: =SUM(Anantnag:Udhampur!P122) -> 0 | Q122: =SUM(Anantnag:Udhampur!Q122) -> 0 | R122: =SUM(Anantnag:Udhampur!R122) -> 0 | S122: =SUM(Anantnag:Udhampur!S122) -> 0 | T122: =SUM(Anantnag:Udhampur!T122) -> 0 | U122: =SUM(Anantnag:Udhampur!U122) -> 0 | V122: =SUM(Anantnag:Udhampur!V122) -> 0 | W122: =SUM(Anantnag:Udhampur!W122) -> 0 | Y122: =SUM(Anantnag:Udhampur!Y122) -> 0 | Z122: =SUM(Anantnag:Udhampur!Z122) -> 0 | AA122: =SUM(Anantnag:Udhampur!AA122) -> 0 | AB122: =SUM(Anantnag:Udhampur!AB122) -> 0 | AF122: =SUM(Anantnag:Udhampur!U122) -> 0 | AG122: =SUM(Anantnag:Udhampur!Z122) -> 0 | AH122: =SUM(Anantnag:Udhampur!AB122) -> 0
A123: (a) | B123: 1 Warden @ Rs. 25,000/- per month | C123: =SUM(Anantnag:Udhampur!C123) -> 0 | D123: =SUM(Anantnag:Udhampur!D123) -> 0 | E123: =SUM(Anantnag:Udhampur!E123) -> 0 | F123: =SUM(Anantnag:Udhampur!F123) -> 0 | G123: =SUM(Anantnag:Udhampur!G123) -> 0 | H123: =SUM(Anantnag:Udhampur!H123) -> 0 | I123: =SUM(Anantnag:Udhampur!I123) -> 0 | J123: =SUM(Anantnag:Udhampur!J123) -> 0 | K123: =SUM(Anantnag:Udhampur!K123) -> 0 | L123: =SUM(Anantnag:Udhampur!L123) -> 0 | M123: =SUM(Anantnag:Udhampur!M123) -> 0 | N123: =SUM(Anantnag:Udhampur!N123) -> 0 | P123: =SUM(Anantnag:Udhampur!P123) -> 0 | Q123: =SUM(Anantnag:Udhampur!Q123) -> 0 | R123: =SUM(Anantnag:Udhampur!R123) -> 0 | S123: =SUM(Anantnag:Udhampur!S123) -> 0 | T123: =SUM(Anantnag:Udhampur!T123) -> 0 | U123: =SUM(Anantnag:Udhampur!U123) -> 0 | V123: =SUM(Anantnag:Udhampur!V123) -> 0 | W123: =SUM(Anantnag:Udhampur!W123) -> 0 | Y123: =SUM(Anantnag:Udhampur!Y123) -> 0 | Z123: =SUM(Anantnag:Udhampur!Z123) -> 0 | AA123: =SUM(Anantnag:Udhampur!AA123) -> 0 | AB123: =SUM(Anantnag:Udhampur!AB123) -> 0 | AF123: =SUM(Anantnag:Udhampur!U123) -> 0 | AG123: =SUM(Anantnag:Udhampur!Z123) -> 0 | AH123: =SUM(Anantnag:Udhampur!AB123) -> 0
A124: (b) | B124: 1 head teacher @ Rs. 25,000/- per month in case the enrollment exceeds 100 | C124: =SUM(Anantnag:Udhampur!C124) -> 0 | D124: =SUM(Anantnag:Udhampur!D124) -> 0 | E124: =SUM(Anantnag:Udhampur!E124) -> 0 | F124: =SUM(Anantnag:Udhampur!F124) -> 0 | G124: =SUM(Anantnag:Udhampur!G124) -> 0 | H124: =SUM(Anantnag:Udhampur!H124) -> 0 | I124: =SUM(Anantnag:Udhampur!I124) -> 0 | J124: =SUM(Anantnag:Udhampur!J124) -> 0 | K124: =SUM(Anantnag:Udhampur!K124) -> 0 | L124: =SUM(Anantnag:Udhampur!L124) -> 0 | M124: =SUM(Anantnag:Udhampur!M124) -> 0 | N124: =SUM(Anantnag:Udhampur!N124) -> 0 | P124: =SUM(Anantnag:Udhampur!P124) -> 0 | Q124: =SUM(Anantnag:Udhampur!Q124) -> 0 | R124: =SUM(Anantnag:Udhampur!R124) -> 0 | S124: =SUM(Anantnag:Udhampur!S124) -> 0 | T124: =SUM(Anantnag:Udhampur!T124) -> 0 | U124: =SUM(Anantnag:Udhampur!U124) -> 0 | V124: =SUM(Anantnag:Udhampur!V124) -> 0 | W124: =SUM(Anantnag:Udhampur!W124) -> 0 | Y124: =SUM(Anantnag:Udhampur!Y124) -> 0 | Z124: =SUM(Anantnag:Udhampur!Z124) -> 0 | AA124: =SUM(Anantnag:Udhampur!AA124) -> 0 | AB124: =SUM(Anantnag:Udhampur!AB124) -> 0 | AF124: =SUM(Anantnag:Udhampur!U124) -> 0 | AG124: =SUM(Anantnag:Udhampur!Z124) -> 0 | AH124: =SUM(Anantnag:Udhampur!AB124) -> 0
A125: (c) | B125: 4 - 5 Full time teachers as per RTE norms @ Rs. 20,000/- per month per teacher | C125: =SUM(Anantnag:Udhampur!C125) -> 0 | D125: =SUM(Anantnag:Udhampur!D125) -> 0 | E125: =SUM(Anantnag:Udhampur!E125) -> 0 | F125: =SUM(Anantnag:Udhampur!F125) -> 0 | G125: =SUM(Anantnag:Udhampur!G125) -> 0 | H125: =SUM(Anantnag:Udhampur!H125) -> 0 | I125: =SUM(Anantnag:Udhampur!I125) -> 0 | J125: =SUM(Anantnag:Udhampur!J125) -> 0 | K125: =SUM(Anantnag:Udhampur!K125) -> 0 | L125: =SUM(Anantnag:Udhampur!L125) -> 0 | M125: =SUM(Anantnag:Udhampur!M125) -> 0 | N125: =SUM(Anantnag:Udhampur!N125) -> 0 | P125: =SUM(Anantnag:Udhampur!P125) -> 0 | Q125: =SUM(Anantnag:Udhampur!Q125) -> 0 | R125: =SUM(Anantnag:Udhampur!R125) -> 0 | S125: =SUM(Anantnag:Udhampur!S125) -> 0 | T125: =SUM(Anantnag:Udhampur!T125) -> 0 | U125: =SUM(Anantnag:Udhampur!U125) -> 0 | V125: =SUM(Anantnag:Udhampur!V125) -> 0 | W125: =SUM(Anantnag:Udhampur!W125) -> 0 | Y125: =SUM(Anantnag:Udhampur!Y125) -> 0 | Z125: =SUM(Anantnag:Udhampur!Z125) -> 0 | AA125: =SUM(Anantnag:Udhampur!AA125) -> 0 | AB125: =SUM(Anantnag:Udhampur!AB125) -> 0 | AF125: =SUM(Anantnag:Udhampur!U125) -> 0 | AG125: =SUM(Anantnag:Udhampur!Z125) -> 0 | AH125: =SUM(Anantnag:Udhampur!AB125) -> 0
A126: (d) | B126: 2 Urdu Teachers (only for blocks with muslim population above 20% and select urban areas), if required @ Rs. 12,000/- per month per teacher | C126: =SUM(Anantnag:Udhampur!C126) -> 0 | D126: =SUM(Anantnag:Udhampur!D126) -> 0 | E126: =SUM(Anantnag:Udhampur!E126) -> 0 | F126: =SUM(Anantnag:Udhampur!F126) -> 0 | G126: =SUM(Anantnag:Udhampur!G126) -> 0 | H126: =SUM(Anantnag:Udhampur!H126) -> 0 | I126: =SUM(Anantnag:Udhampur!I126) -> 0 | J126: =SUM(Anantnag:Udhampur!J126) -> 0 | K126: =SUM(Anantnag:Udhampur!K126) -> 0 | L126: =SUM(Anantnag:Udhampur!L126) -> 0 | M126: =SUM(Anantnag:Udhampur!M126) -> 0 | N126: =SUM(Anantnag:Udhampur!N126) -> 0 | P126: =SUM(Anantnag:Udhampur!P126) -> 0 | Q126: =SUM(Anantnag:Udhampur!Q126) -> 0 | R126: =SUM(Anantnag:Udhampur!R126) -> 0 | S126: =SUM(Anantnag:Udhampur!S126) -> 0 | T126: =SUM(Anantnag:Udhampur!T126) -> 0 | U126: =SUM(Anantnag:Udhampur!U126) -> 0 | V126: =SUM(Anantnag:Udhampur!V126) -> 0 | W126: =SUM(Anantnag:Udhampur!W126) -> 0 | Y126: =SUM(Anantnag:Udhampur!Y126) -> 0 | Z126: =SUM(Anantnag:Udhampur!Z126) -> 0 | AA126: =SUM(Anantnag:Udhampur!AA126) -> 0 | AB126: =SUM(Anantnag:Udhampur!AB126) -> 0 | AF126: =SUM(Anantnag:Udhampur!U126) -> 0 | AG126: =SUM(Anantnag:Udhampur!Z126) -> 0 | AH126: =SUM(Anantnag:Udhampur!AB126) -> 0
A127: (e) | B127: 3 part time teachers @ Rs. 5,000/- per month per teacher | C127: =SUM(Anantnag:Udhampur!C127) -> 0 | D127: =SUM(Anantnag:Udhampur!D127) -> 0 | E127: =SUM(Anantnag:Udhampur!E127) -> 0 | F127: =SUM(Anantnag:Udhampur!F127) -> 0 | G127: =SUM(Anantnag:Udhampur!G127) -> 0 | H127: =SUM(Anantnag:Udhampur!H127) -> 0 | I127: =SUM(Anantnag:Udhampur!I127) -> 0 | J127: =SUM(Anantnag:Udhampur!J127) -> 0 | K127: =SUM(Anantnag:Udhampur!K127) -> 0 | L127: =SUM(Anantnag:Udhampur!L127) -> 0 | M127: =SUM(Anantnag:Udhampur!M127) -> 0 | N127: =SUM(Anantnag:Udhampur!N127) -> 0 | P127: =SUM(Anantnag:Udhampur!P127) -> 0 | Q127: =SUM(Anantnag:Udhampur!Q127) -> 0 | R127: =SUM(Anantnag:Udhampur!R127) -> 0 | S127: =SUM(Anantnag:Udhampur!S127) -> 0 | T127: =SUM(Anantnag:Udhampur!T127) -> 0 | U127: =SUM(Anantnag:Udhampur!U127) -> 0 | V127: =SUM(Anantnag:Udhampur!V127) -> 0 | W127: =SUM(Anantnag:Udhampur!W127) -> 0 | Y127: =SUM(Anantnag:Udhampur!Y127) -> 0 | Z127: =SUM(Anantnag:Udhampur!Z127) -> 0 | AA127: =SUM(Anantnag:Udhampur!AA127) -> 0 | AB127: =SUM(Anantnag:Udhampur!AB127) -> 0 | AF127: =SUM(Anantnag:Udhampur!U127) -> 0 | AG127: =SUM(Anantnag:Udhampur!Z127) -> 0 | AH127: =SUM(Anantnag:Udhampur!AB127) -> 0
A128: (f) | B128: 1 Full time Accountant @ Rs. 10,000/- per month | C128: =SUM(Anantnag:Udhampur!C128) -> 0 | D128: =SUM(Anantnag:Udhampur!D128) -> 0 | E128: =SUM(Anantnag:Udhampur!E128) -> 0 | F128: =SUM(Anantnag:Udhampur!F128) -> 0 | G128: =SUM(Anantnag:Udhampur!G128) -> 0 | H128: =SUM(Anantnag:Udhampur!H128) -> 0 | I128: =SUM(Anantnag:Udhampur!I128) -> 0 | J128: =SUM(Anantnag:Udhampur!J128) -> 0 | K128: =SUM(Anantnag:Udhampur!K128) -> 0 | L128: =SUM(Anantnag:Udhampur!L128) -> 0 | M128: =SUM(Anantnag:Udhampur!M128) -> 0 | N128: =SUM(Anantnag:Udhampur!N128) -> 0 | P128: =SUM(Anantnag:Udhampur!P128) -> 0 | Q128: =SUM(Anantnag:Udhampur!Q128) -> 0 | R128: =SUM(Anantnag:Udhampur!R128) -> 0 | S128: =SUM(Anantnag:Udhampur!S128) -> 0 | T128: =SUM(Anantnag:Udhampur!T128) -> 0 | U128: =SUM(Anantnag:Udhampur!U128) -> 0 | V128: =SUM(Anantnag:Udhampur!V128) -> 0 | W128: =SUM(Anantnag:Udhampur!W128) -> 0 | Y128: =SUM(Anantnag:Udhampur!Y128) -> 0 | Z128: =SUM(Anantnag:Udhampur!Z128) -> 0 | AA128: =SUM(Anantnag:Udhampur!AA128) -> 0 | AB128: =SUM(Anantnag:Udhampur!AB128) -> 0 | AF128: =SUM(Anantnag:Udhampur!U128) -> 0 | AG128: =SUM(Anantnag:Udhampur!Z128) -> 0 | AH128: =SUM(Anantnag:Udhampur!AB128) -> 0
A129: (g) | B129: 2 Support Staff – (Accountant/ Assistant, Peon, Chowkidar) @ Rs. 5,000/- per month per staff | C129: =SUM(Anantnag:Udhampur!C129) -> 0 | D129: =SUM(Anantnag:Udhampur!D129) -> 0 | E129: =SUM(Anantnag:Udhampur!E129) -> 0 | F129: =SUM(Anantnag:Udhampur!F129) -> 0 | G129: =SUM(Anantnag:Udhampur!G129) -> 0 | H129: =SUM(Anantnag:Udhampur!H129) -> 0 | I129: =SUM(Anantnag:Udhampur!I129) -> 0 | J129: =SUM(Anantnag:Udhampur!J129) -> 0 | K129: =SUM(Anantnag:Udhampur!K129) -> 0 | L129: =SUM(Anantnag:Udhampur!L129) -> 0 | M129: =SUM(Anantnag:Udhampur!M129) -> 0 | N129: =SUM(Anantnag:Udhampur!N129) -> 0 | P129: =SUM(Anantnag:Udhampur!P129) -> 0 | Q129: =SUM(Anantnag:Udhampur!Q129) -> 0 | R129: =SUM(Anantnag:Udhampur!R129) -> 0 | S129: =SUM(Anantnag:Udhampur!S129) -> 0 | T129: =SUM(Anantnag:Udhampur!T129) -> 0 | U129: =SUM(Anantnag:Udhampur!U129) -> 0 | V129: =SUM(Anantnag:Udhampur!V129) -> 0 | W129: =SUM(Anantnag:Udhampur!W129) -> 0 | Y129: =SUM(Anantnag:Udhampur!Y129) -> 0 | Z129: =SUM(Anantnag:Udhampur!Z129) -> 0 | AA129: =SUM(Anantnag:Udhampur!AA129) -> 0 | AB129: =SUM(Anantnag:Udhampur!AB129) -> 0 | AF129: =SUM(Anantnag:Udhampur!U129) -> 0 | AG129: =SUM(Anantnag:Udhampur!Z129) -> 0 | AH129: =SUM(Anantnag:Udhampur!AB129) -> 0
A130: (h) | B130: 1 Head cook @ Rs. 6,000/- per month and upto 2 Asstt. Cooks @ Rs. 4,500/- per month per cook | C130: =SUM(Anantnag:Udhampur!C130) -> 0 | D130: =SUM(Anantnag:Udhampur!D130) -> 0 | E130: =SUM(Anantnag:Udhampur!E130) -> 0 | F130: =SUM(Anantnag:Udhampur!F130) -> 0 | G130: =SUM(Anantnag:Udhampur!G130) -> 0 | H130: =SUM(Anantnag:Udhampur!H130) -> 0 | I130: =SUM(Anantnag:Udhampur!I130) -> 0 | J130: =SUM(Anantnag:Udhampur!J130) -> 0 | K130: =SUM(Anantnag:Udhampur!K130) -> 0 | L130: =SUM(Anantnag:Udhampur!L130) -> 0 | M130: =SUM(Anantnag:Udhampur!M130) -> 0 | N130: =SUM(Anantnag:Udhampur!N130) -> 0 | P130: =SUM(Anantnag:Udhampur!P130) -> 0 | Q130: =SUM(Anantnag:Udhampur!Q130) -> 0 | R130: =SUM(Anantnag:Udhampur!R130) -> 0 | S130: =SUM(Anantnag:Udhampur!S130) -> 0 | T130: =SUM(Anantnag:Udhampur!T130) -> 0 | U130: =SUM(Anantnag:Udhampur!U130) -> 0 | V130: =SUM(Anantnag:Udhampur!V130) -> 0 | W130: =SUM(Anantnag:Udhampur!W130) -> 0 | Y130: =SUM(Anantnag:Udhampur!Y130) -> 0 | Z130: =SUM(Anantnag:Udhampur!Z130) -> 0 | AA130: =SUM(Anantnag:Udhampur!AA130) -> 0 | AB130: =SUM(Anantnag:Udhampur!AB130) -> 0 | AF130: =SUM(Anantnag:Udhampur!U130) -> 0 | AG130: =SUM(Anantnag:Udhampur!Z130) -> 0 | AH130: =SUM(Anantnag:Udhampur!AB130) -> 0
A131: 3.27 | B131: Specific skill training @ Rs.1,000/- per child per annum | C131: =SUM(Anantnag:Udhampur!C131) -> 0 | D131: =SUM(Anantnag:Udhampur!D131) -> 0 | E131: =SUM(Anantnag:Udhampur!E131) -> 0 | F131: =SUM(Anantnag:Udhampur!F131) -> 0 | G131: =SUM(Anantnag:Udhampur!G131) -> 0 | H131: =SUM(Anantnag:Udhampur!H131) -> 0 | I131: =SUM(Anantnag:Udhampur!I131) -> 0 | J131: =SUM(Anantnag:Udhampur!J131) -> 0 | K131: =SUM(Anantnag:Udhampur!K131) -> 0 | L131: =SUM(Anantnag:Udhampur!L131) -> 0 | M131: =SUM(Anantnag:Udhampur!M131) -> 0 | N131: =SUM(Anantnag:Udhampur!N131) -> 0 | P131: =SUM(Anantnag:Udhampur!P131) -> 0 | Q131: =SUM(Anantnag:Udhampur!Q131) -> 0 | R131: =SUM(Anantnag:Udhampur!R131) -> 0 | S131: =SUM(Anantnag:Udhampur!S131) -> 0 | T131: =SUM(Anantnag:Udhampur!T131) -> 0 | U131: =SUM(Anantnag:Udhampur!U131) -> 0 | V131: =SUM(Anantnag:Udhampur!V131) -> 0 | W131: =SUM(Anantnag:Udhampur!W131) -> 0 | Y131: =SUM(Anantnag:Udhampur!Y131) -> 0 | Z131: =SUM(Anantnag:Udhampur!Z131) -> 0 | AA131: =SUM(Anantnag:Udhampur!AA131) -> 0 | AB131: =SUM(Anantnag:Udhampur!AB131) -> 0 | AF131: =SUM(Anantnag:Udhampur!U131) -> 0 | AG131: =SUM(Anantnag:Udhampur!Z131) -> 0 | AH131: =SUM(Anantnag:Udhampur!AB131) -> 0
A132: =+A131+0.01 -> 3.28 | B132: Electricity / water charges @ Rs.1,000/- per child per annum | C132: =SUM(Anantnag:Udhampur!C132) -> 0 | D132: =SUM(Anantnag:Udhampur!D132) -> 0 | E132: =SUM(Anantnag:Udhampur!E132) -> 0 | F132: =SUM(Anantnag:Udhampur!F132) -> 0 | G132: =SUM(Anantnag:Udhampur!G132) -> 0 | H132: =SUM(Anantnag:Udhampur!H132) -> 0 | I132: =SUM(Anantnag:Udhampur!I132) -> 0 | J132: =SUM(Anantnag:Udhampur!J132) -> 0 | K132: =SUM(Anantnag:Udhampur!K132) -> 0 | L132: =SUM(Anantnag:Udhampur!L132) -> 0 | M132: =SUM(Anantnag:Udhampur!M132) -> 0 | N132: =SUM(Anantnag:Udhampur!N132) -> 0 | P132: =SUM(Anantnag:Udhampur!P132) -> 0 | Q132: =SUM(Anantnag:Udhampur!Q132) -> 0 | R132: =SUM(Anantnag:Udhampur!R132) -> 0 | S132: =SUM(Anantnag:Udhampur!S132) -> 0 | T132: =SUM(Anantnag:Udhampur!T132) -> 0 | U132: =SUM(Anantnag:Udhampur!U132) -> 0 | V132: =SUM(Anantnag:Udhampur!V132) -> 0 | W132: =SUM(Anantnag:Udhampur!W132) -> 0 | Y132: =SUM(Anantnag:Udhampur!Y132) -> 0 | Z132: =SUM(Anantnag:Udhampur!Z132) -> 0 | AA132: =SUM(Anantnag:Udhampur!AA132) -> 0 | AB132: =SUM(Anantnag:Udhampur!AB132) -> 0 | AF132: =SUM(Anantnag:Udhampur!U132) -> 0 | AG132: =SUM(Anantnag:Udhampur!Z132) -> 0 | AH132: =SUM(Anantnag:Udhampur!AB132) -> 0
A133: 3.29 | B133: Medical care/contingencies @ Rs.1,250/- per child per annum | C133: =SUM(Anantnag:Udhampur!C133) -> 0 | D133: =SUM(Anantnag:Udhampur!D133) -> 0 | E133: =SUM(Anantnag:Udhampur!E133) -> 0 | F133: =SUM(Anantnag:Udhampur!F133) -> 0 | G133: =SUM(Anantnag:Udhampur!G133) -> 0 | H133: =SUM(Anantnag:Udhampur!H133) -> 0 | I133: =SUM(Anantnag:Udhampur!I133) -> 0 | J133: =SUM(Anantnag:Udhampur!J133) -> 0 | K133: =SUM(Anantnag:Udhampur!K133) -> 0 | L133: =SUM(Anantnag:Udhampur!L133) -> 0 | M133: =SUM(Anantnag:Udhampur!M133) -> 0 | N133: =SUM(Anantnag:Udhampur!N133) -> 0 | P133: =SUM(Anantnag:Udhampur!P133) -> 0 | Q133: =SUM(Anantnag:Udhampur!Q133) -> 0 | R133: =SUM(Anantnag:Udhampur!R133) -> 0 | S133: =SUM(Anantnag:Udhampur!S133) -> 0 | T133: =SUM(Anantnag:Udhampur!T133) -> 0 | U133: =SUM(Anantnag:Udhampur!U133) -> 0 | V133: =SUM(Anantnag:Udhampur!V133) -> 0 | W133: =SUM(Anantnag:Udhampur!W133) -> 0 | Y133: =SUM(Anantnag:Udhampur!Y133) -> 0 | Z133: =SUM(Anantnag:Udhampur!Z133) -> 0 | AA133: =SUM(Anantnag:Udhampur!AA133) -> 0 | AB133: =SUM(Anantnag:Udhampur!AB133) -> 0 | AF133: =SUM(Anantnag:Udhampur!U133) -> 0 | AG133: =SUM(Anantnag:Udhampur!Z133) -> 0 | AH133: =SUM(Anantnag:Udhampur!AB133) -> 0
A134: 3.3 | B134: Maintenance @ Rs.750/- per child per annum | C134: =SUM(Anantnag:Udhampur!C134) -> 0 | D134: =SUM(Anantnag:Udhampur!D134) -> 0 | E134: =SUM(Anantnag:Udhampur!E134) -> 0 | F134: =SUM(Anantnag:Udhampur!F134) -> 0 | G134: =SUM(Anantnag:Udhampur!G134) -> 0 | H134: =SUM(Anantnag:Udhampur!H134) -> 0 | I134: =SUM(Anantnag:Udhampur!I134) -> 0 | J134: =SUM(Anantnag:Udhampur!J134) -> 0 | K134: =SUM(Anantnag:Udhampur!K134) -> 0 | L134: =SUM(Anantnag:Udhampur!L134) -> 0 | M134: =SUM(Anantnag:Udhampur!M134) -> 0 | N134: =SUM(Anantnag:Udhampur!N134) -> 0 | P134: =SUM(Anantnag:Udhampur!P134) -> 0 | Q134: =SUM(Anantnag:Udhampur!Q134) -> 0 | R134: =SUM(Anantnag:Udhampur!R134) -> 0 | S134: =SUM(Anantnag:Udhampur!S134) -> 0 | T134: =SUM(Anantnag:Udhampur!T134) -> 0 | U134: =SUM(Anantnag:Udhampur!U134) -> 0 | V134: =SUM(Anantnag:Udhampur!V134) -> 0 | W134: =SUM(Anantnag:Udhampur!W134) -> 0 | Y134: =SUM(Anantnag:Udhampur!Y134) -> 0 | Z134: =SUM(Anantnag:Udhampur!Z134) -> 0 | AA134: =SUM(Anantnag:Udhampur!AA134) -> 0 | AB134: =SUM(Anantnag:Udhampur!AB134) -> 0 | AF134: =SUM(Anantnag:Udhampur!U134) -> 0 | AG134: =SUM(Anantnag:Udhampur!Z134) -> 0 | AH134: =SUM(Anantnag:Udhampur!AB134) -> 0
A135: 3.31 | B135: Miscellaneous @ Rs.750/- per child per annum | C135: =SUM(Anantnag:Udhampur!C135) -> 0 | D135: =SUM(Anantnag:Udhampur!D135) -> 0 | E135: =SUM(Anantnag:Udhampur!E135) -> 0 | F135: =SUM(Anantnag:Udhampur!F135) -> 0 | G135: =SUM(Anantnag:Udhampur!G135) -> 0 | H135: =SUM(Anantnag:Udhampur!H135) -> 0 | I135: =SUM(Anantnag:Udhampur!I135) -> 0 | J135: =SUM(Anantnag:Udhampur!J135) -> 0 | K135: =SUM(Anantnag:Udhampur!K135) -> 0 | L135: =SUM(Anantnag:Udhampur!L135) -> 0 | M135: =SUM(Anantnag:Udhampur!M135) -> 0 | N135: =SUM(Anantnag:Udhampur!N135) -> 0 | P135: =SUM(Anantnag:Udhampur!P135) -> 0 | Q135: =SUM(Anantnag:Udhampur!Q135) -> 0 | R135: =SUM(Anantnag:Udhampur!R135) -> 0 | S135: =SUM(Anantnag:Udhampur!S135) -> 0 | T135: =SUM(Anantnag:Udhampur!T135) -> 0 | U135: =SUM(Anantnag:Udhampur!U135) -> 0 | V135: =SUM(Anantnag:Udhampur!V135) -> 0 | W135: =SUM(Anantnag:Udhampur!W135) -> 0 | Y135: =SUM(Anantnag:Udhampur!Y135) -> 0 | Z135: =SUM(Anantnag:Udhampur!Z135) -> 0 | AA135: =SUM(Anantnag:Udhampur!AA135) -> 0 | AB135: =SUM(Anantnag:Udhampur!AB135) -> 0 | AF135: =SUM(Anantnag:Udhampur!U135) -> 0 | AG135: =SUM(Anantnag:Udhampur!Z135) -> 0 | AH135: =SUM(Anantnag:Udhampur!AB135) -> 0
A136: 3.32 | B136: Preparatory camps @ Rs.200/- per child per annum | C136: =SUM(Anantnag:Udhampur!C136) -> 0 | D136: =SUM(Anantnag:Udhampur!D136) -> 0 | E136: =SUM(Anantnag:Udhampur!E136) -> 0 | F136: =SUM(Anantnag:Udhampur!F136) -> 0 | G136: =SUM(Anantnag:Udhampur!G136) -> 0 | H136: =SUM(Anantnag:Udhampur!H136) -> 0 | I136: =SUM(Anantnag:Udhampur!I136) -> 0 | J136: =SUM(Anantnag:Udhampur!J136) -> 0 | K136: =SUM(Anantnag:Udhampur!K136) -> 0 | L136: =SUM(Anantnag:Udhampur!L136) -> 0 | M136: =SUM(Anantnag:Udhampur!M136) -> 0 | N136: =SUM(Anantnag:Udhampur!N136) -> 0 | P136: =SUM(Anantnag:Udhampur!P136) -> 0 | Q136: =SUM(Anantnag:Udhampur!Q136) -> 0 | R136: =SUM(Anantnag:Udhampur!R136) -> 0 | S136: =SUM(Anantnag:Udhampur!S136) -> 0 | T136: =SUM(Anantnag:Udhampur!T136) -> 0 | U136: =SUM(Anantnag:Udhampur!U136) -> 0 | V136: =SUM(Anantnag:Udhampur!V136) -> 0 | W136: =SUM(Anantnag:Udhampur!W136) -> 0 | Y136: =SUM(Anantnag:Udhampur!Y136) -> 0 | Z136: =SUM(Anantnag:Udhampur!Z136) -> 0 | AA136: =SUM(Anantnag:Udhampur!AA136) -> 0 | AB136: =SUM(Anantnag:Udhampur!AB136) -> 0 | AF136: =SUM(Anantnag:Udhampur!U136) -> 0 | AG136: =SUM(Anantnag:Udhampur!Z136) -> 0 | AH136: =SUM(Anantnag:Udhampur!AB136) -> 0
A137: 3.33 | B137: P.T.A / school functions @ Rs.200/- per child per annum | C137: =SUM(Anantnag:Udhampur!C137) -> 0 | D137: =SUM(Anantnag:Udhampur!D137) -> 0 | E137: =SUM(Anantnag:Udhampur!E137) -> 0 | F137: =SUM(Anantnag:Udhampur!F137) -> 0 | G137: =SUM(Anantnag:Udhampur!G137) -> 0 | H137: =SUM(Anantnag:Udhampur!H137) -> 0 | I137: =SUM(Anantnag:Udhampur!I137) -> 0 | J137: =SUM(Anantnag:Udhampur!J137) -> 0 | K137: =SUM(Anantnag:Udhampur!K137) -> 0 | L137: =SUM(Anantnag:Udhampur!L137) -> 0 | M137: =SUM(Anantnag:Udhampur!M137) -> 0 | N137: =SUM(Anantnag:Udhampur!N137) -> 0 | P137: =SUM(Anantnag:Udhampur!P137) -> 0 | Q137: =SUM(Anantnag:Udhampur!Q137) -> 0 | R137: =SUM(Anantnag:Udhampur!R137) -> 0 | S137: =SUM(Anantnag:Udhampur!S137) -> 0 | T137: =SUM(Anantnag:Udhampur!T137) -> 0 | U137: =SUM(Anantnag:Udhampur!U137) -> 0 | V137: =SUM(Anantnag:Udhampur!V137) -> 0 | W137: =SUM(Anantnag:Udhampur!W137) -> 0 | Y137: =SUM(Anantnag:Udhampur!Y137) -> 0 | Z137: =SUM(Anantnag:Udhampur!Z137) -> 0 | AA137: =SUM(Anantnag:Udhampur!AA137) -> 0 | AB137: =SUM(Anantnag:Udhampur!AB137) -> 0 | AF137: =SUM(Anantnag:Udhampur!U137) -> 0 | AG137: =SUM(Anantnag:Udhampur!Z137) -> 0 | AH137: =SUM(Anantnag:Udhampur!AB137) -> 0
A138: 3.34 | B138: Provision of Rent @ Rs. 6,000/- per child per annum | C138: =SUM(Anantnag:Udhampur!C138) -> 0 | D138: =SUM(Anantnag:Udhampur!D138) -> 0 | E138: =SUM(Anantnag:Udhampur!E138) -> 0 | F138: =SUM(Anantnag:Udhampur!F138) -> 0 | G138: =SUM(Anantnag:Udhampur!G138) -> 0 | H138: =SUM(Anantnag:Udhampur!H138) -> 0 | I138: =SUM(Anantnag:Udhampur!I138) -> 0 | J138: =SUM(Anantnag:Udhampur!J138) -> 0 | K138: =SUM(Anantnag:Udhampur!K138) -> 0 | L138: =SUM(Anantnag:Udhampur!L138) -> 0 | M138: =SUM(Anantnag:Udhampur!M138) -> 0 | N138: =SUM(Anantnag:Udhampur!N138) -> 0 | P138: =SUM(Anantnag:Udhampur!P138) -> 0 | Q138: =SUM(Anantnag:Udhampur!Q138) -> 0 | R138: =SUM(Anantnag:Udhampur!R138) -> 0 | S138: =SUM(Anantnag:Udhampur!S138) -> 0 | T138: =SUM(Anantnag:Udhampur!T138) -> 0 | U138: =SUM(Anantnag:Udhampur!U138) -> 0 | V138: =SUM(Anantnag:Udhampur!V138) -> 0 | W138: =SUM(Anantnag:Udhampur!W138) -> 0 | Y138: =SUM(Anantnag:Udhampur!Y138) -> 0 | Z138: =SUM(Anantnag:Udhampur!Z138) -> 0 | AA138: =SUM(Anantnag:Udhampur!AA138) -> 0 | AB138: =SUM(Anantnag:Udhampur!AB138) -> 0 | AF138: =SUM(Anantnag:Udhampur!U138) -> 0 | AG138: =SUM(Anantnag:Udhampur!Z138) -> 0 | AH138: =SUM(Anantnag:Udhampur!AB138) -> 0
A139: 3.35 | B139: Capacity Building @ Rs.500/- per child per annum | C139: =SUM(Anantnag:Udhampur!C139) -> 0 | D139: =SUM(Anantnag:Udhampur!D139) -> 0 | E139: =SUM(Anantnag:Udhampur!E139) -> 0 | F139: =SUM(Anantnag:Udhampur!F139) -> 0 | G139: =SUM(Anantnag:Udhampur!G139) -> 0 | H139: =SUM(Anantnag:Udhampur!H139) -> 0 | I139: =SUM(Anantnag:Udhampur!I139) -> 0 | J139: =SUM(Anantnag:Udhampur!J139) -> 0 | K139: =SUM(Anantnag:Udhampur!K139) -> 0 | L139: =SUM(Anantnag:Udhampur!L139) -> 0 | M139: =SUM(Anantnag:Udhampur!M139) -> 0 | N139: =SUM(Anantnag:Udhampur!N139) -> 0 | P139: =SUM(Anantnag:Udhampur!P139) -> 0 | Q139: =SUM(Anantnag:Udhampur!Q139) -> 0 | R139: =SUM(Anantnag:Udhampur!R139) -> 0 | S139: =SUM(Anantnag:Udhampur!S139) -> 0 | T139: =SUM(Anantnag:Udhampur!T139) -> 0 | U139: =SUM(Anantnag:Udhampur!U139) -> 0 | V139: =SUM(Anantnag:Udhampur!V139) -> 0 | W139: =SUM(Anantnag:Udhampur!W139) -> 0 | Y139: =SUM(Anantnag:Udhampur!Y139) -> 0 | Z139: =SUM(Anantnag:Udhampur!Z139) -> 0 | AA139: =SUM(Anantnag:Udhampur!AA139) -> 0 | AB139: =SUM(Anantnag:Udhampur!AB139) -> 0 | AF139: =SUM(Anantnag:Udhampur!U139) -> 0 | AG139: =SUM(Anantnag:Udhampur!Z139) -> 0 | AH139: =SUM(Anantnag:Udhampur!AB139) -> 0
A140: 3.36 | B140: Physical / Self Defence training @ Rs. 200/- per child per annum. | C140: =SUM(Anantnag:Udhampur!C140) -> 0 | D140: =SUM(Anantnag:Udhampur!D140) -> 0 | E140: =SUM(Anantnag:Udhampur!E140) -> 0 | F140: =SUM(Anantnag:Udhampur!F140) -> 0 | G140: =SUM(Anantnag:Udhampur!G140) -> 0 | H140: =SUM(Anantnag:Udhampur!H140) -> 0 | I140: =SUM(Anantnag:Udhampur!I140) -> 0 | J140: =SUM(Anantnag:Udhampur!J140) -> 0 | K140: =SUM(Anantnag:Udhampur!K140) -> 0 | L140: =SUM(Anantnag:Udhampur!L140) -> 0 | M140: =SUM(Anantnag:Udhampur!M140) -> 0 | N140: =SUM(Anantnag:Udhampur!N140) -> 0 | P140: =SUM(Anantnag:Udhampur!P140) -> 0 | Q140: =SUM(Anantnag:Udhampur!Q140) -> 0 | R140: =SUM(Anantnag:Udhampur!R140) -> 0 | S140: =SUM(Anantnag:Udhampur!S140) -> 0 | T140: =SUM(Anantnag:Udhampur!T140) -> 0 | U140: =SUM(Anantnag:Udhampur!U140) -> 0 | V140: =SUM(Anantnag:Udhampur!V140) -> 0 | W140: =SUM(Anantnag:Udhampur!W140) -> 0 | Y140: =SUM(Anantnag:Udhampur!Y140) -> 0 | Z140: =SUM(Anantnag:Udhampur!Z140) -> 0 | AA140: =SUM(Anantnag:Udhampur!AA140) -> 0 | AB140: =SUM(Anantnag:Udhampur!AB140) -> 0 | AF140: =SUM(Anantnag:Udhampur!U140) -> 0 | AG140: =SUM(Anantnag:Udhampur!Z140) -> 0 | AH140: =SUM(Anantnag:Udhampur!AB140) -> 0
B141: Sub Total (Recurring) | C141: =SUM(Anantnag:Udhampur!C141) -> 0 | D141: =SUM(Anantnag:Udhampur!D141) -> 0 | E141: =SUM(Anantnag:Udhampur!E141) -> 0 | F141: =SUM(Anantnag:Udhampur!F141) -> 0 | G141: =SUM(Anantnag:Udhampur!G141) -> 0 | H141: =SUM(Anantnag:Udhampur!H141) -> 0 | I141: =SUM(Anantnag:Udhampur!I141) -> 0 | J141: =SUM(Anantnag:Udhampur!J141) -> 0 | K141: =SUM(Anantnag:Udhampur!K141) -> 0 | L141: =SUM(Anantnag:Udhampur!L141) -> 0 | M141: =SUM(Anantnag:Udhampur!M141) -> 0 | N141: =SUM(Anantnag:Udhampur!N141) -> 0 | O141: =SUM(O119:O140) -> 0 | P141: =SUM(Anantnag:Udhampur!P141) -> 0 | Q141: =SUM(Anantnag:Udhampur!Q141) -> 0 | R141: =SUM(Anantnag:Udhampur!R141) -> 0 | S141: =SUM(Anantnag:Udhampur!S141) -> 0 | T141: =SUM(Anantnag:Udhampur!T141) -> 0 | U141: =SUM(Anantnag:Udhampur!U141) -> 0 | V141: =SUM(Anantnag:Udhampur!V141) -> 0 | W141: =SUM(Anantnag:Udhampur!W141) -> 0 | Y141: =SUM(Anantnag:Udhampur!Y141) -> 0 | Z141: =SUM(Anantnag:Udhampur!Z141) -> 0 | AA141: =SUM(Anantnag:Udhampur!AA141) -> 0 | AB141: =SUM(Anantnag:Udhampur!AB141) -> 0 | AF141: =SUM(Anantnag:Udhampur!U141) -> 0 | AG141: =SUM(Anantnag:Udhampur!Z141) -> 0 | AH141: =SUM(Anantnag:Udhampur!AB141) -> 0
B142: Total (Recurring + Non Recurring) | C142: =SUM(Anantnag:Udhampur!C142) -> 0 | D142: =SUM(Anantnag:Udhampur!D142) -> 0 | E142: =SUM(Anantnag:Udhampur!E142) -> 0 | F142: =SUM(Anantnag:Udhampur!F142) -> 0 | G142: =SUM(Anantnag:Udhampur!G142) -> 0 | H142: =SUM(Anantnag:Udhampur!H142) -> 0 | I142: =SUM(Anantnag:Udhampur!I142) -> 0 | J142: =SUM(Anantnag:Udhampur!J142) -> 0 | K142: =SUM(Anantnag:Udhampur!K142) -> 0 | L142: =SUM(Anantnag:Udhampur!L142) -> 0 | M142: =SUM(Anantnag:Udhampur!M142) -> 0 | N142: =SUM(Anantnag:Udhampur!N142) -> 0 | O142: =O117+O141 -> 0 | P142: =SUM(Anantnag:Udhampur!P142) -> 0 | Q142: =SUM(Anantnag:Udhampur!Q142) -> 0 | R142: =SUM(Anantnag:Udhampur!R142) -> 0 | S142: =SUM(Anantnag:Udhampur!S142) -> 0 | T142: =SUM(Anantnag:Udhampur!T142) -> 0 | U142: =SUM(Anantnag:Udhampur!U142) -> 0 | V142: =SUM(Anantnag:Udhampur!V142) -> 0 | W142: =SUM(Anantnag:Udhampur!W142) -> 0 | Y142: =SUM(Anantnag:Udhampur!Y142) -> 0 | Z142: =SUM(Anantnag:Udhampur!Z142) -> 0 | AA142: =SUM(Anantnag:Udhampur!AA142) -> 0 | AB142: =SUM(Anantnag:Udhampur!AB142) -> 0 | AF142: =SUM(Anantnag:Udhampur!U142) -> 0 | AG142: =SUM(Anantnag:Udhampur!Z142) -> 0 | AH142: =SUM(Anantnag:Udhampur!AB142) -> 0
B143: Total (A + B) | C143: =SUM(Anantnag:Udhampur!C143) -> 0 | D143: =SUM(Anantnag:Udhampur!D143) -> 0 | E143: =SUM(Anantnag:Udhampur!E143) -> 0 | F143: =SUM(Anantnag:Udhampur!F143) -> 0 | G143: =SUM(Anantnag:Udhampur!G143) -> 0 | H143: =SUM(Anantnag:Udhampur!H143) -> 0 | I143: =SUM(Anantnag:Udhampur!I143) -> 0 | J143: =SUM(Anantnag:Udhampur!J143) -> 0 | K143: =SUM(Anantnag:Udhampur!K143) -> 0 | L143: =SUM(Anantnag:Udhampur!L143) -> 0 | M143: =SUM(Anantnag:Udhampur!M143) -> 0 | N143: =SUM(Anantnag:Udhampur!N143) -> 0 | P143: =SUM(Anantnag:Udhampur!P143) -> 0 | Q143: =SUM(Anantnag:Udhampur!Q143) -> 0 | R143: =SUM(Anantnag:Udhampur!R143) -> 0 | S143: =SUM(Anantnag:Udhampur!S143) -> 0 | T143: =SUM(Anantnag:Udhampur!T143) -> 0 | U143: =SUM(Anantnag:Udhampur!U143) -> 0 | V143: =SUM(Anantnag:Udhampur!V143) -> 0 | W143: =SUM(Anantnag:Udhampur!W143) -> 0 | Y143: =SUM(Anantnag:Udhampur!Y143) -> 0 | Z143: =SUM(Anantnag:Udhampur!Z143) -> 0 | AA143: =SUM(Anantnag:Udhampur!AA143) -> 0 | AB143: =SUM(Anantnag:Udhampur!AB143) -> 0 | AF143: =SUM(Anantnag:Udhampur!U143) -> 0 | AG143: =SUM(Anantnag:Udhampur!Z143) -> 0 | AH143: =SUM(Anantnag:Udhampur!AB143) -> 0
A144: 4 | B144: Transport/Escort Facility | C144: =SUM(Anantnag:Udhampur!C144) -> 0 | D144: =SUM(Anantnag:Udhampur!D144) -> 0 | E144: =SUM(Anantnag:Udhampur!E144) -> 0 | F144: =SUM(Anantnag:Udhampur!F144) -> 0 | G144: =SUM(Anantnag:Udhampur!G144) -> 0 | H144: =SUM(Anantnag:Udhampur!H144) -> 0 | I144: =SUM(Anantnag:Udhampur!I144) -> 0 | J144: =SUM(Anantnag:Udhampur!J144) -> 0 | K144: =SUM(Anantnag:Udhampur!K144) -> 0 | L144: =SUM(Anantnag:Udhampur!L144) -> 0 | M144: =SUM(Anantnag:Udhampur!M144) -> 0 | N144: =SUM(Anantnag:Udhampur!N144) -> 0 | P144: =SUM(Anantnag:Udhampur!P144) -> 0 | Q144: =SUM(Anantnag:Udhampur!Q144) -> 0 | R144: =SUM(Anantnag:Udhampur!R144) -> 0 | S144: =SUM(Anantnag:Udhampur!S144) -> 0 | T144: =SUM(Anantnag:Udhampur!T144) -> 0 | U144: =SUM(Anantnag:Udhampur!U144) -> 0 | V144: =SUM(Anantnag:Udhampur!V144) -> 0 | W144: =SUM(Anantnag:Udhampur!W144) -> 0 | X144: =Anantnag!X144+Bandipora!X144+Baramulla!X144+Budgam!X144+Ganderbal!X144+Doda!X144+Jammu!X144+Kargil!X144+Kathua!X144+Kishtwar!X144+Kulgam!X144+Kupwara!X144+Leh!X144+Poonch!X144+Pulwama!X144+Rajouri!X144+Ramban!X144+Reasi!X144+Samba!X144+Shopian!X144+Srinagar!X144+Udhampur!X144 -> 0 | Y144: =SUM(Anantnag:Udhampur!Y144) -> 0 | Z144: =SUM(Anantnag:Udhampur!Z144) -> 0 | AA144: =SUM(Anantnag:Udhampur!AA144) -> 0 | AB144: =SUM(Anantnag:Udhampur!AB144) -> 0 | AF144: =SUM(Anantnag:Udhampur!U144) -> 0 | AG144: =SUM(Anantnag:Udhampur!Z144) -> 0 | AH144: =SUM(Anantnag:Udhampur!AB144) -> 0
A145: 4.01 | B145: Children in remote habitation | C145: =SUM(Anantnag:Udhampur!C145) -> 0 | D145: =SUM(Anantnag:Udhampur!D145) -> 0 | E145: =SUM(Anantnag:Udhampur!E145) -> 0 | F145: =SUM(Anantnag:Udhampur!F145) -> 0 | G145: =SUM(Anantnag:Udhampur!G145) -> 0 | H145: =SUM(Anantnag:Udhampur!H145) -> 0 | I145: =SUM(Anantnag:Udhampur!I145) -> 0 | J145: =SUM(Anantnag:Udhampur!J145) -> 0 | K145: =SUM(Anantnag:Udhampur!K145) -> 0 | L145: =SUM(Anantnag:Udhampur!L145) -> 0 | M145: =SUM(Anantnag:Udhampur!M145) -> 0 | N145: =SUM(Anantnag:Udhampur!N145) -> 0 | P145: =SUM(Anantnag:Udhampur!P145) -> 0 | Q145: =SUM(Anantnag:Udhampur!Q145) -> 0 | R145: =SUM(Anantnag:Udhampur!R145) -> 0 | S145: =SUM(Anantnag:Udhampur!S145) -> 0 | T145: =SUM(Anantnag:Udhampur!T145) -> 0 | U145: =SUM(Anantnag:Udhampur!U145) -> 0 | V145: =SUM(Anantnag:Udhampur!V145) -> 0 | W145: =SUM(Anantnag:Udhampur!W145) -> 0 | Y145: =SUM(Anantnag:Udhampur!Y145) -> 0 | Z145: =SUM(Anantnag:Udhampur!Z145) -> 0 | AA145: =SUM(Anantnag:Udhampur!AA145) -> 0 | AB145: =SUM(Anantnag:Udhampur!AB145) -> 0 | AF145: =SUM(Anantnag:Udhampur!U145) -> 0 | AG145: =SUM(Anantnag:Udhampur!Z145) -> 0 | AH145: =SUM(Anantnag:Udhampur!AB145) -> 0
A146: 4.02 | B146: Urban deprived children/children without adult protection | C146: =SUM(Anantnag:Udhampur!C146) -> 0 | D146: =SUM(Anantnag:Udhampur!D146) -> 0 | E146: =SUM(Anantnag:Udhampur!E146) -> 0 | F146: =SUM(Anantnag:Udhampur!F146) -> 0 | G146: =SUM(Anantnag:Udhampur!G146) -> 0 | H146: =SUM(Anantnag:Udhampur!H146) -> 0 | I146: =SUM(Anantnag:Udhampur!I146) -> 0 | J146: =SUM(Anantnag:Udhampur!J146) -> 0 | K146: =SUM(Anantnag:Udhampur!K146) -> 0 | L146: =SUM(Anantnag:Udhampur!L146) -> 0 | M146: =SUM(Anantnag:Udhampur!M146) -> 0 | N146: =SUM(Anantnag:Udhampur!N146) -> 0 | P146: =SUM(Anantnag:Udhampur!P146) -> 0 | Q146: =SUM(Anantnag:Udhampur!Q146) -> 0 | R146: =SUM(Anantnag:Udhampur!R146) -> 0 | S146: =SUM(Anantnag:Udhampur!S146) -> 0 | T146: =SUM(Anantnag:Udhampur!T146) -> 0 | U146: =SUM(Anantnag:Udhampur!U146) -> 0 | V146: =SUM(Anantnag:Udhampur!V146) -> 0 | W146: =SUM(Anantnag:Udhampur!W146) -> 0 | Y146: =SUM(Anantnag:Udhampur!Y146) -> 0 | Z146: =SUM(Anantnag:Udhampur!Z146) -> 0 | AA146: =SUM(Anantnag:Udhampur!AA146) -> 0 | AB146: =SUM(Anantnag:Udhampur!AB146) -> 0 | AF146: =SUM(Anantnag:Udhampur!U146) -> 0 | AG146: =SUM(Anantnag:Udhampur!Z146) -> 0 | AH146: =SUM(Anantnag:Udhampur!AB146) -> 0
B147: Sub Total | C147: =SUM(Anantnag:Udhampur!C147) -> 0 | D147: =SUM(Anantnag:Udhampur!D147) -> 0 | E147: =SUM(Anantnag:Udhampur!E147) -> 0 | F147: =SUM(Anantnag:Udhampur!F147) -> 0 | G147: =SUM(Anantnag:Udhampur!G147) -> 0 | H147: =SUM(Anantnag:Udhampur!H147) -> 0 | I147: =SUM(Anantnag:Udhampur!I147) -> 0 | J147: =SUM(Anantnag:Udhampur!J147) -> 0 | K147: =SUM(Anantnag:Udhampur!K147) -> 0 | L147: =SUM(Anantnag:Udhampur!L147) -> 0 | M147: =SUM(Anantnag:Udhampur!M147) -> 0 | N147: =SUM(Anantnag:Udhampur!N147) -> 0 | O147: =SUM(O145:O146) -> 0 | P147: =SUM(Anantnag:Udhampur!P147) -> 0 | Q147: =SUM(Anantnag:Udhampur!Q147) -> 0 | R147: =SUM(Anantnag:Udhampur!R147) -> 0 | S147: =SUM(Anantnag:Udhampur!S147) -> 0 | T147: =SUM(Anantnag:Udhampur!T147) -> 0 | U147: =SUM(Anantnag:Udhampur!U147) -> 0 | V147: =SUM(Anantnag:Udhampur!V147) -> 0 | W147: =SUM(Anantnag:Udhampur!W147) -> 0 | X147: =Anantnag!X147+Bandipora!X147+Baramulla!X147+Budgam!X147+Ganderbal!X147+Doda!X147+Jammu!X147+Kargil!X147+Kathua!X147+Kishtwar!X147+Kulgam!X147+Kupwara!X147+Leh!X147+Poonch!X147+Pulwama!X147+Rajouri!X147+Ramban!X147+Reasi!X147+Samba!X147+Shopian!X147+Srinagar!X147+Udhampur!X147 -> 0 | Y147: =SUM(Anantnag:Udhampur!Y147) -> 0 | Z147: =SUM(Anantnag:Udhampur!Z147) -> 0 | AA147: =SUM(Anantnag:Udhampur!AA147) -> 0 | AB147: =SUM(Anantnag:Udhampur!AB147) -> 0 | AF147: =SUM(Anantnag:Udhampur!U147) -> 0 | AG147: =SUM(Anantnag:Udhampur!Z147) -> 0 | AH147: =SUM(Anantnag:Udhampur!AB147) -> 0
A148: 5 | B148: Reimbursement of Fee against 25% admission under Section 12(1)(c) of RTE Act 2009 (Entry Level) subject to upper limit of 20% of AWP&B guidelines issued by MHRD | C148: =SUM(Anantnag:Udhampur!C148) -> 0 | D148: =SUM(Anantnag:Udhampur!D148) -> 0 | E148: =SUM(Anantnag:Udhampur!E148) -> 0 | F148: =SUM(Anantnag:Udhampur!F148) -> 0 | G148: =SUM(Anantnag:Udhampur!G148) -> 0 | H148: =SUM(Anantnag:Udhampur!H148) -> 0 | I148: =SUM(Anantnag:Udhampur!I148) -> 0 | J148: =SUM(Anantnag:Udhampur!J148) -> 0 | K148: =SUM(Anantnag:Udhampur!K148) -> 0 | L148: =SUM(Anantnag:Udhampur!L148) -> 0 | M148: =SUM(Anantnag:Udhampur!M148) -> 0 | N148: =SUM(Anantnag:Udhampur!N148) -> 0 | P148: =SUM(Anantnag:Udhampur!P148) -> 0 | Q148: =SUM(Anantnag:Udhampur!Q148) -> 0 | R148: =SUM(Anantnag:Udhampur!R148) -> 0 | S148: =SUM(Anantnag:Udhampur!S148) -> 0 | T148: =SUM(Anantnag:Udhampur!T148) -> 0 | U148: =SUM(Anantnag:Udhampur!U148) -> 0 | V148: =SUM(Anantnag:Udhampur!V148) -> 0 | W148: =SUM(Anantnag:Udhampur!W148) -> 0 | X148: =Anantnag!X148+Bandipora!X148+Baramulla!X148+Budgam!X148+Ganderbal!X148+Doda!X148+Jammu!X148+Kargil!X148+Kathua!X148+Kishtwar!X148+Kulgam!X148+Kupwara!X148+Leh!X148+Poonch!X148+Pulwama!X148+Rajouri!X148+Ramban!X148+Reasi!X148+Samba!X148+Shopian!X148+Srinagar!X148+Udhampur!X148 -> 0 | Y148: =SUM(Anantnag:Udhampur!Y148) -> 0 | Z148: =SUM(Anantnag:Udhampur!Z148) -> 0 | AA148: =SUM(Anantnag:Udhampur!AA148) -> 0 | AB148: =SUM(Anantnag:Udhampur!AB148) -> 0 | AF148: =SUM(Anantnag:Udhampur!U148) -> 0 | AG148: =SUM(Anantnag:Udhampur!Z148) -> 0 | AH148: =SUM(Anantnag:Udhampur!AB148) -> 0
B149: Sub Total | C149: =SUM(Anantnag:Udhampur!C149) -> 0 | D149: =SUM(Anantnag:Udhampur!D149) -> 0 | E149: =SUM(Anantnag:Udhampur!E149) -> 0 | F149: =SUM(Anantnag:Udhampur!F149) -> 0 | G149: =SUM(Anantnag:Udhampur!G149) -> 0 | H149: =SUM(Anantnag:Udhampur!H149) -> 0 | I149: =SUM(Anantnag:Udhampur!I149) -> 0 | J149: =SUM(Anantnag:Udhampur!J149) -> 0 | K149: =SUM(Anantnag:Udhampur!K149) -> 0 | L149: =SUM(Anantnag:Udhampur!L149) -> 0 | M149: =SUM(Anantnag:Udhampur!M149) -> 0 | N149: =SUM(Anantnag:Udhampur!N149) -> 0 | O149: =SUM(O148) -> 0 | P149: =SUM(Anantnag:Udhampur!P149) -> 0 | Q149: =SUM(Anantnag:Udhampur!Q149) -> 0 | R149: =SUM(Anantnag:Udhampur!R149) -> 0 | S149: =SUM(Anantnag:Udhampur!S149) -> 0 | T149: =SUM(Anantnag:Udhampur!T149) -> 0 | U149: =SUM(Anantnag:Udhampur!U149) -> 0 | V149: =SUM(Anantnag:Udhampur!V149) -> 0 | W149: =SUM(Anantnag:Udhampur!W149) -> 0 | X149: =Anantnag!X149+Bandipora!X149+Baramulla!X149+Budgam!X149+Ganderbal!X149+Doda!X149+Jammu!X149+Kargil!X149+Kathua!X149+Kishtwar!X149+Kulgam!X149+Kupwara!X149+Leh!X149+Poonch!X149+Pulwama!X149+Rajouri!X149+Ramban!X149+Reasi!X149+Samba!X149+Shopian!X149+Srinagar!X149+Udhampur!X149 -> 0 | Y149: =SUM(Anantnag:Udhampur!Y149) -> 0 | Z149: =SUM(Anantnag:Udhampur!Z149) -> 0 | AA149: =SUM(Anantnag:Udhampur!AA149) -> 0 | AB149: =SUM(Anantnag:Udhampur!AB149) -> 0 | AF149: =SUM(Anantnag:Udhampur!U149) -> 0 | AG149: =SUM(Anantnag:Udhampur!Z149) -> 0 | AH149: =SUM(Anantnag:Udhampur!AB149) -> 0
A150: =+A148+1 -> 6 | B150: Special Training for mainstreaming of out of school children | C150: =SUM(Anantnag:Udhampur!C150) -> 0 | D150: =SUM(Anantnag:Udhampur!D150) -> 0 | E150: =SUM(Anantnag:Udhampur!E150) -> 0 | F150: =SUM(Anantnag:Udhampur!F150) -> 0 | G150: =SUM(Anantnag:Udhampur!G150) -> 0 | H150: =SUM(Anantnag:Udhampur!H150) -> 0 | I150: =SUM(Anantnag:Udhampur!I150) -> 0 | J150: =SUM(Anantnag:Udhampur!J150) -> 0 | K150: =SUM(Anantnag:Udhampur!K150) -> 0 | L150: =SUM(Anantnag:Udhampur!L150) -> 0 | M150: =SUM(Anantnag:Udhampur!M150) -> 0 | N150: =SUM(Anantnag:Udhampur!N150) -> 0 | P150: =SUM(Anantnag:Udhampur!P150) -> 0 | Q150: =SUM(Anantnag:Udhampur!Q150) -> 0 | R150: =SUM(Anantnag:Udhampur!R150) -> 0 | S150: =SUM(Anantnag:Udhampur!S150) -> 0 | T150: =SUM(Anantnag:Udhampur!T150) -> 0 | U150: =SUM(Anantnag:Udhampur!U150) -> 0 | V150: =SUM(Anantnag:Udhampur!V150) -> 0 | W150: =SUM(Anantnag:Udhampur!W150) -> 0 | X150: =Anantnag!X150+Bandipora!X150+Baramulla!X150+Budgam!X150+Ganderbal!X150+Doda!X150+Jammu!X150+Kargil!X150+Kathua!X150+Kishtwar!X150+Kulgam!X150+Kupwara!X150+Leh!X150+Poonch!X150+Pulwama!X150+Rajouri!X150+Ramban!X150+Reasi!X150+Samba!X150+Shopian!X150+Srinagar!X150+Udhampur!X150 -> 0 | Y150: =SUM(Anantnag:Udhampur!Y150) -> 0 | Z150: =SUM(Anantnag:Udhampur!Z150) -> 0 | AA150: =SUM(Anantnag:Udhampur!AA150) -> 0 | AB150: =SUM(Anantnag:Udhampur!AB150) -> 0 | AF150: =SUM(Anantnag:Udhampur!U150) -> 0 | AG150: =SUM(Anantnag:Udhampur!Z150) -> 0 | AH150: =SUM(Anantnag:Udhampur!AB150) -> 0
A151: 6.01 | B151: Residential (Fresh) | C151: =SUM(Anantnag:Udhampur!C151) -> 0 | D151: =SUM(Anantnag:Udhampur!D151) -> 0 | E151: =SUM(Anantnag:Udhampur!E151) -> 0 | F151: =SUM(Anantnag:Udhampur!F151) -> 0 | G151: =SUM(Anantnag:Udhampur!G151) -> 0 | H151: =SUM(Anantnag:Udhampur!H151) -> 0 | I151: =SUM(Anantnag:Udhampur!I151) -> 0 | J151: =SUM(Anantnag:Udhampur!J151) -> 0 | K151: =SUM(Anantnag:Udhampur!K151) -> 0 | L151: =SUM(Anantnag:Udhampur!L151) -> 0 | M151: =SUM(Anantnag:Udhampur!M151) -> 0 | N151: =SUM(Anantnag:Udhampur!N151) -> 0 | P151: =SUM(Anantnag:Udhampur!P151) -> 0 | Q151: =SUM(Anantnag:Udhampur!Q151) -> 0 | R151: =SUM(Anantnag:Udhampur!R151) -> 0 | S151: =SUM(Anantnag:Udhampur!S151) -> 0 | T151: =SUM(Anantnag:Udhampur!T151) -> 0 | U151: =SUM(Anantnag:Udhampur!U151) -> 0 | V151: =SUM(Anantnag:Udhampur!V151) -> 0 | W151: =SUM(Anantnag:Udhampur!W151) -> 0 | X151: =Anantnag!X151+Bandipora!X151+Baramulla!X151+Budgam!X151+Ganderbal!X151+Doda!X151+Jammu!X151+Kargil!X151+Kathua!X151+Kishtwar!X151+Kulgam!X151+Kupwara!X151+Leh!X151+Poonch!X151+Pulwama!X151+Rajouri!X151+Ramban!X151+Reasi!X151+Samba!X151+Shopian!X151+Srinagar!X151+Udhampur!X151 -> 0 | Y151: =SUM(Anantnag:Udhampur!Y151) -> 0 | Z151: =SUM(Anantnag:Udhampur!Z151) -> 0 | AA151: =SUM(Anantnag:Udhampur!AA151) -> 0 | AB151: =SUM(Anantnag:Udhampur!AB151) -> 0 | AF151: =SUM(Anantnag:Udhampur!U151) -> 0 | AG151: =SUM(Anantnag:Udhampur!Z151) -> 0 | AH151: =SUM(Anantnag:Udhampur!AB151) -> 0
B152: (a) 12 months | C152: =SUM(Anantnag:Udhampur!C152) -> 0 | D152: =SUM(Anantnag:Udhampur!D152) -> 0 | E152: =SUM(Anantnag:Udhampur!E152) -> 0 | F152: =SUM(Anantnag:Udhampur!F152) -> 0 | G152: =SUM(Anantnag:Udhampur!G152) -> 0 | H152: =SUM(Anantnag:Udhampur!H152) -> 0 | I152: =SUM(Anantnag:Udhampur!I152) -> 0 | J152: =SUM(Anantnag:Udhampur!J152) -> 0 | K152: =SUM(Anantnag:Udhampur!K152) -> 0 | L152: =SUM(Anantnag:Udhampur!L152) -> 0 | M152: =SUM(Anantnag:Udhampur!M152) -> 0 | N152: =SUM(Anantnag:Udhampur!N152) -> 0 | O152: 0.06 | P152: =SUM(Anantnag:Udhampur!P152) -> 0 | Q152: =SUM(Anantnag:Udhampur!Q152) -> 0 | R152: =SUM(Anantnag:Udhampur!R152) -> 0 | S152: =SUM(Anantnag:Udhampur!S152) -> 0 | T152: =SUM(Anantnag:Udhampur!T152) -> 0 | U152: =SUM(Anantnag:Udhampur!U152) -> 0 | V152: =SUM(Anantnag:Udhampur!V152) -> 0 | W152: =SUM(Anantnag:Udhampur!W152) -> 0 | X152: =SUM(Anantnag:Udhampur!X152) -> 0 | Y152: =SUM(Anantnag:Udhampur!Y152) -> 0 | Z152: =SUM(Anantnag:Udhampur!Z152) -> 0 | AA152: =SUM(Anantnag:Udhampur!AA152) -> 0 | AB152: =SUM(Anantnag:Udhampur!AB152) -> 0 | AF152: =SUM(Anantnag:Udhampur!U152) -> 0 | AG152: =SUM(Anantnag:Udhampur!Z152) -> 0 | AH152: =SUM(Anantnag:Udhampur!AB152) -> 0
B153: (b) 9 months | C153: =SUM(Anantnag:Udhampur!C153) -> 0 | D153: =SUM(Anantnag:Udhampur!D153) -> 0 | E153: =SUM(Anantnag:Udhampur!E153) -> 0 | F153: =SUM(Anantnag:Udhampur!F153) -> 0 | G153: =SUM(Anantnag:Udhampur!G153) -> 0 | H153: =SUM(Anantnag:Udhampur!H153) -> 0 | I153: =SUM(Anantnag:Udhampur!I153) -> 0 | J153: =SUM(Anantnag:Udhampur!J153) -> 0 | K153: =SUM(Anantnag:Udhampur!K153) -> 0 | L153: =SUM(Anantnag:Udhampur!L153) -> 0 | M153: =SUM(Anantnag:Udhampur!M153) -> 0 | N153: =SUM(Anantnag:Udhampur!N153) -> 0 | O153: 0.045 | P153: =SUM(Anantnag:Udhampur!P153) -> 0 | Q153: =SUM(Anantnag:Udhampur!Q153) -> 0 | R153: =SUM(Anantnag:Udhampur!R153) -> 0 | S153: =SUM(Anantnag:Udhampur!S153) -> 0 | T153: =SUM(Anantnag:Udhampur!T153) -> 0 | U153: =SUM(Anantnag:Udhampur!U153) -> 0 | V153: =SUM(Anantnag:Udhampur!V153) -> 0 | W153: =SUM(Anantnag:Udhampur!W153) -> 0 | X153: =SUM(Anantnag:Udhampur!X153) -> 0 | Y153: =SUM(Anantnag:Udhampur!Y153) -> 0 | Z153: =SUM(Anantnag:Udhampur!Z153) -> 0 | AA153: =SUM(Anantnag:Udhampur!AA153) -> 0 | AB153: =SUM(Anantnag:Udhampur!AB153) -> 0 | AF153: =SUM(Anantnag:Udhampur!U153) -> 0 | AG153: =SUM(Anantnag:Udhampur!Z153) -> 0 | AH153: =SUM(Anantnag:Udhampur!AB153) -> 0
B154: (c) 6 months | C154: =SUM(Anantnag:Udhampur!C154) -> 0 | D154: =SUM(Anantnag:Udhampur!D154) -> 0 | E154: =SUM(Anantnag:Udhampur!E154) -> 0 | F154: =SUM(Anantnag:Udhampur!F154) -> 0 | G154: =SUM(Anantnag:Udhampur!G154) -> 0 | H154: =SUM(Anantnag:Udhampur!H154) -> 0 | I154: =SUM(Anantnag:Udhampur!I154) -> 0 | J154: =SUM(Anantnag:Udhampur!J154) -> 0 | K154: =SUM(Anantnag:Udhampur!K154) -> 0 | L154: =SUM(Anantnag:Udhampur!L154) -> 0 | M154: =SUM(Anantnag:Udhampur!M154) -> 0 | N154: =SUM(Anantnag:Udhampur!N154) -> 0 | O154: 0.03 | P154: =SUM(Anantnag:Udhampur!P154) -> 0 | Q154: =SUM(Anantnag:Udhampur!Q154) -> 0 | R154: =SUM(Anantnag:Udhampur!R154) -> 0 | S154: =SUM(Anantnag:Udhampur!S154) -> 0 | T154: =SUM(Anantnag:Udhampur!T154) -> 0 | U154: =SUM(Anantnag:Udhampur!U154) -> 0 | V154: =SUM(Anantnag:Udhampur!V154) -> 0 | W154: =SUM(Anantnag:Udhampur!W154) -> 0 | X154: =SUM(Anantnag:Udhampur!X154) -> 0 | Y154: =SUM(Anantnag:Udhampur!Y154) -> 0 | Z154: =SUM(Anantnag:Udhampur!Z154) -> 0 | AA154: =SUM(Anantnag:Udhampur!AA154) -> 0 | AB154: =SUM(Anantnag:Udhampur!AB154) -> 0 | AF154: =SUM(Anantnag:Udhampur!U154) -> 0 | AG154: =SUM(Anantnag:Udhampur!Z154) -> 0 | AH154: =SUM(Anantnag:Udhampur!AB154) -> 0
B155: (d) 3 months | C155: =SUM(Anantnag:Udhampur!C155) -> 0 | D155: =SUM(Anantnag:Udhampur!D155) -> 0 | E155: =SUM(Anantnag:Udhampur!E155) -> 0 | F155: =SUM(Anantnag:Udhampur!F155) -> 0 | G155: =SUM(Anantnag:Udhampur!G155) -> 0 | H155: =SUM(Anantnag:Udhampur!H155) -> 0 | I155: =SUM(Anantnag:Udhampur!I155) -> 0 | J155: =SUM(Anantnag:Udhampur!J155) -> 0 | K155: =SUM(Anantnag:Udhampur!K155) -> 0 | L155: =SUM(Anantnag:Udhampur!L155) -> 0 | M155: =SUM(Anantnag:Udhampur!M155) -> 0 | N155: =SUM(Anantnag:Udhampur!N155) -> 0 | P155: =SUM(Anantnag:Udhampur!P155) -> 0 | Q155: =SUM(Anantnag:Udhampur!Q155) -> 0 | R155: =SUM(Anantnag:Udhampur!R155) -> 0 | S155: =SUM(Anantnag:Udhampur!S155) -> 0 | T155: =SUM(Anantnag:Udhampur!T155) -> 0 | U155: =SUM(Anantnag:Udhampur!U155) -> 0 | V155: =SUM(Anantnag:Udhampur!V155) -> 0 | W155: =SUM(Anantnag:Udhampur!W155) -> 0 | X155: =SUM(Anantnag:Udhampur!X155) -> 0 | Y155: =SUM(Anantnag:Udhampur!Y155) -> 0 | Z155: =SUM(Anantnag:Udhampur!Z155) -> 0 | AA155: =SUM(Anantnag:Udhampur!AA155) -> 0 | AB155: =SUM(Anantnag:Udhampur!AB155) -> 0 | AF155: =SUM(Anantnag:Udhampur!U155) -> 0 | AG155: =SUM(Anantnag:Udhampur!Z155) -> 0 | AH155: =SUM(Anantnag:Udhampur!AB155) -> 0
B156: Sub Total | C156: =SUM(Anantnag:Udhampur!C156) -> 0 | D156: =SUM(Anantnag:Udhampur!D156) -> 0 | E156: =SUM(Anantnag:Udhampur!E156) -> 0 | F156: =SUM(Anantnag:Udhampur!F156) -> 0 | G156: =SUM(Anantnag:Udhampur!G156) -> 0 | H156: =SUM(Anantnag:Udhampur!H156) -> 0 | I156: =SUM(Anantnag:Udhampur!I156) -> 0 | J156: =SUM(Anantnag:Udhampur!J156) -> 0 | K156: =SUM(Anantnag:Udhampur!K156) -> 0 | L156: =SUM(Anantnag:Udhampur!L156) -> 0 | M156: =SUM(Anantnag:Udhampur!M156) -> 0 | N156: =SUM(Anantnag:Udhampur!N156) -> 0 | P156: =SUM(Anantnag:Udhampur!P156) -> 0 | Q156: =SUM(Anantnag:Udhampur!Q156) -> 0 | R156: =SUM(Anantnag:Udhampur!R156) -> 0 | S156: =SUM(Anantnag:Udhampur!S156) -> 0 | T156: =SUM(Anantnag:Udhampur!T156) -> 0 | U156: =SUM(Anantnag:Udhampur!U156) -> 0 | V156: =SUM(Anantnag:Udhampur!V156) -> 0 | W156: =SUM(Anantnag:Udhampur!W156) -> 0 | Y156: =SUM(Anantnag:Udhampur!Y156) -> 0 | Z156: =SUM(Anantnag:Udhampur!Z156) -> 0 | AA156: =SUM(Anantnag:Udhampur!AA156) -> 0 | AB156: =SUM(Anantnag:Udhampur!AB156) -> 0 | AF156: =SUM(Anantnag:Udhampur!U156) -> 0 | AG156: =SUM(Anantnag:Udhampur!Z156) -> 0 | AH156: =SUM(Anantnag:Udhampur!AB156) -> 0
A157: =+A151+0.01 -> 6.02 | B157: Residential (Continuing from previous year) | C157: =SUM(Anantnag:Udhampur!C157) -> 0 | D157: =SUM(Anantnag:Udhampur!D157) -> 0 | E157: =SUM(Anantnag:Udhampur!E157) -> 0 | F157: =SUM(Anantnag:Udhampur!F157) -> 0 | G157: =SUM(Anantnag:Udhampur!G157) -> 0 | H157: =SUM(Anantnag:Udhampur!H157) -> 0 | I157: =SUM(Anantnag:Udhampur!I157) -> 0 | J157: =SUM(Anantnag:Udhampur!J157) -> 0 | K157: =SUM(Anantnag:Udhampur!K157) -> 0 | L157: =SUM(Anantnag:Udhampur!L157) -> 0 | M157: =SUM(Anantnag:Udhampur!M157) -> 0 | N157: =SUM(Anantnag:Udhampur!N157) -> 0 | P157: =SUM(Anantnag:Udhampur!P157) -> 0 | Q157: =SUM(Anantnag:Udhampur!Q157) -> 0 | R157: =SUM(Anantnag:Udhampur!R157) -> 0 | S157: =SUM(Anantnag:Udhampur!S157) -> 0 | T157: =SUM(Anantnag:Udhampur!T157) -> 0 | U157: =SUM(Anantnag:Udhampur!U157) -> 0 | V157: =SUM(Anantnag:Udhampur!V157) -> 0 | W157: =SUM(Anantnag:Udhampur!W157) -> 0 | X157: =SUM(Anantnag:Udhampur!X157) -> 0 | Y157: =SUM(Anantnag:Udhampur!Y157) -> 0 | Z157: =SUM(Anantnag:Udhampur!Z157) -> 0 | AA157: =SUM(Anantnag:Udhampur!AA157) -> 0 | AB157: =SUM(Anantnag:Udhampur!AB157) -> 0 | AF157: =SUM(Anantnag:Udhampur!U157) -> 0 | AG157: =SUM(Anantnag:Udhampur!Z157) -> 0 | AH157: =SUM(Anantnag:Udhampur!AB157) -> 0
B158: (a) 12 months | C158: =SUM(Anantnag:Udhampur!C158) -> 0 | D158: =SUM(Anantnag:Udhampur!D158) -> 0 | E158: =SUM(Anantnag:Udhampur!E158) -> 0 | F158: =SUM(Anantnag:Udhampur!F158) -> 0 | G158: =SUM(Anantnag:Udhampur!G158) -> 0 | H158: =SUM(Anantnag:Udhampur!H158) -> 0 | I158: =SUM(Anantnag:Udhampur!I158) -> 0 | J158: =SUM(Anantnag:Udhampur!J158) -> 0 | K158: =SUM(Anantnag:Udhampur!K158) -> 0 | L158: =SUM(Anantnag:Udhampur!L158) -> 0 | M158: =SUM(Anantnag:Udhampur!M158) -> 0 | N158: =SUM(Anantnag:Udhampur!N158) -> 0 | P158: =SUM(Anantnag:Udhampur!P158) -> 0 | Q158: =SUM(Anantnag:Udhampur!Q158) -> 0 | R158: =SUM(Anantnag:Udhampur!R158) -> 0 | S158: =SUM(Anantnag:Udhampur!S158) -> 0 | T158: =SUM(Anantnag:Udhampur!T158) -> 0 | U158: =SUM(Anantnag:Udhampur!U158) -> 0 | V158: =SUM(Anantnag:Udhampur!V158) -> 0 | W158: =SUM(Anantnag:Udhampur!W158) -> 0 | X158: =SUM(Anantnag:Udhampur!X158) -> 0 | Y158: =SUM(Anantnag:Udhampur!Y158) -> 0 | Z158: =SUM(Anantnag:Udhampur!Z158) -> 0 | AA158: =SUM(Anantnag:Udhampur!AA158) -> 0 | AB158: =SUM(Anantnag:Udhampur!AB158) -> 0 | AF158: =SUM(Anantnag:Udhampur!U158) -> 0 | AG158: =SUM(Anantnag:Udhampur!Z158) -> 0 | AH158: =SUM(Anantnag:Udhampur!AB158) -> 0
B159: (b) 9 months | C159: =SUM(Anantnag:Udhampur!C159) -> 0 | D159: =SUM(Anantnag:Udhampur!D159) -> 0 | E159: =SUM(Anantnag:Udhampur!E159) -> 0 | F159: =SUM(Anantnag:Udhampur!F159) -> 0 | G159: =SUM(Anantnag:Udhampur!G159) -> 0 | H159: =SUM(Anantnag:Udhampur!H159) -> 0 | I159: =SUM(Anantnag:Udhampur!I159) -> 0 | J159: =SUM(Anantnag:Udhampur!J159) -> 0 | K159: =SUM(Anantnag:Udhampur!K159) -> 0 | L159: =SUM(Anantnag:Udhampur!L159) -> 0 | M159: =SUM(Anantnag:Udhampur!M159) -> 0 | N159: =SUM(Anantnag:Udhampur!N159) -> 0 | P159: =SUM(Anantnag:Udhampur!P159) -> 0 | Q159: =SUM(Anantnag:Udhampur!Q159) -> 0 | R159: =SUM(Anantnag:Udhampur!R159) -> 0 | S159: =SUM(Anantnag:Udhampur!S159) -> 0 | T159: =SUM(Anantnag:Udhampur!T159) -> 0 | U159: =SUM(Anantnag:Udhampur!U159) -> 0 | V159: =SUM(Anantnag:Udhampur!V159) -> 0 | W159: =SUM(Anantnag:Udhampur!W159) -> 0 | X159: =SUM(Anantnag:Udhampur!X159) -> 0 | Y159: =SUM(Anantnag:Udhampur!Y159) -> 0 | Z159: =SUM(Anantnag:Udhampur!Z159) -> 0 | AA159: =SUM(Anantnag:Udhampur!AA159) -> 0 | AB159: =SUM(Anantnag:Udhampur!AB159) -> 0 | AF159: =SUM(Anantnag:Udhampur!U159) -> 0 | AG159: =SUM(Anantnag:Udhampur!Z159) -> 0 | AH159: =SUM(Anantnag:Udhampur!AB159) -> 0
B160: (c) 6 months | C160: =SUM(Anantnag:Udhampur!C160) -> 0 | D160: =SUM(Anantnag:Udhampur!D160) -> 0 | E160: =SUM(Anantnag:Udhampur!E160) -> 0 | F160: =SUM(Anantnag:Udhampur!F160) -> 0 | G160: =SUM(Anantnag:Udhampur!G160) -> 0 | H160: =SUM(Anantnag:Udhampur!H160) -> 0 | I160: =SUM(Anantnag:Udhampur!I160) -> 0 | J160: =SUM(Anantnag:Udhampur!J160) -> 0 | K160: =SUM(Anantnag:Udhampur!K160) -> 0 | L160: =SUM(Anantnag:Udhampur!L160) -> 0 | M160: =SUM(Anantnag:Udhampur!M160) -> 0 | N160: =SUM(Anantnag:Udhampur!N160) -> 0 | P160: =SUM(Anantnag:Udhampur!P160) -> 0 | Q160: =SUM(Anantnag:Udhampur!Q160) -> 0 | R160: =SUM(Anantnag:Udhampur!R160) -> 0 | S160: =SUM(Anantnag:Udhampur!S160) -> 0 | T160: =SUM(Anantnag:Udhampur!T160) -> 0 | U160: =SUM(Anantnag:Udhampur!U160) -> 0 | V160: =SUM(Anantnag:Udhampur!V160) -> 0 | W160: =SUM(Anantnag:Udhampur!W160) -> 0 | X160: =SUM(Anantnag:Udhampur!X160) -> 0 | Y160: =SUM(Anantnag:Udhampur!Y160) -> 0 | Z160: =SUM(Anantnag:Udhampur!Z160) -> 0 | AA160: =SUM(Anantnag:Udhampur!AA160) -> 0 | AB160: =SUM(Anantnag:Udhampur!AB160) -> 0 | AF160: =SUM(Anantnag:Udhampur!U160) -> 0 | AG160: =SUM(Anantnag:Udhampur!Z160) -> 0 | AH160: =SUM(Anantnag:Udhampur!AB160) -> 0
B161: (d) 3 months | C161: =SUM(Anantnag:Udhampur!C161) -> 0 | D161: =SUM(Anantnag:Udhampur!D161) -> 0 | E161: =SUM(Anantnag:Udhampur!E161) -> 0 | F161: =SUM(Anantnag:Udhampur!F161) -> 0 | G161: =SUM(Anantnag:Udhampur!G161) -> 0 | H161: =SUM(Anantnag:Udhampur!H161) -> 0 | I161: =SUM(Anantnag:Udhampur!I161) -> 0 | J161: =SUM(Anantnag:Udhampur!J161) -> 0 | K161: =SUM(Anantnag:Udhampur!K161) -> 0 | L161: =SUM(Anantnag:Udhampur!L161) -> 0 | M161: =SUM(Anantnag:Udhampur!M161) -> 0 | N161: =SUM(Anantnag:Udhampur!N161) -> 0 | P161: =SUM(Anantnag:Udhampur!P161) -> 0 | Q161: =SUM(Anantnag:Udhampur!Q161) -> 0 | R161: =SUM(Anantnag:Udhampur!R161) -> 0 | S161: =SUM(Anantnag:Udhampur!S161) -> 0 | T161: =SUM(Anantnag:Udhampur!T161) -> 0 | U161: =SUM(Anantnag:Udhampur!U161) -> 0 | V161: =SUM(Anantnag:Udhampur!V161) -> 0 | W161: =SUM(Anantnag:Udhampur!W161) -> 0 | X161: =SUM(Anantnag:Udhampur!X161) -> 0 | Y161: =SUM(Anantnag:Udhampur!Y161) -> 0 | Z161: =SUM(Anantnag:Udhampur!Z161) -> 0 | AA161: =SUM(Anantnag:Udhampur!AA161) -> 0 | AB161: =SUM(Anantnag:Udhampur!AB161) -> 0 | AF161: =SUM(Anantnag:Udhampur!U161) -> 0 | AG161: =SUM(Anantnag:Udhampur!Z161) -> 0 | AH161: =SUM(Anantnag:Udhampur!AB161) -> 0
B162: Sub Total | C162: =SUM(Anantnag:Udhampur!C162) -> 0 | D162: =SUM(Anantnag:Udhampur!D162) -> 0 | E162: =SUM(Anantnag:Udhampur!E162) -> 0 | F162: =SUM(Anantnag:Udhampur!F162) -> 0 | G162: =SUM(Anantnag:Udhampur!G162) -> 0 | H162: =SUM(Anantnag:Udhampur!H162) -> 0 | I162: =SUM(Anantnag:Udhampur!I162) -> 0 | J162: =SUM(Anantnag:Udhampur!J162) -> 0 | K162: =SUM(Anantnag:Udhampur!K162) -> 0 | L162: =SUM(Anantnag:Udhampur!L162) -> 0 | M162: =SUM(Anantnag:Udhampur!M162) -> 0 | N162: =SUM(Anantnag:Udhampur!N162) -> 0 | O162: =SUM(O158:O161) -> 0 | P162: =SUM(Anantnag:Udhampur!P162) -> 0 | Q162: =SUM(Anantnag:Udhampur!Q162) -> 0 | R162: =SUM(Anantnag:Udhampur!R162) -> 0 | S162: =SUM(Anantnag:Udhampur!S162) -> 0 | T162: =SUM(Anantnag:Udhampur!T162) -> 0 | U162: =SUM(Anantnag:Udhampur!U162) -> 0 | V162: =SUM(Anantnag:Udhampur!V162) -> 0 | W162: =SUM(Anantnag:Udhampur!W162) -> 0 | X162: =SUM(Anantnag:Udhampur!X162) -> 0 | Y162: =SUM(Anantnag:Udhampur!Y162) -> 0 | Z162: =SUM(Anantnag:Udhampur!Z162) -> 0 | AA162: =SUM(Anantnag:Udhampur!AA162) -> 0 | AB162: =SUM(Anantnag:Udhampur!AB162) -> 0 | AF162: =SUM(Anantnag:Udhampur!U162) -> 0 | AG162: =SUM(Anantnag:Udhampur!Z162) -> 0 | AH162: =SUM(Anantnag:Udhampur!AB162) -> 0
A163: 6.03 | B163: Non-Residential (Fresh) | C163: =SUM(Anantnag:Udhampur!C163) -> 0 | D163: =SUM(Anantnag:Udhampur!D163) -> 0 | E163: =SUM(Anantnag:Udhampur!E163) -> 0 | F163: =SUM(Anantnag:Udhampur!F163) -> 0 | G163: =SUM(Anantnag:Udhampur!G163) -> 0 | H163: =SUM(Anantnag:Udhampur!H163) -> 0 | I163: =SUM(Anantnag:Udhampur!I163) -> 0 | J163: =SUM(Anantnag:Udhampur!J163) -> 0 | K163: =SUM(Anantnag:Udhampur!K163) -> 0 | L163: =SUM(Anantnag:Udhampur!L163) -> 0 | M163: =SUM(Anantnag:Udhampur!M163) -> 0 | N163: =SUM(Anantnag:Udhampur!N163) -> 0 | P163: =SUM(Anantnag:Udhampur!P163) -> 0 | Q163: =SUM(Anantnag:Udhampur!Q163) -> 0 | R163: =SUM(Anantnag:Udhampur!R163) -> 0 | S163: =SUM(Anantnag:Udhampur!S163) -> 0 | T163: =SUM(Anantnag:Udhampur!T163) -> 0 | U163: =SUM(Anantnag:Udhampur!U163) -> 0 | V163: =SUM(Anantnag:Udhampur!V163) -> 0 | W163: =SUM(Anantnag:Udhampur!W163) -> 0 | X163: =SUM(Anantnag:Udhampur!X163) -> 0 | Y163: =SUM(Anantnag:Udhampur!Y163) -> 0 | Z163: =SUM(Anantnag:Udhampur!Z163) -> 0 | AA163: =SUM(Anantnag:Udhampur!AA163) -> 0 | AB163: =SUM(Anantnag:Udhampur!AB163) -> 0 | AF163: =SUM(Anantnag:Udhampur!U163) -> 0 | AG163: =SUM(Anantnag:Udhampur!Z163) -> 0 | AH163: =SUM(Anantnag:Udhampur!AB163) -> 0
B164: (a) 12 months | C164: =SUM(Anantnag:Udhampur!C164) -> 10995 | D164: =SUM(Anantnag:Udhampur!D164) -> 659.7 | E164: =SUM(Anantnag:Udhampur!E164) -> 0 | F164: =SUM(Anantnag:Udhampur!F164) -> 0 | G164: =SUM(Anantnag:Udhampur!G164) -> 0 | H164: =SUM(Anantnag:Udhampur!H164) -> 0 | I164: =SUM(Anantnag:Udhampur!I164) -> 0 | J164: =SUM(Anantnag:Udhampur!J164) -> 0 | K164: =SUM(Anantnag:Udhampur!K164) -> 0 | L164: =SUM(Anantnag:Udhampur!L164) -> 0 | M164: =SUM(Anantnag:Udhampur!M164) -> 0 | N164: =SUM(Anantnag:Udhampur!N164) -> 0 | O164: 0.065 | P164: =SUM(Anantnag:Udhampur!P164) -> 5998 | Q164: =SUM(Anantnag:Udhampur!Q164) -> 389.87 | R164: =SUM(Anantnag:Udhampur!R164) -> 5998 | S164: =SUM(Anantnag:Udhampur!S164) -> 389.87 | T164: =SUM(Anantnag:Udhampur!T164) -> 0 | U164: =SUM(Anantnag:Udhampur!U164) -> 0 | V164: =SUM(Anantnag:Udhampur!V164) -> 0 | W164: =SUM(Anantnag:Udhampur!W164) -> 0 | X164: 0.06 | Y164: =SUM(Anantnag:Udhampur!Y164) -> 5998 | Z164: =SUM(Anantnag:Udhampur!Z164) -> 359.88 | AA164: =SUM(Anantnag:Udhampur!AA164) -> 5998 | AB164: =SUM(Anantnag:Udhampur!AB164) -> 359.88 | AC164: Recommended as appraised | AD164: =SUM(Anantnag:Udhampur!Q164) -> 389.87 | AE164: =Q164-AD164 -> 0 | AF164: =SUM(Anantnag:Udhampur!U164) -> 0 | AG164: =SUM(Anantnag:Udhampur!Z164) -> 359.88 | AH164: =SUM(Anantnag:Udhampur!AB164) -> 359.88 | AI164: =AB164-AH164 -> 0
B165: (b) 9 months | C165: =SUM(Anantnag:Udhampur!C165) -> 8317 | D165: =SUM(Anantnag:Udhampur!D165) -> 374.265 | E165: =SUM(Anantnag:Udhampur!E165) -> 0 | F165: =SUM(Anantnag:Udhampur!F165) -> 0 | G165: =SUM(Anantnag:Udhampur!G165) -> 0 | H165: =SUM(Anantnag:Udhampur!H165) -> 0 | I165: =SUM(Anantnag:Udhampur!I165) -> 0 | J165: =SUM(Anantnag:Udhampur!J165) -> 0 | K165: =SUM(Anantnag:Udhampur!K165) -> 0 | L165: =SUM(Anantnag:Udhampur!L165) -> 0 | M165: =SUM(Anantnag:Udhampur!M165) -> 0 | N165: =SUM(Anantnag:Udhampur!N165) -> 0 | O165: 0.05 | P165: =SUM(Anantnag:Udhampur!P165) -> 4729 | Q165: =SUM(Anantnag:Udhampur!Q165) -> 236.45 | R165: =SUM(Anantnag:Udhampur!R165) -> 4729 | S165: =SUM(Anantnag:Udhampur!S165) -> 236.45 | T165: =SUM(Anantnag:Udhampur!T165) -> 0 | U165: =SUM(Anantnag:Udhampur!U165) -> 0 | V165: =SUM(Anantnag:Udhampur!V165) -> 0 | W165: =SUM(Anantnag:Udhampur!W165) -> 0 | X165: 0.045 | Y165: =SUM(Anantnag:Udhampur!Y165) -> 4729 | Z165: =SUM(Anantnag:Udhampur!Z165) -> 212.805 | AA165: =SUM(Anantnag:Udhampur!AA165) -> 4729 | AB165: =SUM(Anantnag:Udhampur!AB165) -> 212.805 | AD165: =SUM(Anantnag:Udhampur!Q165) -> 236.45 | AE165: =Q165-AD165 -> 0 | AF165: =SUM(Anantnag:Udhampur!U165) -> 0 | AG165: =SUM(Anantnag:Udhampur!Z165) -> 212.805 | AH165: =SUM(Anantnag:Udhampur!AB165) -> 212.805 | AI165: =AB165-AH165 -> 0
B166: (c) 6 months | C166: =SUM(Anantnag:Udhampur!C166) -> 13443 | D166: =SUM(Anantnag:Udhampur!D166) -> 403.29 | E166: =SUM(Anantnag:Udhampur!E166) -> 0 | F166: =SUM(Anantnag:Udhampur!F166) -> 0 | G166: =SUM(Anantnag:Udhampur!G166) -> 0 | H166: =SUM(Anantnag:Udhampur!H166) -> 0 | I166: =SUM(Anantnag:Udhampur!I166) -> 0 | J166: =SUM(Anantnag:Udhampur!J166) -> 0 | K166: =SUM(Anantnag:Udhampur!K166) -> 0 | L166: =SUM(Anantnag:Udhampur!L166) -> 0 | M166: =SUM(Anantnag:Udhampur!M166) -> 0 | N166: =SUM(Anantnag:Udhampur!N166) -> 0 | O166: 0.035 | P166: =SUM(Anantnag:Udhampur!P166) -> 11360 | Q166: =SUM(Anantnag:Udhampur!Q166) -> 397.6 | R166: =SUM(Anantnag:Udhampur!R166) -> 11360 | S166: =SUM(Anantnag:Udhampur!S166) -> 397.6 | T166: =SUM(Anantnag:Udhampur!T166) -> 0 | U166: =SUM(Anantnag:Udhampur!U166) -> 0 | V166: =SUM(Anantnag:Udhampur!V166) -> 0 | W166: =SUM(Anantnag:Udhampur!W166) -> 0 | X166: 0.03 | Y166: =SUM(Anantnag:Udhampur!Y166) -> 11360 | Z166: =SUM(Anantnag:Udhampur!Z166) -> 340.8 | AA166: =SUM(Anantnag:Udhampur!AA166) -> 11360 | AB166: =SUM(Anantnag:Udhampur!AB166) -> 340.8 | AD166: =SUM(Anantnag:Udhampur!Q166) -> 397.6 | AE166: 0 | AF166: =SUM(Anantnag:Udhampur!U166) -> 0 | AG166: =SUM(Anantnag:Udhampur!Z166) -> 340.8 | AH166: =SUM(Anantnag:Udhampur!AB166) -> 340.8 | AI166: 0
B167: (d) 3 months | C167: =SUM(Anantnag:Udhampur!C167) -> 0 | D167: =SUM(Anantnag:Udhampur!D167) -> 0 | E167: =SUM(Anantnag:Udhampur!E167) -> 0 | F167: =SUM(Anantnag:Udhampur!F167) -> 0 | G167: =SUM(Anantnag:Udhampur!G167) -> 0 | H167: =SUM(Anantnag:Udhampur!H167) -> 0 | I167: =SUM(Anantnag:Udhampur!I167) -> 0 | J167: =SUM(Anantnag:Udhampur!J167) -> 0 | K167: =SUM(Anantnag:Udhampur!K167) -> 0 | L167: =SUM(Anantnag:Udhampur!L167) -> 0 | M167: =SUM(Anantnag:Udhampur!M167) -> 0 | N167: =SUM(Anantnag:Udhampur!N167) -> 0 | P167: =SUM(Anantnag:Udhampur!P167) -> 0 | Q167: =SUM(Anantnag:Udhampur!Q167) -> 0 | R167: =SUM(Anantnag:Udhampur!R167) -> 0 | S167: =SUM(Anantnag:Udhampur!S167) -> 0 | T167: =SUM(Anantnag:Udhampur!T167) -> 0 | U167: =SUM(Anantnag:Udhampur!U167) -> 0 | V167: =SUM(Anantnag:Udhampur!V167) -> 0 | W167: =SUM(Anantnag:Udhampur!W167) -> 0 | X167: =SUM(Anantnag:Udhampur!X167) -> 0 | Y167: =SUM(Anantnag:Udhampur!Y167) -> 0 | Z167: =SUM(Anantnag:Udhampur!Z167) -> 0 | AA167: =SUM(Anantnag:Udhampur!AA167) -> 0 | AB167: =SUM(Anantnag:Udhampur!AB167) -> 0 | AD167: =SUM(Anantnag:Udhampur!Q167) -> 0 | AE167: 0 | AF167: =SUM(Anantnag:Udhampur!U167) -> 0 | AG167: =SUM(Anantnag:Udhampur!Z167) -> 0 | AH167: =SUM(Anantnag:Udhampur!AB167) -> 0 | AI167: 0
B168: Sub Total | C168: =SUM(Anantnag:Udhampur!C168) -> 32755 | D168: =SUM(Anantnag:Udhampur!D168) -> 1437.255 | E168: =SUM(Anantnag:Udhampur!E168) -> 0 | F168: =SUM(Anantnag:Udhampur!F168) -> 0 | G168: =SUM(Anantnag:Udhampur!G168) -> 0 | H168: =SUM(Anantnag:Udhampur!H168) -> 0 | I168: =SUM(Anantnag:Udhampur!I168) -> 0 | J168: =SUM(Anantnag:Udhampur!J168) -> 0 | K168: =SUM(Anantnag:Udhampur!K168) -> 0 | L168: =SUM(Anantnag:Udhampur!L168) -> 0 | M168: =SUM(Anantnag:Udhampur!M168) -> 0 | N168: =SUM(Anantnag:Udhampur!N168) -> 0 | P168: =SUM(Anantnag:Udhampur!P168) -> 22087 | Q168: =SUM(Anantnag:Udhampur!Q168) -> 1023.92 | R168: =SUM(Anantnag:Udhampur!R168) -> 22087 | S168: =SUM(Anantnag:Udhampur!S168) -> 1023.92 | T168: =SUM(Anantnag:Udhampur!T168) -> 0 | U168: =SUM(Anantnag:Udhampur!U168) -> 0 | V168: =SUM(Anantnag:Udhampur!V168) -> 0 | W168: =SUM(Anantnag:Udhampur!W168) -> 0 | Y168: =SUM(Anantnag:Udhampur!Y168) -> 22087 | Z168: =SUM(Anantnag:Udhampur!Z168) -> 913.485 | AA168: =SUM(Anantnag:Udhampur!AA168) -> 22087 | AB168: =SUM(Anantnag:Udhampur!AB168) -> 913.485 | AD168: =SUM(Anantnag:Udhampur!Q168) -> 1023.92 | AE168: 0 | AF168: =SUM(Anantnag:Udhampur!U168) -> 0 | AG168: =SUM(Anantnag:Udhampur!Z168) -> 913.485 | AH168: =SUM(Anantnag:Udhampur!AB168) -> 913.485 | AI168: 0
A169: 6.04 | B169: Non-Residential (Continuing from previous year) | C169: =SUM(Anantnag:Udhampur!C169) -> 0 | D169: =SUM(Anantnag:Udhampur!D169) -> 0 | E169: =SUM(Anantnag:Udhampur!E169) -> 0 | F169: =SUM(Anantnag:Udhampur!F169) -> 0 | G169: =SUM(Anantnag:Udhampur!G169) -> 0 | H169: =SUM(Anantnag:Udhampur!H169) -> 0 | I169: =SUM(Anantnag:Udhampur!I169) -> 0 | J169: =SUM(Anantnag:Udhampur!J169) -> 0 | K169: =SUM(Anantnag:Udhampur!K169) -> 0 | L169: =SUM(Anantnag:Udhampur!L169) -> 0 | M169: =SUM(Anantnag:Udhampur!M169) -> 0 | N169: =SUM(Anantnag:Udhampur!N169) -> 0 | P169: =SUM(Anantnag:Udhampur!P169) -> 0 | Q169: =SUM(Anantnag:Udhampur!Q169) -> 0 | R169: =SUM(Anantnag:Udhampur!R169) -> 0 | S169: =SUM(Anantnag:Udhampur!S169) -> 0 | T169: =SUM(Anantnag:Udhampur!T169) -> 0 | U169: =SUM(Anantnag:Udhampur!U169) -> 0 | V169: =SUM(Anantnag:Udhampur!V169) -> 0 | W169: =SUM(Anantnag:Udhampur!W169) -> 0 | X169: =SUM(Anantnag:Udhampur!X169) -> 0 | Y169: =SUM(Anantnag:Udhampur!Y169) -> 0 | Z169: =SUM(Anantnag:Udhampur!Z169) -> 0 | AA169: =SUM(Anantnag:Udhampur!AA169) -> 0 | AB169: =SUM(Anantnag:Udhampur!AB169) -> 0 | AD169: =SUM(Anantnag:Udhampur!Q169) -> 0 | AE169: 0 | AF169: =SUM(Anantnag:Udhampur!U169) -> 0 | AG169: =SUM(Anantnag:Udhampur!Z169) -> 0 | AH169: =SUM(Anantnag:Udhampur!AB169) -> 0 | AI169: 0
B170: (a) 12 months | C170: =SUM(Anantnag:Udhampur!C170) -> 0 | D170: =SUM(Anantnag:Udhampur!D170) -> 0 | E170: =SUM(Anantnag:Udhampur!E170) -> 0 | F170: =SUM(Anantnag:Udhampur!F170) -> 0 | G170: =SUM(Anantnag:Udhampur!G170) -> 0 | H170: =SUM(Anantnag:Udhampur!H170) -> 0 | I170: =SUM(Anantnag:Udhampur!I170) -> 0 | J170: =SUM(Anantnag:Udhampur!J170) -> 0 | K170: =SUM(Anantnag:Udhampur!K170) -> 0 | L170: =SUM(Anantnag:Udhampur!L170) -> 0 | M170: =SUM(Anantnag:Udhampur!M170) -> 0 | N170: =SUM(Anantnag:Udhampur!N170) -> 0 | P170: =SUM(Anantnag:Udhampur!P170) -> 0 | Q170: =SUM(Anantnag:Udhampur!Q170) -> 0 | R170: =SUM(Anantnag:Udhampur!R170) -> 0 | S170: =SUM(Anantnag:Udhampur!S170) -> 0 | T170: =SUM(Anantnag:Udhampur!T170) -> 0 | U170: =SUM(Anantnag:Udhampur!U170) -> 0 | V170: =SUM(Anantnag:Udhampur!V170) -> 0 | W170: =SUM(Anantnag:Udhampur!W170) -> 0 | Y170: =SUM(Anantnag:Udhampur!Y170) -> 0 | Z170: =SUM(Anantnag:Udhampur!Z170) -> 0 | AA170: =SUM(Anantnag:Udhampur!AA170) -> 0 | AB170: =SUM(Anantnag:Udhampur!AB170) -> 0 | AD170: =SUM(Anantnag:Udhampur!Q170) -> 0 | AE170: 0 | AF170: =SUM(Anantnag:Udhampur!U170) -> 0 | AG170: =SUM(Anantnag:Udhampur!Z170) -> 0 | AH170: =SUM(Anantnag:Udhampur!AB170) -> 0 | AI170: 0
B171: (b) 9 months | C171: =SUM(Anantnag:Udhampur!C171) -> 0 | D171: =SUM(Anantnag:Udhampur!D171) -> 0 | E171: =SUM(Anantnag:Udhampur!E171) -> 0 | F171: =SUM(Anantnag:Udhampur!F171) -> 0 | G171: =SUM(Anantnag:Udhampur!G171) -> 0 | H171: =SUM(Anantnag:Udhampur!H171) -> 0 | I171: =SUM(Anantnag:Udhampur!I171) -> 0 | J171: =SUM(Anantnag:Udhampur!J171) -> 0 | K171: =SUM(Anantnag:Udhampur!K171) -> 0 | L171: =SUM(Anantnag:Udhampur!L171) -> 0 | M171: =SUM(Anantnag:Udhampur!M171) -> 0 | N171: =SUM(Anantnag:Udhampur!N171) -> 0 | P171: =SUM(Anantnag:Udhampur!P171) -> 0 | Q171: =SUM(Anantnag:Udhampur!Q171) -> 0 | R171: =SUM(Anantnag:Udhampur!R171) -> 0 | S171: =SUM(Anantnag:Udhampur!S171) -> 0 | T171: =SUM(Anantnag:Udhampur!T171) -> 0 | U171: =SUM(Anantnag:Udhampur!U171) -> 0 | V171: =SUM(Anantnag:Udhampur!V171) -> 0 | W171: =SUM(Anantnag:Udhampur!W171) -> 0 | Y171: =SUM(Anantnag:Udhampur!Y171) -> 0 | Z171: =SUM(Anantnag:Udhampur!Z171) -> 0 | AA171: =SUM(Anantnag:Udhampur!AA171) -> 0 | AB171: =SUM(Anantnag:Udhampur!AB171) -> 0 | AD171: =SUM(Anantnag:Udhampur!Q171) -> 0 | AE171: 0 | AF171: =SUM(Anantnag:Udhampur!U171) -> 0 | AG171: =SUM(Anantnag:Udhampur!Z171) -> 0 | AH171: =SUM(Anantnag:Udhampur!AB171) -> 0 | AI171: 0
B172: (c) 6 months | C172: =SUM(Anantnag:Udhampur!C172) -> 0 | D172: =SUM(Anantnag:Udhampur!D172) -> 0 | E172: =SUM(Anantnag:Udhampur!E172) -> 0 | F172: =SUM(Anantnag:Udhampur!F172) -> 0 | G172: =SUM(Anantnag:Udhampur!G172) -> 0 | H172: =SUM(Anantnag:Udhampur!H172) -> 0 | I172: =SUM(Anantnag:Udhampur!I172) -> 0 | J172: =SUM(Anantnag:Udhampur!J172) -> 0 | K172: =SUM(Anantnag:Udhampur!K172) -> 0 | L172: =SUM(Anantnag:Udhampur!L172) -> 0 | M172: =SUM(Anantnag:Udhampur!M172) -> 0 | N172: =SUM(Anantnag:Udhampur!N172) -> 0 | P172: =SUM(Anantnag:Udhampur!P172) -> 0 | Q172: =SUM(Anantnag:Udhampur!Q172) -> 0 | R172: =SUM(Anantnag:Udhampur!R172) -> 0 | S172: =SUM(Anantnag:Udhampur!S172) -> 0 | T172: =SUM(Anantnag:Udhampur!T172) -> 0 | U172: =SUM(Anantnag:Udhampur!U172) -> 0 | V172: =SUM(Anantnag:Udhampur!V172) -> 0 | W172: =SUM(Anantnag:Udhampur!W172) -> 0 | Y172: =SUM(Anantnag:Udhampur!Y172) -> 0 | Z172: =SUM(Anantnag:Udhampur!Z172) -> 0 | AA172: =SUM(Anantnag:Udhampur!AA172) -> 0 | AB172: =SUM(Anantnag:Udhampur!AB172) -> 0 | AD172: =SUM(Anantnag:Udhampur!Q172) -> 0 | AE172: 0 | AF172: =SUM(Anantnag:Udhampur!U172) -> 0 | AG172: =SUM(Anantnag:Udhampur!Z172) -> 0 | AH172: =SUM(Anantnag:Udhampur!AB172) -> 0 | AI172: 0
B173: (d) 3 months | C173: =SUM(Anantnag:Udhampur!C173) -> 0 | D173: =SUM(Anantnag:Udhampur!D173) -> 0 | E173: =SUM(Anantnag:Udhampur!E173) -> 0 | F173: =SUM(Anantnag:Udhampur!F173) -> 0 | G173: =SUM(Anantnag:Udhampur!G173) -> 0 | H173: =SUM(Anantnag:Udhampur!H173) -> 0 | I173: =SUM(Anantnag:Udhampur!I173) -> 0 | J173: =SUM(Anantnag:Udhampur!J173) -> 0 | K173: =SUM(Anantnag:Udhampur!K173) -> 0 | L173: =SUM(Anantnag:Udhampur!L173) -> 0 | M173: =SUM(Anantnag:Udhampur!M173) -> 0 | N173: =SUM(Anantnag:Udhampur!N173) -> 0 | P173: =SUM(Anantnag:Udhampur!P173) -> 0 | Q173: =SUM(Anantnag:Udhampur!Q173) -> 0 | R173: =SUM(Anantnag:Udhampur!R173) -> 0 | S173: =SUM(Anantnag:Udhampur!S173) -> 0 | T173: =SUM(Anantnag:Udhampur!T173) -> 0 | U173: =SUM(Anantnag:Udhampur!U173) -> 0 | V173: =SUM(Anantnag:Udhampur!V173) -> 0 | W173: =SUM(Anantnag:Udhampur!W173) -> 0 | Y173: =SUM(Anantnag:Udhampur!Y173) -> 0 | Z173: =SUM(Anantnag:Udhampur!Z173) -> 0 | AA173: =SUM(Anantnag:Udhampur!AA173) -> 0 | AB173: =SUM(Anantnag:Udhampur!AB173) -> 0 | AD173: =SUM(Anantnag:Udhampur!Q173) -> 0 | AE173: 0 | AF173: =SUM(Anantnag:Udhampur!U173) -> 0 | AG173: =SUM(Anantnag:Udhampur!Z173) -> 0 | AH173: =SUM(Anantnag:Udhampur!AB173) -> 0 | AI173: 0
B174: Sub Total | C174: =SUM(Anantnag:Udhampur!C174) -> 0 | D174: =SUM(Anantnag:Udhampur!D174) -> 0 | E174: =SUM(Anantnag:Udhampur!E174) -> 0 | F174: =SUM(Anantnag:Udhampur!F174) -> 0 | G174: =SUM(Anantnag:Udhampur!G174) -> 0 | H174: =SUM(Anantnag:Udhampur!H174) -> 0 | I174: =SUM(Anantnag:Udhampur!I174) -> 0 | J174: =SUM(Anantnag:Udhampur!J174) -> 0 | K174: =SUM(Anantnag:Udhampur!K174) -> 0 | L174: =SUM(Anantnag:Udhampur!L174) -> 0 | M174: =SUM(Anantnag:Udhampur!M174) -> 0 | N174: =SUM(Anantnag:Udhampur!N174) -> 0 | O174: =SUM(O170:O173) -> 0 | P174: =SUM(Anantnag:Udhampur!P174) -> 0 | Q174: =SUM(Anantnag:Udhampur!Q174) -> 0 | R174: =SUM(Anantnag:Udhampur!R174) -> 0 | S174: =SUM(Anantnag:Udhampur!S174) -> 0 | T174: =SUM(Anantnag:Udhampur!T174) -> 0 | U174: =SUM(Anantnag:Udhampur!U174) -> 0 | V174: =SUM(Anantnag:Udhampur!V174) -> 0 | W174: =SUM(Anantnag:Udhampur!W174) -> 0 | Y174: =SUM(Anantnag:Udhampur!Y174) -> 0 | Z174: =SUM(Anantnag:Udhampur!Z174) -> 0 | AA174: =SUM(Anantnag:Udhampur!AA174) -> 0 | AB174: =SUM(Anantnag:Udhampur!AB174) -> 0 | AD174: =SUM(Anantnag:Udhampur!Q174) -> 0 | AE174: 0 | AF174: =SUM(Anantnag:Udhampur!U174) -> 0 | AG174: =SUM(Anantnag:Udhampur!Z174) -> 0 | AH174: =SUM(Anantnag:Udhampur!AB174) -> 0 | AI174: 0
A175: 6.05 | B175: Madarasa/Maktab | C175: =SUM(Anantnag:Udhampur!C175) -> 0 | D175: =SUM(Anantnag:Udhampur!D175) -> 0 | E175: =SUM(Anantnag:Udhampur!E175) -> 0 | F175: =SUM(Anantnag:Udhampur!F175) -> 0 | G175: =SUM(Anantnag:Udhampur!G175) -> 0 | H175: =SUM(Anantnag:Udhampur!H175) -> 0 | I175: =SUM(Anantnag:Udhampur!I175) -> 0 | J175: =SUM(Anantnag:Udhampur!J175) -> 0 | K175: =SUM(Anantnag:Udhampur!K175) -> 0 | L175: =SUM(Anantnag:Udhampur!L175) -> 0 | M175: =SUM(Anantnag:Udhampur!M175) -> 0 | N175: =SUM(Anantnag:Udhampur!N175) -> 0 | P175: =SUM(Anantnag:Udhampur!P175) -> 0 | Q175: =SUM(Anantnag:Udhampur!Q175) -> 0 | R175: =SUM(Anantnag:Udhampur!R175) -> 0 | S175: =SUM(Anantnag:Udhampur!S175) -> 0 | T175: =SUM(Anantnag:Udhampur!T175) -> 0 | U175: =SUM(Anantnag:Udhampur!U175) -> 0 | V175: =SUM(Anantnag:Udhampur!V175) -> 0 | W175: =SUM(Anantnag:Udhampur!W175) -> 0 | X175: =SUM(Anantnag:Udhampur!X175) -> 0 | Y175: =SUM(Anantnag:Udhampur!Y175) -> 0 | Z175: =SUM(Anantnag:Udhampur!Z175) -> 0 | AA175: =SUM(Anantnag:Udhampur!AA175) -> 0 | AB175: =SUM(Anantnag:Udhampur!AB175) -> 0 | AD175: =SUM(Anantnag:Udhampur!Q175) -> 0 | AE175: 0 | AF175: =SUM(Anantnag:Udhampur!U175) -> 0 | AG175: =SUM(Anantnag:Udhampur!Z175) -> 0 | AH175: =SUM(Anantnag:Udhampur!AB175) -> 0 | AI175: 0
B176: (a) 12 months | C176: =SUM(Anantnag:Udhampur!C176) -> 0 | D176: =SUM(Anantnag:Udhampur!D176) -> 0 | E176: =SUM(Anantnag:Udhampur!E176) -> 0 | F176: =SUM(Anantnag:Udhampur!F176) -> 0 | G176: =SUM(Anantnag:Udhampur!G176) -> 0 | H176: =SUM(Anantnag:Udhampur!H176) -> 0 | I176: =SUM(Anantnag:Udhampur!I176) -> 0 | J176: =SUM(Anantnag:Udhampur!J176) -> 0 | K176: =SUM(Anantnag:Udhampur!K176) -> 0 | L176: =SUM(Anantnag:Udhampur!L176) -> 0 | M176: =SUM(Anantnag:Udhampur!M176) -> 0 | N176: =SUM(Anantnag:Udhampur!N176) -> 0 | P176: =SUM(Anantnag:Udhampur!P176) -> 0 | Q176: =SUM(Anantnag:Udhampur!Q176) -> 0 | R176: =SUM(Anantnag:Udhampur!R176) -> 0 | S176: =SUM(Anantnag:Udhampur!S176) -> 0 | T176: =SUM(Anantnag:Udhampur!T176) -> 0 | U176: =SUM(Anantnag:Udhampur!U176) -> 0 | V176: =SUM(Anantnag:Udhampur!V176) -> 0 | W176: =SUM(Anantnag:Udhampur!W176) -> 0 | X176: =SUM(Anantnag:Udhampur!X176) -> 0 | Y176: =SUM(Anantnag:Udhampur!Y176) -> 0 | Z176: =SUM(Anantnag:Udhampur!Z176) -> 0 | AA176: =SUM(Anantnag:Udhampur!AA176) -> 0 | AB176: =SUM(Anantnag:Udhampur!AB176) -> 0 | AD176: =SUM(Anantnag:Udhampur!Q176) -> 0 | AE176: 0 | AF176: =SUM(Anantnag:Udhampur!U176) -> 0 | AG176: =SUM(Anantnag:Udhampur!Z176) -> 0 | AH176: =SUM(Anantnag:Udhampur!AB176) -> 0 | AI176: 0
B177: (b) 9 months | C177: =SUM(Anantnag:Udhampur!C177) -> 0 | D177: =SUM(Anantnag:Udhampur!D177) -> 0 | E177: =SUM(Anantnag:Udhampur!E177) -> 0 | F177: =SUM(Anantnag:Udhampur!F177) -> 0 | G177: =SUM(Anantnag:Udhampur!G177) -> 0 | H177: =SUM(Anantnag:Udhampur!H177) -> 0 | I177: =SUM(Anantnag:Udhampur!I177) -> 0 | J177: =SUM(Anantnag:Udhampur!J177) -> 0 | K177: =SUM(Anantnag:Udhampur!K177) -> 0 | L177: =SUM(Anantnag:Udhampur!L177) -> 0 | M177: =SUM(Anantnag:Udhampur!M177) -> 0 | N177: =SUM(Anantnag:Udhampur!N177) -> 0 | P177: =SUM(Anantnag:Udhampur!P177) -> 0 | Q177: =SUM(Anantnag:Udhampur!Q177) -> 0 | R177: =SUM(Anantnag:Udhampur!R177) -> 0 | S177: =SUM(Anantnag:Udhampur!S177) -> 0 | T177: =SUM(Anantnag:Udhampur!T177) -> 0 | U177: =SUM(Anantnag:Udhampur!U177) -> 0 | V177: =SUM(Anantnag:Udhampur!V177) -> 0 | W177: =SUM(Anantnag:Udhampur!W177) -> 0 | X177: =SUM(Anantnag:Udhampur!X177) -> 0 | Y177: =SUM(Anantnag:Udhampur!Y177) -> 0 | Z177: =SUM(Anantnag:Udhampur!Z177) -> 0 | AA177: =SUM(Anantnag:Udhampur!AA177) -> 0 | AB177: =SUM(Anantnag:Udhampur!AB177) -> 0 | AD177: =SUM(Anantnag:Udhampur!Q177) -> 0 | AE177: 0 | AF177: =SUM(Anantnag:Udhampur!U177) -> 0 | AG177: =SUM(Anantnag:Udhampur!Z177) -> 0 | AH177: =SUM(Anantnag:Udhampur!AB177) -> 0 | AI177: 0
B178: (c) 6 months | C178: =SUM(Anantnag:Udhampur!C178) -> 0 | D178: =SUM(Anantnag:Udhampur!D178) -> 0 | E178: =SUM(Anantnag:Udhampur!E178) -> 0 | F178: =SUM(Anantnag:Udhampur!F178) -> 0 | G178: =SUM(Anantnag:Udhampur!G178) -> 0 | H178: =SUM(Anantnag:Udhampur!H178) -> 0 | I178: =SUM(Anantnag:Udhampur!I178) -> 0 | J178: =SUM(Anantnag:Udhampur!J178) -> 0 | K178: =SUM(Anantnag:Udhampur!K178) -> 0 | L178: =SUM(Anantnag:Udhampur!L178) -> 0 | M178: =SUM(Anantnag:Udhampur!M178) -> 0 | N178: =SUM(Anantnag:Udhampur!N178) -> 0 | P178: =SUM(Anantnag:Udhampur!P178) -> 0 | Q178: =SUM(Anantnag:Udhampur!Q178) -> 0 | R178: =SUM(Anantnag:Udhampur!R178) -> 0 | S178: =SUM(Anantnag:Udhampur!S178) -> 0 | T178: =SUM(Anantnag:Udhampur!T178) -> 0 | U178: =SUM(Anantnag:Udhampur!U178) -> 0 | V178: =SUM(Anantnag:Udhampur!V178) -> 0 | W178: =SUM(Anantnag:Udhampur!W178) -> 0 | X178: =SUM(Anantnag:Udhampur!X178) -> 0 | Y178: =SUM(Anantnag:Udhampur!Y178) -> 0 | Z178: =SUM(Anantnag:Udhampur!Z178) -> 0 | AA178: =SUM(Anantnag:Udhampur!AA178) -> 0 | AB178: =SUM(Anantnag:Udhampur!AB178) -> 0 | AD178: =SUM(Anantnag:Udhampur!Q178) -> 0 | AE178: 0 | AF178: =SUM(Anantnag:Udhampur!U178) -> 0 | AG178: =SUM(Anantnag:Udhampur!Z178) -> 0 | AH178: =SUM(Anantnag:Udhampur!AB178) -> 0 | AI178: 0
B179: (d) 3 months | C179: =SUM(Anantnag:Udhampur!C179) -> 0 | D179: =SUM(Anantnag:Udhampur!D179) -> 0 | E179: =SUM(Anantnag:Udhampur!E179) -> 0 | F179: =SUM(Anantnag:Udhampur!F179) -> 0 | G179: =SUM(Anantnag:Udhampur!G179) -> 0 | H179: =SUM(Anantnag:Udhampur!H179) -> 0 | I179: =SUM(Anantnag:Udhampur!I179) -> 0 | J179: =SUM(Anantnag:Udhampur!J179) -> 0 | K179: =SUM(Anantnag:Udhampur!K179) -> 0 | L179: =SUM(Anantnag:Udhampur!L179) -> 0 | M179: =SUM(Anantnag:Udhampur!M179) -> 0 | N179: =SUM(Anantnag:Udhampur!N179) -> 0 | P179: =SUM(Anantnag:Udhampur!P179) -> 0 | Q179: =SUM(Anantnag:Udhampur!Q179) -> 0 | R179: =SUM(Anantnag:Udhampur!R179) -> 0 | S179: =SUM(Anantnag:Udhampur!S179) -> 0 | T179: =SUM(Anantnag:Udhampur!T179) -> 0 | U179: =SUM(Anantnag:Udhampur!U179) -> 0 | V179: =SUM(Anantnag:Udhampur!V179) -> 0 | W179: =SUM(Anantnag:Udhampur!W179) -> 0 | X179: =SUM(Anantnag:Udhampur!X179) -> 0 | Y179: =SUM(Anantnag:Udhampur!Y179) -> 0 | Z179: =SUM(Anantnag:Udhampur!Z179) -> 0 | AA179: =SUM(Anantnag:Udhampur!AA179) -> 0 | AB179: =SUM(Anantnag:Udhampur!AB179) -> 0 | AD179: =SUM(Anantnag:Udhampur!Q179) -> 0 | AE179: 0 | AF179: =SUM(Anantnag:Udhampur!U179) -> 0 | AG179: =SUM(Anantnag:Udhampur!Z179) -> 0 | AH179: =SUM(Anantnag:Udhampur!AB179) -> 0 | AI179: 0
B180: Sub Total | C180: =SUM(Anantnag:Udhampur!C180) -> 0 | D180: =SUM(Anantnag:Udhampur!D180) -> 0 | E180: =SUM(Anantnag:Udhampur!E180) -> 0 | F180: =SUM(Anantnag:Udhampur!F180) -> 0 | G180: =SUM(Anantnag:Udhampur!G180) -> 0 | H180: =SUM(Anantnag:Udhampur!H180) -> 0 | I180: =SUM(Anantnag:Udhampur!I180) -> 0 | J180: =SUM(Anantnag:Udhampur!J180) -> 0 | K180: =SUM(Anantnag:Udhampur!K180) -> 0 | L180: =SUM(Anantnag:Udhampur!L180) -> 0 | M180: =SUM(Anantnag:Udhampur!M180) -> 0 | N180: =SUM(Anantnag:Udhampur!N180) -> 0 | O180: =SUM(O176:O179) -> 0 | P180: =SUM(Anantnag:Udhampur!P180) -> 0 | Q180: =SUM(Anantnag:Udhampur!Q180) -> 0 | R180: =SUM(Anantnag:Udhampur!R180) -> 0 | S180: =SUM(Anantnag:Udhampur!S180) -> 0 | T180: =SUM(Anantnag:Udhampur!T180) -> 0 | U180: =SUM(Anantnag:Udhampur!U180) -> 0 | V180: =SUM(Anantnag:Udhampur!V180) -> 0 | W180: =SUM(Anantnag:Udhampur!W180) -> 0 | X180: =SUM(Anantnag:Udhampur!X180) -> 0 | Y180: =SUM(Anantnag:Udhampur!Y180) -> 0 | Z180: =SUM(Anantnag:Udhampur!Z180) -> 0 | AA180: =SUM(Anantnag:Udhampur!AA180) -> 0 | AB180: =SUM(Anantnag:Udhampur!AB180) -> 0 | AD180: =SUM(Anantnag:Udhampur!Q180) -> 0 | AE180: 0 | AF180: =SUM(Anantnag:Udhampur!U180) -> 0 | AG180: =SUM(Anantnag:Udhampur!Z180) -> 0 | AH180: =SUM(Anantnag:Udhampur!AB180) -> 0 | AI180: 0
A181: 6.06 | B181: Seasonal Hostel (Residential) | C181: =SUM(Anantnag:Udhampur!C181) -> 0 | D181: =SUM(Anantnag:Udhampur!D181) -> 0 | E181: =SUM(Anantnag:Udhampur!E181) -> 0 | F181: =SUM(Anantnag:Udhampur!F181) -> 0 | G181: =SUM(Anantnag:Udhampur!G181) -> 0 | H181: =SUM(Anantnag:Udhampur!H181) -> 0 | I181: =SUM(Anantnag:Udhampur!I181) -> 0 | J181: =SUM(Anantnag:Udhampur!J181) -> 0 | K181: =SUM(Anantnag:Udhampur!K181) -> 0 | L181: =SUM(Anantnag:Udhampur!L181) -> 0 | M181: =SUM(Anantnag:Udhampur!M181) -> 0 | N181: =SUM(Anantnag:Udhampur!N181) -> 0 | P181: =SUM(Anantnag:Udhampur!P181) -> 0 | Q181: =SUM(Anantnag:Udhampur!Q181) -> 0 | R181: =SUM(Anantnag:Udhampur!R181) -> 0 | S181: =SUM(Anantnag:Udhampur!S181) -> 0 | T181: =SUM(Anantnag:Udhampur!T181) -> 0 | U181: =SUM(Anantnag:Udhampur!U181) -> 0 | V181: =SUM(Anantnag:Udhampur!V181) -> 0 | W181: =SUM(Anantnag:Udhampur!W181) -> 0 | X181: =SUM(Anantnag:Udhampur!X181) -> 0 | Y181: =SUM(Anantnag:Udhampur!Y181) -> 0 | Z181: =SUM(Anantnag:Udhampur!Z181) -> 0 | AA181: =SUM(Anantnag:Udhampur!AA181) -> 0 | AB181: =SUM(Anantnag:Udhampur!AB181) -> 0 | AD181: =SUM(Anantnag:Udhampur!Q181) -> 0 | AE181: 0 | AF181: =SUM(Anantnag:Udhampur!U181) -> 0 | AG181: =SUM(Anantnag:Udhampur!Z181) -> 0 | AH181: =SUM(Anantnag:Udhampur!AB181) -> 0 | AI181: 0
B182: (a) 12 months | C182: =SUM(Anantnag:Udhampur!C182) -> 0 | D182: =SUM(Anantnag:Udhampur!D182) -> 0 | E182: =SUM(Anantnag:Udhampur!E182) -> 0 | F182: =SUM(Anantnag:Udhampur!F182) -> 0 | G182: =SUM(Anantnag:Udhampur!G182) -> 0 | H182: =SUM(Anantnag:Udhampur!H182) -> 0 | I182: =SUM(Anantnag:Udhampur!I182) -> 0 | J182: =SUM(Anantnag:Udhampur!J182) -> 0 | K182: =SUM(Anantnag:Udhampur!K182) -> 0 | L182: =SUM(Anantnag:Udhampur!L182) -> 0 | M182: =SUM(Anantnag:Udhampur!M182) -> 0 | N182: =SUM(Anantnag:Udhampur!N182) -> 0 | P182: =SUM(Anantnag:Udhampur!P182) -> 0 | Q182: =SUM(Anantnag:Udhampur!Q182) -> 0 | R182: =SUM(Anantnag:Udhampur!R182) -> 0 | S182: =SUM(Anantnag:Udhampur!S182) -> 0 | T182: =SUM(Anantnag:Udhampur!T182) -> 0 | U182: =SUM(Anantnag:Udhampur!U182) -> 0 | V182: =SUM(Anantnag:Udhampur!V182) -> 0 | W182: =SUM(Anantnag:Udhampur!W182) -> 0 | X182: =SUM(Anantnag:Udhampur!X182) -> 0 | Y182: =SUM(Anantnag:Udhampur!Y182) -> 0 | Z182: =SUM(Anantnag:Udhampur!Z182) -> 0 | AA182: =SUM(Anantnag:Udhampur!AA182) -> 0 | AB182: =SUM(Anantnag:Udhampur!AB182) -> 0 | AD182: =SUM(Anantnag:Udhampur!Q182) -> 0 | AE182: 0 | AF182: =SUM(Anantnag:Udhampur!U182) -> 0 | AG182: =SUM(Anantnag:Udhampur!Z182) -> 0 | AH182: =SUM(Anantnag:Udhampur!AB182) -> 0 | AI182: 0
B183: (b) 9 months | C183: =SUM(Anantnag:Udhampur!C183) -> 0 | D183: =SUM(Anantnag:Udhampur!D183) -> 0 | E183: =SUM(Anantnag:Udhampur!E183) -> 0 | F183: =SUM(Anantnag:Udhampur!F183) -> 0 | G183: =SUM(Anantnag:Udhampur!G183) -> 0 | H183: =SUM(Anantnag:Udhampur!H183) -> 0 | I183: =SUM(Anantnag:Udhampur!I183) -> 0 | J183: =SUM(Anantnag:Udhampur!J183) -> 0 | K183: =SUM(Anantnag:Udhampur!K183) -> 0 | L183: =SUM(Anantnag:Udhampur!L183) -> 0 | M183: =SUM(Anantnag:Udhampur!M183) -> 0 | N183: =SUM(Anantnag:Udhampur!N183) -> 0 | P183: =SUM(Anantnag:Udhampur!P183) -> 0 | Q183: =SUM(Anantnag:Udhampur!Q183) -> 0 | R183: =SUM(Anantnag:Udhampur!R183) -> 0 | S183: =SUM(Anantnag:Udhampur!S183) -> 0 | T183: =SUM(Anantnag:Udhampur!T183) -> 0 | U183: =SUM(Anantnag:Udhampur!U183) -> 0 | V183: =SUM(Anantnag:Udhampur!V183) -> 0 | W183: =SUM(Anantnag:Udhampur!W183) -> 0 | X183: =SUM(Anantnag:Udhampur!X183) -> 0 | Y183: =SUM(Anantnag:Udhampur!Y183) -> 0 | Z183: =SUM(Anantnag:Udhampur!Z183) -> 0 | AA183: =SUM(Anantnag:Udhampur!AA183) -> 0 | AB183: =SUM(Anantnag:Udhampur!AB183) -> 0 | AD183: =SUM(Anantnag:Udhampur!Q183) -> 0 | AE183: 0 | AF183: =SUM(Anantnag:Udhampur!U183) -> 0 | AG183: =SUM(Anantnag:Udhampur!Z183) -> 0 | AH183: =SUM(Anantnag:Udhampur!AB183) -> 0 | AI183: 0
B184: (c) 6 months | C184: =SUM(Anantnag:Udhampur!C184) -> 0 | D184: =SUM(Anantnag:Udhampur!D184) -> 0 | E184: =SUM(Anantnag:Udhampur!E184) -> 0 | F184: =SUM(Anantnag:Udhampur!F184) -> 0 | G184: =SUM(Anantnag:Udhampur!G184) -> 0 | H184: =SUM(Anantnag:Udhampur!H184) -> 0 | I184: =SUM(Anantnag:Udhampur!I184) -> 0 | J184: =SUM(Anantnag:Udhampur!J184) -> 0 | K184: =SUM(Anantnag:Udhampur!K184) -> 0 | L184: =SUM(Anantnag:Udhampur!L184) -> 0 | M184: =SUM(Anantnag:Udhampur!M184) -> 0 | N184: =SUM(Anantnag:Udhampur!N184) -> 0 | P184: =SUM(Anantnag:Udhampur!P184) -> 0 | Q184: =SUM(Anantnag:Udhampur!Q184) -> 0 | R184: =SUM(Anantnag:Udhampur!R184) -> 0 | S184: =SUM(Anantnag:Udhampur!S184) -> 0 | T184: =SUM(Anantnag:Udhampur!T184) -> 0 | U184: =SUM(Anantnag:Udhampur!U184) -> 0 | V184: =SUM(Anantnag:Udhampur!V184) -> 0 | W184: =SUM(Anantnag:Udhampur!W184) -> 0 | X184: =SUM(Anantnag:Udhampur!X184) -> 0 | Y184: =SUM(Anantnag:Udhampur!Y184) -> 0 | Z184: =SUM(Anantnag:Udhampur!Z184) -> 0 | AA184: =SUM(Anantnag:Udhampur!AA184) -> 0 | AB184: =SUM(Anantnag:Udhampur!AB184) -> 0 | AD184: =SUM(Anantnag:Udhampur!Q184) -> 0 | AE184: 0 | AF184: =SUM(Anantnag:Udhampur!U184) -> 0 | AG184: =SUM(Anantnag:Udhampur!Z184) -> 0 | AH184: =SUM(Anantnag:Udhampur!AB184) -> 0 | AI184: 0
B185: (d) 3 months | C185: =SUM(Anantnag:Udhampur!C185) -> 0 | D185: =SUM(Anantnag:Udhampur!D185) -> 0 | E185: =SUM(Anantnag:Udhampur!E185) -> 0 | F185: =SUM(Anantnag:Udhampur!F185) -> 0 | G185: =SUM(Anantnag:Udhampur!G185) -> 0 | H185: =SUM(Anantnag:Udhampur!H185) -> 0 | I185: =SUM(Anantnag:Udhampur!I185) -> 0 | J185: =SUM(Anantnag:Udhampur!J185) -> 0 | K185: =SUM(Anantnag:Udhampur!K185) -> 0 | L185: =SUM(Anantnag:Udhampur!L185) -> 0 | M185: =SUM(Anantnag:Udhampur!M185) -> 0 | N185: =SUM(Anantnag:Udhampur!N185) -> 0 | P185: =SUM(Anantnag:Udhampur!P185) -> 0 | Q185: =SUM(Anantnag:Udhampur!Q185) -> 0 | R185: =SUM(Anantnag:Udhampur!R185) -> 0 | S185: =SUM(Anantnag:Udhampur!S185) -> 0 | T185: =SUM(Anantnag:Udhampur!T185) -> 0 | U185: =SUM(Anantnag:Udhampur!U185) -> 0 | V185: =SUM(Anantnag:Udhampur!V185) -> 0 | W185: =SUM(Anantnag:Udhampur!W185) -> 0 | X185: =SUM(Anantnag:Udhampur!X185) -> 0 | Y185: =SUM(Anantnag:Udhampur!Y185) -> 0 | Z185: =SUM(Anantnag:Udhampur!Z185) -> 0 | AA185: =SUM(Anantnag:Udhampur!AA185) -> 0 | AB185: =SUM(Anantnag:Udhampur!AB185) -> 0 | AD185: =SUM(Anantnag:Udhampur!Q185) -> 0 | AE185: 0 | AF185: =SUM(Anantnag:Udhampur!U185) -> 0 | AG185: =SUM(Anantnag:Udhampur!Z185) -> 0 | AH185: =SUM(Anantnag:Udhampur!AB185) -> 0 | AI185: 0
B186: Sub Total | C186: =SUM(Anantnag:Udhampur!C186) -> 0 | D186: =SUM(Anantnag:Udhampur!D186) -> 0 | E186: =SUM(Anantnag:Udhampur!E186) -> 0 | F186: =SUM(Anantnag:Udhampur!F186) -> 0 | G186: =SUM(Anantnag:Udhampur!G186) -> 0 | H186: =SUM(Anantnag:Udhampur!H186) -> 0 | I186: =SUM(Anantnag:Udhampur!I186) -> 0 | J186: =SUM(Anantnag:Udhampur!J186) -> 0 | K186: =SUM(Anantnag:Udhampur!K186) -> 0 | L186: =SUM(Anantnag:Udhampur!L186) -> 0 | M186: =SUM(Anantnag:Udhampur!M186) -> 0 | N186: =SUM(Anantnag:Udhampur!N186) -> 0 | O186: =SUM(O182:O185) -> 0 | P186: =SUM(Anantnag:Udhampur!P186) -> 0 | Q186: =SUM(Anantnag:Udhampur!Q186) -> 0 | R186: =SUM(Anantnag:Udhampur!R186) -> 0 | S186: =SUM(Anantnag:Udhampur!S186) -> 0 | T186: =SUM(Anantnag:Udhampur!T186) -> 0 | U186: =SUM(Anantnag:Udhampur!U186) -> 0 | V186: =SUM(Anantnag:Udhampur!V186) -> 0 | W186: =SUM(Anantnag:Udhampur!W186) -> 0 | X186: =SUM(Anantnag:Udhampur!X186) -> 0 | Y186: =SUM(Anantnag:Udhampur!Y186) -> 0 | Z186: =SUM(Anantnag:Udhampur!Z186) -> 0 | AA186: =SUM(Anantnag:Udhampur!AA186) -> 0 | AB186: =SUM(Anantnag:Udhampur!AB186) -> 0 | AD186: =SUM(Anantnag:Udhampur!Q186) -> 0 | AE186: 0 | AF186: =SUM(Anantnag:Udhampur!U186) -> 0 | AG186: =SUM(Anantnag:Udhampur!Z186) -> 0 | AH186: =SUM(Anantnag:Udhampur!AB186) -> 0 | AI186: 0
A187: 6.07 | B187: Seasonal Hostel (Non Residential) | C187: =SUM(Anantnag:Udhampur!C187) -> 0 | D187: =SUM(Anantnag:Udhampur!D187) -> 0 | E187: =SUM(Anantnag:Udhampur!E187) -> 0 | F187: =SUM(Anantnag:Udhampur!F187) -> 0 | G187: =SUM(Anantnag:Udhampur!G187) -> 0 | H187: =SUM(Anantnag:Udhampur!H187) -> 0 | I187: =SUM(Anantnag:Udhampur!I187) -> 0 | J187: =SUM(Anantnag:Udhampur!J187) -> 0 | K187: =SUM(Anantnag:Udhampur!K187) -> 0 | L187: =SUM(Anantnag:Udhampur!L187) -> 0 | M187: =SUM(Anantnag:Udhampur!M187) -> 0 | N187: =SUM(Anantnag:Udhampur!N187) -> 0 | P187: =SUM(Anantnag:Udhampur!P187) -> 0 | Q187: =SUM(Anantnag:Udhampur!Q187) -> 0 | R187: =SUM(Anantnag:Udhampur!R187) -> 0 | S187: =SUM(Anantnag:Udhampur!S187) -> 0 | T187: =SUM(Anantnag:Udhampur!T187) -> 0 | U187: =SUM(Anantnag:Udhampur!U187) -> 0 | V187: =SUM(Anantnag:Udhampur!V187) -> 0 | W187: =SUM(Anantnag:Udhampur!W187) -> 0 | X187: =SUM(Anantnag:Udhampur!X187) -> 0 | Y187: =SUM(Anantnag:Udhampur!Y187) -> 0 | Z187: =SUM(Anantnag:Udhampur!Z187) -> 0 | AA187: =SUM(Anantnag:Udhampur!AA187) -> 0 | AB187: =SUM(Anantnag:Udhampur!AB187) -> 0 | AD187: =SUM(Anantnag:Udhampur!Q187) -> 0 | AE187: 0 | AF187: =SUM(Anantnag:Udhampur!U187) -> 0 | AG187: =SUM(Anantnag:Udhampur!Z187) -> 0 | AH187: =SUM(Anantnag:Udhampur!AB187) -> 0 | AI187: 0
B188: (a) 12 months / Tablet | C188: =SUM(Anantnag:Udhampur!C188) -> 0 | D188: =SUM(Anantnag:Udhampur!D188) -> 0 | E188: =SUM(Anantnag:Udhampur!E188) -> 0 | F188: =SUM(Anantnag:Udhampur!F188) -> 0 | G188: =SUM(Anantnag:Udhampur!G188) -> 0 | H188: =SUM(Anantnag:Udhampur!H188) -> 0 | I188: =SUM(Anantnag:Udhampur!I188) -> 0 | J188: =SUM(Anantnag:Udhampur!J188) -> 0 | K188: =SUM(Anantnag:Udhampur!K188) -> 0 | L188: =SUM(Anantnag:Udhampur!L188) -> 0 | M188: =SUM(Anantnag:Udhampur!M188) -> 0 | N188: =SUM(Anantnag:Udhampur!N188) -> 0 | O188: 0.08 | P188: =SUM(Anantnag:Udhampur!P188) -> 1395 | Q188: =SUM(Anantnag:Udhampur!Q188) -> 111.6 | R188: =SUM(Anantnag:Udhampur!R188) -> 1395 | S188: =SUM(Anantnag:Udhampur!S188) -> 111.6 | T188: =SUM(Anantnag:Udhampur!T188) -> 0 | U188: =SUM(Anantnag:Udhampur!U188) -> 0 | V188: =SUM(Anantnag:Udhampur!V188) -> 0 | W188: =SUM(Anantnag:Udhampur!W188) -> 0 | X188: 0.08 | Y188: =SUM(Anantnag:Udhampur!Y188) -> 0 | Z188: =SUM(Anantnag:Udhampur!Z188) -> 0 | AA188: =SUM(Anantnag:Udhampur!AA188) -> 0 | AB188: =SUM(Anantnag:Udhampur!AB188) -> 0 | AC188: Not recommended | AD188: =SUM(Anantnag:Udhampur!Q188) -> 111.6 | AE188: 0 | AF188: =SUM(Anantnag:Udhampur!U188) -> 0 | AG188: =SUM(Anantnag:Udhampur!Z188) -> 0 | AH188: =SUM(Anantnag:Udhampur!AB188) -> 0 | AI188: 0
B189: (b) 9 months / Solary Battery cum charger | C189: =SUM(Anantnag:Udhampur!C189) -> 0 | D189: =SUM(Anantnag:Udhampur!D189) -> 0 | E189: =SUM(Anantnag:Udhampur!E189) -> 0 | F189: =SUM(Anantnag:Udhampur!F189) -> 0 | G189: =SUM(Anantnag:Udhampur!G189) -> 0 | H189: =SUM(Anantnag:Udhampur!H189) -> 0 | I189: =SUM(Anantnag:Udhampur!I189) -> 0 | J189: =SUM(Anantnag:Udhampur!J189) -> 0 | K189: =SUM(Anantnag:Udhampur!K189) -> 0 | L189: =SUM(Anantnag:Udhampur!L189) -> 0 | M189: =SUM(Anantnag:Udhampur!M189) -> 0 | N189: =SUM(Anantnag:Udhampur!N189) -> 0 | O189: 0.02 | P189: =SUM(Anantnag:Udhampur!P189) -> 1395 | Q189: =SUM(Anantnag:Udhampur!Q189) -> 27.9 | R189: =SUM(Anantnag:Udhampur!R189) -> 1395 | S189: =SUM(Anantnag:Udhampur!S189) -> 27.9 | T189: =SUM(Anantnag:Udhampur!T189) -> 0 | U189: =SUM(Anantnag:Udhampur!U189) -> 0 | V189: =SUM(Anantnag:Udhampur!V189) -> 0 | W189: =SUM(Anantnag:Udhampur!W189) -> 0 | X189: 0.02 | Y189: =SUM(Anantnag:Udhampur!Y189) -> 0 | Z189: =SUM(Anantnag:Udhampur!Z189) -> 0 | AA189: =SUM(Anantnag:Udhampur!AA189) -> 0 | AB189: =SUM(Anantnag:Udhampur!AB189) -> 0 | AD189: =SUM(Anantnag:Udhampur!Q189) -> 27.9 | AE189: 0 | AF189: =SUM(Anantnag:Udhampur!U189) -> 0 | AG189: =SUM(Anantnag:Udhampur!Z189) -> 0 | AH189: =SUM(Anantnag:Udhampur!AB189) -> 0 | AI189: 0
B190: (c) 6 months | C190: =SUM(Anantnag:Udhampur!C190) -> 34130 | D190: =SUM(Anantnag:Udhampur!D190) -> 849.4957 | E190: =SUM(Anantnag:Udhampur!E190) -> 3444 | F190: =SUM(Anantnag:Udhampur!F190) -> 56.655 | G190: =SUM(Anantnag:Udhampur!G190) -> 0 | H190: =SUM(Anantnag:Udhampur!H190) -> 0 | I190: =SUM(Anantnag:Udhampur!I190) -> 0 | J190: =SUM(Anantnag:Udhampur!J190) -> 0 | K190: =SUM(Anantnag:Udhampur!K190) -> 0 | L190: =SUM(Anantnag:Udhampur!L190) -> 0 | M190: =SUM(Anantnag:Udhampur!M190) -> 0 | N190: =SUM(Anantnag:Udhampur!N190) -> 0 | O190: 0.03 | P190: =SUM(Anantnag:Udhampur!P190) -> 32123 | Q190: =SUM(Anantnag:Udhampur!Q190) -> 963.69 | R190: =SUM(Anantnag:Udhampur!R190) -> 32123 | S190: =SUM(Anantnag:Udhampur!S190) -> 963.69 | T190: =SUM(Anantnag:Udhampur!T190) -> 0 | U190: =SUM(Anantnag:Udhampur!U190) -> 0 | V190: =SUM(Anantnag:Udhampur!V190) -> 0 | W190: =SUM(Anantnag:Udhampur!W190) -> 0 | X190: 0.03 | Y190: =SUM(Anantnag:Udhampur!Y190) -> 32123 | Z190: =SUM(Anantnag:Udhampur!Z190) -> 963.69 | AA190: =SUM(Anantnag:Udhampur!AA190) -> 32123 | AB190: =SUM(Anantnag:Udhampur!AB190) -> 963.69 | AC190: Recommended as proposed | AD190: =SUM(Anantnag:Udhampur!Q190) -> 963.69 | AE190: 0 | AF190: =SUM(Anantnag:Udhampur!U190) -> 0 | AG190: =SUM(Anantnag:Udhampur!Z190) -> 963.69 | AH190: =SUM(Anantnag:Udhampur!AB190) -> 963.69 | AI190: 0
B191: (d) 3 months | C191: =SUM(Anantnag:Udhampur!C191) -> 0 | D191: =SUM(Anantnag:Udhampur!D191) -> 0 | E191: =SUM(Anantnag:Udhampur!E191) -> 0 | F191: =SUM(Anantnag:Udhampur!F191) -> 0 | G191: =SUM(Anantnag:Udhampur!G191) -> 0 | H191: =SUM(Anantnag:Udhampur!H191) -> 0 | I191: =SUM(Anantnag:Udhampur!I191) -> 0 | J191: =SUM(Anantnag:Udhampur!J191) -> 0 | K191: =SUM(Anantnag:Udhampur!K191) -> 0 | L191: =SUM(Anantnag:Udhampur!L191) -> 0 | M191: =SUM(Anantnag:Udhampur!M191) -> 0 | N191: =SUM(Anantnag:Udhampur!N191) -> 0 | P191: =SUM(Anantnag:Udhampur!P191) -> 0 | Q191: =SUM(Anantnag:Udhampur!Q191) -> 0 | R191: =SUM(Anantnag:Udhampur!R191) -> 0 | S191: =SUM(Anantnag:Udhampur!S191) -> 0 | T191: =SUM(Anantnag:Udhampur!T191) -> 0 | U191: =SUM(Anantnag:Udhampur!U191) -> 0 | V191: =SUM(Anantnag:Udhampur!V191) -> 0 | W191: =SUM(Anantnag:Udhampur!W191) -> 0 | Y191: =SUM(Anantnag:Udhampur!Y191) -> 0 | Z191: =SUM(Anantnag:Udhampur!Z191) -> 0 | AA191: =SUM(Anantnag:Udhampur!AA191) -> 0 | AB191: =SUM(Anantnag:Udhampur!AB191) -> 0 | AD191: =SUM(Anantnag:Udhampur!Q191) -> 0 | AE191: 0 | AF191: =SUM(Anantnag:Udhampur!U191) -> 0 | AG191: =SUM(Anantnag:Udhampur!Z191) -> 0 | AH191: =SUM(Anantnag:Udhampur!AB191) -> 0 | AI191: 0
B192: Sub Total | C192: =SUM(Anantnag:Udhampur!C192) -> 34130 | D192: =SUM(Anantnag:Udhampur!D192) -> 849.4957 | E192: =SUM(Anantnag:Udhampur!E192) -> 3444 | F192: =SUM(Anantnag:Udhampur!F192) -> 56.655 | G192: =SUM(Anantnag:Udhampur!G192) -> 0 | H192: =SUM(Anantnag:Udhampur!H192) -> 0 | I192: =SUM(Anantnag:Udhampur!I192) -> 0 | J192: =SUM(Anantnag:Udhampur!J192) -> 0 | K192: =SUM(Anantnag:Udhampur!K192) -> 0 | L192: =SUM(Anantnag:Udhampur!L192) -> 0 | M192: =SUM(Anantnag:Udhampur!M192) -> 0 | N192: =SUM(Anantnag:Udhampur!N192) -> 0 | P192: =SUM(Anantnag:Udhampur!P192) -> 34913 | Q192: =SUM(Anantnag:Udhampur!Q192) -> 1103.19 | R192: =SUM(Anantnag:Udhampur!R192) -> 34913 | S192: =SUM(Anantnag:Udhampur!S192) -> 1103.19 | T192: =SUM(Anantnag:Udhampur!T192) -> 0 | U192: =SUM(Anantnag:Udhampur!U192) -> 0 | V192: =SUM(Anantnag:Udhampur!V192) -> 0 | W192: =SUM(Anantnag:Udhampur!W192) -> 0 | Y192: =SUM(Anantnag:Udhampur!Y192) -> 32123 | Z192: =SUM(Anantnag:Udhampur!Z192) -> 963.69 | AA192: =SUM(Anantnag:Udhampur!AA192) -> 32123 | AB192: =SUM(Anantnag:Udhampur!AB192) -> 963.69 | AD192: =SUM(Anantnag:Udhampur!Q192) -> 1103.19 | AE192: 0 | AF192: =SUM(Anantnag:Udhampur!U192) -> 0 | AG192: =SUM(Anantnag:Udhampur!Z192) -> 963.69 | AH192: =SUM(Anantnag:Udhampur!AB192) -> 963.69 | AI192: 0
B193: Total | C193: =SUM(Anantnag:Udhampur!C193) -> 66885 | D193: =SUM(Anantnag:Udhampur!D193) -> 2286.7507 | E193: =SUM(Anantnag:Udhampur!E193) -> 3444 | F193: =SUM(Anantnag:Udhampur!F193) -> 56.655 | G193: =SUM(Anantnag:Udhampur!G193) -> 0 | H193: =SUM(Anantnag:Udhampur!H193) -> 0 | I193: =SUM(Anantnag:Udhampur!I193) -> 0 | J193: =SUM(Anantnag:Udhampur!J193) -> 0 | K193: =SUM(Anantnag:Udhampur!K193) -> 0 | L193: =SUM(Anantnag:Udhampur!L193) -> 0 | M193: =SUM(Anantnag:Udhampur!M193) -> 0 | N193: =SUM(Anantnag:Udhampur!N193) -> 0 | P193: =SUM(Anantnag:Udhampur!P193) -> 57000 | Q193: =SUM(Anantnag:Udhampur!Q193) -> 2127.11 | R193: =SUM(Anantnag:Udhampur!R193) -> 57000 | S193: =SUM(Anantnag:Udhampur!S193) -> 2127.11 | T193: =SUM(Anantnag:Udhampur!T193) -> 0 | U193: =SUM(Anantnag:Udhampur!U193) -> 0 | V193: =SUM(Anantnag:Udhampur!V193) -> 0 | W193: =SUM(Anantnag:Udhampur!W193) -> 0 | Y193: =SUM(Anantnag:Udhampur!Y193) -> 54210 | Z193: =SUM(Anantnag:Udhampur!Z193) -> 1877.175 | AA193: =SUM(Anantnag:Udhampur!AA193) -> 54210 | AB193: =SUM(Anantnag:Udhampur!AB193) -> 1877.175 | AD193: =SUM(Anantnag:Udhampur!Q193) -> 2127.11 | AE193: 0 | AF193: =SUM(Anantnag:Udhampur!U193) -> 0 | AG193: =SUM(Anantnag:Udhampur!Z193) -> 1877.175 | AH193: =SUM(Anantnag:Udhampur!AB193) -> 1877.175 | AI193: 0
A194: II | B194: RETENTION | C194: =SUM(Anantnag:Udhampur!C194) -> 0 | D194: =SUM(Anantnag:Udhampur!D194) -> 0 | E194: =SUM(Anantnag:Udhampur!E194) -> 0 | F194: =SUM(Anantnag:Udhampur!F194) -> 0 | G194: =SUM(Anantnag:Udhampur!G194) -> 0 | H194: =SUM(Anantnag:Udhampur!H194) -> 0 | I194: =SUM(Anantnag:Udhampur!I194) -> 0 | J194: =SUM(Anantnag:Udhampur!J194) -> 0 | K194: =SUM(Anantnag:Udhampur!K194) -> 0 | L194: =SUM(Anantnag:Udhampur!L194) -> 0 | M194: =SUM(Anantnag:Udhampur!M194) -> 0 | N194: =SUM(Anantnag:Udhampur!N194) -> 0 | P194: =SUM(Anantnag:Udhampur!P194) -> 0 | Q194: =SUM(Anantnag:Udhampur!Q194) -> 0 | R194: =SUM(Anantnag:Udhampur!R194) -> 0 | S194: =SUM(Anantnag:Udhampur!S194) -> 0 | T194: =SUM(Anantnag:Udhampur!T194) -> 0 | U194: =SUM(Anantnag:Udhampur!U194) -> 0 | V194: =SUM(Anantnag:Udhampur!V194) -> 0 | W194: =SUM(Anantnag:Udhampur!W194) -> 0 | Y194: =SUM(Anantnag:Udhampur!Y194) -> 0 | Z194: =SUM(Anantnag:Udhampur!Z194) -> 0 | AA194: =SUM(Anantnag:Udhampur!AA194) -> 0 | AB194: =SUM(Anantnag:Udhampur!AB194) -> 0 | AD194: =SUM(Anantnag:Udhampur!Q194) -> 0 | AE194: 0 | AF194: =SUM(Anantnag:Udhampur!U194) -> 0 | AG194: =SUM(Anantnag:Udhampur!Z194) -> 0 | AH194: =SUM(Anantnag:Udhampur!AB194) -> 0 | AI194: 0
A195: 7 | B195: Free Text Books | C195: =SUM(Anantnag:Udhampur!C195) -> 0 | D195: =SUM(Anantnag:Udhampur!D195) -> 0 | E195: =SUM(Anantnag:Udhampur!E195) -> 0 | F195: =SUM(Anantnag:Udhampur!F195) -> 0 | G195: =SUM(Anantnag:Udhampur!G195) -> 0 | H195: =SUM(Anantnag:Udhampur!H195) -> 0 | I195: =SUM(Anantnag:Udhampur!I195) -> 0 | J195: =SUM(Anantnag:Udhampur!J195) -> 0 | K195: =SUM(Anantnag:Udhampur!K195) -> 0 | L195: =SUM(Anantnag:Udhampur!L195) -> 0 | M195: =SUM(Anantnag:Udhampur!M195) -> 0 | N195: =SUM(Anantnag:Udhampur!N195) -> 0 | P195: =SUM(Anantnag:Udhampur!P195) -> 0 | Q195: =SUM(Anantnag:Udhampur!Q195) -> 0 | R195: =SUM(Anantnag:Udhampur!R195) -> 0 | S195: =SUM(Anantnag:Udhampur!S195) -> 0 | T195: =SUM(Anantnag:Udhampur!T195) -> 0 | U195: =SUM(Anantnag:Udhampur!U195) -> 0 | V195: =SUM(Anantnag:Udhampur!V195) -> 0 | W195: =SUM(Anantnag:Udhampur!W195) -> 0 | X195: =Anantnag!X195+Bandipora!X195+Baramulla!X195+Budgam!X195+Ganderbal!X195+Doda!X195+Jammu!X195+Kargil!X195+Kathua!X195+Kishtwar!X195+Kulgam!X195+Kupwara!X195+Leh!X195+Poonch!X195+Pulwama!X195+Rajouri!X195+Ramban!X195+Reasi!X195+Samba!X195+Shopian!X195+Srinagar!X195+Udhampur!X195 -> 0 | Y195: =SUM(Anantnag:Udhampur!Y195) -> 0 | Z195: =SUM(Anantnag:Udhampur!Z195) -> 0 | AA195: =SUM(Anantnag:Udhampur!AA195) -> 0 | AB195: =SUM(Anantnag:Udhampur!AB195) -> 0 | AD195: =SUM(Anantnag:Udhampur!Q195) -> 0 | AE195: 0 | AF195: =SUM(Anantnag:Udhampur!U195) -> 0 | AG195: =SUM(Anantnag:Udhampur!Z195) -> 0 | AH195: =SUM(Anantnag:Udhampur!AB195) -> 0 | AI195: 0
A196: 7.01 | B196: Free Text Books (P) | C196: =SUM(Anantnag:Udhampur!C196) -> 0 | D196: =SUM(Anantnag:Udhampur!D196) -> 0 | E196: =SUM(Anantnag:Udhampur!E196) -> 0 | F196: =SUM(Anantnag:Udhampur!F196) -> 0 | G196: =SUM(Anantnag:Udhampur!G196) -> 0 | H196: =SUM(Anantnag:Udhampur!H196) -> 0 | I196: =SUM(Anantnag:Udhampur!I196) -> 0 | J196: =SUM(Anantnag:Udhampur!J196) -> 0 | K196: =SUM(Anantnag:Udhampur!K196) -> 0 | L196: =SUM(Anantnag:Udhampur!L196) -> 0 | M196: =SUM(Anantnag:Udhampur!M196) -> 0 | N196: =SUM(Anantnag:Udhampur!N196) -> 0 | P196: =SUM(Anantnag:Udhampur!P196) -> 0 | Q196: =SUM(Anantnag:Udhampur!Q196) -> 0 | R196: =SUM(Anantnag:Udhampur!R196) -> 0 | S196: =SUM(Anantnag:Udhampur!S196) -> 0 | T196: =SUM(Anantnag:Udhampur!T196) -> 0 | U196: =SUM(Anantnag:Udhampur!U196) -> 0 | V196: =SUM(Anantnag:Udhampur!V196) -> 0 | W196: =SUM(Anantnag:Udhampur!W196) -> 0 | Y196: =SUM(Anantnag:Udhampur!Y196) -> 0 | Z196: =SUM(Anantnag:Udhampur!Z196) -> 0 | AA196: =SUM(Anantnag:Udhampur!AA196) -> 0 | AB196: =SUM(Anantnag:Udhampur!AB196) -> 0 | AD196: =SUM(Anantnag:Udhampur!Q196) -> 0 | AE196: 0 | AF196: =SUM(Anantnag:Udhampur!U196) -> 0 | AG196: =SUM(Anantnag:Udhampur!Z196) -> 0 | AH196: =SUM(Anantnag:Udhampur!AB196) -> 0 | AI196: 0
B197: (a) Class I & II | C197: =SUM(Anantnag:Udhampur!C197) -> 0 | D197: =SUM(Anantnag:Udhampur!D197) -> 0 | E197: =SUM(Anantnag:Udhampur!E197) -> 0 | F197: =SUM(Anantnag:Udhampur!F197) -> 0 | G197: =SUM(Anantnag:Udhampur!G197) -> 0 | H197: =SUM(Anantnag:Udhampur!H197) -> 0 | I197: =SUM(Anantnag:Udhampur!I197) -> 0 | J197: =SUM(Anantnag:Udhampur!J197) -> 0 | K197: =SUM(Anantnag:Udhampur!K197) -> 0 | L197: =SUM(Anantnag:Udhampur!L197) -> 0 | M197: =SUM(Anantnag:Udhampur!M197) -> 0 | N197: =SUM(Anantnag:Udhampur!N197) -> 0 | O197: 0.0015 | P197: =SUM(Anantnag:Udhampur!P197) -> 0 | Q197: =SUM(Anantnag:Udhampur!Q197) -> 0 | R197: =SUM(Anantnag:Udhampur!R197) -> 0 | S197: =SUM(Anantnag:Udhampur!S197) -> 0 | T197: =SUM(Anantnag:Udhampur!T197) -> 0 | U197: =SUM(Anantnag:Udhampur!U197) -> 0 | V197: =SUM(Anantnag:Udhampur!V197) -> 0 | W197: =SUM(Anantnag:Udhampur!W197) -> 0 | X197: 0 | Y197: =SUM(Anantnag:Udhampur!Y197) -> 0 | Z197: =SUM(Anantnag:Udhampur!Z197) -> 0 | AA197: =SUM(Anantnag:Udhampur!AA197) -> 0 | AB197: =SUM(Anantnag:Udhampur!AB197) -> 0 | AD197: =SUM(Anantnag:Udhampur!Q197) -> 0 | AE197: 0 | AF197: =SUM(Anantnag:Udhampur!U197) -> 0 | AG197: =SUM(Anantnag:Udhampur!Z197) -> 0 | AH197: =SUM(Anantnag:Udhampur!AB197) -> 0 | AI197: 0
B198: (b) Braille Books Class I & II | C198: =SUM(Anantnag:Udhampur!C198) -> 76 | D198: =SUM(Anantnag:Udhampur!D198) -> 0.114 | E198: =SUM(Anantnag:Udhampur!E198) -> 0 | F198: =SUM(Anantnag:Udhampur!F198) -> 0 | G198: =SUM(Anantnag:Udhampur!G198) -> 0 | H198: =SUM(Anantnag:Udhampur!H198) -> 0 | I198: =SUM(Anantnag:Udhampur!I198) -> 0 | J198: =SUM(Anantnag:Udhampur!J198) -> 0 | K198: =SUM(Anantnag:Udhampur!K198) -> 0 | L198: =SUM(Anantnag:Udhampur!L198) -> 0 | M198: =SUM(Anantnag:Udhampur!M198) -> 0 | N198: =SUM(Anantnag:Udhampur!N198) -> 0 | O198: 0.0015 | P198: =SUM(Anantnag:Udhampur!P198) -> 103 | Q198: =SUM(Anantnag:Udhampur!Q198) -> 0.1545 | R198: =SUM(Anantnag:Udhampur!R198) -> 103 | S198: =SUM(Anantnag:Udhampur!S198) -> 0.1545 | T198: =SUM(Anantnag:Udhampur!T198) -> 0 | U198: =SUM(Anantnag:Udhampur!U198) -> 0 | V198: =SUM(Anantnag:Udhampur!V198) -> 0 | W198: =SUM(Anantnag:Udhampur!W198) -> 0 | X198: 0.0015 | Y198: =SUM(Anantnag:Udhampur!Y198) -> 103 | Z198: =SUM(Anantnag:Udhampur!Z198) -> 0.1545 | AA198: =SUM(Anantnag:Udhampur!AA198) -> 103 | AB198: =SUM(Anantnag:Udhampur!AB198) -> 0.1545 | AC198: Recommended as proposed | AD198: =SUM(Anantnag:Udhampur!Q198) -> 0.1545 | AE198: 0 | AF198: =SUM(Anantnag:Udhampur!U198) -> 0 | AG198: =SUM(Anantnag:Udhampur!Z198) -> 0.1545 | AH198: =SUM(Anantnag:Udhampur!AB198) -> 0.1545 | AI198: 0
B199: (c) Large Print Books Class I & II | C199: =SUM(Anantnag:Udhampur!C199) -> 542 | D199: =SUM(Anantnag:Udhampur!D199) -> 0.813 | E199: =SUM(Anantnag:Udhampur!E199) -> 0 | F199: =SUM(Anantnag:Udhampur!F199) -> 0 | G199: =SUM(Anantnag:Udhampur!G199) -> 0 | H199: =SUM(Anantnag:Udhampur!H199) -> 0 | I199: =SUM(Anantnag:Udhampur!I199) -> 0 | J199: =SUM(Anantnag:Udhampur!J199) -> 0 | K199: =SUM(Anantnag:Udhampur!K199) -> 0 | L199: =SUM(Anantnag:Udhampur!L199) -> 0 | M199: =SUM(Anantnag:Udhampur!M199) -> 0 | N199: =SUM(Anantnag:Udhampur!N199) -> 0 | O199: 0.0015 | P199: =SUM(Anantnag:Udhampur!P199) -> 589 | Q199: =SUM(Anantnag:Udhampur!Q199) -> 0.8835 | R199: =SUM(Anantnag:Udhampur!R199) -> 589 | S199: =SUM(Anantnag:Udhampur!S199) -> 0.8835 | T199: =SUM(Anantnag:Udhampur!T199) -> 0 | U199: =SUM(Anantnag:Udhampur!U199) -> 0 | V199: =SUM(Anantnag:Udhampur!V199) -> 0 | W199: =SUM(Anantnag:Udhampur!W199) -> 0 | X199: 0.0015 | Y199: =SUM(Anantnag:Udhampur!Y199) -> 589 | Z199: =SUM(Anantnag:Udhampur!Z199) -> 0.8835 | AA199: =SUM(Anantnag:Udhampur!AA199) -> 589 | AB199: =SUM(Anantnag:Udhampur!AB199) -> 0.8835 | AD199: =SUM(Anantnag:Udhampur!Q199) -> 0.8835 | AE199: 0 | AF199: =SUM(Anantnag:Udhampur!U199) -> 0 | AG199: =SUM(Anantnag:Udhampur!Z199) -> 0.8835 | AH199: =SUM(Anantnag:Udhampur!AB199) -> 0.8835 | AI199: 0
B200: (d) Class III to V | C200: =SUM(Anantnag:Udhampur!C200) -> 369489 | D200: =SUM(Anantnag:Udhampur!D200) -> 554.2335 | E200: =SUM(Anantnag:Udhampur!E200) -> 369489 | F200: =SUM(Anantnag:Udhampur!F200) -> 554.2335 | G200: =SUM(Anantnag:Udhampur!G200) -> 0 | H200: =SUM(Anantnag:Udhampur!H200) -> 0 | I200: =SUM(Anantnag:Udhampur!I200) -> 0 | J200: =SUM(Anantnag:Udhampur!J200) -> 0 | K200: =SUM(Anantnag:Udhampur!K200) -> 0 | L200: =SUM(Anantnag:Udhampur!L200) -> 0 | M200: =SUM(Anantnag:Udhampur!M200) -> 0 | N200: =SUM(Anantnag:Udhampur!N200) -> 0 | O200: 0.0015 | P200: =SUM(Anantnag:Udhampur!P200) -> 347046 | Q200: =SUM(Anantnag:Udhampur!Q200) -> 520.569 | R200: =SUM(Anantnag:Udhampur!R200) -> 347046 | S200: =SUM(Anantnag:Udhampur!S200) -> 520.569 | T200: =SUM(Anantnag:Udhampur!T200) -> 0 | U200: =SUM(Anantnag:Udhampur!U200) -> 0 | V200: =SUM(Anantnag:Udhampur!V200) -> 0 | W200: =SUM(Anantnag:Udhampur!W200) -> 0 | X200: =X198 -> 0.0015 | Y200: =SUM(Anantnag:Udhampur!Y200) -> 347046 | Z200: =SUM(Anantnag:Udhampur!Z200) -> 520.569 | AA200: =SUM(Anantnag:Udhampur!AA200) -> 347046 | AB200: =SUM(Anantnag:Udhampur!AB200) -> 520.569 | AD200: =SUM(Anantnag:Udhampur!Q200) -> 520.569 | AE200: =327+342+345 -> 1014 | AF200: =SUM(Anantnag:Udhampur!U200) -> 0 | AG200: =SUM(Anantnag:Udhampur!Z200) -> 520.569 | AH200: =SUM(Anantnag:Udhampur!AB200) -> 520.569 | AI200: 0
... 319 more rows

Sheet Anantnag
A1: S.No. | B1: Activity | C1: 2016-17 | K1: Outlay Proposed for 2017-18 | T1: Outlay Recommended for 2017-18
C2: Outlay approved by PAB (including spillover) | E2: Achievement during the year | I2: Savings | K2: Spill Over | M2: Deferred laibility | O2: Fresh | R2: Total | T2: Spill Over | V2: Deferred laibility of 2014-15 | X2: Fresh | AA2: Total
C3: Phy. | D3: Fin | E3: Phy. | F3: Fin. | G3: Phy. (%) | H3: Fin. (%) | I3: Phy. | J3: Fin. | K3: Phy. | L3: Fin. | M3: Phy. | N3: Fin. | O3: Unit Cost | P3: Phy. | Q3: Fin. | R3: Phy. | S3: Fin. | T3: Phy. | U3: Fin. | V3: Phy. | W3: Fin. | X3: Unit Cost | Y3: Phy. | Z3: Fin. | AA3: Phy. | AB3: Fin.
A4: I | B4: ACCESS
B5: SSA
A6: 1 | B6: Opening of New Schools
A7: 1.01 | B7: New Primary School | S7: =L7+N7+Q7 -> 0 | AA7: =Y7 -> 0
A8: 1.02 | B8: Upgradation of PS to UPS | S8: =L8+N8+Q8 -> 0 | AA8: =Y8 -> 0
A9: 1.03 | B9: Composite Schools | S9: 0 | AA9: 0
A10: 1.04 | B10: Residential schools for specific category of children | S10: 0 | AA10: 0
A11: 1.05 | B11: Residential Hostel | S11: 0 | AA11: 0
A12: 1.06 | B12: Integration of Class V with primary schools | S12: 0 | AA12: 0
A13: 1.07 | B13: Integration of Class VIII with upper primary schools | S13: 0 | AA13: 0
A14: 2 | B14: Residential Schools for specific category of children | S14: 0
B15: 50 children | S15: 0
B16: Non-recurring (one time grant) | S16: 0
A17: 2.01 | B17: Furniture/ Equipment (including kitchen) | S17: 0 | Z17: =X17*Y17 -> 0 | AA17: =Y17 -> 0 | AB17: =U17+W17+Z17 -> 0
A18: 2.02 | B18: TLM and equipment including library books | S18: 0 | Z18: =X18*Y18 -> 0 | AA18: =Y18 -> 0 | AB18: =U18+W18+Z18 -> 0
A19: 2.03 | B19: Bedding (new) | S19: 0 | Z19: =X19*Y19 -> 0 | AA19: =Y19 -> 0 | AB19: =U19+W19+Z19 -> 0
A20: 2.04 | B20: Replacement of bedding (once in 3 years) | S20: 0 | Z20: =X20*Y20 -> 0 | AA20: =Y20 -> 0 | AB20: =U20+W20+Z20 -> 0
B21: Sub Total (Non Recurring) | C21: =SUM(C17:C20) -> 0 | D21: =SUM(D17:D20) -> 0 | E21: =SUM(E17:E20) -> 0 | F21: =SUM(F17:F20) -> 0 | G21: =SUM(G7:G20) -> 0 | H21: =SUM(H7:H20) -> 0 | I21: =SUM(I17:I20) -> 0 | J21: 0 | K21: 0 | L21: 0 | M21: 0 | N21: 0 | O21: =SUM(O7:O20) -> 0 | P21: =SUM(P17:P20) -> 0 | Q21: 0 | R21: 0 | S21: 0 | T21: 0 | U21: 0 | V21: 0 | W21: 0 | X21: =SUM(X7:X20) -> 0 | Y21: =SUM(Y17:Y20) -> 0 | Z21: =SUM(Z17:Z20) -> 0 | AA21: =SUM(AA17:AA20) -> 0 | AB21: =SUM(AB17:AB20) -> 0
B22: Recurring (50 children) | S22: 0
A23: 2.05 | B23: Maintenance @ Rs.1,500/- per child Per month | S23: 0 | Z23: =X23*Y23 -> 0 | AA23: =Y23 -> 0 | AB23: =U23+W23+Z23 -> 0
A24: 2.06 | B24: Stipend @ Rs.100/- per child per month | S24: 0 | Z24: 0 | AA24: 0 | AB24: 0
A25: 2.07 | B25: Supplementary TLM, Stationery and other educational material @Rs.1,000/- per child per annum | S25: 0 | Z25: 0 | AA25: 0 | AB25: 0
A26: 2.08 | B26: Salaries | S26: 0 | Z26: 0 | AA26: 0 | AB26: 0
A27: (a) | B27: 1 Warden @ Rs.25,000/- per month | S27: 0 | Z27: 0 | AA27: 0 | AB27: 0
A28: (b) | B28: 4 Fulltime teachers as per RTE Norms @ Rs. 20,000/- per month per teacher | S28: 0 | Z28: 0 | AA28: 0 | AB28: 0
A29: (c) | B29: 2 Urdu Teachers (only for Blocks with muslim population above 20% and select urban areas) if required @ Rs.12,000/- per month per teacher. | S29: 0 | Z29: 0 | AA29: 0 | AB29: 0
A30: (d) | B30: 3 Part time teachers @ Rs.5,000/- per month per teacher | S30: 0 | Z30: 0 | AA30: 0 | AB30: 0
A31: (e) | B31: 1 Full time Accountant @ Rs. 10,000/- per month | S31: 0 | Z31: 0 | AA31: 0 | AB31: 0
A32: (f) | B32: 2 Support staff - (Accountant/Assistant, Peon, Chowkidar) @ Rs. 5,000/- per month per staff | S32: 0 | Z32: 0 | AA32: 0 | AB32: 0
A33: (g) | B33: 1 Head Cook @ Rs. 6,000/- per month and upto 2 Asstt. Cooks @ Rs. 4,500/- per month per cook | S33: 0 | Z33: 0 | AA33: 0 | AB33: 0
A34: 2.09 | B34: Specific Skill training @ Rs.1,000/- per child per annum | S34: 0 | Z34: 0 | AA34: 0 | AB34: 0
A35: 2.1 | B35: Electricity / water charges @ Rs. 1,000/- per child per annum | S35: 0 | Z35: 0 | AA35: 0 | AB35: 0
A36: =+A35+0.01 -> 2.11 | B36: Medical care/contingencies @ Rs.1,250/- per child per annum | S36: 0 | Z36: 0 | AA36: 0 | AB36: 0
A37: =+A36+0.01 -> 2.12 | B37: Maintenance @ Rs. 750/- per child per annum | S37: 0 | Z37: 0 | AA37: 0 | AB37: 0
A38: 2.13 | B38: Miscellaneous @ Rs. 750/- per child per annum | S38: 0 | Z38: 0 | AA38: 0 | AB38: 0
A39: 2.14 | B39: Preparatory camps @ Rs. 300/- per child per annum | S39: 0 | Z39: 0 | AA39: 0 | AB39: 0
A40: 2.15 | B40: P.T.A / school functions @ Rs. 300/- per child per annum | S40: 0 | Z40: 0 | AA40: 0 | AB40: 0
A41: 2.16 | B41: Provision of Rent @ Rs. 10,000/- per child per annum | S41: 0 | Z41: 0 | AA41: 0 | AB41: 0
A42: 2.17 | B42: Capacity Building @ Rs. 500/- per child per annum | S42: 0 | Z42: 0 | AA42: 0 | AB42: 0
A43: 2.18 | B43: Physical / Self Defence Training @ Rs.200/- per child per annum | S43: 0 | Z43: 0 | AA43: 0 | AB43: 0
B44: Sub Total (Recurring) | C44: =SUM(C23:C43) -> 0 | D44: 0 | E44: 0 | F44: 0 | G44: 0 | H44: 0 | I44: =SUM(I23:I43) -> 0 | J44: 0 | K44: 0 | L44: 0 | M44: 0 | N44: 0 | O44: =SUM(O23:O43) -> 0 | P44: =SUM(P23:P43) -> 0 | Q44: 0 | R44: 0 | S44: 0 | T44: 0 | U44: 0 | V44: 0 | W44: 0 | X44: =SUM(X23:X43) -> 0 | Y44: =SUM(Y23:Y43) -> 0 | Z44: =SUM(Z23:Z43) -> 0 | AA44: =SUM(AA23:AA43) -> 0 | AB44: =SUM(AB23:AB43) -> 0
B45: Total (Non Recurring + Recurring) | C45: =C21+C44 -> 0 | D45: 0 | E45: 0 | F45: 0 | G45: 0 | H45: 0 | I45: =I21+I44 -> 0 | J45: 0 | K45: 0 | L45: 0 | M45: 0 | N45: 0 | O45: =O21+O44 -> 0 | P45: =P21+P44 -> 0 | Q45: 0 | R45: 0 | S45: 0 | T45: 0 | U45: 0 | V45: 0 | W45: 0 | X45: =X21+X44 -> 0 | Y45: =Y21+Y44 -> 0 | Z45: =Z21+Z44 -> 0 | AA45: =AA21+AA44 -> 0 | AB45: =AB21+AB44 -> 0
B46: 100 children
B47: Non-recurring (one time grant)
A48: 2.19 | B48: Furniture / Equipment (including kitchen equipment) | S48: =L48+N48+Q48 -> 0 | Z48: =X48*Y48 -> 0 | AA48: =Y48 -> 0 | AB48: =U48+W48+Z48 -> 0
A49: =+A48+0.01 -> 2.2 | B49: TLM and equipment including library books (New) | S49: =L49+N49+Q49 -> 0 | Z49: =X49*Y49 -> 0 | AA49: =Y49 -> 0 | AB49: =U49+W49+Z49 -> 0
A50: =+A49+0.01 -> 2.21 | B50: Bedding (New) | S50: =L50+N50+Q50 -> 0 | Z50: =X50*Y50 -> 0 | AA50: =Y50 -> 0 | AB50: =U50+W50+Z50 -> 0
A51: =+A50+0.01 -> 2.22 | B51: Replacement of bedding (once in 3 years) | S51: =L51+N51+Q51 -> 0 | Z51: =X51*Y51 -> 0 | AA51: =Y51 -> 0 | AB51: =U51+W51+Z51 -> 0
B52: Sub Total Non-recurring | C52: =SUM(C48:C51) -> 0 | D52: 0 | E52: 0 | F52: 0 | G52: 0 | H52: 0 | I52: =SUM(I48:I51) -> 0 | J52: 0 | K52: 0 | L52: 0 | M52: 0 | N52: 0 | O52: =SUM(O48:O51) -> 0 | P52: 0 | Q52: 0 | R52: 0 | S52: 0 | T52: 0 | U52: 0 | V52: 0 | W52: 0 | X52: 0 | Y52: 0 | Z52: 0 | AA52: 0 | AB52: 0
B53: Recurring
A54: 2.23 | B54: Maintenance @ Rs. 1,500/- per child per month | S54: =L54+N54+Q54 -> 0 | Z54: =X54*Y54 -> 0 | AA54: =Y54 -> 0 | AB54: =U54+W54+Z54 -> 0
A55: =+A54+0.01 -> 2.24 | B55: Stipend @ Rs.100/- per child per month | S55: 0 | Z55: =X55*Y55 -> 0 | AA55: =Y55 -> 0 | AB55: =U55+W55+Z55 -> 0
A56: 2.25 | B56: Supplementary TLM, Stationery and other educational material @1,000/- per child per annum | S56: 0 | Z56: =X56*Y56 -> 0 | AA56: =Y56 -> 0 | AB56: =U56+W56+Z56 -> 0
A57: 2.26 | B57: Salaries | S57: 0
A58: (a) | B58: 1 Warden @ Rs. 25,000/- per month | S58: 0 | Z58: =X58*Y58 -> 0 | AA58: =Y58 -> 0 | AB58: =U58+W58+Z58 -> 0
A59: (b) | B59: 1 head teacher @ Rs. 25,000/- per month in case the enrollment exceeds 100 | S59: 0 | Z59: 0 | AA59: 0 | AB59: 0
A60: (c) | B60: 4 - 5 Full time teachers as per RTE norms @ Rs. 20,000/- per month per teacher | S60: 0 | Z60: 0 | AA60: 0 | AB60: 0
A61: (d) | B61: 2 Urdu Teachers (only for blocks with muslim population above 20% and select urban areas), if required @ Rs. 12,000/- per month per teacher | S61: 0 | Z61: 0 | AA61: 0 | AB61: 0
A62: (e) | B62: 3 part time teachers @ Rs. 5,000/- per month per teacher | S62: 0 | Z62: 0 | AA62: 0 | AB62: 0
A63: (f) | B63: 1 Full time Accountant @ Rs. 10,000/- per month | S63: 0 | Z63: 0 | AA63: 0 | AB63: 0
A64: (g) | B64: 2 Support Staff – (Accountant/ Assistant, Peon, Chowkidar) @ Rs. 5,000/- per month per staff | S64: 0 | Z64: 0 | AA64: 0 | AB64: 0
A65: (h) | B65: 1 Head cook @ Rs. 6,000/- per month and upto 2 Asstt. Cooks @ Rs. 4,500/- per month per cook | S65: 0 | Z65: 0 | AA65: 0 | AB65: 0
A66: 2.27 | B66: Specific skill training @ Rs. 1,000/- per child per annum | S66: 0 | Z66: 0 | AA66: 0 | AB66: 0
A67: 2.28 | B67: Electricity / water charges @Rs. 1,000/- per child per annum | S67: 0 | Z67: 0 | AA67: 0 | AB67: 0
A68: 2.29 | B68: Medical care/contingencies @ Rs. 1,250/- per child per annum | S68: 0 | Z68: 0 | AA68: 0 | AB68: 0
A69: 2.3 | B69: Maintenance @ Rs. 750/- per child per annum | S69: 0 | Z69: 0 | AA69: 0 | AB69: 0
A70: 2.31 | B70: Miscellaneous @ Rs. 750/- per child per annum | S70: 0 | Z70: 0 | AA70: 0 | AB70: 0
A71: 2.32 | B71: Preparatory camps @ Rs.200/- per child per annum | S71: 0 | Z71: 0 | AA71: 0 | AB71: 0
A72: 2.33 | B72: P.T.A / school functions @ Rs.200/- per child per annum | S72: 0 | Z72: 0 | AA72: 0 | AB72: 0
A73: 2.34 | B73: Provision of Rent @ Rs. 6,000/- per child per annum | S73: 0 | Z73: 0 | AA73: 0 | AB73: 0
A74: 2.35 | B74: Capacity Building @ Rs. 500/- per child per annum | S74: 0 | Z74: 0 | AA74: 0 | AB74: 0
A75: 2.36 | B75: Physical / Self Defence training @ Rs. 200/- per child per annum. | S75: 0 | Z75: 0 | AA75: 0 | AB75: 0
B76: Sub Total (Recurring) | C76: =SUM(C54:C75) -> 0 | D76: 0 | E76: 0 | F76: 0 | G76: 0 | H76: 0 | I76: =SUM(I54:I75) -> 0 | J76: 0 | K76: 0 | L76: 0 | M76: 0 | N76: 0 | O76: =SUM(O54:O75) -> 0 | P76: =SUM(P54:P75) -> 0 | Q76: 0 | R76: 0 | S76: 0 | T76: 0 | U76: 0 | V76: 0 | W76: 0 | X76: =SUM(X54:X75) -> 0 | Y76: =SUM(Y54:Y75) -> 0 | Z76: =SUM(Z54:Z75) -> 0 | AA76: =SUM(AA54:AA75) -> 0 | AB76: =SUM(AB54:AB75) -> 0
B77: Total (Recurring + Non Recurring) | C77: =C52+C76 -> 0 | D77: 0 | E77: 0 | F77: 0 | G77: 0 | H77: 0 | I77: =I52+I76 -> 0 | J77: 0 | K77: 0 | L77: 0 | M77: 0 | N77: 0 | O77: =O52+O76 -> 0 | P77: =P52+P76 -> 0 | Q77: 0 | R77: 0 | S77: 0 | T77: 0 | U77: 0 | V77: 0 | W77: 0 | X77: =X52+X76 -> 0 | Y77: =Y52+Y76 -> 0 | Z77: =Z52+Z76 -> 0 | AA77: =AA52+AA76 -> 0 | AB77: =AB52+AB76 -> 0
B78: Total (50 + 100 children) | C78: =C45+C77 -> 0 | D78: =D45+D77 -> 0 | E78: =E45+E77 -> 0 | F78: =F45+F77 -> 0 | I78: =I45+I77 -> 0 | J78: 0 | K78: 0 | L78: 0 | M78: 0 | N78: 0 | P78: =P45+P77 -> 0 | Q78: 0 | R78: 0 | S78: 0 | T78: 0 | U78: 0 | V78: 0 | W78: 0 | Y78: =Y45+Y77 -> 0 | Z78: =Z45+Z77 -> 0 | AA78: =AA45+AA77 -> 0 | AB78: =AB45+AB77 -> 0
A79: 3 | B79: Residential Hostel for specific category of children
A80: (A) | B80: 50 children
B81: Non-recurring (one time grant)
A82: 3.01 | B82: Furniture/ Equipment (including kitchen) | S82: =L82+N82+Q82 -> 0 | Z82: =X82*Y82 -> 0 | AA82: =Y82 -> 0 | AB82: =U82+W82+Z82 -> 0
A83: =+A82+0.01 -> 3.02 | B83: TLM and equipment including library books | S83: =L83+N83+Q83 -> 0 | Z83: =X83*Y83 -> 0 | AA83: =Y83 -> 0 | AB83: =U83+W83+Z83 -> 0
A84: =+A83+0.01 -> 3.03 | B84: Bedding (new) | S84: =L84+N84+Q84 -> 0 | Z84: =X84*Y84 -> 0 | AA84: =Y84 -> 0 | AB84: =U84+W84+Z84 -> 0
A85: =+A84+0.01 -> 3.04 | B85: Replacement of bedding (once in 3 years) | S85: =L85+N85+Q85 -> 0 | Z85: =X85*Y85 -> 0 | AA85: =Y85 -> 0 | AB85: =U85+W85+Z85 -> 0
B86: Sub Total (Non Recurring) | C86: =SUM(C82:C85) -> 0 | D86: 0 | E86: 0 | F86: 0 | G86: 0 | H86: 0 | I86: =SUM(I82:I85) -> 0 | J86: 0 | K86: 0 | L86: 0 | M86: 0 | N86: 0 | O86: =SUM(O82:O85) -> 0 | P86: =SUM(P82:P85) -> 0 | Q86: 0 | R86: 0 | S86: 0 | T86: 0 | U86: 0 | V86: 0 | W86: 0 | X86: =SUM(X82:X85) -> 0 | Y86: =SUM(Y82:Y85) -> 0 | Z86: =SUM(Z82:Z85) -> 0 | AA86: =SUM(AA82:AA85) -> 0 | AB86: =SUM(AB82:AB85) -> 0
B87: Recurring (50 children)
A88: 3.05 | B88: Maintenance @ Rs.1,500/- per child per month | S88: =L88+N88+Q88 -> 0 | Z88: =X88*Y88 -> 0 | AA88: =Y88 -> 0 | AB88: =U88+W88+Z88 -> 0
A89: =+A88+0.01 -> 3.06 | B89: Stipend @ Rs.100/- per child per month | S89: 0 | Z89: =X89*Y89 -> 0 | AA89: =Y89 -> 0 | AB89: =U89+W89+Z89 -> 0
